Workbook

Sheet PI 2020-2023
A1: Acción | B1: Introducir texto | C1: Introducir texto | D1: Introducir número | E1: Introducir texto | F1: Introducir número | G1: Introducir texto | H1: Introducir texto | I1: Introducir texto | J1: Seleccionar de la lista | K1: Espacio formulado - NO MODIFICAR | L1: Introducir texto | M1: Seleccionar de la lista | N1: Espacio formulado - NO MODIFICAR | O1: Espacio formulado - NO MODIFICAR | P1: Analizar antes de avanzar | Espacio formulado - NO MODIFICAR | Q1: Introducir texto | R1: Introducir texto | S1: Seleccionar de la lista | T1: Espacio formulado - NO MODIFICAR | U1: Analizar antes de avanzar | Espacio formulado - NO MODIFICAR | V1: Seleccionar de la lista | W1: Espacio formulado - NO MODIFICAR | X1: Analizar antes de avanzar | Espacio formulado - NO MODIFICAR | Y1: Introducir valor | Z1: Introducir texto | AA1: Introducir valor | AB1: Seleccionar de la lista | AC1: Seleccionar de la lista | AD1: Seleccionar de la lista | AE1: Seleccionar de la lista | AF1: Seleccionar de la lista | AG1: Seleccionar de la lista | AL1: Introducir valor | AM1: Introducir valor | AN1: Introducir valor | AO1: Introducir valor | AP1: Introducir valor | AQ1: Introducir valor | AR1: Introducir valor | AS1: Introducir valor | AT1: Introducir valor | AU1: Introducir valor | AV1: Introducir valor | AW1: Introducir valor | AX1: Introducir valor | AY1: Introducir valor | AZ1: Introducir valor | BA1: Introducir valor | BB1: Introducir valor | BC1: Introducir valor | BD1: Introducir valor | BE1: Introducir valor | BF1: Introducir valor | BG1: Introducir valor | BH1: Introducir valor | BI1: Introducir valor | BJ1: Introducir valor | BK1: Introducir valor | BL1: Introducir valor | BM1: Introducir valor | BN1: Introducir valor | BO1: Introducir valor | BP1: Introducir valor | BQ1: Introducir valor | BR1: Introducir valor | BS1: Introducir valor | BT1: Introducir valor | BU1: Introducir valor | BV1: Introducir valor | BW1: Introducir valor | BX1: Introducir valor | BY1: Introducir valor | BZ1: Introducir valor | CA1: Introducir valor | CB1: Introducir valor | CC1: Introducir valor | CD1: Introducir valor | CE1: Introducir valor | CF1: Introducir valor | CG1: Introducir valor | CH1: Introducir valor | CI1: Introducir valor | CJ1: Introducir valor | CK1: Introducir valor | CL1: Introducir valor | CM1: Introducir valor | CN1: Introducir valor | CO1: Introducir valor | CP1: Introducir valor | CQ1: Introducir valor | CR1: Introducir valor | CS1: Introducir valor | CT1: Introducir valor | CU1: Introducir valor | CV1: Introducir valor | CW1: Introducir valor | CX1: Introducir valor | CY1: Introducir valor | CZ1: Introducir valor | DA1: Introducir valor | DB1: Introducir valor | DC1: Introducir valor | DD1: Introducir valor | DE1: Introducir valor
A2: Descripción | B2: Nombre de la línea estratégica del PDT a la que pertenece el programa presupuestal y producto a relacionar en la fila. Este nivel corresponde a un nivel superior al Programa, y es aquel que la entidad territorial define como estratégico para el seguimiento. | C2: Nombre del indicador de bienestar priorizado en el PDT asociado al programa presupuestal y producto a entregar | D2: Valor del indicador de bienestar priorizado antes de ejecutar cualquier intervención programada | E2: Unidad en la que se expresa el indicador de bienestar priorizado | F2: Meta del cuatrienio (para 2023) propuesta en el PDT para el indicador de bienestar priorizado | G2: En el caso en que el programa presupuestal escogido haya contemplado resultados indirectos además del asociado al indicador de bienestar priorizado, escriba el nombre de los indicadores de bienestar con que pueden asociarse esos resultados indirectos. | J2: Sector de inversión del Manual de Clasificación Programático del Gasto Público | K2: Código identificador del sector de inversión del Manual de Clasificación Programática del Gasto Público | L2: Nombre del programa a relacionar en la fila, tal y como fue aprobado en el PDT | M2: Nombre del programa presupuestal aprobado en el PDT según el Manual de Clasificación Programática del Gasto Público | N2: Código identificador del programa presupuestal según Manual de Clasificación Programática del Gasto Público | O2: Sector del FUT con el que es posible homologar el sector de inversión del Manual de Clasificación Programática del Gasto Público | P2: ALERTA que indica si la información requerida de sector de inversión y programa presupuestal del Manual de Clasificación Programática del Gasto Público punto fue diligenciada y es coherente entre sí | Q2: Nombre del producto tal y como fue aprobado en el PDT | R2: Dependencia dentro de la entidad territorial que asume la responsabilidad de ejecución y seguimiento de la intervención contemplada | S2: Nombre del producto aprobado según el Manual de Clasificación Programática del Gasto Público | T2: Código identificador del programa presupuestal según Manual de Clasificación Programática del Gasto Público | U2: ALERTA que indica si la información requerida sobre el programa presupuestal y producto del Manual de Clasificación Programática del Gasto Público punto fue diligenciada y es coherente entre sí | V2: Nombre del indicador con el que se hará seguimiento a la provisión del producto escogido, según el Manual de Clasificación Programática del Gasto Público | W2: Código identificador del indicador de producto según Manual de Clasificación Programática del Gasto Público | X2: ALERTA que indica si la información requerida sobre el roducto y su indicador en el Manual de Clasificación Programática del Gasto Público punto fue diligenciada y es coherente entre sí | Y2: Valor inicial (en el momento 0) del indicador de prodcuto, del cual partirá el seguimiento a la provisión de tal producto | Z2: Unidad de medida del indicador de producto escogido | AA2: Meta de producto que se pretende alcanzar al final de cuatrienio (al finalizar 2013) | AB2: Sentido de incremento o mantenimiento de la meta de producto del cuatrienio | AC2: Especificación de la existencia o no de una relación de la intervención contemplada con alguno de los 17 ODS trazadores | AD2: Si la meta de producto aporta a la política de "Construcción de Paz", seleccione con qué punto/pilar se relaciona. | AE2: Si la meta de producto aporta a la "Garantía de derechos de la población víctima del conflicto", seleccione con qué derecho/medida se relaciona. | AF2: Seleccionar el departamento permite que se genere una lista desplegable con las iniciativas regionales. Est+AF9a columna sólo aplica para los 170 municipios PDET, para los demás municipios y departamentos debe omitirse. | AG2: Seleccionar el municipio permite que se genere una lista desplegable con las iniciativas regionales. Esta columna sólo aplica para los 170 municipios PDET, para los demás municipios y departamentos debe omitirse. | AH2: Si la meta de producto aporta a las iniciativas PDET identifique si es Regional o Municipal . Esta columna sólo aplica para los 170 municipios PDET, para los demás municipios y departamentos debe omitirse. | AI2: Esta columna sólo aplica para los 170 municipios PDET, para los demás municipios y departamentos debe omitirse. | AJ2: Seleccionando el Departamento, el municipio, el tipo de iniciativa (Reginal o municipal) y el pilar, se genera una lista de las iniciativas que cumplen con esto atributos. Sólo aplica para municipios PDET | AK2: Esta columna sólo aplica para los 170 municipios PDET, para los demás municipios y departamentos debe omitirse. | AL2: Meta física que el producto debe alcanzar en cada año del periodo de gobierno, a saber: 2020, 2021, 2022 y 2023. Estas metas anuales deben tener en cuenta las unidades de medida, orientación y meta del cuatrienio que se relacionen | BL2: 1160000000
B3: Línea estratégica del PDT | C3: Información de los indicadores de Bienestar o Resultado priorizados en el PDT | J3: Sector de inversión del Manual de Clasificación Programática del Gasto Público | L3: Información del programa aprobrado en el PDT y su equivalente en el Manual de Clasificación Programático del Gasto Público y el Formato Único Territorial | Q3: Información del producto aprobado en el Plan de Desesarrollo Territorial (PDT) y su relación con el Catálogo de productos de la Metodología General Ajustada (MGA) | AD3: Información de articulación con la política de Construcción de paz, enfoque de garantía de derechos de población víctima y los Planes de Desarrollo Con Enfoque Territorial (PDET) | AL3: Programación física del cuatrienio | AP3: Programación financiera indicativa (por fuentes)
A4: N° | B4: Linea Estrategica / Dimension /Eje / Pilar | C4: Nombre del Indicador de Bienestar /Resultado priorizado (medible) | D4: Línea Base (LB) del indicador de Bienestar/ Resultado | E4: Unidad de Medida de la Línea Base - LB | F4: Meta de Resultado/Bienestar del cuatrienio (2023) | G4: Nombre del Indicador Bienestar/Resultado Indirecto 1 | H4: Nombre del Indicador Bienestar/Resultado Indirecto 2 | I4: Nombre del Indicador Bienestar/Resultado Indirecto 3 | J4: Nombre del sector de inversión con el que se financiará la intervención | K4: Código del sector | L4: Nombre del Programa aprobado en el PDT | M4: Nombre del Programa según el Manual de Clasificación Programático del Gasto Público | N4: Codigo del Programa | O4: Homologación con el sector FUT | P4: SEMÁFORO 1 Alerta de coherencia entre sectores de inversión y programas presupuestales escogidos | Q4: Nombre del Producto aprobado en el PDT | R4: Dependencia responsable | S4: Nombre del Producto según el Catálogo de Productos de la MGA | T4: Codigo del Producto según Catálogo de productos de la MGA | U4: SEMÁFORO 2 Alerta de coherencia entre productos y programas presupuestales escogidos | V4: Indicador de Producto según Catálogo de Productos de la MGA | W4: Codigo del indicador de Producto Según el Catálogo de Productos de la MGA | X4: SEMÁFORO 3 Alerta de coherencia entre indicadores de producto y productos escogidos | Y4: Línea Base Producto | Z4: Unidad de Medida | AA4: Meta Producto Cuatrenio | AB4: Orientación de la meta de producto | AC4: ODS | AD4: Relación del producto con la política de "Construcción de Paz" | AE4: Relación del producto con la "Garantía de los derechos de la población víctima del conflicto" | AF4: DEPARTAMENTO (Sólo para municipios PDET) | AG4: MUNICIPIO (Sólo para municipios PDET) | AH4: Aporta a las iniciativas PDET | AI4: Pilar | AJ4: Seleccione Cód. iniciativa asociada | AK4: Seleccione Nombre iniciativa | AL4: Meta Física Esperada 2020 | AM4: Meta Física Esperada 2021 | AN4: Meta Física Esperada 2022 | AO4: Meta Física Esperada 2023 | AP4: Recursos propios 2020 | AQ4: SGP Educación 2020 (valores en pesos) | AR4: SGP Salud 2020 (valores en pesos) | AS4: SGP APSB 2020 | AT4: SGP Cultura 2020 | AU4: SGP Deporte 2020 | AV4: SGP Libre Inversión 2020 | AW4: SGP Libre Destinación 42% Mpios 4, 5 y 6 Cat 2020 | AX4: SGP Alimentación Escolar 2020 | AY4: SGP Municipios Río Magdalena 2020 | AZ4: SGP Primera Infancia 2020 | BA4: Regalías 2020 | BB4: Cofinanciación Departamento 2020 | BC4: Cofinanciación Nación 2020 | BD4: Crédito 2020 | BE4: Otros 2020 | BF4: Total 2020 | BG4: Recursos propios 2021 | BH4: SGP Educación 2021 (valores en pesos) | BI4: SGP Salud 2021 (valores en pesos) | BJ4: SGP APSB 2021 | BK4: SGP Cultura 2021 | BL4: SGP Deporte 2021 | BM4: SGP Libre Inversión 2021 | BN4: SGP Libre Destinación 42% Mpios 4, 5 y 6 Cat 2021 | BO4: SGP Alimentación Escolar 2021 | BP4: SGP Municipios Río Magdalena 2021 | BQ4: SGP Primera Infancia 2021 | BR4: Regalías 2021 | BS4: Cofinanciación Departamento 2021 | BT4: Cofinanciación Nación 2021 | BU4: Crédito 2021 | BV4: Otros 2021 | BW4: Total 2021 | BX4: Recursos propios 2022 | BY4: SGP Educación 2022 (valores en pesos) | BZ4: SGP Salud 2022 (valores en pesos) | CA4: SGP APSB 2022 | CB4: SGP Cultura 2022 | CC4: SGP Deporte 2022 | CD4: SGP Libre Inversión 2022 | CE4: SGP Libre Destinación 42% Mpios 4, 5 y 6 Cat 2022 | CF4: SGP Alimentación Escolar 2022 | CG4: SGP Municipios Río Magdalena 2022 | CH4: SGP Primera Infancia 2022 | CI4: Regalías 2022 | CJ4: Cofinanciación Departamento 2022 | CK4: Cofinanciación Nación 2022 | CL4: Crédito 2022 | CM4: Otros 2022 | CN4: Total 2022 | CO4: Recursos propios 2023 | CP4: SGP Educación 2023 (valores en pesos) | CQ4: SGP Salud 2023 (valores en pesos) | CR4: SGP APSB 2023 | CS4: SGP Cultura 2023 | CT4: SGP Deporte 2023 | CU4: SGP Libre Inversión 2023 | CV4: SGP Libre Destinación 42% Mpios 4, 5 y 6 Cat 2023 | CW4: SGP Alimentación Escolar 2023 | CX4: SGP Municipios Río Magdalena 2023 | CY4: SGP Primera Infancia 2023 | CZ4: Regalías 2023 | DA4: Cofinanciación Departamento 2023 | DB4: Cofinanciación Nación 2023 | DC4: Crédito 2023 | DD4: Otros 2023 | DE4: Total 2023
A5: 1 | B5: Transformación y Desarrollo Social con Equidad | C5: Cobertura neta de educación media | D5: 41.95 | E5: Porcentaje | F5: 42 | J5: Educación | K5: =IFERROR(IF($J5="","",VLOOKUP($J5,Catálogo!$B$5:$C$21,2,FALSE)),"Introduzca un sector de inversión válido") -> 22 | L5: Educación inclusiva, equitativa y de calidad | M5: Calidad, cobertura y fortalecimiento de la educación inicial, prescolar, básica y media (2201) | N5: =IFERROR(IF($M5="","",VLOOKUP($M5,Catálogo!$E$25:$F$93,2,FALSE)),"Introduzca un programa presupuestal válido") -> 2201 | O5: =IFERROR(IF($N5="","",VLOOKUP($N5,Catálogo!$F$25:$G$94,2,FALSE)),"Introduzca un programa presupuestal válido") -> A.1 - Educación | P5: =IF(OR($K5="",$N5=""),"Sin información diligenciada",IF(LEFT($N5,2)=$K5,"CONTINÚE: El programa presupuestal y sector de inversión coinciden","DETÉNGASE: Verifique que seleccionó sector y un programa presupuestal válidos, y que además, coinciden")) -> CONTINÚE: El programa presupuestal y sector de inversión coinciden | Q5: Servicio de fortalecimiento a las capacidades de los docentes de educación preescolar, básica y media | R5: Secretaría de Educación, deporte y cultura | S5: Servicio de fortalecimiento a las capacidades de los docentes de educación Inicial, preescolar, básica y media (2201074) | T5: =IFERROR(IF($S5="","",VLOOKUP($S5,Catálogo!$G$97:$H$2750,2,FALSE)),"Introduzca un producto válido") -> 2201074 | U5: =IF(OR($N5="",$T5=""),"Sin información diligenciada",IF(LEFT($T5,4)=$N5,"CONTINÚE: El producto y programa presupuestal coinciden","DETÉNGASE: Verifique que seleccionó un programa presupuestal y un producto válidos, y que además, coinciden")) -> CONTINÚE: El producto y programa presupuestal coinciden | V5: Docentes de educación inicial, preescolar, básica y media beneficiados con programas de educación para el trabajo y el desarrollo humano (220107403) | W5: =IFERROR(IF($V5="","",VLOOKUP($V5,Catálogo!$B$3019:$C$9130,2,FALSE)),"Introduzca un indicador de producto válido") -> 220107403 | X5: =IF(OR($T5="",$W5=""),"Sin información diligenciada",IF(LEFT($W5,7)=$T5,"CONTINÚE: El indicador de producto y el producto coinciden","DETÉNGASE: Verifique que seleccionó un producto y un indicador de producto válidos, y que además, coinciden")) -> CONTINÚE: El indicador de producto y el producto coinciden | Z5: Número | AA5: 1272 | AB5: Incremento | AC5: ODS 4. Educación de calidad | AD5: 1.4. Desarrollo social: Educación rural | AE5: Asistencia / Educación | AL5: 401 | AM5: 401 | AN5: 235 | AO5: 235 | AP5: 0 | AQ5: 30000120 | AR5: 0 | AS5: 0 | AT5: 0 | AU5: 0 | AV5: 0 | AW5: 0 | AX5: 0 | AY5: 0 | AZ5: 0 | BA5: 0 | BB5: 0 | BC5: 0 | BD5: 0 | BE5: 0 | BF5: =+AP5+AQ5+AR5+AS5+AT5+AU5+AV5+AW5+AX5+AY5+AZ5+BA5+BB5+BC5+BD5+BE5 -> 30000120 | BG5: 0 | BH5: 30000120 | BI5: 0 | BJ5: 0 | BK5: 0 | BL5: 0 | BM5: 0 | BN5: 0 | BO5: 0 | BP5: 0 | BQ5: 0 | BR5: 0 | BS5: 0 | BT5: 0 | BU5: 0 | BV5: 0 | BW5: =+BG5+BH5+BI5+BJ5+BK5+BL5+BM5+BN5+BO5+BP5+BQ5+BR5+BS5+BT5+BU5+BV5 -> 30000120 | BX5: 0 | BY5: 30000120 | BZ5: 0 | CA5: 0 | CB5: 0 | CC5: 0 | CD5: 0 | CE5: 0 | CF5: 0 | CG5: 0 | CH5: 0 | CI5: 0 | CJ5: 0 | CK5: 0 | CL5: 0 | CM5: 0 | CN5: =+BX5+BY5+BZ5+CA5+CB5+CC5+CD5+CE5+CF5+CG5+CH5+CI5+CJ5+CK5+CL5+CM5 -> 30000120 | CO5: 0 | CP5: 30000120 | CQ5: 0 | CR5: 0 | CS5: 0 | CT5: 0 | CU5: 0 | CV5: 0 | CW5: 0 | CX5: 0 | CY5: 0 | CZ5: 0 | DA5: 0 | DB5: 0 | DC5: 0 | DD5: 0 | DE5: =+CO5+CP5+CQ5+CR5+CS5+CT5+CU5+CV5+CW5+CX5+CY5+CZ5+DA5+DB5+DC5+DD5 -> 30000120 | DF5: =+BF5+BW5+CN5+DE5 -> 120000480
A6: 2 | B6: Transformación y Desarrollo Social con Equidad | C6: Cobertura neta de educación media | D6: 41.95 | E6: Porcentaje | F6: 42 | J6: Educación | K6: =IFERROR(IF($J6="","",VLOOKUP($J6,Catálogo!$B$5:$C$21,2,FALSE)),"Introduzca un sector de inversión válido") -> 22 | L6: Educación inclusiva, equitativa y de calidad | M6: Calidad, cobertura y fortalecimiento de la educación inicial, prescolar, básica y media (2201) | N6: =IFERROR(IF($M6="","",VLOOKUP($M6,Catálogo!$E$25:$F$93,2,FALSE)),"Introduzca un programa presupuestal válido") -> 2201 | O6: =IFERROR(IF($N6="","",VLOOKUP($N6,Catálogo!$F$25:$G$94,2,FALSE)),"Introduzca un programa presupuestal válido") -> A.1 - Educación | P6: CONTINÚE: El programa presupuestal y sector de inversión coinciden | Q6: Servicio de apoyo a la permanencia con alimentación escolar | R6: Secretaría de Educación, deporte y cultura | S6: Servicio de apoyo a la permanencia con alimentación escolar (2201028) | T6: =IFERROR(IF($S6="","",VLOOKUP($S6,Catálogo!$G$97:$H$2750,2,FALSE)),"Introduzca un producto válido") -> 2201028 | U6: CONTINÚE: El producto y programa presupuestal coinciden | V6: Beneficiarios de la alimentación escolar (220102801) | W6: =IFERROR(IF($V6="","",VLOOKUP($V6,Catálogo!$B$3019:$C$9130,2,FALSE)),"Introduzca un indicador de producto válido") -> 220102801 | X6: CONTINÚE: El indicador de producto y el producto coinciden | Z6: Número | AA6: 22440 | AB6: Incremento | AC6: ODS 4. Educación de calidad | AD6: 1.4. Desarrollo social: Educación rural | AE6: Asistencia / Educación | AK6: =+IFERROR(VLOOKUP(AJ6,Iniciativas!E:F,2,FALSE),"Seleccione el código de la iniciativa") -> Seleccione el código de la iniciativa | AL6: 5610 | AM6: 5610 | AN6: 5610 | AO6: 5610 | AP6: 28628250.5 | AQ6: 0 | AR6: 0 | AS6: 0 | AT6: 0 | AU6: 0 | AV6: 0 | AW6: 0 | AX6: 185005967.8 | AY6: 0 | AZ6: 0 | BA6: 0 | BB6: 471762651 | BC6: 0 | BD6: 0 | BE6: 0 | BF6: =+AP6+AQ6+AR6+AS6+AT6+AU6+AV6+AW6+AX6+AY6+AZ6+BA6+BB6+BC6+BD6+BE6 -> 685396869.2 | BG6: 28628250.5 | BH6: 0 | BI6: 0 | BJ6: 0 | BK6: 0 | BL6: 0 | BM6: 0 | BN6: 0 | BO6: 185005967.8 | BP6: 0 | BQ6: 0 | BR6: 0 | BS6: 471762651 | BT6: 0 | BU6: 0 | BV6: 0 | BW6: =+BG6+BH6+BI6+BJ6+BK6+BL6+BM6+BN6+BO6+BP6+BQ6+BR6+BS6+BT6+BU6+BV6 -> 685396869.2 | BX6: 28628250.5 | BY6: 0 | BZ6: 0 | CA6: 0 | CB6: 0 | CC6: 0 | CD6: 0 | CE6: 0 | CF6: 185005967.8 | CG6: 0 | CH6: 0 | CI6: 0 | CJ6: 471762651 | CK6: 0 | CL6: 0 | CM6: 0 | CN6: =+BX6+BY6+BZ6+CA6+CB6+CC6+CD6+CE6+CF6+CG6+CH6+CI6+CJ6+CK6+CL6+CM6 -> 685396869.2 | CO6: 28628250.5 | CP6: 0 | CQ6: 0 | CR6: 0 | CS6: 0 | CT6: 0 | CU6: 0 | CV6: 0 | CW6: 185005967.8 | CX6: 0 | CY6: 0 | CZ6: 0 | DA6: 471762651 | DB6: 0 | DC6: 0 | DD6: 0 | DE6: =+CO6+CP6+CQ6+CR6+CS6+CT6+CU6+CV6+CW6+CX6+CY6+CZ6+DA6+DB6+DC6+DD6 -> 685396869.2 | DF6: =+BF6+BW6+CN6+DE6 -> 2741587477
A7: 3 | B7: Transformación y Desarrollo Social con Equidad | C7: Cobertura neta de educación media | D7: 41.95 | E7: Porcentaje | F7: 42 | J7: Educación | K7: =IFERROR(IF($J7="","",VLOOKUP($J7,Catálogo!$B$5:$C$21,2,FALSE)),"Introduzca un sector de inversión válido") -> 22 | L7: Educación inclusiva, equitativa y de calidad | M7: Calidad, cobertura y fortalecimiento de la educación inicial, prescolar, básica y media (2201) | N7: =IFERROR(IF($M7="","",VLOOKUP($M7,Catálogo!$E$25:$F$93,2,FALSE)),"Introduzca un programa presupuestal válido") -> 2201 | O7: =IFERROR(IF($N7="","",VLOOKUP($N7,Catálogo!$F$25:$G$94,2,FALSE)),"Introduzca un programa presupuestal válido") -> A.1 - Educación | P7: CONTINÚE: El programa presupuestal y sector de inversión coinciden | Q7: Servicio de apoyo a la permanencia con transporte escolar | R7: Secretaría de Educación, deporte y cultura | S7: Servicio de apoyo a la permanencia con transporte escolar (2201029) | T7: =IFERROR(IF($S7="","",VLOOKUP($S7,Catálogo!$G$97:$H$2750,2,FALSE)),"Introduzca un producto válido") -> 2201029 | U7: CONTINÚE: El producto y programa presupuestal coinciden | V7: Beneficiarios de transporte escolar (220102900) | W7: =IFERROR(IF($V7="","",VLOOKUP($V7,Catálogo!$B$3019:$C$9130,2,FALSE)),"Introduzca un indicador de producto válido") -> 220102900 | X7: CONTINÚE: El indicador de producto y el producto coinciden | Z7: Número | AA7: 800 | AB7: Incremento | AC7: ODS 4. Educación de calidad | AD7: 1.4. Desarrollo social: Educación rural | AE7: Asistencia / Educación | AK7: =+IFERROR(VLOOKUP(AJ7,Iniciativas!E:F,2,FALSE),"Seleccione el código de la iniciativa") -> Seleccione el código de la iniciativa | AL7: 200 | AM7: 200 | AN7: 200 | AO7: 200 | AP7: 30000000 | AQ7: 127000000 | AR7: 0 | AS7: 0 | AT7: 0 | AU7: 0 | AV7: 0 | AW7: 0 | AX7: 0 | AY7: 0 | AZ7: 0 | BA7: 0 | BB7: 0 | BC7: 0 | BD7: 0 | BE7: 0 | BF7: 157000000 | BG7: 30000000 | BH7: 127000000 | BI7: 0 | BJ7: 0 | BK7: 0 | BL7: 0 | BM7: 0 | BN7: 0 | BO7: 0 | BP7: 0 | BQ7: 0 | BR7: 0 | BS7: 0 | BT7: 0 | BU7: 0 | BV7: 0 | BW7: 157000000 | BX7: 30000000 | BY7: 127000000 | BZ7: 0 | CA7: 0 | CB7: 0 | CC7: 0 | CD7: 0 | CE7: 0 | CF7: 0 | CG7: 0 | CH7: 0 | CI7: 0 | CJ7: 0 | CK7: 0 | CL7: 0 | CM7: 0 | CN7: 157000000 | CO7: 30000000 | CP7: 127000000 | CQ7: 0 | CR7: 0 | CS7: 0 | CT7: 0 | CU7: 0 | CV7: 0 | CW7: 0 | CX7: 0 | CY7: 0 | CZ7: 0 | DA7: 0 | DB7: 0 | DC7: 0 | DD7: 0 | DE7: 157000000 | DF7: 628000000
A8: 4 | B8: Transformación y Desarrollo Social con Equidad | C8: Cobertura neta de educación media | D8: 41.95 | E8: Porcentaje | F8: 42 | J8: Educación | K8: =IFERROR(IF($J8="","",VLOOKUP($J8,Catálogo!$B$5:$C$21,2,FALSE)),"Introduzca un sector de inversión válido") -> 22 | L8: Educación inclusiva, equitativa y de calidad | M8: Calidad, cobertura y fortalecimiento de la educación inicial, prescolar, básica y media (2201) | N8: =IFERROR(IF($M8="","",VLOOKUP($M8,Catálogo!$E$25:$F$93,2,FALSE)),"Introduzca un programa presupuestal válido") -> 2201 | O8: =IFERROR(IF($N8="","",VLOOKUP($N8,Catálogo!$F$25:$G$94,2,FALSE)),"Introduzca un programa presupuestal válido") -> A.1 - Educación | P8: CONTINÚE: El programa presupuestal y sector de inversión coinciden | Q8: Servicio educación formal por modelos educativos flexibles | R8: Secretaría de Educación, deporte y cultura | S8: Servicio educación formal por modelos educativos flexibles (2201030) | T8: =IFERROR(IF($S8="","",VLOOKUP($S8,Catálogo!$G$97:$H$2750,2,FALSE)),"Introduzca un producto válido") -> 2201030 | U8: CONTINÚE: El producto y programa presupuestal coinciden | V8: Beneficiarios atendidos con modelos educativos flexibles (220103000) | W8: =IFERROR(IF($V8="","",VLOOKUP($V8,Catálogo!$B$3019:$C$9130,2,FALSE)),"Introduzca un indicador de producto válido") -> 220103000 | X8: CONTINÚE: El indicador de producto y el producto coinciden | Z8: Número | AA8: 5656 | AB8: Mantenimiento | AC8: ODS 4. Educación de calidad | AD8: 1.4. Desarrollo social: Educación rural | AE8: Asistencia / Educación | AK8: =+IFERROR(VLOOKUP(AJ8,Iniciativas!E:F,2,FALSE),"Seleccione el código de la iniciativa") -> Seleccione el código de la iniciativa | AL8: 5656 | AM8: 5656 | AN8: 5656 | AO8: 5656 | AP8: 0 | AQ8: 3500003.5 | AR8: 0 | AS8: 0 | AT8: 0 | AU8: 0 | AV8: 0 | AW8: 0 | AX8: 0 | AY8: 0 | AZ8: 0 | BA8: 0 | BB8: 0 | BC8: 0 | BD8: 0 | BE8: 0 | BF8: 3500003.5 | BG8: 0 | BH8: 3500003.5 | BI8: 0 | BJ8: 0 | BK8: 0 | BL8: 0 | BM8: 0 | BN8: 0 | BO8: 0 | BP8: 0 | BQ8: 0 | BR8: 0 | BS8: 0 | BT8: 0 | BU8: 0 | BV8: 0 | BW8: 3500003.5 | BX8: 0 | BY8: 3500003.5 | BZ8: 0 | CA8: 0 | CB8: 0 | CC8: 0 | CD8: 0 | CE8: 0 | CF8: 0 | CG8: 0 | CH8: 0 | CI8: 0 | CJ8: 0 | CK8: 0 | CL8: 0 | CM8: 0 | CN8: 3500003.5 | CO8: 0 | CP8: 3500003.5 | CQ8: 0 | CR8: 0 | CS8: 0 | CT8: 0 | CU8: 0 | CV8: 0 | CW8: 0 | CX8: 0 | CY8: 0 | CZ8: 0 | DA8: 0 | DB8: 0 | DC8: 0 | DD8: 0 | DE8: 3500003.5 | DF8: 14000014
A9: 5 | B9: Transformación y Desarrollo Social con Equidad | C9: Cobertura neta de educación media | D9: 41.95 | E9: Porcentaje | F9: 42 | J9: Educación | K9: =IFERROR(IF($J9="","",VLOOKUP($J9,Catálogo!$B$5:$C$21,2,FALSE)),"Introduzca un sector de inversión válido") -> 22 | L9: Educación inclusiva, equitativa y de calidad | M9: Calidad, cobertura y fortalecimiento de la educación inicial, prescolar, básica y media (2201) | N9: =IFERROR(IF($M9="","",VLOOKUP($M9,Catálogo!$E$25:$F$93,2,FALSE)),"Introduzca un programa presupuestal válido") -> 2201 | O9: =IFERROR(IF($N9="","",VLOOKUP($N9,Catálogo!$F$25:$G$94,2,FALSE)),"Introduzca un programa presupuestal válido") -> A.1 - Educación | P9: CONTINÚE: El programa presupuestal y sector de inversión coinciden | Q9: Servicio de fomento para la permanencia en programas de educación formal | R9: Secretaría de Educación, deporte y cultura | S9: Servicio de fomento para la permanencia en programas de educación formal (2201033) | T9: =IFERROR(IF($S9="","",VLOOKUP($S9,Catálogo!$G$97:$H$2750,2,FALSE)),"Introduzca un producto válido") -> 2201033 | U9: CONTINÚE: El producto y programa presupuestal coinciden | V9: Personas beneficiarias de estrategias de permanencia (220103300) | W9: =IFERROR(IF($V9="","",VLOOKUP($V9,Catálogo!$B$3019:$C$9130,2,FALSE)),"Introduzca un indicador de producto válido") -> 220103300 | X9: CONTINÚE: El indicador de producto y el producto coinciden | Z9: Número | AA9: 26980 | AB9: Incremento | AC9: ODS 4. Educación de calidad | AD9: 1.4. Desarrollo social: Educación rural | AE9: Asistencia / Educación | AK9: =+IFERROR(VLOOKUP(AJ9,Iniciativas!E:F,2,FALSE),"Seleccione el código de la iniciativa") -> Seleccione el código de la iniciativa | AL9: 6745 | AM9: 6745 | AN9: 6745 | AO9: 6745 | AP9: 154674841.8 | AQ9: 518628123 | AR9: 0 | AS9: 0 | AT9: 0 | AU9: 0 | AV9: 0 | AW9: 0 | AX9: 0 | AY9: 0 | AZ9: 0 | BA9: 0 | BB9: 0 | BC9: 0 | BD9: 0 | BE9: 0 | BF9: 673302964.8 | BG9: 154674841.8 | BH9: 518628123 | BI9: 0 | BJ9: 0 | BK9: 0 | BL9: 0 | BM9: 0 | BN9: 0 | BO9: 0 | BP9: 0 | BQ9: 0 | BR9: 0 | BS9: 0 | BT9: 0 | BU9: 0 | BV9: 0 | BW9: 673302964.8 | BX9: 154674841.8 | BY9: 518628123 | BZ9: 0 | CA9: 0 | CB9: 0 | CC9: 0 | CD9: 0 | CE9: 0 | CF9: 0 | CG9: 0 | CH9: 0 | CI9: 0 | CJ9: 0 | CK9: 0 | CL9: 0 | CM9: 0 | CN9: 673302964.8 | CO9: 154674841.8 | CP9: 518628123 | CQ9: 0 | CR9: 0 | CS9: 0 | CT9: 0 | CU9: 0 | CV9: 0 | CW9: 0 | CX9: 0 | CY9: 0 | CZ9: 0 | DA9: 0 | DB9: 0 | DC9: 0 | DD9: 0 | DE9: 673302964.8 | DF9: 2693211859
A10: 6 | B10: Transformación y Desarrollo Social con Equidad | C10: Cobertura neta de educación media | D10: 41.95 | E10: Porcentaje | F10: 42 | J10: Educación | K10: =IFERROR(IF($J10="","",VLOOKUP($J10,Catálogo!$B$5:$C$21,2,FALSE)),"Introduzca un sector de inversión válido") -> 22 | L10: Educación inclusiva, equitativa y de calidad | M10: Calidad, cobertura y fortalecimiento de la educación inicial, prescolar, básica y media (2201) | N10: =IFERROR(IF($M10="","",VLOOKUP($M10,Catálogo!$E$25:$F$93,2,FALSE)),"Introduzca un programa presupuestal válido") -> 2201 | O10: =IFERROR(IF($N10="","",VLOOKUP($N10,Catálogo!$F$25:$G$94,2,FALSE)),"Introduzca un programa presupuestal válido") -> A.1 - Educación | P10: CONTINÚE: El programa presupuestal y sector de inversión coinciden | Q10: Servicio educativos de promoción del bilingüismo | R10: Secretaría de Educación, deporte y cultura | S10: Servicio educativos de promoción del bilingüismo (2201034) | T10: =IFERROR(IF($S10="","",VLOOKUP($S10,Catálogo!$G$97:$H$2750,2,FALSE)),"Introduzca un producto válido") -> 2201034 | U10: CONTINÚE: El producto y programa presupuestal coinciden | V10: Estudiantes beneficiados con estrategias de promoción del bilingüismo (220103400) | W10: =IFERROR(IF($V10="","",VLOOKUP($V10,Catálogo!$B$3019:$C$9130,2,FALSE)),"Introduzca un indicador de producto válido") -> 220103400 | X10: CONTINÚE: El indicador de producto y el producto coinciden | Z10: Número | AA10: 40 | AB10: Incremento | AC10: ODS 4. Educación de calidad | AD10: 1.4. Desarrollo social: Educación rural | AE10: Asistencia / Educación | AK10: =+IFERROR(VLOOKUP(AJ10,Iniciativas!E:F,2,FALSE),"Seleccione el código de la iniciativa") -> Seleccione el código de la iniciativa | AL10: 0 | AM10: 15 | AN10: 15 | AO10: 10 | AP10: 0 | AQ10: 0 | AR10: 0 | AS10: 0 | AT10: 0 | AU10: 0 | AV10: 0 | AW10: 0 | AX10: 0 | AY10: 0 | AZ10: 0 | BA10: 0 | BB10: 0 | BC10: 0 | BD10: 0 | BE10: 0 | BF10: 0 | BG10: 0 | BH10: 8250000 | BI10: 0 | BJ10: 0 | BK10: 0 | BL10: 0 | BM10: 0 | BN10: 0 | BO10: 0 | BP10: 0 | BQ10: 0 | BR10: 0 | BS10: 0 | BT10: 0 | BU10: 0 | BV10: 0 | BW10: 8250000 | BX10: 0 | BY10: 8250000 | BZ10: 0 | CA10: 0 | CB10: 0 | CC10: 0 | CD10: 0 | CE10: 0 | CF10: 0 | CG10: 0 | CH10: 0 | CI10: 0 | CJ10: 0 | CK10: 0 | CL10: 0 | CM10: 0 | CN10: 8250000 | CO10: 0 | CP10: 5500000 | CQ10: 0 | CR10: 0 | CS10: 0 | CT10: 0 | CU10: 0 | CV10: 0 | CW10: 0 | CX10: 0 | CY10: 0 | CZ10: 0 | DA10: 0 | DB10: 0 | DC10: 0 | DD10: 0 | DE10: 5500000 | DF10: 22000000
A11: 7 | B11: Transformación y Desarrollo Social con Equidad | C11: Cobertura neta de educación media | D11: 41.95 | E11: Porcentaje | F11: 42 | J11: Educación | K11: =IFERROR(IF($J11="","",VLOOKUP($J11,Catálogo!$B$5:$C$21,2,FALSE)),"Introduzca un sector de inversión válido") -> 22 | L11: Educación inclusiva, equitativa y de calidad | M11: Calidad, cobertura y fortalecimiento de la educación inicial, prescolar, básica y media (2201) | N11: =IFERROR(IF($M11="","",VLOOKUP($M11,Catálogo!$E$25:$F$93,2,FALSE)),"Introduzca un programa presupuestal válido") -> 2201 | O11: =IFERROR(IF($N11="","",VLOOKUP($N11,Catálogo!$F$25:$G$94,2,FALSE)),"Introduzca un programa presupuestal válido") -> A.1 - Educación | P11: CONTINÚE: El programa presupuestal y sector de inversión coinciden | Q11: Servicios de información en materia educativa | R11: Secretaría de Educación, deporte y cultura | S11: Servicios de información en materia educativa (2201048) | T11: =IFERROR(IF($S11="","",VLOOKUP($S11,Catálogo!$G$97:$H$2750,2,FALSE)),"Introduzca un producto válido") -> 2201048 | U11: CONTINÚE: El producto y programa presupuestal coinciden | V11: Niños caraterizados en los sistemas de información educativos (220104802) | W11: =IFERROR(IF($V11="","",VLOOKUP($V11,Catálogo!$B$3019:$C$9130,2,FALSE)),"Introduzca un indicador de producto válido") -> 220104802 | X11: CONTINÚE: El indicador de producto y el producto coinciden | Z11: Número | AA11: 26980 | AB11: Incremento | AC11: ODS 4. Educación de calidad | AD11: 1.4. Desarrollo social: Educación rural | AE11: Asistencia / Educación | AK11: =+IFERROR(VLOOKUP(AJ11,Iniciativas!E:F,2,FALSE),"Seleccione el código de la iniciativa") -> Seleccione el código de la iniciativa | AL11: 6745 | AM11: 6745 | AN11: 6745 | AO11: 6745 | AP11: 0 | AQ11: 19656009 | AR11: 0 | AS11: 0 | AT11: 0 | AU11: 0 | AV11: 0 | AW11: 0 | AX11: 0 | AY11: 0 | AZ11: 0 | BA11: 0 | BB11: 0 | BC11: 0 | BD11: 0 | BE11: 0 | BF11: 19656009 | BG11: 0 | BH11: 19656009 | BI11: 0 | BJ11: 0 | BK11: 0 | BL11: 0 | BM11: 0 | BN11: 0 | BO11: 0 | BP11: 0 | BQ11: 0 | BR11: 0 | BS11: 0 | BT11: 0 | BU11: 0 | BV11: 0 | BW11: 19656009 | BX11: 0 | BY11: 19656009 | BZ11: 0 | CA11: 0 | CB11: 0 | CC11: 0 | CD11: 0 | CE11: 0 | CF11: 0 | CG11: 0 | CH11: 0 | CI11: 0 | CJ11: 0 | CK11: 0 | CL11: 0 | CM11: 0 | CN11: 19656009 | CO11: 0 | CP11: 19656009 | CQ11: 0 | CR11: 0 | CS11: 0 | CT11: 0 | CU11: 0 | CV11: 0 | CW11: 0 | CX11: 0 | CY11: 0 | CZ11: 0 | DA11: 0 | DB11: 0 | DC11: 0 | DD11: 0 | DE11: 19656009 | DF11: 78624036
A12: 8 | B12: Transformación y Desarrollo Social con Equidad | C12: Cobertura neta de educación media | D12: 41.95 | E12: Porcentaje | F12: 42 | J12: Educación | K12: =IFERROR(IF($J12="","",VLOOKUP($J12,Catálogo!$B$5:$C$21,2,FALSE)),"Introduzca un sector de inversión válido") -> 22 | L12: Educación inclusiva, equitativa y de calidad | M12: Calidad, cobertura y fortalecimiento de la educación inicial, prescolar, básica y media (2201) | N12: =IFERROR(IF($M12="","",VLOOKUP($M12,Catálogo!$E$25:$F$93,2,FALSE)),"Introduzca un programa presupuestal válido") -> 2201 | O12: =IFERROR(IF($N12="","",VLOOKUP($N12,Catálogo!$F$25:$G$94,2,FALSE)),"Introduzca un programa presupuestal válido") -> A.1 - Educación | P12: CONTINÚE: El programa presupuestal y sector de inversión coinciden | Q12: Infraestructura educativa construida | R12: Secretaría de Educación, deporte y cultura | S12: Infraestructura educativa construida (2201051) | T12: =IFERROR(IF($S12="","",VLOOKUP($S12,Catálogo!$G$97:$H$2750,2,FALSE)),"Introduzca un producto válido") -> 2201051 | U12: CONTINÚE: El producto y programa presupuestal coinciden | V12: Sedes educativas nuevas construidas en zona rural (220105102) | W12: =IFERROR(IF($V12="","",VLOOKUP($V12,Catálogo!$B$3019:$C$9130,2,FALSE)),"Introduzca un indicador de producto válido") -> 220105102 | X12: CONTINÚE: El indicador de producto y el producto coinciden | Z12: Número | AA12: 1 | AB12: Incremento | AC12: ODS 4. Educación de calidad | AD12: 1.4. Desarrollo social: Educación rural | AE12: Asistencia / Educación | AK12: =+IFERROR(VLOOKUP(AJ12,Iniciativas!E:F,2,FALSE),"Seleccione el código de la iniciativa") -> Seleccione el código de la iniciativa | AL12: 0 | AM12: 0 | AN12: 0 | AO12: 1 | AP12: 0 | AQ12: 0 | AR12: 0 | AS12: 0 | AT12: 0 | AU12: 0 | AV12: 0 | AW12: 0 | AX12: 0 | AY12: 0 | AZ12: 0 | BA12: 0 | BB12: 0 | BC12: 0 | BD12: 0 | BE12: 0 | BF12: 0 | BG12: 0 | BH12: 0 | BI12: 0 | BJ12: 0 | BK12: 0 | BL12: 0 | BM12: 0 | BN12: 0 | BO12: 0 | BP12: 0 | BQ12: 0 | BR12: 0 | BS12: 0 | BT12: 0 | BU12: 0 | BV12: 0 | BW12: 0 | BX12: 0 | BY12: 0 | BZ12: 0 | CA12: 0 | CB12: 0 | CC12: 0 | CD12: 0 | CE12: 0 | CF12: 0 | CG12: 0 | CH12: 0 | CI12: 0 | CJ12: 0 | CK12: 0 | CL12: 0 | CM12: 0 | CN12: 0 | CO12: 0 | CP12: 0 | CQ12: 0 | CR12: 0 | CS12: 0 | CT12: 0 | CU12: 0 | CV12: 0 | CW12: 0 | CX12: 0 | CY12: 0 | CZ12: 0 | DA12: 1700000000 | DB12: 0 | DC12: 450000000 | DD12: 0 | DE12: 2150000000 | DF12: 2150000000
A13: 9 | B13: Transformación y Desarrollo Social con Equidad | C13: Cobertura neta de educación media | D13: 41.95 | E13: Porcentaje | F13: 42 | J13: Educación | K13: =IFERROR(IF($J13="","",VLOOKUP($J13,Catálogo!$B$5:$C$21,2,FALSE)),"Introduzca un sector de inversión válido") -> 22 | L13: Educación inclusiva, equitativa y de calidad | M13: Calidad, cobertura y fortalecimiento de la educación inicial, prescolar, básica y media (2201) | N13: =IFERROR(IF($M13="","",VLOOKUP($M13,Catálogo!$E$25:$F$93,2,FALSE)),"Introduzca un programa presupuestal válido") -> 2201 | O13: =IFERROR(IF($N13="","",VLOOKUP($N13,Catálogo!$F$25:$G$94,2,FALSE)),"Introduzca un programa presupuestal válido") -> A.1 - Educación | P13: CONTINÚE: El programa presupuestal y sector de inversión coinciden | Q13: Infraestructura educativa mejorada | R13: Secretaría de Educación, deporte y cultura | S13: Infraestructura educativa mejorada (2201052) | T13: =IFERROR(IF($S13="","",VLOOKUP($S13,Catálogo!$G$97:$H$2750,2,FALSE)),"Introduzca un producto válido") -> 2201052 | U13: CONTINÚE: El producto y programa presupuestal coinciden | V13: Sedes educativas mejoradas (220105200) | W13: =IFERROR(IF($V13="","",VLOOKUP($V13,Catálogo!$B$3019:$C$9130,2,FALSE)),"Introduzca un indicador de producto válido") -> 220105200 | X13: CONTINÚE: El indicador de producto y el producto coinciden | Z13: Número | AA13: 50 | AB13: Incremento | AC13: ODS 4. Educación de calidad | AD13: 1.4. Desarrollo social: Educación rural | AE13: Asistencia / Educación | AK13: =+IFERROR(VLOOKUP(AJ13,Iniciativas!E:F,2,FALSE),"Seleccione el código de la iniciativa") -> Seleccione el código de la iniciativa | AL13: 10 | AM13: 10 | AN13: 15 | AO13: 15 | AP13: 178265643 | AQ13: 111767521 | AR13: 0 | AS13: 0 | AT13: 0 | AU13: 0 | AV13: 0 | AW13: 0 | AX13: 0 | AY13: 0 | AZ13: 0 | BA13: 0 | BB13: 0 | BC13: 0 | BD13: 0 | BE13: 39124511 | BF13: 329157675 | BG13: 178265643 | BH13: 111767521 | BI13: 0 | BJ13: 0 | BK13: 0 | BL13: 0 | BM13: 0 | BN13: 0 | BO13: 0 | BP13: 0 | BQ13: 0 | BR13: 0 | BS13: 0 | BT13: 0 | BU13: 0 | BV13: 39124511 | BW13: 329157675 | BX13: 178265643 | BY13: 111767521 | BZ13: 0 | CA13: 0 | CB13: 0 | CC13: 0 | CD13: 0 | CE13: 0 | CF13: 0 | CG13: 0 | CH13: 0 | CI13: 0 | CJ13: 0 | CK13: 0 | CL13: 0 | CM13: 39124511 | CN13: 329157675 | CO13: 178265643 | CP13: 111767521 | CQ13: 0 | CR13: 0 | CS13: 0 | CT13: 0 | CU13: 0 | CV13: 0 | CW13: 0 | CX13: 0 | CY13: 0 | CZ13: 0 | DA13: 0 | DB13: 0 | DC13: 0 | DD13: 39124511 | DE13: 329157675 | DF13: 1316630700
A14: 10 | B14: Transformación y Desarrollo Social con Equidad | C14: Cobertura neta de educación media | D14: 41.95 | E14: Porcentaje | F14: 42 | J14: Educación | K14: =IFERROR(IF($J14="","",VLOOKUP($J14,Catálogo!$B$5:$C$21,2,FALSE)),"Introduzca un sector de inversión válido") -> 22 | L14: Educación inclusiva, equitativa y de calidad | M14: Calidad, cobertura y fortalecimiento de la educación inicial, prescolar, básica y media (2201) | N14: =IFERROR(IF($M14="","",VLOOKUP($M14,Catálogo!$E$25:$F$93,2,FALSE)),"Introduzca un programa presupuestal válido") -> 2201 | O14: =IFERROR(IF($N14="","",VLOOKUP($N14,Catálogo!$F$25:$G$94,2,FALSE)),"Introduzca un programa presupuestal válido") -> A.1 - Educación | P14: CONTINÚE: El programa presupuestal y sector de inversión coinciden | Q14: Infraestructura educativa mantenida | R14: Secretaría de Educación, deporte y cultura | S14: Infraestructura educativa mantenida (2201062) | T14: =IFERROR(IF($S14="","",VLOOKUP($S14,Catálogo!$G$97:$H$2750,2,FALSE)),"Introduzca un producto válido") -> 2201062 | U14: CONTINÚE: El producto y programa presupuestal coinciden | V14: Sedes mantenidas (220106200) | W14: =IFERROR(IF($V14="","",VLOOKUP($V14,Catálogo!$B$3019:$C$9130,2,FALSE)),"Introduzca un indicador de producto válido") -> 220106200 | X14: CONTINÚE: El indicador de producto y el producto coinciden | Z14: Número | AA14: 93 | AB14: Mantenimiento | AC14: ODS 4. Educación de calidad | AD14: 1.4. Desarrollo social: Educación rural | AE14: Asistencia / Educación | AK14: =+IFERROR(VLOOKUP(AJ14,Iniciativas!E:F,2,FALSE),"Seleccione el código de la iniciativa") -> Seleccione el código de la iniciativa | AL14: 93 | AM14: 93 | AN14: 93 | AO14: 93 | AP14: 0 | AQ14: 260000007 | AR14: 0 | AS14: 0 | AT14: 0 | AU14: 0 | AV14: 0 | AW14: 0 | AX14: 0 | AY14: 0 | AZ14: 0 | BA14: 0 | BB14: 0 | BC14: 0 | BD14: 0 | BE14: 0 | BF14: 260000007 | BG14: 0 | BH14: 260000007 | BI14: 0 | BJ14: 0 | BK14: 0 | BL14: 0 | BM14: 0 | BN14: 0 | BO14: 0 | BP14: 0 | BQ14: 0 | BR14: 0 | BS14: 0 | BT14: 0 | BU14: 0 | BV14: 0 | BW14: 260000007 | BX14: 0 | BY14: 260000007 | BZ14: 0 | CA14: 0 | CB14: 0 | CC14: 0 | CD14: 0 | CE14: 0 | CF14: 0 | CG14: 0 | CH14: 0 | CI14: 0 | CJ14: 0 | CK14: 0 | CL14: 0 | CM14: 0 | CN14: 260000007 | CO14: 0 | CP14: 260000007 | CQ14: 0 | CR14: 0 | CS14: 0 | CT14: 0 | CU14: 0 | CV14: 0 | CW14: 0 | CX14: 0 | CY14: 0 | CZ14: 0 | DA14: 0 | DB14: 0 | DC14: 0 | DD14: 0 | DE14: 260000007 | DF14: 1040000028
A15: 11 | B15: Transformación y Desarrollo Social con Equidad | C15: Puntaje promedio pruebas saber 11 matemáticas | D15: 46.6 | E15: Puntos | F15: 47 | J15: Educación | K15: =IFERROR(IF($J15="","",VLOOKUP($J15,Catálogo!$B$5:$C$21,2,FALSE)),"Introduzca un sector de inversión válido") -> 22 | L15: Educación inclusiva, equitativa y de calidad | M15: Calidad, cobertura y fortalecimiento de la educación inicial, prescolar, básica y media (2201) | N15: =IFERROR(IF($M15="","",VLOOKUP($M15,Catálogo!$E$25:$F$93,2,FALSE)),"Introduzca un programa presupuestal válido") -> 2201 | O15: =IFERROR(IF($N15="","",VLOOKUP($N15,Catálogo!$F$25:$G$94,2,FALSE)),"Introduzca un programa presupuestal válido") -> A.1 - Educación | P15: CONTINÚE: El programa presupuestal y sector de inversión coinciden | Q15: Servicio de apoyo para el fortalecimiento de escuelas de padres | R15: Secretaría de Educación, deporte y cultura | S15: Servicio de apoyo para el fortalecimiento de escuelas de padres (2201067) | T15: =IFERROR(IF($S15="","",VLOOKUP($S15,Catálogo!$G$97:$H$2750,2,FALSE)),"Introduzca un producto válido") -> 2201067 | U15: CONTINÚE: El producto y programa presupuestal coinciden | V15: Escuelas de padres apoyadas (220106700) | W15: =IFERROR(IF($V15="","",VLOOKUP($V15,Catálogo!$B$3019:$C$9130,2,FALSE)),"Introduzca un indicador de producto válido") -> 220106700 | X15: CONTINÚE: El indicador de producto y el producto coinciden | Z15: Número | AA15: 2 | AB15: Mantenimiento | AC15: ODS 4. Educación de calidad | AD15: 1.4. Desarrollo social: Educación rural | AE15: Asistencia / Educación | AK15: =+IFERROR(VLOOKUP(AJ15,Iniciativas!E:F,2,FALSE),"Seleccione el código de la iniciativa") -> Seleccione el código de la iniciativa | AL15: 2 | AM15: 2 | AN15: 2 | AO15: 2 | AP15: 0 | AQ15: 2000000 | AR15: 0 | AS15: 0 | AT15: 0 | AU15: 0 | AV15: 0 | AW15: 0 | AX15: 0 | AY15: 0 | AZ15: 0 | BA15: 0 | BB15: 0 | BC15: 0 | BD15: 0 | BE15: 0 | BF15: 2000000 | BG15: 0 | BH15: 2000000 | BI15: 0 | BJ15: 0 | BK15: 0 | BL15: 0 | BM15: 0 | BN15: 0 | BO15: 0 | BP15: 0 | BQ15: 0 | BR15: 0 | BS15: 0 | BT15: 0 | BU15: 0 | BV15: 0 | BW15: 2000000 | BX15: 0 | BY15: 2000000 | BZ15: 0 | CA15: 0 | CB15: 0 | CC15: 0 | CD15: 0 | CE15: 0 | CF15: 0 | CG15: 0 | CH15: 0 | CI15: 0 | CJ15: 0 | CK15: 0 | CL15: 0 | CM15: 0 | CN15: 2000000 | CO15: 0 | CP15: 2000000 | CQ15: 0 | CR15: 0 | CS15: 0 | CT15: 0 | CU15: 0 | CV15: 0 | CW15: 0 | CX15: 0 | CY15: 0 | CZ15: 0 | DA15: 0 | DB15: 0 | DC15: 0 | DD15: 0 | DE15: 2000000 | DF15: 8000000
A16: 12 | B16: Transformación y Desarrollo Social con Equidad | C16: Puntaje promedio pruebas saber 11 matemáticas | D16: 46.6 | E16: Puntos | F16: 47 | J16: Educación | K16: =IFERROR(IF($J16="","",VLOOKUP($J16,Catálogo!$B$5:$C$21,2,FALSE)),"Introduzca un sector de inversión válido") -> 22 | L16: Educación inclusiva, equitativa y de calidad | M16: Calidad, cobertura y fortalecimiento de la educación inicial, prescolar, básica y media (2201) | N16: =IFERROR(IF($M16="","",VLOOKUP($M16,Catálogo!$E$25:$F$93,2,FALSE)),"Introduzca un programa presupuestal válido") -> 2201 | O16: =IFERROR(IF($N16="","",VLOOKUP($N16,Catálogo!$F$25:$G$94,2,FALSE)),"Introduzca un programa presupuestal válido") -> A.1 - Educación | P16: CONTINÚE: El programa presupuestal y sector de inversión coinciden | Q16: Ambientes de aprendizaje para la educación inicial preescolar, básica y media dotados | R16: Secretaría de Educación, deporte y cultura | S16: Ambientes de aprendizaje para la educación inicial preescolar, básica y media dotados (2201070) | T16: =IFERROR(IF($S16="","",VLOOKUP($S16,Catálogo!$G$97:$H$2750,2,FALSE)),"Introduzca un producto válido") -> 2201070 | U16: CONTINÚE: El producto y programa presupuestal coinciden | V16: Ambientes de aprendizaje dotados (220107000) | W16: =IFERROR(IF($V16="","",VLOOKUP($V16,Catálogo!$B$3019:$C$9130,2,FALSE)),"Introduzca un indicador de producto válido") -> 220107000 | X16: CONTINÚE: El indicador de producto y el producto coinciden | Z16: Número | AA16: 6 | AB16: Incremento | AC16: ODS 4. Educación de calidad | AD16: 1.4. Desarrollo social: Educación rural | AE16: Asistencia / Educación | AK16: =+IFERROR(VLOOKUP(AJ16,Iniciativas!E:F,2,FALSE),"Seleccione el código de la iniciativa") -> Seleccione el código de la iniciativa | AL16: 0 | AM16: 2 | AN16: 2 | AO16: 2 | AP16: 0 | AQ16: 0 | AR16: 0 | AS16: 0 | AT16: 0 | AU16: 0 | AV16: 0 | AW16: 0 | AX16: 0 | AY16: 0 | AZ16: 0 | BA16: 0 | BB16: 0 | BC16: 0 | BD16: 0 | BE16: 0 | BF16: 0 | BG16: 6666551.333 | BH16: 0 | BI16: 0 | BJ16: 0 | BK16: 0 | BL16: 0 | BM16: 0 | BN16: 0 | BO16: 0 | BP16: 0 | BQ16: 0 | BR16: 0 | BS16: 0 | BT16: 0 | BU16: 0 | BV16: 0 | BW16: 6666551.333 | BX16: 6666551.333 | BY16: 0 | BZ16: 0 | CA16: 0 | CB16: 0 | CC16: 0 | CD16: 0 | CE16: 0 | CF16: 0 | CG16: 0 | CH16: 0 | CI16: 0 | CJ16: 0 | CK16: 0 | CL16: 0 | CM16: 0 | CN16: 6666551.333 | CO16: 6666551.333 | CP16: 0 | CQ16: 0 | CR16: 0 | CS16: 0 | CT16: 0 | CU16: 0 | CV16: 0 | CW16: 0 | CX16: 0 | CY16: 0 | CZ16: 0 | DA16: 0 | DB16: 0 | DC16: 0 | DD16: 0 | DE16: 6666551.333 | DF16: 19999654
A17: 13 | B17: Transformación y Desarrollo Social con Equidad | C17: Tasa de tránsito inmediato entre educación media y superior | D17: 0.33 | E17: Tasa | F17: 0.4 | J17: Educación | K17: =IFERROR(IF($J17="","",VLOOKUP($J17,Catálogo!$B$5:$C$21,2,FALSE)),"Introduzca un sector de inversión válido") -> 22 | L17: Calidad y fomento de la educación superior | M17: Calidad y fomento de la educación superior (2202) | N17: =IFERROR(IF($M17="","",VLOOKUP($M17,Catálogo!$E$25:$F$93,2,FALSE)),"Introduzca un programa presupuestal válido") -> 2202 | O17: =IFERROR(IF($N17="","",VLOOKUP($N17,Catálogo!$F$25:$G$94,2,FALSE)),"Introduzca un programa presupuestal válido") -> A.1 - Educación | P17: CONTINÚE: El programa presupuestal y sector de inversión coinciden | Q17: Servicio de fomento para el acceso a la educación superior o terciaria | R17: Secretaría de Educación, deporte y cultura | S17: Servicio de fomento para el acceso a la educación superior o terciaria (2202005) | T17: =IFERROR(IF($S17="","",VLOOKUP($S17,Catálogo!$G$97:$H$2750,2,FALSE)),"Introduzca un producto válido") -> 2202005 | U17: CONTINÚE: El producto y programa presupuestal coinciden | V17: Beneficiarios de estrategias o programas de fomento para el acceso a la educación superior o terciaria (220200500) | W17: =IFERROR(IF($V17="","",VLOOKUP($V17,Catálogo!$B$3019:$C$9130,2,FALSE)),"Introduzca un indicador de producto válido") -> 220200500 | X17: CONTINÚE: El indicador de producto y el producto coinciden | Z17: Número | AA17: 1404 | AB17: Incremento | AC17: ODS 4. Educación de calidad | AD17: 1.4. Desarrollo social: Educación rural | AE17: Asistencia / Educación | AK17: =+IFERROR(VLOOKUP(AJ17,Iniciativas!E:F,2,FALSE),"Seleccione el código de la iniciativa") -> Seleccione el código de la iniciativa | AL17: 45 | AM17: 450 | AN17: 450 | AO17: 459 | AP17: 39999960 | AQ17: 0 | AR17: 0 | AS17: 0 | AT17: 0 | AU17: 0 | AV17: 0 | AW17: 0 | AX17: 0 | AY17: 0 | AZ17: 0 | BA17: 0 | BB17: 0 | BC17: 0 | BD17: 0 | BE17: 0 | BF17: 39999960 | BG17: 39999960 | BH17: 0 | BI17: 0 | BJ17: 0 | BK17: 0 | BL17: 0 | BM17: 0 | BN17: 0 | BO17: 0 | BP17: 0 | BQ17: 0 | BR17: 0 | BS17: 0 | BT17: 0 | BU17: 0 | BV17: 0 | BW17: 39999960 | BX17: 39999960 | BY17: 0 | BZ17: 0 | CA17: 0 | CB17: 0 | CC17: 0 | CD17: 0 | CE17: 0 | CF17: 0 | CG17: 0 | CH17: 0 | CI17: 0 | CJ17: 0 | CK17: 0 | CL17: 0 | CM17: 0 | CN17: 39999960 | CO17: 39999960 | CP17: 0 | CQ17: 0 | CR17: 0 | CS17: 0 | CT17: 0 | CU17: 0 | CV17: 0 | CW17: 0 | CX17: 0 | CY17: 0 | CZ17: 0 | DA17: 0 | DB17: 0 | DC17: 0 | DD17: 0 | DE17: 39999960 | DF17: 159999840
A18: 14 | B18: Transformación y Desarrollo Social con Equidad | C18: Tasa de tránsito inmediato entre educación media y superior | D18: 0.33 | E18: Tasa | F18: 0.4 | J18: Educación | K18: =IFERROR(IF($J18="","",VLOOKUP($J18,Catálogo!$B$5:$C$21,2,FALSE)),"Introduzca un sector de inversión válido") -> 22 | L18: Calidad y fomento de la educación superior | M18: Calidad y fomento de la educación superior (2202) | N18: =IFERROR(IF($M18="","",VLOOKUP($M18,Catálogo!$E$25:$F$93,2,FALSE)),"Introduzca un programa presupuestal válido") -> 2202 | O18: =IFERROR(IF($N18="","",VLOOKUP($N18,Catálogo!$F$25:$G$94,2,FALSE)),"Introduzca un programa presupuestal válido") -> A.1 - Educación | P18: CONTINÚE: El programa presupuestal y sector de inversión coinciden | Q18: Servicio de apoyo para la permanencia a la educación superior o terciaria | R18: Secretaría de Educación, deporte y cultura | S18: Servicio de apoyo para la permanencia a la educación superior o terciaria (2202006) | T18: =IFERROR(IF($S18="","",VLOOKUP($S18,Catálogo!$G$97:$H$2750,2,FALSE)),"Introduzca un producto válido") -> 2202006 | U18: CONTINÚE: El producto y programa presupuestal coinciden | V18: Beneficiarios de programas o estrategias de permanencia en la educación superior o terciaria (220200600) | W18: =IFERROR(IF($V18="","",VLOOKUP($V18,Catálogo!$B$3019:$C$9130,2,FALSE)),"Introduzca un indicador de producto válido") -> 220200600 | X18: CONTINÚE: El indicador de producto y el producto coinciden | Z18: Número | AA18: 50 | AB18: Incremento | AC18: ODS 4. Educación de calidad | AD18: 1.4. Desarrollo social: Educación rural | AE18: Asistencia / Educación | AK18: =+IFERROR(VLOOKUP(AJ18,Iniciativas!E:F,2,FALSE),"Seleccione el código de la iniciativa") -> Seleccione el código de la iniciativa | AL18: 0 | AM18: 15 | AN18: 15 | AO18: 20 | AP18: 0 | AQ18: 0 | AR18: 0 | AS18: 0 | AT18: 0 | AU18: 0 | AV18: 0 | AW18: 0 | AX18: 0 | AY18: 0 | AZ18: 0 | BA18: 0 | BB18: 0 | BC18: 0 | BD18: 0 | BE18: 0 | BF18: 0 | BG18: 6666666.667 | BH18: 0 | BI18: 0 | BJ18: 0 | BK18: 0 | BL18: 0 | BM18: 0 | BN18: 0 | BO18: 0 | BP18: 0 | BQ18: 0 | BR18: 0 | BS18: 0 | BT18: 0 | BU18: 0 | BV18: 0 | BW18: 6666666.667 | BX18: 6666666.667 | BY18: 0 | BZ18: 0 | CA18: 0 | CB18: 0 | CC18: 0 | CD18: 0 | CE18: 0 | CF18: 0 | CG18: 0 | CH18: 0 | CI18: 0 | CJ18: 0 | CK18: 0 | CL18: 0 | CM18: 0 | CN18: 6666666.667 | CO18: 6666666.667 | CP18: 0 | CQ18: 0 | CR18: 0 | CS18: 0 | CT18: 0 | CU18: 0 | CV18: 0 | CW18: 0 | CX18: 0 | CY18: 0 | CZ18: 0 | DA18: 0 | DB18: 0 | DC18: 0 | DD18: 0 | DE18: 6666666.667 | DF18: 20000000
A19: 15 | B19: Transformación y Desarrollo Social con Equidad | C19: Tasa de mortalidad prematura por Enfermedades No Transmisibles (ENT) en población de 30 a 70 años (Neoplasias, Diabetes Mellitus (E10-E14), Enfermedades del Sistema Circulatorio y del Sistema Respiratorio de vías inferiores (J40-J47) | D19: Sin dato | E19: Tasa | F19: 0 | J19: Salud y protección social | K19: =IFERROR(IF($J19="","",VLOOKUP($J19,Catálogo!$B$5:$C$21,2,FALSE)),"Introduzca un sector de inversión válido") -> 19 | L19: Salud humana, innovadora y estratégica | M19: Salud pública (1905) | N19: =IFERROR(IF($M19="","",VLOOKUP($M19,Catálogo!$E$25:$F$93,2,FALSE)),"Introduzca un programa presupuestal válido") -> 1905 | O19: =IFERROR(IF($N19="","",VLOOKUP($N19,Catálogo!$F$25:$G$94,2,FALSE)),"Introduzca un programa presupuestal válido") -> A.2 - Salud | P19: CONTINÚE: El programa presupuestal y sector de inversión coinciden | Q19: Servicio de gestión del riesgo para abordar condiciones crónicas prevalentes | R19: Secretaría de Salud | S19: Servicio de gestión del riesgo para abordar condiciones crónicas prevalentes (1905023) | T19: =IFERROR(IF($S19="","",VLOOKUP($S19,Catálogo!$G$97:$H$2750,2,FALSE)),"Introduzca un producto válido") -> 1905023 | U19: CONTINÚE: El producto y programa presupuestal coinciden | V19: Campañas de gestión del riesgo para abordar condiciones crónicas prevalentes implementadas (190502300) | W19: =IFERROR(IF($V19="","",VLOOKUP($V19,Catálogo!$B$3019:$C$9130,2,FALSE)),"Introduzca un indicador de producto válido") -> 190502300 | X19: CONTINÚE: El indicador de producto y el producto coinciden | Z19: Número | AA19: 4 | AB19: Incremento | AC19: ODS 3. Salud y bienestar | AD19: 1.3. Desarrollo social: Salud | AE19: Asistencia / Salud | AK19: =+IFERROR(VLOOKUP(AJ19,Iniciativas!E:F,2,FALSE),"Seleccione el código de la iniciativa") -> Seleccione el código de la iniciativa | AL19: 1 | AM19: 1 | AN19: 1 | AO19: 1 | AP19: 0 | AQ19: 0 | AR19: 1000000 | AS19: 0 | AT19: 0 | AU19: 0 | AV19: 0 | AW19: 0 | AX19: 0 | AY19: 0 | AZ19: 0 | BA19: 0 | BB19: 4375000 | BC19: 0 | BD19: 0 | BE19: 0 | BF19: =+AP19+AR19+AS19+AT19+AU19+AV19+AW19+AX19+AY19+AZ19+BA19+BB19+BC19+BD19+BE19 -> 5375000 | BG19: 0 | BH19: 0 | BI19: 1000000 | BJ19: 0 | BK19: 0 | BL19: 0 | BM19: 0 | BN19: 0 | BO19: 0 | BP19: 0 | BQ19: 0 | BR19: 0 | BS19: 4375000 | BT19: 0 | BU19: 0 | BV19: 0 | BW19: 5375000 | BX19: 0 | BY19: 0 | BZ19: 1000000 | CA19: 0 | CB19: 0 | CC19: 0 | CD19: 0 | CE19: 0 | CF19: 0 | CG19: 0 | CH19: 0 | CI19: 0 | CJ19: 4375000 | CK19: 0 | CL19: 0 | CM19: 0 | CN19: 5375000 | CO19: 0 | CP19: 0 | CQ19: 1000000 | CR19: 0 | CS19: 0 | CT19: 0 | CU19: 0 | CV19: 0 | CW19: 0 | CX19: 0 | CY19: 0 | CZ19: 0 | DA19: 4375000 | DB19: 0 | DC19: 0 | DD19: 0 | DE19: 5375000 | DF19: 21500000
A20: 16 | B20: Transformación y Desarrollo Social con Equidad | C20: Tasa de mortalidad prematura por Enfermedades No Transmisibles (ENT) en población de 30 a 70 años (Neoplasias, Diabetes Mellitus (E10-E14), Enfermedades del Sistema Circulatorio y del Sistema Respiratorio de vías inferiores (J40-J47) | D20: Sin dato | E20: Tasa | F20: 0 | J20: Salud y protección social | K20: =IFERROR(IF($J20="","",VLOOKUP($J20,Catálogo!$B$5:$C$21,2,FALSE)),"Introduzca un sector de inversión válido") -> 19 | L20: Salud humana, innovadora y estratégica | M20: Salud pública (1905) | N20: =IFERROR(IF($M20="","",VLOOKUP($M20,Catálogo!$E$25:$F$93,2,FALSE)),"Introduzca un programa presupuestal válido") -> 1905 | O20: =IFERROR(IF($N20="","",VLOOKUP($N20,Catálogo!$F$25:$G$94,2,FALSE)),"Introduzca un programa presupuestal válido") -> A.2 - Salud | P20: CONTINÚE: El programa presupuestal y sector de inversión coinciden | Q20: Servicio de promoción de modos, condiciones y estilos de vida saludables | R20: Secretaría de Salud | S20: Servicio de promoción de la salud y prevención de riesgos asociados a condiciones no transmisibles (1905031) | T20: =IFERROR(IF($S20="","",VLOOKUP($S20,Catálogo!$G$97:$H$2750,2,FALSE)),"Introduzca un producto válido") -> 1905031 | U20: CONTINÚE: El producto y programa presupuestal coinciden | V20: Personas atendidas con campañas de promoción de la salud y prevención de riesgos asociados a condiciones no transmisibles (190503101) | W20: =IFERROR(IF($V20="","",VLOOKUP($V20,Catálogo!$B$3019:$C$9130,2,FALSE)),"Introduzca un indicador de producto válido") -> 190503101 | X20: CONTINÚE: El indicador de producto y el producto coinciden | Z20: Número | AA20: 2080 | AB20: Incremento | AC20: ODS 3. Salud y bienestar | AD20: 1.3. Desarrollo social: Salud | AE20: Asistencia / Salud | AK20: =+IFERROR(VLOOKUP(AJ20,Iniciativas!E:F,2,FALSE),"Seleccione el código de la iniciativa") -> Seleccione el código de la iniciativa | AL20: 520 | AM20: 520 | AN20: 520 | AO20: 520 | AP20: 0 | AQ20: 0 | AR20: 25000000 | AS20: 0 | AT20: 0 | AU20: 0 | AV20: 0 | AW20: 0 | AX20: 0 | AY20: 0 | AZ20: 0 | BA20: 0 | BB20: 4375000 | BC20: 0 | BD20: 0 | BE20: 0 | BF20: =+AP20+AR20+AS20+AT20+AU20+AV20+AW20+AX20+AY20+AZ20+BA20+BB20+BC20+BD20+BE20 -> 29375000 | BG20: 0 | BH20: 0 | BI20: 25000000 | BJ20: 0 | BK20: 0 | BL20: 0 | BM20: 0 | BN20: 0 | BO20: 0 | BP20: 0 | BQ20: 0 | BR20: 0 | BS20: 4375000 | BT20: 0 | BU20: 0 | BV20: 0 | BW20: 29375000 | BX20: 0 | BY20: 0 | BZ20: 25000000 | CA20: 0 | CB20: 0 | CC20: 0 | CD20: 0 | CE20: 0 | CF20: 0 | CG20: 0 | CH20: 0 | CI20: 0 | CJ20: 4375000 | CK20: 0 | CL20: 0 | CM20: 0 | CN20: 29375000 | CO20: 0 | CP20: 0 | CQ20: 25000000 | CR20: 0 | CS20: 0 | CT20: 0 | CU20: 0 | CV20: 0 | CW20: 0 | CX20: 0 | CY20: 0 | CZ20: 0 | DA20: 4375000 | DB20: 0 | DC20: 0 | DD20: 0 | DE20: 29375000 | DF20: 117500000
A21: 17 | B21: Transformación y Desarrollo Social con Equidad | C21: Tasa de Mortalidad por desnutrición en menores de 5 años | D21: 0 | E21: Tasa | F21: 0 | J21: Salud y protección social | K21: =IFERROR(IF($J21="","",VLOOKUP($J21,Catálogo!$B$5:$C$21,2,FALSE)),"Introduzca un sector de inversión válido") -> 19 | L21: Salud humana, innovadora y estratégica | M21: Salud pública (1905) | N21: =IFERROR(IF($M21="","",VLOOKUP($M21,Catálogo!$E$25:$F$93,2,FALSE)),"Introduzca un programa presupuestal válido") -> 1905 | O21: =IFERROR(IF($N21="","",VLOOKUP($N21,Catálogo!$F$25:$G$94,2,FALSE)),"Introduzca un programa presupuestal válido") -> A.2 - Salud | P21: CONTINÚE: El programa presupuestal y sector de inversión coinciden | Q21: Servicio de gestión del riesgo para temas de consumo y aprovechamiento biológico de los alimentos, calidad e inocuidad de los alimentos | R21: Secretaría de Salud | S21: Servicio de gestión del riesgo para temas de consumo, aprovechamiento biológico, calidad e inocuidad de los alimentos (1905028) | T21: =IFERROR(IF($S21="","",VLOOKUP($S21,Catálogo!$G$97:$H$2750,2,FALSE)),"Introduzca un producto válido") -> 1905028 | U21: CONTINÚE: El producto y programa presupuestal coinciden | V21: Campañas de gestión del riesgo para temas de consumo, aprovechamiento biológico, calidad e inocuidad de los alimentos implementadas (190502800) | W21: =IFERROR(IF($V21="","",VLOOKUP($V21,Catálogo!$B$3019:$C$9130,2,FALSE)),"Introduzca un indicador de producto válido") -> 190502800 | X21: CONTINÚE: El indicador de producto y el producto coinciden | Z21: Número | AA21: 4 | AB21: Incremento | AC21: ODS 3. Salud y bienestar | AD21: 1.3. Desarrollo social: Salud | AE21: Asistencia / Salud | AK21: =+IFERROR(VLOOKUP(AJ21,Iniciativas!E:F,2,FALSE),"Seleccione el código de la iniciativa") -> Seleccione el código de la iniciativa | AL21: 1 | AM21: 1 | AN21: 1 | AO21: 1 | AP21: 0 | AQ21: 0 | AR21: 9560000 | AS21: 0 | AT21: 0 | AU21: 0 | AV21: 0 | AW21: 0 | AX21: 0 | AY21: 0 | AZ21: 0 | BA21: 0 | BB21: 4375000 | BC21: 0 | BD21: 0 | BE21: 0 | BF21: 13935000 | BG21: 0 | BH21: 0 | BI21: 9560000 | BJ21: 0 | BK21: 0 | BL21: 0 | BM21: 0 | BN21: 0 | BO21: 0 | BP21: 0 | BQ21: 0 | BR21: 0 | BS21: 4375000 | BT21: 0 | BU21: 0 | BV21: 0 | BW21: 13935000 | BX21: 0 | BY21: 0 | BZ21: 9560000 | CA21: 0 | CB21: 0 | CC21: 0 | CD21: 0 | CE21: 0 | CF21: 0 | CG21: 0 | CH21: 0 | CI21: 0 | CJ21: 4375000 | CK21: 0 | CL21: 0 | CM21: 0 | CN21: 13935000 | CO21: 0 | CP21: 0 | CQ21: 9560000 | CR21: 0 | CS21: 0 | CT21: 0 | CU21: 0 | CV21: 0 | CW21: 0 | CX21: 0 | CY21: 0 | CZ21: 0 | DA21: 4375000 | DB21: 0 | DC21: 0 | DD21: 0 | DE21: 13935000 | DF21: 55740000
A22: 18 | B22: Transformación y Desarrollo Social con Equidad | C22: Porcentaje de nacidos vivos con bajo peso al nacer a término | D22: 10.4 | E22: Porcentaje | F22: 10.05 | J22: Salud y protección social | K22: =IFERROR(IF($J22="","",VLOOKUP($J22,Catálogo!$B$5:$C$21,2,FALSE)),"Introduzca un sector de inversión válido") -> 19 | L22: Salud humana, innovadora y estratégica | M22: Salud pública (1905) | N22: =IFERROR(IF($M22="","",VLOOKUP($M22,Catálogo!$E$25:$F$93,2,FALSE)),"Introduzca un programa presupuestal válido") -> 1905 | O22: =IFERROR(IF($N22="","",VLOOKUP($N22,Catálogo!$F$25:$G$94,2,FALSE)),"Introduzca un programa presupuestal válido") -> A.2 - Salud | P22: CONTINÚE: El programa presupuestal y sector de inversión coinciden | Q22: Servicio de promoción en temas de disponibilidad y acceso a los alimentos, consumo y aprovechamiento biológico de los alimentos | R22: Secretaría de Salud | S22: Servicio de gestión del riesgo para temas de consumo, aprovechamiento biológico, calidad e inocuidad de los alimentos (1905028) | T22: =IFERROR(IF($S22="","",VLOOKUP($S22,Catálogo!$G$97:$H$2750,2,FALSE)),"Introduzca un producto válido") -> 1905028 | U22: CONTINÚE: El producto y programa presupuestal coinciden | V22: Personas atendidas con campañas de gestión del riesgo para temas de consumo y aprovechamiento biológico de los alimentos, calidad e inocuidad de los alimentos (190502801) | W22: =IFERROR(IF($V22="","",VLOOKUP($V22,Catálogo!$B$3019:$C$9130,2,FALSE)),"Introduzca un indicador de producto válido") -> 190502801 | X22: CONTINÚE: El indicador de producto y el producto coinciden | Z22: Número | AA22: 800 | AB22: Incremento | AC22: ODS 3. Salud y bienestar | AD22: 1.3. Desarrollo social: Salud | AE22: Asistencia / Salud | AK22: =+IFERROR(VLOOKUP(AJ22,Iniciativas!E:F,2,FALSE),"Seleccione el código de la iniciativa") -> Seleccione el código de la iniciativa | AL22: 200 | AM22: 200 | AN22: 200 | AO22: 200 | AP22: 0 | AQ22: 0 | AR22: 4000000 | AS22: 0 | AT22: 0 | AU22: 0 | AV22: 0 | AW22: 0 | AX22: 0 | AY22: 0 | AZ22: 0 | BA22: 0 | BB22: 4375000 | BC22: 0 | BD22: 0 | BE22: 0 | BF22: 8375000 | BG22: 0 | BH22: 0 | BI22: 4000000 | BJ22: 0 | BK22: 0 | BL22: 0 | BM22: 0 | BN22: 0 | BO22: 0 | BP22: 0 | BQ22: 0 | BR22: 0 | BS22: 4375000 | BT22: 0 | BU22: 0 | BV22: 0 | BW22: 8375000 | BX22: 0 | BY22: 0 | BZ22: 4000000 | CA22: 0 | CB22: 0 | CC22: 0 | CD22: 0 | CE22: 0 | CF22: 0 | CG22: 0 | CH22: 0 | CI22: 0 | CJ22: 4375000 | CK22: 0 | CL22: 0 | CM22: 0 | CN22: 8375000 | CO22: 0 | CP22: 0 | CQ22: 4000000 | CR22: 0 | CS22: 0 | CT22: 0 | CU22: 0 | CV22: 0 | CW22: 0 | CX22: 0 | CY22: 0 | CZ22: 0 | DA22: 4375000 | DB22: 0 | DC22: 0 | DD22: 0 | DE22: 8375000 | DF22: 33500000
A23: 19 | B23: Transformación y Desarrollo Social con Equidad | C23: Tasa de lesiones autoinfligidas intencionalmente (intentos de suicidio) | D23: 82.6 | E23: Tasa | F23: 80 | J23: Salud y protección social | K23: =IFERROR(IF($J23="","",VLOOKUP($J23,Catálogo!$B$5:$C$21,2,FALSE)),"Introduzca un sector de inversión válido") -> 19 | L23: Salud humana, innovadora y estratégica | M23: Salud pública (1905) | N23: =IFERROR(IF($M23="","",VLOOKUP($M23,Catálogo!$E$25:$F$93,2,FALSE)),"Introduzca un programa presupuestal válido") -> 1905 | O23: =IFERROR(IF($N23="","",VLOOKUP($N23,Catálogo!$F$25:$G$94,2,FALSE)),"Introduzca un programa presupuestal válido") -> A.2 - Salud | P23: CONTINÚE: El programa presupuestal y sector de inversión coinciden | Q23: Servicio de gestión del riesgo para la prevención y atención integral a problemas y trastornos mentales y sustancias psicoactivas | R23: Secretaría de Salud | S23: Servicio de gestión del riesgo en temas de consumo de sustancias psicoactivas (1905020) | T23: =IFERROR(IF($S23="","",VLOOKUP($S23,Catálogo!$G$97:$H$2750,2,FALSE)),"Introduzca un producto válido") -> 1905020 | U23: CONTINÚE: El producto y programa presupuestal coinciden | V23: Campañas de gestión del riesgo en temas de consumo de sustancias psicoactivas implementadas (190502000) | W23: =IFERROR(IF($V23="","",VLOOKUP($V23,Catálogo!$B$3019:$C$9130,2,FALSE)),"Introduzca un indicador de producto válido") -> 190502000 | X23: CONTINÚE: El indicador de producto y el producto coinciden | Z23: Número | AA23: 4 | AB23: Incremento | AC23: ODS 3. Salud y bienestar | AD23: 1.3. Desarrollo social: Salud | AE23: Asistencia / Salud | AK23: =+IFERROR(VLOOKUP(AJ23,Iniciativas!E:F,2,FALSE),"Seleccione el código de la iniciativa") -> Seleccione el código de la iniciativa | AL23: 1 | AM23: 1 | AN23: 1 | AO23: 1 | AP23: 0 | AQ23: 0 | AR23: 33790000 | AS23: 0 | AT23: 0 | AU23: 0 | AV23: 0 | AW23: 0 | AX23: 0 | AY23: 0 | AZ23: 0 | BA23: 0 | BB23: 4375000 | BC23: 0 | BD23: 0 | BE23: 0 | BF23: 38165000 | BG23: 0 | BH23: 0 | BI23: 33790000 | BJ23: 0 | BK23: 0 | BL23: 0 | BM23: 0 | BN23: 0 | BO23: 0 | BP23: 0 | BQ23: 0 | BR23: 0 | BS23: 4375000 | BT23: 0 | BU23: 0 | BV23: 0 | BW23: 38165000 | BX23: 0 | BY23: 0 | BZ23: 33790000 | CA23: 0 | CB23: 0 | CC23: 0 | CD23: 0 | CE23: 0 | CF23: 0 | CG23: 0 | CH23: 0 | CI23: 0 | CJ23: 4375000 | CK23: 0 | CL23: 0 | CM23: 0 | CN23: 38165000 | CO23: 0 | CP23: 0 | CQ23: 33790000 | CR23: 0 | CS23: 0 | CT23: 0 | CU23: 0 | CV23: 0 | CW23: 0 | CX23: 0 | CY23: 0 | CZ23: 0 | DA23: 4375000 | DB23: 0 | DC23: 0 | DD23: 0 | DE23: 38165000 | DF23: 152660000
A24: 20 | B24: Transformación y Desarrollo Social con Equidad | C24: Tasa de lesiones autoinfligidas intencionalmente (intentos de suicidio) | D24: 82.6 | E24: Tasa | F24: 80 | J24: Salud y protección social | K24: =IFERROR(IF($J24="","",VLOOKUP($J24,Catálogo!$B$5:$C$21,2,FALSE)),"Introduzca un sector de inversión válido") -> 19 | L24: Salud humana, innovadora y estratégica | M24: Salud pública (1905) | N24: =IFERROR(IF($M24="","",VLOOKUP($M24,Catálogo!$E$25:$F$93,2,FALSE)),"Introduzca un programa presupuestal válido") -> 1905 | O24: =IFERROR(IF($N24="","",VLOOKUP($N24,Catálogo!$F$25:$G$94,2,FALSE)),"Introduzca un programa presupuestal válido") -> A.2 - Salud | P24: CONTINÚE: El programa presupuestal y sector de inversión coinciden | Q24: Servicio de promoción en temas de salud mental y convivencia | R24: Secretaría de Salud | S24: Servicio de gestión del riesgo en temas de trastornos mentales (1905022) | T24: =IFERROR(IF($S24="","",VLOOKUP($S24,Catálogo!$G$97:$H$2750,2,FALSE)),"Introduzca un producto válido") -> 1905022 | U24: CONTINÚE: El producto y programa presupuestal coinciden | V24: Campañas de gestión del riesgo en temas de trastornos mentales implementadas (190502200) | W24: =IFERROR(IF($V24="","",VLOOKUP($V24,Catálogo!$B$3019:$C$9130,2,FALSE)),"Introduzca un indicador de producto válido") -> 190502200 | X24: CONTINÚE: El indicador de producto y el producto coinciden | Z24: Número | AA24: 4 | AB24: Incremento | AC24: ODS 3. Salud y bienestar | AD24: 1.3. Desarrollo social: Salud | AE24: Asistencia / Salud | AK24: =+IFERROR(VLOOKUP(AJ24,Iniciativas!E:F,2,FALSE),"Seleccione el código de la iniciativa") -> Seleccione el código de la iniciativa | AL24: 1 | AM24: 1 | AN24: 1 | AO24: 1 | AP24: 0 | AQ24: 0 | AR24: 23376000 | AS24: 0 | AT24: 0 | AU24: 0 | AV24: 0 | AW24: 0 | AX24: 0 | AY24: 0 | AZ24: 0 | BA24: 0 | BB24: 4375000 | BC24: 0 | BD24: 0 | BE24: 0 | BF24: 27751000 | BG24: 0 | BH24: 0 | BI24: 23376000 | BJ24: 0 | BK24: 0 | BL24: 0 | BM24: 0 | BN24: 0 | BO24: 0 | BP24: 0 | BQ24: 0 | BR24: 0 | BS24: 4375000 | BT24: 0 | BU24: 0 | BV24: 0 | BW24: 27751000 | BX24: 0 | BY24: 0 | BZ24: 23376000 | CA24: 0 | CB24: 0 | CC24: 0 | CD24: 0 | CE24: 0 | CF24: 0 | CG24: 0 | CH24: 0 | CI24: 0 | CJ24: 4375000 | CK24: 0 | CL24: 0 | CM24: 0 | CN24: 27751000 | CO24: 0 | CP24: 0 | CQ24: 23376000 | CR24: 0 | CS24: 0 | CT24: 0 | CU24: 0 | CV24: 0 | CW24: 0 | CX24: 0 | CY24: 0 | CZ24: 0 | DA24: 4375000 | DB24: 0 | DC24: 0 | DD24: 0 | DE24: 27751000 | DF24: 111004000
A25: 21 | B25: Transformación y Desarrollo Social con Equidad | C25: Tasa de fecundidad adolescente (10-19 años) | D25: 40.16 | E25: Tasa | F25: 40.16 | J25: Salud y protección social | K25: =IFERROR(IF($J25="","",VLOOKUP($J25,Catálogo!$B$5:$C$21,2,FALSE)),"Introduzca un sector de inversión válido") -> 19 | L25: Salud humana, innovadora y estratégica | M25: Salud pública (1905) | N25: =IFERROR(IF($M25="","",VLOOKUP($M25,Catálogo!$E$25:$F$93,2,FALSE)),"Introduzca un programa presupuestal válido") -> 1905 | O25: =IFERROR(IF($N25="","",VLOOKUP($N25,Catálogo!$F$25:$G$94,2,FALSE)),"Introduzca un programa presupuestal válido") -> A.2 - Salud | P25: CONTINÚE: El programa presupuestal y sector de inversión coinciden | Q25: Servicio de gestión del riesgo para la prevención y atención integral en salud sexual y reproductiva desde un enfoque de derechos | R25: Secretaría de Salud | S25: Servicio de gestión del riesgo en temas de salud sexual y reproductiva (1905021) | T25: =IFERROR(IF($S25="","",VLOOKUP($S25,Catálogo!$G$97:$H$2750,2,FALSE)),"Introduzca un producto válido") -> 1905021 | U25: CONTINÚE: El producto y programa presupuestal coinciden | V25: Campañas de gestión del riesgo en temas de salud sexual y reproductiva implementadas (190502100) | W25: =IFERROR(IF($V25="","",VLOOKUP($V25,Catálogo!$B$3019:$C$9130,2,FALSE)),"Introduzca un indicador de producto válido") -> 190502100 | X25: CONTINÚE: El indicador de producto y el producto coinciden | Z25: Número | AA25: 4 | AB25: Incremento | AC25: ODS 3. Salud y bienestar | AD25: 1.3. Desarrollo social: Salud | AE25: Asistencia / Salud | AK25: =+IFERROR(VLOOKUP(AJ25,Iniciativas!E:F,2,FALSE),"Seleccione el código de la iniciativa") -> Seleccione el código de la iniciativa | AL25: 1 | AM25: 1 | AN25: 1 | AO25: 1 | AP25: 0 | AQ25: 0 | AR25: 9720000 | AS25: 0 | AT25: 0 | AU25: 0 | AV25: 0 | AW25: 0 | AX25: 0 | AY25: 0 | AZ25: 0 | BA25: 0 | BB25: 4375000 | BC25: 0 | BD25: 0 | BE25: 0 | BF25: 14095000 | BG25: 0 | BH25: 0 | BI25: 9720000 | BJ25: 0 | BK25: 0 | BL25: 0 | BM25: 0 | BN25: 0 | BO25: 0 | BP25: 0 | BQ25: 0 | BR25: 0 | BS25: 4375000 | BT25: 0 | BU25: 0 | BV25: 0 | BW25: 14095000 | BX25: 0 | BY25: 0 | BZ25: 9720000 | CA25: 0 | CB25: 0 | CC25: 0 | CD25: 0 | CE25: 0 | CF25: 0 | CG25: 0 | CH25: 0 | CI25: 0 | CJ25: 4375000 | CK25: 0 | CL25: 0 | CM25: 0 | CN25: 14095000 | CO25: 0 | CP25: 0 | CQ25: 9720000 | CR25: 0 | CS25: 0 | CT25: 0 | CU25: 0 | CV25: 0 | CW25: 0 | CX25: 0 | CY25: 0 | CZ25: 0 | DA25: 4375000 | DB25: 0 | DC25: 0 | DD25: 0 | DE25: 14095000 | DF25: 56380000
A26: 22 | B26: Transformación y Desarrollo Social con Equidad | C26: Tasa de fecundidad adolescente (10-19 años) | D26: 40.16 | E26: Tasa | F26: 40.16 | J26: Salud y protección social | K26: =IFERROR(IF($J26="","",VLOOKUP($J26,Catálogo!$B$5:$C$21,2,FALSE)),"Introduzca un sector de inversión válido") -> 19 | L26: Salud humana, innovadora y estratégica | M26: Salud pública (1905) | N26: =IFERROR(IF($M26="","",VLOOKUP($M26,Catálogo!$E$25:$F$93,2,FALSE)),"Introduzca un programa presupuestal válido") -> 1905 | O26: =IFERROR(IF($N26="","",VLOOKUP($N26,Catálogo!$F$25:$G$94,2,FALSE)),"Introduzca un programa presupuestal válido") -> A.2 - Salud | P26: CONTINÚE: El programa presupuestal y sector de inversión coinciden | Q26: Servicio de promoción de los derechos sexuales y reproductivos y la equidad de género | R26: Secretaría de Salud | S26: Servicio de gestión del riesgo en temas de salud sexual y reproductiva (1905021) | T26: =IFERROR(IF($S26="","",VLOOKUP($S26,Catálogo!$G$97:$H$2750,2,FALSE)),"Introduzca un producto válido") -> 1905021 | U26: CONTINÚE: El producto y programa presupuestal coinciden | V26: Personas atendidas con campañas de gestión del riesgo en temas de salud sexual y reproductiva (190502101) | W26: =IFERROR(IF($V26="","",VLOOKUP($V26,Catálogo!$B$3019:$C$9130,2,FALSE)),"Introduzca un indicador de producto válido") -> 190502101 | X26: CONTINÚE: El indicador de producto y el producto coinciden | Z26: Número | AA26: 2000 | AB26: Incremento | AC26: ODS 3. Salud y bienestar | AD26: 1.3. Desarrollo social: Salud | AE26: Asistencia / Salud | AK26: =+IFERROR(VLOOKUP(AJ26,Iniciativas!E:F,2,FALSE),"Seleccione el código de la iniciativa") -> Seleccione el código de la iniciativa | AL26: 500 | AM26: 500 | AN26: 500 | AO26: 500 | AP26: 0 | AQ26: 0 | AR26: 24700000 | AS26: 0 | AT26: 0 | AU26: 0 | AV26: 0 | AW26: 0 | AX26: 0 | AY26: 0 | AZ26: 0 | BA26: 0 | BB26: 4375000 | BC26: 0 | BD26: 0 | BE26: 0 | BF26: 29075000 | BG26: 0 | BH26: 0 | BI26: 24700000 | BJ26: 0 | BK26: 0 | BL26: 0 | BM26: 0 | BN26: 0 | BO26: 0 | BP26: 0 | BQ26: 0 | BR26: 0 | BS26: 4375000 | BT26: 0 | BU26: 0 | BV26: 0 | BW26: 29075000 | BX26: 0 | BY26: 0 | BZ26: 24700000 | CA26: 0 | CB26: 0 | CC26: 0 | CD26: 0 | CE26: 0 | CF26: 0 | CG26: 0 | CH26: 0 | CI26: 0 | CJ26: 4375000 | CK26: 0 | CL26: 0 | CM26: 0 | CN26: 29075000 | CO26: 0 | CP26: 0 | CQ26: 24700000 | CR26: 0 | CS26: 0 | CT26: 0 | CU26: 0 | CV26: 0 | CW26: 0 | CX26: 0 | CY26: 0 | CZ26: 0 | DA26: 4375000 | DB26: 0 | DC26: 0 | DD26: 0 | DE26: 29075000 | DF26: 116300000
A27: 23 | B27: Transformación y Desarrollo Social con Equidad | C27: Tasa de mortalidad por Enfermedad Diarréica Aguda en menores de 5 años (tasas diferenciadas) | D27: 0 | E27: Tasa | F27: 0 | J27: Salud y protección social | K27: =IFERROR(IF($J27="","",VLOOKUP($J27,Catálogo!$B$5:$C$21,2,FALSE)),"Introduzca un sector de inversión válido") -> 19 | L27: Salud humana, innovadora y estratégica | M27: Salud pública (1905) | N27: =IFERROR(IF($M27="","",VLOOKUP($M27,Catálogo!$E$25:$F$93,2,FALSE)),"Introduzca un programa presupuestal válido") -> 1905 | O27: =IFERROR(IF($N27="","",VLOOKUP($N27,Catálogo!$F$25:$G$94,2,FALSE)),"Introduzca un programa presupuestal válido") -> A.2 - Salud | P27: CONTINÚE: El programa presupuestal y sector de inversión coinciden | Q27: Servicio de gestión del riesgo para abordar situaciones de salud relacionadas con condiciones ambientales | R27: Secretaría de Salud | S27: Servicio de gestión del riesgo para abordar situaciones de salud relacionadas con condiciones ambientales (1905024) | T27: =IFERROR(IF($S27="","",VLOOKUP($S27,Catálogo!$G$97:$H$2750,2,FALSE)),"Introduzca un producto válido") -> 1905024 | U27: CONTINÚE: El producto y programa presupuestal coinciden | V27: Campañas de gestión del riesgo para abordar situaciones de salud relacionadas con condiciones ambientales implementadas (190502400) | W27: =IFERROR(IF($V27="","",VLOOKUP($V27,Catálogo!$B$3019:$C$9130,2,FALSE)),"Introduzca un indicador de producto válido") -> 190502400 | X27: CONTINÚE: El indicador de producto y el producto coinciden | Z27: Número | AA27: 4 | AB27: Incremento | AC27: ODS 3. Salud y bienestar | AD27: 1.3. Desarrollo social: Salud | AE27: Asistencia / Salud | AK27: =+IFERROR(VLOOKUP(AJ27,Iniciativas!E:F,2,FALSE),"Seleccione el código de la iniciativa") -> Seleccione el código de la iniciativa | AL27: 1 | AM27: 1 | AN27: 1 | AO27: 1 | AP27: 0 | AQ27: 0 | AR27: 4000000 | AS27: 0 | AT27: 0 | AU27: 0 | AV27: 0 | AW27: 0 | AX27: 0 | AY27: 0 | AZ27: 0 | BA27: 0 | BB27: 4375000 | BC27: 0 | BD27: 0 | BE27: 0 | BF27: 8375000 | BG27: 0 | BH27: 0 | BI27: 4000000 | BJ27: 0 | BK27: 0 | BL27: 0 | BM27: 0 | BN27: 0 | BO27: 0 | BP27: 0 | BQ27: 0 | BR27: 0 | BS27: 4375000 | BT27: 0 | BU27: 0 | BV27: 0 | BW27: 8375000 | BX27: 0 | BY27: 0 | BZ27: 4000000 | CA27: 0 | CB27: 0 | CC27: 0 | CD27: 0 | CE27: 0 | CF27: 0 | CG27: 0 | CH27: 0 | CI27: 0 | CJ27: 4375000 | CK27: 0 | CL27: 0 | CM27: 0 | CN27: 8375000 | CO27: 0 | CP27: 0 | CQ27: 4000000 | CR27: 0 | CS27: 0 | CT27: 0 | CU27: 0 | CV27: 0 | CW27: 0 | CX27: 0 | CY27: 0 | CZ27: 0 | DA27: 4375000 | DB27: 0 | DC27: 0 | DD27: 0 | DE27: 8375000 | DF27: 33500000
A28: 24 | B28: Transformación y Desarrollo Social con Equidad | C28: Tasa de mortalidad por Infección Respiratoria Aguda-IRA/ en menores de 5 años (tasas diferenciadas) | D28: 0 | E28: Tasa | F28: 0 | J28: Salud y protección social | K28: =IFERROR(IF($J28="","",VLOOKUP($J28,Catálogo!$B$5:$C$21,2,FALSE)),"Introduzca un sector de inversión válido") -> 19 | L28: Salud humana, innovadora y estratégica | M28: Salud pública (1905) | N28: =IFERROR(IF($M28="","",VLOOKUP($M28,Catálogo!$E$25:$F$93,2,FALSE)),"Introduzca un programa presupuestal válido") -> 1905 | O28: =IFERROR(IF($N28="","",VLOOKUP($N28,Catálogo!$F$25:$G$94,2,FALSE)),"Introduzca un programa presupuestal válido") -> A.2 - Salud | P28: CONTINÚE: El programa presupuestal y sector de inversión coinciden | Q28: Servicio de promoción en temas de hábitat saludable | R28: Secretaría de Salud | S28: Servicio de gestión del riesgo para abordar situaciones de salud relacionadas con condiciones ambientales (1905024) | T28: =IFERROR(IF($S28="","",VLOOKUP($S28,Catálogo!$G$97:$H$2750,2,FALSE)),"Introduzca un producto válido") -> 1905024 | U28: CONTINÚE: El producto y programa presupuestal coinciden | V28: Personas atendidas con campañas de gestión del riesgo para abordar situaciones de salud relacionadas con condiciones ambientales (190502401) | W28: =IFERROR(IF($V28="","",VLOOKUP($V28,Catálogo!$B$3019:$C$9130,2,FALSE)),"Introduzca un indicador de producto válido") -> 190502401 | X28: CONTINÚE: El indicador de producto y el producto coinciden | Z28: Número | AA28: 800 | AB28: Incremento | AC28: ODS 3. Salud y bienestar | AD28: 1.3. Desarrollo social: Salud | AE28: Asistencia / Salud | AK28: =+IFERROR(VLOOKUP(AJ28,Iniciativas!E:F,2,FALSE),"Seleccione el código de la iniciativa") -> Seleccione el código de la iniciativa | AL28: 200 | AM28: 200 | AN28: 200 | AO28: 200 | AP28: 0 | AQ28: 0 | AR28: 8000000 | AS28: 0 | AT28: 0 | AU28: 0 | AV28: 0 | AW28: 0 | AX28: 0 | AY28: 0 | AZ28: 0 | BA28: 0 | BB28: 4375000 | BC28: 0 | BD28: 0 | BE28: 0 | BF28: 12375000 | BG28: 0 | BH28: 0 | BI28: 8000000 | BJ28: 0 | BK28: 0 | BL28: 0 | BM28: 0 | BN28: 0 | BO28: 0 | BP28: 0 | BQ28: 0 | BR28: 0 | BS28: 4375000 | BT28: 0 | BU28: 0 | BV28: 0 | BW28: 12375000 | BX28: 0 | BY28: 0 | BZ28: 8000000 | CA28: 0 | CB28: 0 | CC28: 0 | CD28: 0 | CE28: 0 | CF28: 0 | CG28: 0 | CH28: 0 | CI28: 0 | CJ28: 4375000 | CK28: 0 | CL28: 0 | CM28: 0 | CN28: 12375000 | CO28: 0 | CP28: 0 | CQ28: 8000000 | CR28: 0 | CS28: 0 | CT28: 0 | CU28: 0 | CV28: 0 | CW28: 0 | CX28: 0 | CY28: 0 | CZ28: 0 | DA28: 4375000 | DB28: 0 | DC28: 0 | DD28: 0 | DE28: 12375000 | DF28: 49500000
A29: 25 | B29: Transformación y Desarrollo Social con Equidad | C29: Cobertura de aseguramiento al SGSSS | D29: 89 | E29: Porcentaje | F29: 91.75 | J29: Salud y protección social | K29: =IFERROR(IF($J29="","",VLOOKUP($J29,Catálogo!$B$5:$C$21,2,FALSE)),"Introduzca un sector de inversión válido") -> 19 | L29: Salud humana, innovadora y estratégica | M29: Salud pública (1905) | N29: =IFERROR(IF($M29="","",VLOOKUP($M29,Catálogo!$E$25:$F$93,2,FALSE)),"Introduzca un programa presupuestal válido") -> 1905 | O29: =IFERROR(IF($N29="","",VLOOKUP($N29,Catálogo!$F$25:$G$94,2,FALSE)),"Introduzca un programa presupuestal válido") -> A.2 - Salud | P29: CONTINÚE: El programa presupuestal y sector de inversión coinciden | Q29: Servicio de gestión del riesgo para abordar situaciones prevalentes de origen laboral | R29: Secretaría de Salud | S29: Servicio de gestión del riesgo para abordar situaciones prevalentes de origen laboral (1905025) | T29: =IFERROR(IF($S29="","",VLOOKUP($S29,Catálogo!$G$97:$H$2750,2,FALSE)),"Introduzca un producto válido") -> 1905025 | U29: CONTINÚE: El producto y programa presupuestal coinciden | V29: Campañas de gestión del riesgo para abordar situaciones prevalentes de origen laboral implementadas (190502500) | W29: =IFERROR(IF($V29="","",VLOOKUP($V29,Catálogo!$B$3019:$C$9130,2,FALSE)),"Introduzca un indicador de producto válido") -> 190502500 | X29: CONTINÚE: El indicador de producto y el producto coinciden | Z29: Número | AA29: 4 | AB29: Incremento | AC29: ODS 3. Salud y bienestar | AD29: 1.3. Desarrollo social: Salud | AE29: Asistencia / Salud | AK29: =+IFERROR(VLOOKUP(AJ29,Iniciativas!E:F,2,FALSE),"Seleccione el código de la iniciativa") -> Seleccione el código de la iniciativa | AL29: 1 | AM29: 1 | AN29: 1 | AO29: 1 | AP29: 0 | AQ29: 0 | AR29: 880000 | AS29: 0 | AT29: 0 | AU29: 0 | AV29: 0 | AW29: 0 | AX29: 0 | AY29: 0 | AZ29: 0 | BA29: 0 | BB29: 4375000 | BC29: 0 | BD29: 0 | BE29: 0 | BF29: 5255000 | BG29: 0 | BH29: 0 | BI29: 880000 | BJ29: 0 | BK29: 0 | BL29: 0 | BM29: 0 | BN29: 0 | BO29: 0 | BP29: 0 | BQ29: 0 | BR29: 0 | BS29: 4375000 | BT29: 0 | BU29: 0 | BV29: 0 | BW29: 5255000 | BX29: 0 | BY29: 0 | BZ29: 880000 | CA29: 0 | CB29: 0 | CC29: 0 | CD29: 0 | CE29: 0 | CF29: 0 | CG29: 0 | CH29: 0 | CI29: 0 | CJ29: 4375000 | CK29: 0 | CL29: 0 | CM29: 0 | CN29: 5255000 | CO29: 0 | CP29: 0 | CQ29: 880000 | CR29: 0 | CS29: 0 | CT29: 0 | CU29: 0 | CV29: 0 | CW29: 0 | CX29: 0 | CY29: 0 | CZ29: 0 | DA29: 4375000 | DB29: 0 | DC29: 0 | DD29: 0 | DE29: 5255000 | DF29: 21020000
A30: 26 | B30: Transformación y Desarrollo Social con Equidad | C30: Cobertura de aseguramiento al SGSSS | D30: 89 | E30: Porcentaje | F30: 91.75 | J30: Salud y protección social | K30: =IFERROR(IF($J30="","",VLOOKUP($J30,Catálogo!$B$5:$C$21,2,FALSE)),"Introduzca un sector de inversión válido") -> 19 | L30: Salud humana, innovadora y estratégica | M30: Salud pública (1905) | N30: =IFERROR(IF($M30="","",VLOOKUP($M30,Catálogo!$E$25:$F$93,2,FALSE)),"Introduzca un programa presupuestal válido") -> 1905 | O30: =IFERROR(IF($N30="","",VLOOKUP($N30,Catálogo!$F$25:$G$94,2,FALSE)),"Introduzca un programa presupuestal válido") -> A.2 - Salud | P30: CONTINÚE: El programa presupuestal y sector de inversión coinciden | Q30: Servicio de promoción en temas seguridad y salud en el trabajo | R30: Secretaría de Salud | S30: Servicio de gestión del riesgo para abordar situaciones prevalentes de origen laboral (1905025) | T30: =IFERROR(IF($S30="","",VLOOKUP($S30,Catálogo!$G$97:$H$2750,2,FALSE)),"Introduzca un producto válido") -> 1905025 | U30: CONTINÚE: El producto y programa presupuestal coinciden | V30: Personas atendidas con campañas de gestión del riesgo para abordar situaciones prevalentes de origen laboral (190502501) | W30: =IFERROR(IF($V30="","",VLOOKUP($V30,Catálogo!$B$3019:$C$9130,2,FALSE)),"Introduzca un indicador de producto válido") -> 190502501 | X30: CONTINÚE: El indicador de producto y el producto coinciden | Z30: Número | AA30: 320 | AB30: Incremento | AC30: ODS 3. Salud y bienestar | AD30: 1.3. Desarrollo social: Salud | AE30: Asistencia / Salud | AK30: =+IFERROR(VLOOKUP(AJ30,Iniciativas!E:F,2,FALSE),"Seleccione el código de la iniciativa") -> Seleccione el código de la iniciativa | AL30: 80 | AM30: 80 | AN30: 80 | AO30: 80 | AP30: 0 | AQ30: 0 | AR30: 8150000 | AS30: 0 | AT30: 0 | AU30: 0 | AV30: 0 | AW30: 0 | AX30: 0 | AY30: 0 | AZ30: 0 | BA30: 0 | BB30: 4375000 | BC30: 0 | BD30: 0 | BE30: 0 | BF30: 12525000 | BG30: 0 | BH30: 0 | BI30: 8150000 | BJ30: 0 | BK30: 0 | BL30: 0 | BM30: 0 | BN30: 0 | BO30: 0 | BP30: 0 | BQ30: 0 | BR30: 0 | BS30: 4375000 | BT30: 0 | BU30: 0 | BV30: 0 | BW30: 12525000 | BX30: 0 | BY30: 0 | BZ30: 8150000 | CA30: 0 | CB30: 0 | CC30: 0 | CD30: 0 | CE30: 0 | CF30: 0 | CG30: 0 | CH30: 0 | CI30: 0 | CJ30: 4375000 | CK30: 0 | CL30: 0 | CM30: 0 | CN30: 12525000 | CO30: 0 | CP30: 0 | CQ30: 8150000 | CR30: 0 | CS30: 0 | CT30: 0 | CU30: 0 | CV30: 0 | CW30: 0 | CX30: 0 | CY30: 0 | CZ30: 0 | DA30: 4375000 | DB30: 0 | DC30: 0 | DD30: 0 | DE30: 12525000 | DF30: 50100000
A31: 27 | B31: Transformación y Desarrollo Social con Equidad | C31: Tasa de mortalidad por COVID 19 | D31: 0 | E31: Tasa | F31: 0 | J31: Salud y protección social | K31: =IFERROR(IF($J31="","",VLOOKUP($J31,Catálogo!$B$5:$C$21,2,FALSE)),"Introduzca un sector de inversión válido") -> 19 | L31: Salud humana, innovadora y estratégica | M31: Salud pública (1905) | N31: =IFERROR(IF($M31="","",VLOOKUP($M31,Catálogo!$E$25:$F$93,2,FALSE)),"Introduzca un programa presupuestal válido") -> 1905 | O31: =IFERROR(IF($N31="","",VLOOKUP($N31,Catálogo!$F$25:$G$94,2,FALSE)),"Introduzca un programa presupuestal válido") -> A.2 - Salud | P31: CONTINÚE: El programa presupuestal y sector de inversión coinciden | Q31: Servicio de gestión del riesgo para enfermedades emergentes, reemergentes y desatendidas | R31: Secretaría de Salud | S31: Servicio de gestión del riesgo para enfermedades emergentes, reemergentes y desatendidas (1905026) | T31: =IFERROR(IF($S31="","",VLOOKUP($S31,Catálogo!$G$97:$H$2750,2,FALSE)),"Introduzca un producto válido") -> 1905026 | U31: CONTINÚE: El producto y programa presupuestal coinciden | V31: Campañas de gestión del riesgo para enfermedades emergentes, reemergentes y desatendidas implementadas (190502600) | W31: =IFERROR(IF($V31="","",VLOOKUP($V31,Catálogo!$B$3019:$C$9130,2,FALSE)),"Introduzca un indicador de producto válido") -> 190502600 | X31: CONTINÚE: El indicador de producto y el producto coinciden | Z31: Número | AA31: 4 | AB31: Incremento | AC31: ODS 3. Salud y bienestar | AD31: 1.3. Desarrollo social: Salud | AE31: Asistencia / Salud | AK31: =+IFERROR(VLOOKUP(AJ31,Iniciativas!E:F,2,FALSE),"Seleccione el código de la iniciativa") -> Seleccione el código de la iniciativa | AL31: 1 | AM31: 1 | AN31: 1 | AO31: 1 | AP31: 0 | AQ31: 0 | AR31: 10000000 | AS31: 0 | AT31: 0 | AU31: 0 | AV31: 0 | AW31: 0 | AX31: 0 | AY31: 0 | AZ31: 0 | BA31: 0 | BB31: 2912500 | BC31: 0 | BD31: 0 | BE31: 0 | BF31: 12912500 | BG31: 0 | BH31: 0 | BI31: 10000000 | BJ31: 0 | BK31: 0 | BL31: 0 | BM31: 0 | BN31: 0 | BO31: 0 | BP31: 0 | BQ31: 0 | BR31: 0 | BS31: 2912500 | BT31: 0 | BU31: 0 | BV31: 0 | BW31: 12912500 | BX31: 0 | BY31: 0 | BZ31: 10000000 | CA31: 0 | CB31: 0 | CC31: 0 | CD31: 0 | CE31: 0 | CF31: 0 | CG31: 0 | CH31: 0 | CI31: 0 | CJ31: 2912500 | CK31: 0 | CL31: 0 | CM31: 0 | CN31: 12912500 | CO31: 0 | CP31: 0 | CQ31: 10000000 | CR31: 0 | CS31: 0 | CT31: 0 | CU31: 0 | CV31: 0 | CW31: 0 | CX31: 0 | CY31: 0 | CZ31: 0 | DA31: 2912500 | DB31: 0 | DC31: 0 | DD31: 0 | DE31: 12912500 | DF31: 51650000
A32: 28 | B32: Transformación y Desarrollo Social con Equidad | C32: Cobertura de vacunación BCG(Tuberculosis) | D32: 32.17 | E32: Porcentaje | F32: 32.88 | J32: Salud y protección social | K32: =IFERROR(IF($J32="","",VLOOKUP($J32,Catálogo!$B$5:$C$21,2,FALSE)),"Introduzca un sector de inversión válido") -> 19 | L32: Salud humana, innovadora y estratégica | M32: Salud pública (1905) | N32: =IFERROR(IF($M32="","",VLOOKUP($M32,Catálogo!$E$25:$F$93,2,FALSE)),"Introduzca un programa presupuestal válido") -> 1905 | O32: =IFERROR(IF($N32="","",VLOOKUP($N32,Catálogo!$F$25:$G$94,2,FALSE)),"Introduzca un programa presupuestal válido") -> A.2 - Salud | P32: CONTINÚE: El programa presupuestal y sector de inversión coinciden | Q32: Servicio de gestión del riesgo para enfermedades inmunoprevenibles | R32: Secretaría de Salud | S32: Servicio de gestión del riesgo para enfermedades inmunoprevenibles (1905027) | T32: =IFERROR(IF($S32="","",VLOOKUP($S32,Catálogo!$G$97:$H$2750,2,FALSE)),"Introduzca un producto válido") -> 1905027 | U32: CONTINÚE: El producto y programa presupuestal coinciden | V32: Campañas de gestión del riesgo para enfermedades inmunoprevenibles implementadas (190502700) | W32: =IFERROR(IF($V32="","",VLOOKUP($V32,Catálogo!$B$3019:$C$9130,2,FALSE)),"Introduzca un indicador de producto válido") -> 190502700 | X32: CONTINÚE: El indicador de producto y el producto coinciden | Z32: Número | AA32: 8 | AB32: Incremento | AC32: ODS 3. Salud y bienestar | AD32: 1.3. Desarrollo social: Salud | AE32: Asistencia / Salud | AK32: =+IFERROR(VLOOKUP(AJ32,Iniciativas!E:F,2,FALSE),"Seleccione el código de la iniciativa") -> Seleccione el código de la iniciativa | AL32: 2 | AM32: 2 | AN32: 2 | AO32: 2 | AP32: 0 | AQ32: 0 | AR32: 16000000 | AS32: 0 | AT32: 0 | AU32: 0 | AV32: 0 | AW32: 0 | AX32: 0 | AY32: 0 | AZ32: 0 | BA32: 0 | BB32: 2912500 | BC32: 0 | BD32: 0 | BE32: 0 | BF32: 18912500 | BG32: 0 | BH32: 0 | BI32: 16000000 | BJ32: 0 | BK32: 0 | BL32: 0 | BM32: 0 | BN32: 0 | BO32: 0 | BP32: 0 | BQ32: 0 | BR32: 0 | BS32: 2912500 | BT32: 0 | BU32: 0 | BV32: 0 | BW32: 18912500 | BX32: 0 | BY32: 0 | BZ32: 16000000 | CA32: 0 | CB32: 0 | CC32: 0 | CD32: 0 | CE32: 0 | CF32: 0 | CG32: 0 | CH32: 0 | CI32: 0 | CJ32: 2912500 | CK32: 0 | CL32: 0 | CM32: 0 | CN32: 18912500 | CO32: 0 | CP32: 0 | CQ32: 16000000 | CR32: 0 | CS32: 0 | CT32: 0 | CU32: 0 | CV32: 0 | CW32: 0 | CX32: 0 | CY32: 0 | CZ32: 0 | DA32: 2912500 | DB32: 0 | DC32: 0 | DD32: 0 | DE32: 18912500 | DF32: 75650000
A33: 29 | B33: Transformación y Desarrollo Social con Equidad | C33: Número de muertes por Dengue | D33: 1 | E33: Número | F33: 0 | J33: Salud y protección social | K33: =IFERROR(IF($J33="","",VLOOKUP($J33,Catálogo!$B$5:$C$21,2,FALSE)),"Introduzca un sector de inversión válido") -> 19 | L33: Salud humana, innovadora y estratégica | M33: Salud pública (1905) | N33: =IFERROR(IF($M33="","",VLOOKUP($M33,Catálogo!$E$25:$F$93,2,FALSE)),"Introduzca un programa presupuestal válido") -> 1905 | O33: =IFERROR(IF($N33="","",VLOOKUP($N33,Catálogo!$F$25:$G$94,2,FALSE)),"Introduzca un programa presupuestal válido") -> A.2 - Salud | P33: CONTINÚE: El programa presupuestal y sector de inversión coinciden | Q33: Servicio de gestión del riesgo para enfermedades endemoepidémicas | R33: Secretaría de Salud | S33: Servicio de gestión del riesgo para abordar situaciones de salud relacionadas con condiciones ambientales (1905024) | T33: =IFERROR(IF($S33="","",VLOOKUP($S33,Catálogo!$G$97:$H$2750,2,FALSE)),"Introduzca un producto válido") -> 1905024 | U33: CONTINÚE: El producto y programa presupuestal coinciden | V33: Campañas de gestión del riesgo para abordar situaciones de salud relacionadas con condiciones ambientales implementadas (190502400) | W33: =IFERROR(IF($V33="","",VLOOKUP($V33,Catálogo!$B$3019:$C$9130,2,FALSE)),"Introduzca un indicador de producto válido") -> 190502400 | X33: CONTINÚE: El indicador de producto y el producto coinciden | Z33: Número | AA33: 4 | AB33: Incremento | AC33: ODS 3. Salud y bienestar | AD33: 1.3. Desarrollo social: Salud | AE33: Asistencia / Salud | AK33: =+IFERROR(VLOOKUP(AJ33,Iniciativas!E:F,2,FALSE),"Seleccione el código de la iniciativa") -> Seleccione el código de la iniciativa | AL33: 1 | AM33: 1 | AN33: 1 | AO33: 1 | AP33: 0 | AQ33: 0 | AR33: 4000000 | AS33: 0 | AT33: 0 | AU33: 0 | AV33: 0 | AW33: 0 | AX33: 0 | AY33: 0 | AZ33: 0 | BA33: 0 | BB33: 2912500 | BC33: 0 | BD33: 0 | BE33: 0 | BF33: 6912500 | BG33: 0 | BH33: 0 | BI33: 4000000 | BJ33: 0 | BK33: 0 | BL33: 0 | BM33: 0 | BN33: 0 | BO33: 0 | BP33: 0 | BQ33: 0 | BR33: 0 | BS33: 2912500 | BT33: 0 | BU33: 0 | BV33: 0 | BW33: 6912500 | BX33: 0 | BY33: 0 | BZ33: 4000000 | CA33: 0 | CB33: 0 | CC33: 0 | CD33: 0 | CE33: 0 | CF33: 0 | CG33: 0 | CH33: 0 | CI33: 0 | CJ33: 2912500 | CK33: 0 | CL33: 0 | CM33: 0 | CN33: 6912500 | CO33: 0 | CP33: 0 | CQ33: 4000000 | CR33: 0 | CS33: 0 | CT33: 0 | CU33: 0 | CV33: 0 | CW33: 0 | CX33: 0 | CY33: 0 | CZ33: 0 | DA33: 2912500 | DB33: 0 | DC33: 0 | DD33: 0 | DE33: 6912500 | DF33: 27650000
A34: 30 | B34: Transformación y Desarrollo Social con Equidad | C34: Tasa de mortalidad por exposición a fuerzas de la naturaleza | D34: 5.94 | E34: Tasa | F34: 5.71 | J34: Salud y protección social | K34: =IFERROR(IF($J34="","",VLOOKUP($J34,Catálogo!$B$5:$C$21,2,FALSE)),"Introduzca un sector de inversión válido") -> 19 | L34: Salud humana, innovadora y estratégica | M34: Salud pública (1905) | N34: =IFERROR(IF($M34="","",VLOOKUP($M34,Catálogo!$E$25:$F$93,2,FALSE)),"Introduzca un programa presupuestal válido") -> 1905 | O34: =IFERROR(IF($N34="","",VLOOKUP($N34,Catálogo!$F$25:$G$94,2,FALSE)),"Introduzca un programa presupuestal válido") -> A.2 - Salud | P34: CONTINÚE: El programa presupuestal y sector de inversión coinciden | Q34: Servicio de gestión del riesgo en emergencias y desastres | R34: Secretaría de Salud | S34: Servicio de atención en salud pública en situaciones de emergencias y desastres (1905030) | T34: =IFERROR(IF($S34="","",VLOOKUP($S34,Catálogo!$G$97:$H$2750,2,FALSE)),"Introduzca un producto válido") -> 1905030 | U34: CONTINÚE: El producto y programa presupuestal coinciden | V34: Personas en capacidad de ser atendidas (190503000) | W34: =IFERROR(IF($V34="","",VLOOKUP($V34,Catálogo!$B$3019:$C$9130,2,FALSE)),"Introduzca un indicador de producto válido") -> 190503000 | X34: CONTINÚE: El indicador de producto y el producto coinciden | Z34: Número | AA34: 200 | AB34: Incremento | AC34: ODS 3. Salud y bienestar | AD34: 1.3. Desarrollo social: Salud | AE34: Asistencia / Salud | AK34: =+IFERROR(VLOOKUP(AJ34,Iniciativas!E:F,2,FALSE),"Seleccione el código de la iniciativa") -> Seleccione el código de la iniciativa | AL34: 50 | AM34: 50 | AN34: 50 | AO34: 50 | AP34: 0 | AQ34: 0 | AR34: 7500000 | AS34: 0 | AT34: 0 | AU34: 0 | AV34: 0 | AW34: 0 | AX34: 0 | AY34: 0 | AZ34: 0 | BA34: 0 | BB34: 8750000 | BC34: 0 | BD34: 0 | BE34: 0 | BF34: 16250000 | BG34: 0 | BH34: 0 | BI34: 7500000 | BJ34: 0 | BK34: 0 | BL34: 0 | BM34: 0 | BN34: 0 | BO34: 0 | BP34: 0 | BQ34: 0 | BR34: 0 | BS34: 8750000 | BT34: 0 | BU34: 0 | BV34: 0 | BW34: 16250000 | BX34: 0 | BY34: 0 | BZ34: 7500000 | CA34: 0 | CB34: 0 | CC34: 0 | CD34: 0 | CE34: 0 | CF34: 0 | CG34: 0 | CH34: 0 | CI34: 0 | CJ34: 8750000 | CK34: 0 | CL34: 0 | CM34: 0 | CN34: 16250000 | CO34: 0 | CP34: 0 | CQ34: 7500000 | CR34: 0 | CS34: 0 | CT34: 0 | CU34: 0 | CV34: 0 | CW34: 0 | CX34: 0 | CY34: 0 | CZ34: 0 | DA34: 8750000 | DB34: 0 | DC34: 0 | DD34: 0 | DE34: 16250000 | DF34: 65000000
A35: 31 | B35: Transformación y Desarrollo Social con Equidad | C35: Tasa de Mortalidad infantil | D35: 9.4 | E35: Tasa | F35: 9.3 | J35: Salud y protección social | K35: =IFERROR(IF($J35="","",VLOOKUP($J35,Catálogo!$B$5:$C$21,2,FALSE)),"Introduzca un sector de inversión válido") -> 19 | L35: Salud humana, innovadora y estratégica | M35: Salud pública (1905) | N35: =IFERROR(IF($M35="","",VLOOKUP($M35,Catálogo!$E$25:$F$93,2,FALSE)),"Introduzca un programa presupuestal válido") -> 1905 | O35: =IFERROR(IF($N35="","",VLOOKUP($N35,Catálogo!$F$25:$G$94,2,FALSE)),"Introduzca un programa presupuestal válido") -> A.2 - Salud | P35: CONTINÚE: El programa presupuestal y sector de inversión coinciden | Q35: Gestión en salud para las poblaciones vulnerables | R35: Secretaría de Salud | S35: Servicio de educación informal en temas de salud pública (1905019) | T35: =IFERROR(IF($S35="","",VLOOKUP($S35,Catálogo!$G$97:$H$2750,2,FALSE)),"Introduzca un producto válido") -> 1905019 | U35: CONTINÚE: El producto y programa presupuestal coinciden | V35: Personas capacitadas (190501900) | W35: =IFERROR(IF($V35="","",VLOOKUP($V35,Catálogo!$B$3019:$C$9130,2,FALSE)),"Introduzca un indicador de producto válido") -> 190501900 | X35: CONTINÚE: El indicador de producto y el producto coinciden | Z35: Número | AA35: 350 | AB35: Mantenimiento | AC35: ODS 3. Salud y bienestar | AD35: 1.3. Desarrollo social: Salud | AE35: Asistencia / Salud | AK35: =+IFERROR(VLOOKUP(AJ35,Iniciativas!E:F,2,FALSE),"Seleccione el código de la iniciativa") -> Seleccione el código de la iniciativa | AL35: 350 | AM35: 350 | AN35: 350 | AO35: 350 | AP35: 0 | AQ35: 0 | AR35: 21694356.75 | AS35: 0 | AT35: 0 | AU35: 0 | AV35: 0 | AW35: 0 | AX35: 0 | AY35: 0 | AZ35: 0 | BA35: 0 | BB35: 10012500 | BC35: 0 | BD35: 0 | BE35: 0 | BF35: 31706856.75 | BG35: 0 | BH35: 0 | BI35: 21694356.75 | BJ35: 0 | BK35: 0 | BL35: 0 | BM35: 0 | BN35: 0 | BO35: 0 | BP35: 0 | BQ35: 0 | BR35: 0 | BS35: 10012500 | BT35: 0 | BU35: 0 | BV35: 0 | BW35: 31706856.75 | BX35: 0 | BY35: 0 | BZ35: 21694356.75 | CA35: 0 | CB35: 0 | CC35: 0 | CD35: 0 | CE35: 0 | CF35: 0 | CG35: 0 | CH35: 0 | CI35: 0 | CJ35: 10012500 | CK35: 0 | CL35: 0 | CM35: 0 | CN35: 31706856.75 | CO35: 0 | CP35: 0 | CQ35: 21694356.75 | CR35: 0 | CS35: 0 | CT35: 0 | CU35: 0 | CV35: 0 | CW35: 0 | CX35: 0 | CY35: 0 | CZ35: 0 | DA35: 10012500 | DB35: 0 | DC35: 0 | DD35: 0 | DE35: 31706856.75 | DF35: 126827427
A36: 32 | B36: Transformación y Desarrollo Social con Equidad | C36: Indice de satisfacción de los usuarios en salud | D36: 0 | E36: Porcentaje | F36: 95 | J36: Salud y protección social | K36: =IFERROR(IF($J36="","",VLOOKUP($J36,Catálogo!$B$5:$C$21,2,FALSE)),"Introduzca un sector de inversión válido") -> 19 | L36: Rectoría Sanitaria fortalecida | M36: Aseguramiento y prestación integral de servicios de salud (1906) | N36: =IFERROR(IF($M36="","",VLOOKUP($M36,Catálogo!$E$25:$F$93,2,FALSE)),"Introduzca un programa presupuestal válido") -> 1906 | O36: =IFERROR(IF($N36="","",VLOOKUP($N36,Catálogo!$F$25:$G$94,2,FALSE)),"Introduzca un programa presupuestal válido") -> A.2 - Salud | P36: CONTINÚE: El programa presupuestal y sector de inversión coinciden | Q36: Infraestructura hospitalaria de nivel 1 construida y dotada | R36: Secretaría de Salud | S36: Servicio de atención en salud a la población (1906004) | T36: =IFERROR(IF($S36="","",VLOOKUP($S36,Catálogo!$G$97:$H$2750,2,FALSE)),"Introduzca un producto válido") -> 1906004 | U36: CONTINÚE: El producto y programa presupuestal coinciden | V36: Personas atendidas con servicio de salud (190600400) | W36: =IFERROR(IF($V36="","",VLOOKUP($V36,Catálogo!$B$3019:$C$9130,2,FALSE)),"Introduzca un indicador de producto válido") -> 190600400 | X36: CONTINÚE: El indicador de producto y el producto coinciden | Z36: Número | AA36: 800 | AB36: Incremento | AC36: ODS 3. Salud y bienestar | AD36: 1.3. Desarrollo social: Salud | AE36: Asistencia / Salud | AK36: =+IFERROR(VLOOKUP(AJ36,Iniciativas!E:F,2,FALSE),"Seleccione el código de la iniciativa") -> Seleccione el código de la iniciativa | AL36: 0 | AM36: 0 | AN36: 800 | AO36: 0 | AP36: 0 | AQ36: 0 | AR36: 0 | AS36: 0 | AT36: 0 | AU36: 0 | AV36: 0 | AW36: 0 | AX36: 0 | AY36: 0 | AZ36: 0 | BA36: 0 | BB36: 0 | BC36: 0 | BD36: 0 | BE36: 0 | BF36: 0 | BG36: 0 | BH36: 0 | BI36: 0 | BJ36: 0 | BK36: 0 | BL36: 0 | BM36: 0 | BN36: 0 | BO36: 0 | BP36: 0 | BQ36: 0 | BR36: 0 | BS36: 0 | BT36: 0 | BU36: 0 | BV36: 0 | BW36: 0 | BX36: 0 | BY36: 0 | BZ36: 0 | CA36: 0 | CB36: 0 | CC36: 0 | CD36: 0 | CE36: 0 | CF36: 0 | CG36: 0 | CH36: 0 | CI36: 0 | CJ36: 0 | CK36: 0 | CL36: 0 | CM36: 500000000 | CN36: 500000000 | CO36: 0 | CP36: 0 | CQ36: 0 | CR36: 0 | CS36: 0 | CT36: 0 | CU36: 0 | CV36: 0 | CW36: 0 | CX36: 0 | CY36: 0 | CZ36: 0 | DA36: 0 | DB36: 0 | DC36: 0 | DD36: 0 | DE36: 0 | DF36: 500000000
A37: 33 | B37: Transformación y Desarrollo Social con Equidad | C37: Cobertura de aseguramiento al SGSSS | D37: 89 | E37: Porcentaje | F37: 91.75 | J37: Salud y protección social | K37: =IFERROR(IF($J37="","",VLOOKUP($J37,Catálogo!$B$5:$C$21,2,FALSE)),"Introduzca un sector de inversión válido") -> 19 | L37: Rectoría Sanitaria fortalecida | M37: Aseguramiento y prestación integral de servicios de salud (1906) | N37: =IFERROR(IF($M37="","",VLOOKUP($M37,Catálogo!$E$25:$F$93,2,FALSE)),"Introduzca un programa presupuestal válido") -> 1906 | O37: =IFERROR(IF($N37="","",VLOOKUP($N37,Catálogo!$F$25:$G$94,2,FALSE)),"Introduzca un programa presupuestal válido") -> A.2 - Salud | P37: CONTINÚE: El programa presupuestal y sector de inversión coinciden | Q37: Servicios de Salud prestados a población pobre en lo no cubierto por subsidios. | R37: Secretaría de Salud | S37: Servicio de atención en salud a la población (1906004) | T37: =IFERROR(IF($S37="","",VLOOKUP($S37,Catálogo!$G$97:$H$2750,2,FALSE)),"Introduzca un producto válido") -> 1906004 | U37: CONTINÚE: El producto y programa presupuestal coinciden | V37: Personas atendidas con servicio de salud (190600400) | W37: =IFERROR(IF($V37="","",VLOOKUP($V37,Catálogo!$B$3019:$C$9130,2,FALSE)),"Introduzca un indicador de producto válido") -> 190600400 | X37: CONTINÚE: El indicador de producto y el producto coinciden | Z37: Número | AA37: 400 | AB37: Incremento | AC37: ODS 3. Salud y bienestar | AD37: 1.3. Desarrollo social: Salud | AE37: Asistencia / Salud | AK37: =+IFERROR(VLOOKUP(AJ37,Iniciativas!E:F,2,FALSE),"Seleccione el código de la iniciativa") -> Seleccione el código de la iniciativa | AL37: 100 | AM37: 100 | AN37: 100 | AO37: 100 | AP37: 0 | AQ37: 0 | AR37: 537030502.9 | AS37: 0 | AT37: 0 | AU37: 0 | AV37: 0 | AW37: 0 | AX37: 0 | AY37: 0 | AZ37: 0 | BA37: 0 | BB37: 0 | BC37: 0 | BD37: 0 | BE37: 0 | BF37: 537030502.9 | BG37: 0 | BH37: 0 | BI37: 537030502.9 | BJ37: 0 | BK37: 0 | BL37: 0 | BM37: 0 | BN37: 0 | BO37: 0 | BP37: 0 | BQ37: 0 | BR37: 0 | BS37: 0 | BT37: 0 | BU37: 0 | BV37: 0 | BW37: 537030502.9 | BX37: 0 | BY37: 0 | BZ37: 537030502.9 | CA37: 0 | CB37: 0 | CC37: 0 | CD37: 0 | CE37: 0 | CF37: 0 | CG37: 0 | CH37: 0 | CI37: 0 | CJ37: 0 | CK37: 0 | CL37: 0 | CM37: 0 | CN37: 537030502.9 | CO37: 0 | CP37: 0 | CQ37: 537030502.9 | CR37: 0 | CS37: 0 | CT37: 0 | CU37: 0 | CV37: 0 | CW37: 0 | CX37: 0 | CY37: 0 | CZ37: 0 | DA37: 0 | DB37: 0 | DC37: 0 | DD37: 0 | DE37: 537030502.9 | DF37: 2148122012
A38: 34 | B38: Transformación y Desarrollo Social con Equidad | C38: Cobertura de aseguramiento al SGSSS | D38: 89 | E38: Porcentaje | F38: 91.75 | J38: Salud y protección social | K38: =IFERROR(IF($J38="","",VLOOKUP($J38,Catálogo!$B$5:$C$21,2,FALSE)),"Introduzca un sector de inversión válido") -> 19 | L38: Rectoría Sanitaria fortalecida | M38: Aseguramiento y prestación integral de servicios de salud (1906) | N38: =IFERROR(IF($M38="","",VLOOKUP($M38,Catálogo!$E$25:$F$93,2,FALSE)),"Introduzca un programa presupuestal válido") -> 1906 | O38: =IFERROR(IF($N38="","",VLOOKUP($N38,Catálogo!$F$25:$G$94,2,FALSE)),"Introduzca un programa presupuestal válido") -> A.2 - Salud | P38: CONTINÚE: El programa presupuestal y sector de inversión coinciden | Q38: Servicio de identificación y selección de beneficiarios del régimen subsidiado | R38: Secretaría de Salud | S38: Servicio de atención en salud a la población (1906004) | T38: =IFERROR(IF($S38="","",VLOOKUP($S38,Catálogo!$G$97:$H$2750,2,FALSE)),"Introduzca un producto válido") -> 1906004 | U38: CONTINÚE: El producto y programa presupuestal coinciden | V38: Personas afiliadas en servicio de salud (190600401) | W38: =IFERROR(IF($V38="","",VLOOKUP($V38,Catálogo!$B$3019:$C$9130,2,FALSE)),"Introduzca un indicador de producto válido") -> 190600401 | X38: CONTINÚE: El indicador de producto y el producto coinciden | Z38: Número | AA38: 2300 | AB38: Incremento | AC38: ODS 3. Salud y bienestar | AD38: 1.3. Desarrollo social: Salud | AE38: Asistencia / Salud | AK38: =+IFERROR(VLOOKUP(AJ38,Iniciativas!E:F,2,FALSE),"Seleccione el código de la iniciativa") -> Seleccione el código de la iniciativa | AL38: 400 | AM38: 500 | AN38: 700 | AO38: 700 | AP38: 0 | AQ38: 0 | AR38: 2219226463 | AS38: 0 | AT38: 0 | AU38: 0 | AV38: 0 | AW38: 0 | AX38: 0 | AY38: 0 | AZ38: 0 | BA38: 0 | BB38: 1856346035 | BC38: 1244060639 | BD38: 0 | BE38: 0 | BF38: 5319633137 | BG38: 0 | BH38: 0 | BI38: 2219226463 | BJ38: 0 | BK38: 0 | BL38: 0 | BM38: 0 | BN38: 0 | BO38: 0 | BP38: 0 | BQ38: 0 | BR38: 0 | BS38: 1856346035 | BT38: 1244060639 | BU38: 0 | BV38: 0 | BW38: 5319633137 | BX38: 0 | BY38: 0 | BZ38: 2219226463 | CA38: 0 | CB38: 0 | CC38: 0 | CD38: 0 | CE38: 0 | CF38: 0 | CG38: 0 | CH38: 0 | CI38: 0 | CJ38: 1856346035 | CK38: 1244060639 | CL38: 0 | CM38: 0 | CN38: 5319633137 | CO38: 0 | CP38: 0 | CQ38: 2219226463 | CR38: 0 | CS38: 0 | CT38: 0 | CU38: 0 | CV38: 0 | CW38: 0 | CX38: 0 | CY38: 0 | CZ38: 0 | DA38: 1856346035 | DB38: 1244060639 | DC38: 0 | DD38: 0 | DE38: 5319633137 | DF38: =+DE38+CN38+BW38+BF38 -> 2.127853255e+10
A39: 35 | B39: Transformación y Desarrollo Social con Equidad | C39: Cobertura de aseguramiento al SGSSS | D39: 89 | E39: Porcentaje | F39: 91.75 | J39: Salud y protección social | K39: =IFERROR(IF($J39="","",VLOOKUP($J39,Catálogo!$B$5:$C$21,2,FALSE)),"Introduzca un sector de inversión válido") -> 19 | L39: Rectoría Sanitaria fortalecida | M39: Aseguramiento y prestación integral de servicios de salud (1906) | N39: =IFERROR(IF($M39="","",VLOOKUP($M39,Catálogo!$E$25:$F$93,2,FALSE)),"Introduzca un programa presupuestal válido") -> 1906 | O39: =IFERROR(IF($N39="","",VLOOKUP($N39,Catálogo!$F$25:$G$94,2,FALSE)),"Introduzca un programa presupuestal válido") -> A.2 - Salud | P39: CONTINÚE: El programa presupuestal y sector de inversión coinciden | Q39: Servicio de liquidación mensual de afiliados al Régimen Subsidiado durante la vigencia | R39: Secretaría de Salud | S39: Servicio de atención en salud a la población (1906004) | T39: =IFERROR(IF($S39="","",VLOOKUP($S39,Catálogo!$G$97:$H$2750,2,FALSE)),"Introduzca un producto válido") -> 1906004 | U39: CONTINÚE: El producto y programa presupuestal coinciden | V39: Personas afiliadas en servicio de salud (190600401) | W39: =IFERROR(IF($V39="","",VLOOKUP($V39,Catálogo!$B$3019:$C$9130,2,FALSE)),"Introduzca un indicador de producto válido") -> 190600401 | X39: CONTINÚE: El indicador de producto y el producto coinciden | Z39: Número | AA39: 2300 | AB39: Incremento | AC39: ODS 3. Salud y bienestar | AD39: 1.3. Desarrollo social: Salud | AE39: Asistencia / Salud | AK39: =+IFERROR(VLOOKUP(AJ39,Iniciativas!E:F,2,FALSE),"Seleccione el código de la iniciativa") -> Seleccione el código de la iniciativa | AL39: 400 | AM39: 500 | AN39: 700 | AO39: 700 | AP39: 0 | AQ39: 0 | AR39: 2219226463 | AS39: 0 | AT39: 0 | AU39: 0 | AV39: 0 | AW39: 0 | AX39: 0 | AY39: 0 | AZ39: 0 | BA39: 0 | BB39: 0 | BC39: 3100406674 | BD39: 0 | BE39: 0 | BF39: 5319633137 | BG39: 0 | BH39: 0 | BI39: 2219226463 | BJ39: 0 | BK39: 0 | BL39: 0 | BM39: 0 | BN39: 0 | BO39: 0 | BP39: 0 | BQ39: 0 | BR39: 0 | BS39: 0 | BT39: 3100406674 | BU39: 0 | BV39: 0 | BW39: 5319633137 | BX39: 0 | BY39: 0 | BZ39: 2219226463 | CA39: 0 | CB39: 0 | CC39: 0 | CD39: 0 | CE39: 0 | CF39: 0 | CG39: 0 | CH39: 0 | CI39: 0 | CJ39: 0 | CK39: 3100406674 | CL39: 0 | CM39: 0 | CN39: 5319633137 | CO39: 0 | CP39: 0 | CQ39: 2219226463 | CR39: 0 | CS39: 0 | CT39: 0 | CU39: 0 | CV39: 0 | CW39: 0 | CX39: 0 | CY39: 0 | CZ39: 0 | DA39: 0 | DB39: 3100406674 | DC39: 0 | DD39: 0 | DE39: 5319633137 | DF39: 2.127853255e+10
A40: 36 | B40: Transformación y Desarrollo Social con Equidad | C40: Cobertura de aseguramiento al SGSSS | D40: 89 | E40: Porcentaje | F40: 91.75 | J40: Salud y protección social | K40: =IFERROR(IF($J40="","",VLOOKUP($J40,Catálogo!$B$5:$C$21,2,FALSE)),"Introduzca un sector de inversión válido") -> 19 | L40: Rectoría Sanitaria fortalecida | M40: Aseguramiento y prestación integral de servicios de salud (1906) | N40: =IFERROR(IF($M40="","",VLOOKUP($M40,Catálogo!$E$25:$F$93,2,FALSE)),"Introduzca un programa presupuestal válido") -> 1906 | O40: =IFERROR(IF($N40="","",VLOOKUP($N40,Catálogo!$F$25:$G$94,2,FALSE)),"Introduzca un programa presupuestal válido") -> A.2 - Salud | P40: CONTINÚE: El programa presupuestal y sector de inversión coinciden | Q40: Servicio de promoción de afiliaciones al régimen contributivo del Sistema General de Seguridad Social de las personas con capacidad de pago | R40: Secretaría de Salud | S40: Servicio de promoción de afiliaciones al régimen contributivo del Sistema General de Seguridad Social de las personas con capacidad de pago (1906032) | T40: =IFERROR(IF($S40="","",VLOOKUP($S40,Catálogo!$G$97:$H$2750,2,FALSE)),"Introduzca un producto válido") -> 1906032 | U40: CONTINÚE: El producto y programa presupuestal coinciden | V40: Personas con capacidad de pago afiliadas (190603200) | W40: =IFERROR(IF($V40="","",VLOOKUP($V40,Catálogo!$B$3019:$C$9130,2,FALSE)),"Introduzca un indicador de producto válido") -> 190603200 | X40: CONTINÚE: El indicador de producto y el producto coinciden | Z40: Número | AA40: 120 | AB40: Incremento | AC40: ODS 3. Salud y bienestar | AD40: 1.3. Desarrollo social: Salud | AE40: Asistencia / Salud | AK40: =+IFERROR(VLOOKUP(AJ40,Iniciativas!E:F,2,FALSE),"Seleccione el código de la iniciativa") -> Seleccione el código de la iniciativa | AL40: 30 | AM40: 30 | AN40: 30 | AO40: 30 | AP40: 0 | AQ40: 0 | AR40: 2219226463 | AS40: 0 | AT40: 0 | AU40: 0 | AV40: 0 | AW40: 0 | AX40: 0 | AY40: 0 | AZ40: 0 | BA40: 0 | BB40: 0 | BC40: 3100406674 | BD40: 0 | BE40: 0 | BF40: 5319633137 | BG40: 0 | BH40: 0 | BI40: 2219226463 | BJ40: 0 | BK40: 0 | BL40: 0 | BM40: 0 | BN40: 0 | BO40: 0 | BP40: 0 | BQ40: 0 | BR40: 0 | BS40: 0 | BT40: 3100406674 | BU40: 0 | BV40: 0 | BW40: 5319633137 | BX40: 0 | BY40: 0 | BZ40: 2219226463 | CA40: 0 | CB40: 0 | CC40: 0 | CD40: 0 | CE40: 0 | CF40: 0 | CG40: 0 | CH40: 0 | CI40: 0 | CJ40: 0 | CK40: 3100406674 | CL40: 0 | CM40: 0 | CN40: 5319633137 | CO40: 0 | CP40: 0 | CQ40: 2219226463 | CR40: 0 | CS40: 0 | CT40: 0 | CU40: 0 | CV40: 0 | CW40: 0 | CX40: 0 | CY40: 0 | CZ40: 0 | DA40: 0 | DB40: 3100406674 | DC40: 0 | DD40: 0 | DE40: 5319633137 | DF40: 2.127853255e+10
A41: 37 | B41: Transformación y Desarrollo Social con Equidad | C41: Cobertura de aseguramiento al SGSSS | D41: 89 | E41: Porcentaje | F41: 91.75 | J41: Salud y protección social | K41: =IFERROR(IF($J41="","",VLOOKUP($J41,Catálogo!$B$5:$C$21,2,FALSE)),"Introduzca un sector de inversión válido") -> 19 | L41: Rectoría Sanitaria fortalecida | M41: Inspección, vigilancia y control (1903) | N41: =IFERROR(IF($M41="","",VLOOKUP($M41,Catálogo!$E$25:$F$93,2,FALSE)),"Introduzca un programa presupuestal válido") -> 1903 | O41: =IFERROR(IF($N41="","",VLOOKUP($N41,Catálogo!$F$25:$G$94,2,FALSE)),"Introduzca un programa presupuestal válido") -> A.2 - Salud | P41: CONTINÚE: El programa presupuestal y sector de inversión coinciden | Q41: Servicio de IVC al aseguramiento | R41: Secretaría de Salud | S41: Servicios de comunicación y divulgación en inspección, vigilancia y control (1903047) | T41: =IFERROR(IF($S41="","",VLOOKUP($S41,Catálogo!$G$97:$H$2750,2,FALSE)),"Introduzca un producto válido") -> 1903047 | U41: CONTINÚE: El producto y programa presupuestal coinciden | V41: Eventos de rendición de cuentas realizados (190304701) | W41: =IFERROR(IF($V41="","",VLOOKUP($V41,Catálogo!$B$3019:$C$9130,2,FALSE)),"Introduzca un indicador de producto válido") -> 190304701 | X41: CONTINÚE: El indicador de producto y el producto coinciden | Z41: Número | AA41: 12 | AB41: Incremento | AC41: ODS 3. Salud y bienestar | AD41: 1.3. Desarrollo social: Salud | AE41: Asistencia / Salud | AK41: =+IFERROR(VLOOKUP(AJ41,Iniciativas!E:F,2,FALSE),"Seleccione el código de la iniciativa") -> Seleccione el código de la iniciativa | AL41: 3 | AM41: 3 | AN41: 3 | AO41: 3 | AP41: 0 | AQ41: 0 | AR41: 2219226463 | AS41: 0 | AT41: 0 | AU41: 0 | AV41: 0 | AW41: 0 | AX41: 0 | AY41: 0 | AZ41: 0 | BA41: 0 | BB41: 0 | BC41: 3100406674 | BD41: 0 | BE41: 0 | BF41: 5319633137 | BG41: 0 | BH41: 0 | BI41: 2219226463 | BJ41: 0 | BK41: 0 | BL41: 0 | BM41: 0 | BN41: 0 | BO41: 0 | BP41: 0 | BQ41: 0 | BR41: 0 | BS41: 0 | BT41: 3100406674 | BU41: 0 | BV41: 0 | BW41: 5319633137 | BX41: 0 | BY41: 0 | BZ41: 2219226463 | CA41: 0 | CB41: 0 | CC41: 0 | CD41: 0 | CE41: 0 | CF41: 0 | CG41: 0 | CH41: 0 | CI41: 0 | CJ41: 0 | CK41: 3100406674 | CL41: 0 | CM41: 0 | CN41: 5319633137 | CO41: 0 | CP41: 0 | CQ41: 2219226463 | CR41: 0 | CS41: 0 | CT41: 0 | CU41: 0 | CV41: 0 | CW41: 0 | CX41: 0 | CY41: 0 | CZ41: 0 | DA41: 0 | DB41: 3100406674 | DC41: 0 | DD41: 0 | DE41: 5319633137 | DF41: 2.127853255e+10
A42: 38 | B42: Transformación y Desarrollo Social con Equidad | C42: Número de muertes maternas en El período | D42: 1 | E42: Número | F42: 0 | J42: Salud y protección social | K42: =IFERROR(IF($J42="","",VLOOKUP($J42,Catálogo!$B$5:$C$21,2,FALSE)),"Introduzca un sector de inversión válido") -> 19 | L42: Rectoría Sanitaria fortalecida | M42: Inspección, vigilancia y control (1903) | N42: =IFERROR(IF($M42="","",VLOOKUP($M42,Catálogo!$E$25:$F$93,2,FALSE)),"Introduzca un programa presupuestal válido") -> 1903 | O42: =IFERROR(IF($N42="","",VLOOKUP($N42,Catálogo!$F$25:$G$94,2,FALSE)),"Introduzca un programa presupuestal válido") -> A.2 - Salud | P42: CONTINÚE: El programa presupuestal y sector de inversión coinciden | Q42: Servicio de información de vigilancia epidemiológica | R42: Secretaría de Salud | S42: Servicio de información de vigilancia epidemiológica (1903031) | T42: =IFERROR(IF($S42="","",VLOOKUP($S42,Catálogo!$G$97:$H$2750,2,FALSE)),"Introduzca un producto válido") -> 1903031 | U42: CONTINÚE: El producto y programa presupuestal coinciden | V42: Informes de evento generados en la vigencia (190303100) | W42: =IFERROR(IF($V42="","",VLOOKUP($V42,Catálogo!$B$3019:$C$9130,2,FALSE)),"Introduzca un indicador de producto válido") -> 190303100 | X42: CONTINÚE: El indicador de producto y el producto coinciden | Z42: Número | AA42: ´1680 | AB42: Incremento | AC42: ODS 3. Salud y bienestar | AD42: 1.3. Desarrollo social: Salud | AE42: Asistencia / Salud | AK42: =+IFERROR(VLOOKUP(AJ42,Iniciativas!E:F,2,FALSE),"Seleccione el código de la iniciativa") -> Seleccione el código de la iniciativa | AL42: 500 | AM42: 700 | AN42: 200 | AO42: 280 | AP42: 0 | AQ42: 0 | AR42: 46971190.42 | AS42: 0 | AT42: 0 | AU42: 0 | AV42: 0 | AW42: 0 | AX42: 0 | AY42: 0 | AZ42: 0 | BA42: 0 | BB42: 0 | BC42: 0 | BD42: 0 | BE42: 0 | BF42: 46971190.42 | BG42: 0 | BH42: 0 | BI42: 46971190.42 | BJ42: 0 | BK42: 0 | BL42: 0 | BM42: 0 | BN42: 0 | BO42: 0 | BP42: 0 | BQ42: 0 | BR42: 0 | BS42: 0 | BT42: 0 | BU42: 0 | BV42: 0 | BW42: 46971190.42 | BX42: 0 | BY42: 0 | BZ42: 46971190.42 | CA42: 0 | CB42: 0 | CC42: 0 | CD42: 0 | CE42: 0 | CF42: 0 | CG42: 0 | CH42: 0 | CI42: 0 | CJ42: 0 | CK42: 0 | CL42: 0 | CM42: 0 | CN42: 46971190.42 | CO42: 0 | CP42: 0 | CQ42: 46971190.42 | CR42: 0 | CS42: 0 | CT42: 0 | CU42: 0 | CV42: 0 | CW42: 0 | CX42: 0 | CY42: 0 | CZ42: 0 | DA42: 0 | DB42: 0 | DC42: 0 | DD42: 0 | DE42: 46971190.42 | DF42: 187884761.7
A43: 39 | B43: Transformación y Desarrollo Social con Equidad | C43: Indice de satisfacción de los usuarios en salud | D43: SD | E43: Porcentaje | F43: 95 | J43: Salud y protección social | K43: =IFERROR(IF($J43="","",VLOOKUP($J43,Catálogo!$B$5:$C$21,2,FALSE)),"Introduzca un sector de inversión válido") -> 19 | L43: Rectoría Sanitaria fortalecida | M43: Inspección, vigilancia y control (1903) | N43: =IFERROR(IF($M43="","",VLOOKUP($M43,Catálogo!$E$25:$F$93,2,FALSE)),"Introduzca un programa presupuestal válido") -> 1903 | O43: =IFERROR(IF($N43="","",VLOOKUP($N43,Catálogo!$F$25:$G$94,2,FALSE)),"Introduzca un programa presupuestal válido") -> A.2 - Salud | P43: CONTINÚE: El programa presupuestal y sector de inversión coinciden | Q43: Servicio de promoción de la participación social en materia de salud y de seguridad social en salud | R43: Secretaría de Salud | S43: Servicio de implementación de estrategias para el fortalecimiento del control social en salud (1903025) | T43: =IFERROR(IF($S43="","",VLOOKUP($S43,Catálogo!$G$97:$H$2750,2,FALSE)),"Introduzca un producto válido") -> 1903025 | U43: CONTINÚE: El producto y programa presupuestal coinciden | V43: estrategias para el fortalecimiento del control social en salud implementadas (190302500) | W43: =IFERROR(IF($V43="","",VLOOKUP($V43,Catálogo!$B$3019:$C$9130,2,FALSE)),"Introduzca un indicador de producto válido") -> 190302500 | X43: CONTINÚE: El indicador de producto y el producto coinciden | Z43: Número | AA43: 4 | AB43: Incremento | AC43: ODS 3. Salud y bienestar | AD43: 1.3. Desarrollo social: Salud | AE43: Asistencia / Salud | AK43: =+IFERROR(VLOOKUP(AJ43,Iniciativas!E:F,2,FALSE),"Seleccione el código de la iniciativa") -> Seleccione el código de la iniciativa | AL43: 1 | AM43: 1 | AN43: 1 | AO43: 1 | AP43: 0 | AQ43: 0 | AR43: 25000000 | AS43: 0 | AT43: 0 | AU43: 0 | AV43: 0 | AW43: 0 | AX43: 0 | AY43: 0 | AZ43: 0 | BA43: 0 | BB43: 0 | BC43: 0 | BD43: 0 | BE43: 0 | BF43: 25000000 | BG43: 0 | BH43: 0 | BI43: 25000000 | BJ43: 0 | BK43: 0 | BL43: 0 | BM43: 0 | BN43: 0 | BO43: 0 | BP43: 0 | BQ43: 0 | BR43: 0 | BS43: 0 | BT43: 0 | BU43: 0 | BV43: 0 | BW43: 25000000 | BX43: 0 | BY43: 0 | BZ43: 25000000 | CA43: 0 | CB43: 0 | CC43: 0 | CD43: 0 | CE43: 0 | CF43: 0 | CG43: 0 | CH43: 0 | CI43: 0 | CJ43: 0 | CK43: 0 | CL43: 0 | CM43: 0 | CN43: 25000000 | CO43: 0 | CP43: 0 | CQ43: 25000000 | CR43: 0 | CS43: 0 | CT43: 0 | CU43: 0 | CV43: 0 | CW43: 0 | CX43: 0 | CY43: 0 | CZ43: 0 | DA43: 0 | DB43: 0 | DC43: 0 | DD43: 0 | DE43: 25000000 | DF43: 100000000
A44: 40 | B44: Transformación y Desarrollo Social con Equidad | C44: Indice de satisfacción de los usuarios en salud | D44: SD | E44: Porcentaje | F44: 95 | J44: Salud y protección social | K44: =IFERROR(IF($J44="","",VLOOKUP($J44,Catálogo!$B$5:$C$21,2,FALSE)),"Introduzca un sector de inversión válido") -> 19 | L44: Rectoría Sanitaria fortalecida | M44: Inspección, vigilancia y control (1903) | N44: =IFERROR(IF($M44="","",VLOOKUP($M44,Catálogo!$E$25:$F$93,2,FALSE)),"Introduzca un programa presupuestal válido") -> 1903 | O44: =IFERROR(IF($N44="","",VLOOKUP($N44,Catálogo!$F$25:$G$94,2,FALSE)),"Introduzca un programa presupuestal válido") -> A.2 - Salud | P44: CONTINÚE: El programa presupuestal y sector de inversión coinciden | Q44: Servicio de implementación de estrategias para el fortalecimiento del control social en salud | R44: Secretaría de Salud | S44: Servicio de implementación de estrategias para el fortalecimiento del control social en salud (1903025) | T44: =IFERROR(IF($S44="","",VLOOKUP($S44,Catálogo!$G$97:$H$2750,2,FALSE)),"Introduzca un producto válido") -> 1903025 | U44: CONTINÚE: El producto y programa presupuestal coinciden | V44: estrategias para el fortalecimiento del control social en salud implementadas (190302500) | W44: =IFERROR(IF($V44="","",VLOOKUP($V44,Catálogo!$B$3019:$C$9130,2,FALSE)),"Introduzca un indicador de producto válido") -> 190302500 | X44: CONTINÚE: El indicador de producto y el producto coinciden | Z44: Número | AA44: 4 | AB44: Incremento | AC44: ODS 3. Salud y bienestar | AD44: 1.3. Desarrollo social: Salud | AE44: Asistencia / Salud | AK44: =+IFERROR(VLOOKUP(AJ44,Iniciativas!E:F,2,FALSE),"Seleccione el código de la iniciativa") -> Seleccione el código de la iniciativa | AL44: 1 | AM44: 1 | AN44: 1 | AO44: 1 | AP44: 0 | AQ44: 0 | AR44: 42235595.2 | AS44: 0 | AT44: 0 | AU44: 0 | AV44: 0 | AW44: 0 | AX44: 0 | AY44: 0 | AZ44: 0 | BA44: 0 | BB44: 0 | BC44: 0 | BD44: 0 | BE44: 0 | BF44: 42235595.2 | BG44: 0 | BH44: 0 | BI44: 42235595.2 | BJ44: 0 | BK44: 0 | BL44: 0 | BM44: 0 | BN44: 0 | BO44: 0 | BP44: 0 | BQ44: 0 | BR44: 0 | BS44: 0 | BT44: 0 | BU44: 0 | BV44: 0 | BW44: 42235595.2 | BX44: 0 | BY44: 0 | BZ44: 42235595.2 | CA44: 0 | CB44: 0 | CC44: 0 | CD44: 0 | CE44: 0 | CF44: 0 | CG44: 0 | CH44: 0 | CI44: 0 | CJ44: 0 | CK44: 0 | CL44: 0 | CM44: 0 | CN44: 42235595.2 | CO44: 0 | CP44: 0 | CQ44: 42235595.2 | CR44: 0 | CS44: 0 | CT44: 0 | CU44: 0 | CV44: 0 | CW44: 0 | CX44: 0 | CY44: 0 | CZ44: 0 | DA44: 0 | DB44: 0 | DC44: 0 | DD44: 0 | DE44: 42235595.2 | DF44: 168942380.8
A45: 41 | B45: Transformación y Desarrollo Social con Equidad | C45: Indice de satisfacción de los usuarios en salud | D45: SD | E45: Porcentaje | F45: 95 | J45: Salud y protección social | K45: =IFERROR(IF($J45="","",VLOOKUP($J45,Catálogo!$B$5:$C$21,2,FALSE)),"Introduzca un sector de inversión válido") -> 19 | L45: Rectoría Sanitaria fortalecida | M45: Inspección, vigilancia y control (1903) | N45: =IFERROR(IF($M45="","",VLOOKUP($M45,Catálogo!$E$25:$F$93,2,FALSE)),"Introduzca un programa presupuestal válido") -> 1903 | O45: =IFERROR(IF($N45="","",VLOOKUP($N45,Catálogo!$F$25:$G$94,2,FALSE)),"Introduzca un programa presupuestal válido") -> A.2 - Salud | P45: CONTINÚE: El programa presupuestal y sector de inversión coinciden | Q45: Servicio de gestión de peticiones, quejas, reclamos y denuncias | R45: Secretaría de Salud | S45: Servicio de gestión de peticiones, quejas, reclamos y denuncias (1903028) | T45: =IFERROR(IF($S45="","",VLOOKUP($S45,Catálogo!$G$97:$H$2750,2,FALSE)),"Introduzca un producto válido") -> 1903028 | U45: CONTINÚE: El producto y programa presupuestal coinciden | V45: Preguntas Quejas Reclamos y Denuncias Gestionadas (190302800) | W45: =IFERROR(IF($V45="","",VLOOKUP($V45,Catálogo!$B$3019:$C$9130,2,FALSE)),"Introduzca un indicador de producto válido") -> 190302800 | X45: CONTINÚE: El indicador de producto y el producto coinciden | Z45: Número | AA45: 1440 | AB45: Incremento | AC45: ODS 3. Salud y bienestar | AD45: 1.3. Desarrollo social: Salud | AE45: Asistencia / Salud | AK45: =+IFERROR(VLOOKUP(AJ45,Iniciativas!E:F,2,FALSE),"Seleccione el código de la iniciativa") -> Seleccione el código de la iniciativa | AL45: 180 | AM45: 400 | AN45: 450 | AO45: 410 | AP45: 0 | AQ45: 0 | AR45: 42235595.2 | AS45: 0 | AT45: 0 | AU45: 0 | AV45: 0 | AW45: 0 | AX45: 0 | AY45: 0 | AZ45: 0 | BA45: 0 | BB45: 0 | BC45: 0 | BD45: 0 | BE45: 0 | BF45: 42235595.2 | BG45: 0 | BH45: 0 | BI45: 42235595.2 | BJ45: 0 | BK45: 0 | BL45: 0 | BM45: 0 | BN45: 0 | BO45: 0 | BP45: 0 | BQ45: 0 | BR45: 0 | BS45: 0 | BT45: 0 | BU45: 0 | BV45: 0 | BW45: 42235595.2 | BX45: 0 | BY45: 0 | BZ45: 42235595.2 | CA45: 0 | CB45: 0 | CC45: 0 | CD45: 0 | CE45: 0 | CF45: 0 | CG45: 0 | CH45: 0 | CI45: 0 | CJ45: 0 | CK45: 0 | CL45: 0 | CM45: 0 | CN45: 42235595.2 | CO45: 0 | CP45: 0 | CQ45: 42235595.2 | CR45: 0 | CS45: 0 | CT45: 0 | CU45: 0 | CV45: 0 | CW45: 0 | CX45: 0 | CY45: 0 | CZ45: 0 | DA45: 0 | DB45: 0 | DC45: 0 | DD45: 0 | DE45: 42235595.2 | DF45: 168942380.8
A46: 42 | B46: Transformación y Desarrollo Social con Equidad | C46: PAMEC Implementado | D46: 0 | E46: Porcentaje | F46: 100 | J46: Salud y protección social | K46: =IFERROR(IF($J46="","",VLOOKUP($J46,Catálogo!$B$5:$C$21,2,FALSE)),"Introduzca un sector de inversión válido") -> 19 | L46: Rectoría Sanitaria fortalecida | M46: Inspección, vigilancia y control (1903) | N46: =IFERROR(IF($M46="","",VLOOKUP($M46,Catálogo!$E$25:$F$93,2,FALSE)),"Introduzca un programa presupuestal válido") -> 1903 | O46: =IFERROR(IF($N46="","",VLOOKUP($N46,Catálogo!$F$25:$G$94,2,FALSE)),"Introduzca un programa presupuestal válido") -> A.2 - Salud | P46: CONTINÚE: El programa presupuestal y sector de inversión coinciden | Q46: Monitoreo y seguimiento al Plan de Mejoramiento para la calidad | R46: Secretaría de Salud | S46: Servicio de auditoría y visitas inspectivas (1903016) | T46: =IFERROR(IF($S46="","",VLOOKUP($S46,Catálogo!$G$97:$H$2750,2,FALSE)),"Introduzca un producto válido") -> 1903016 | U46: CONTINÚE: El producto y programa presupuestal coinciden | V46: auditorías y visitas inspectivas realizadas (190301600) | W46: =IFERROR(IF($V46="","",VLOOKUP($V46,Catálogo!$B$3019:$C$9130,2,FALSE)),"Introduzca un indicador de producto válido") -> 190301600 | X46: CONTINÚE: El indicador de producto y el producto coinciden | Z46: Número | AA46: 4 | AB46: Incremento | AC46: ODS 3. Salud y bienestar | AD46: 1.3. Desarrollo social: Salud | AE46: Asistencia / Salud | AK46: =+IFERROR(VLOOKUP(AJ46,Iniciativas!E:F,2,FALSE),"Seleccione el código de la iniciativa") -> Seleccione el código de la iniciativa | AL46: 1 | AM46: 1 | AN46: 1 | AO46: 1 | AP46: 0 | AQ46: 0 | AR46: 42235595.2 | AS46: 0 | AT46: 0 | AU46: 0 | AV46: 0 | AW46: 0 | AX46: 0 | AY46: 0 | AZ46: 0 | BA46: 0 | BB46: 0 | BC46: 0 | BD46: 0 | BE46: 0 | BF46: 42235595.2 | BG46: 0 | BH46: 0 | BI46: 42235595.2 | BJ46: 0 | BK46: 0 | BL46: 0 | BM46: 0 | BN46: 0 | BO46: 0 | BP46: 0 | BQ46: 0 | BR46: 0 | BS46: 0 | BT46: 0 | BU46: 0 | BV46: 0 | BW46: 42235595.2 | BX46: 0 | BY46: 0 | BZ46: 42235595.2 | CA46: 0 | CB46: 0 | CC46: 0 | CD46: 0 | CE46: 0 | CF46: 0 | CG46: 0 | CH46: 0 | CI46: 0 | CJ46: 0 | CK46: 0 | CL46: 0 | CM46: 0 | CN46: 42235595.2 | CO46: 0 | CP46: 0 | CQ46: 42235595.2 | CR46: 0 | CS46: 0 | CT46: 0 | CU46: 0 | CV46: 0 | CW46: 0 | CX46: 0 | CY46: 0 | CZ46: 0 | DA46: 0 | DB46: 0 | DC46: 0 | DD46: 0 | DE46: 42235595.2 | DF46: 168942380.8
A47: 43 | B47: Transformación y Desarrollo Social con Equidad | C47: Índice de desempeño del Plan de Salud Pública de Intervenciones colectivas (promedio %ejecución Plan de Intervenciones colectivas de salud pública PIC- Atención primaria en salud -APS) | D47: 90 | E47: Porcentaje | F47: 100 | J47: Salud y protección social | K47: =IFERROR(IF($J47="","",VLOOKUP($J47,Catálogo!$B$5:$C$21,2,FALSE)),"Introduzca un sector de inversión válido") -> 19 | L47: Rectoría Sanitaria fortalecida | M47: Inspección, vigilancia y control (1903) | N47: =IFERROR(IF($M47="","",VLOOKUP($M47,Catálogo!$E$25:$F$93,2,FALSE)),"Introduzca un programa presupuestal válido") -> 1903 | O47: =IFERROR(IF($N47="","",VLOOKUP($N47,Catálogo!$F$25:$G$94,2,FALSE)),"Introduzca un programa presupuestal válido") -> A.2 - Salud | P47: CONTINÚE: El programa presupuestal y sector de inversión coinciden | Q47: Servicio auditoria técnica y financiera de las intervenciones colectivas | R47: Secretaría de Salud | S47: Servicio de inspección, vigilancia y control (1903011) | T47: =IFERROR(IF($S47="","",VLOOKUP($S47,Catálogo!$G$97:$H$2750,2,FALSE)),"Introduzca un producto válido") -> 1903011 | U47: CONTINÚE: El producto y programa presupuestal coinciden | V47: Informes de los resultados obtenidos en la vigilancia sanitaria (190301101) | W47: =IFERROR(IF($V47="","",VLOOKUP($V47,Catálogo!$B$3019:$C$9130,2,FALSE)),"Introduzca un indicador de producto válido") -> 190301101 | X47: CONTINÚE: El indicador de producto y el producto coinciden | Z47: Número | AA47: 36 | AB47: Incremento | AC47: ODS 3. Salud y bienestar | AD47: 1.3. Desarrollo social: Salud | AE47: Asistencia / Salud | AK47: =+IFERROR(VLOOKUP(AJ47,Iniciativas!E:F,2,FALSE),"Seleccione el código de la iniciativa") -> Seleccione el código de la iniciativa | AL47: 9 | AM47: 9 | AN47: 9 | AO47: 9 | AP47: 0 | AQ47: 0 | AR47: 42235595.2 | AS47: 0 | AT47: 0 | AU47: 0 | AV47: 0 | AW47: 0 | AX47: 0 | AY47: 0 | AZ47: 0 | BA47: 0 | BB47: 0 | BC47: 0 | BD47: 0 | BE47: 0 | BF47: 42235595.2 | BG47: 0 | BH47: 0 | BI47: 42235595.2 | BJ47: 0 | BK47: 0 | BL47: 0 | BM47: 0 | BN47: 0 | BO47: 0 | BP47: 0 | BQ47: 0 | BR47: 0 | BS47: 0 | BT47: 0 | BU47: 0 | BV47: 0 | BW47: 42235595.2 | BX47: 0 | BY47: 0 | BZ47: 42235595.2 | CA47: 0 | CB47: 0 | CC47: 0 | CD47: 0 | CE47: 0 | CF47: 0 | CG47: 0 | CH47: 0 | CI47: 0 | CJ47: 0 | CK47: 0 | CL47: 0 | CM47: 0 | CN47: 42235595.2 | CO47: 0 | CP47: 0 | CQ47: 42235595.2 | CR47: 0 | CS47: 0 | CT47: 0 | CU47: 0 | CV47: 0 | CW47: 0 | CX47: 0 | CY47: 0 | CZ47: 0 | DA47: 0 | DB47: 0 | DC47: 0 | DD47: 0 | DE47: 42235595.2 | DF47: 168942380.8
A48: 44 | B48: Transformación y Desarrollo Social con Equidad | C48: Cobertura de Acueducto | D48: 55.05 | E48: Porcentaje | F48: 70 | J48: Vivienda, ciudad y territorio | K48: =IFERROR(IF($J48="","",VLOOKUP($J48,Catálogo!$B$5:$C$21,2,FALSE)),"Introduzca un sector de inversión válido") -> 40 | L48: Juntos avanzamos por el acceso, continuidad y calidad en la prestación de servcios públicos | M48: Acceso de la población a los servicios de agua potable y saneamiento básico (4003) | N48: =IFERROR(IF($M48="","",VLOOKUP($M48,Catálogo!$E$25:$F$93,2,FALSE)),"Introduzca un programa presupuestal válido") -> 4003 | O48: =IFERROR(IF($N48="","",VLOOKUP($N48,Catálogo!$F$25:$G$94,2,FALSE)),"Introduzca un programa presupuestal válido") -> A.3 - Agua potable y saneamiento básico (sin incluir proyectos de vis) | P48: CONTINÚE: El programa presupuestal y sector de inversión coinciden | Q48: Acueductos construidos | R48: Secretaría de Planeación | S48: Acueductos construidos (4003015) | T48: =IFERROR(IF($S48="","",VLOOKUP($S48,Catálogo!$G$97:$H$2750,2,FALSE)),"Introduzca un producto válido") -> 4003015 | U48: CONTINÚE: El producto y programa presupuestal coinciden | V48: Plantas de tratamiento de agua potable construidas (400301503) | W48: =IFERROR(IF($V48="","",VLOOKUP($V48,Catálogo!$B$3019:$C$9130,2,FALSE)),"Introduzca un indicador de producto válido") -> 400301503 | X48: CONTINÚE: El indicador de producto y el producto coinciden | Z48: Número | AA48: 1 | AB48: Incremento | AC48: ODS 6. Agua limpia y saneamiento | AD48: 1.5. Desarrollo social: Vivienda y Agua Potable | AE48: Asistencia / Vivienda (Solo víctimas desplazamiento) | AK48: =+IFERROR(VLOOKUP(AJ48,Iniciativas!E:F,2,FALSE),"Seleccione el código de la iniciativa") -> Seleccione el código de la iniciativa | AL48: 0 | AM48: 1 | AN48: 0 | AO48: 0 | AP48: 0 | AQ48: 0 | AR48: 0 | AS48: 0 | AT48: 0 | AU48: 0 | AV48: 0 | AW48: 0 | AX48: 0 | AY48: 0 | AZ48: 0 | BA48: 0 | BB48: 0 | BC48: 0 | BD48: 0 | BE48: 0 | BF48: 0 | BG48: 0 | BH48: 0 | BI48: 0 | BJ48: 1050000000 | BK48: 0 | BL48: 0 | BM48: 0 | BN48: 0 | BO48: 0 | BP48: 0 | BQ48: 0 | BR48: 0 | BS48: 0 | BT48: 0 | BU48: 0 | BV48: 0 | BW48: 1050000000 | BX48: 0 | BY48: 0 | BZ48: 0 | CA48: 0 | CB48: 0 | CC48: 0 | CD48: 0 | CE48: 0 | CF48: 0 | CG48: 0 | CH48: 0 | CI48: 0 | CJ48: 0 | CK48: 0 | CL48: 0 | CM48: 0 | CN48: 0 | CO48: 0 | CP48: 0 | CQ48: 0 | CR48: 0 | CS48: 0 | CT48: 0 | CU48: 0 | CV48: 0 | CW48: 0 | CX48: 0 | CY48: 0 | CZ48: 0 | DA48: 0 | DB48: 0 | DC48: 0 | DD48: 0 | DE48: 0 | DF48: 1050000000
A49: 45 | B49: Transformación y Desarrollo Social con Equidad | C49: Cobertura de Acueducto | D49: 55.05 | E49: Porcentaje | F49: 70 | J49: Vivienda, ciudad y territorio | K49: =IFERROR(IF($J49="","",VLOOKUP($J49,Catálogo!$B$5:$C$21,2,FALSE)),"Introduzca un sector de inversión válido") -> 40 | L49: Juntos avanzamos por el acceso, continuidad y calidad en la prestación de servcios públicos | M49: Acceso de la población a los servicios de agua potable y saneamiento básico (4003) | N49: =IFERROR(IF($M49="","",VLOOKUP($M49,Catálogo!$E$25:$F$93,2,FALSE)),"Introduzca un programa presupuestal válido") -> 4003 | O49: =IFERROR(IF($N49="","",VLOOKUP($N49,Catálogo!$F$25:$G$94,2,FALSE)),"Introduzca un programa presupuestal válido") -> A.3 - Agua potable y saneamiento básico (sin incluir proyectos de vis) | P49: CONTINÚE: El programa presupuestal y sector de inversión coinciden | Q49: Acueductos construidos | R49: Secretaría de Planeación | S49: Acueductos construidos (4003015) | T49: =IFERROR(IF($S49="","",VLOOKUP($S49,Catálogo!$G$97:$H$2750,2,FALSE)),"Introduzca un producto válido") -> 4003015 | U49: CONTINÚE: El producto y programa presupuestal coinciden | V49: Red de distribución construida (400301504) | W49: =IFERROR(IF($V49="","",VLOOKUP($V49,Catálogo!$B$3019:$C$9130,2,FALSE)),"Introduzca un indicador de producto válido") -> 400301504 | X49: CONTINÚE: El indicador de producto y el producto coinciden | Z49: Metro Lineal | AA49: =3163+1000+3163 -> 7326 | AB49: Incremento | AC49: ODS 6. Agua limpia y saneamiento | AD49: 1.5. Desarrollo social: Vivienda y Agua Potable | AE49: Asistencia / Vivienda (Solo víctimas desplazamiento) | AK49: =+IFERROR(VLOOKUP(AJ49,Iniciativas!E:F,2,FALSE),"Seleccione el código de la iniciativa") -> Seleccione el código de la iniciativa | AL49: 0 | AM49: 0 | AN49: 3663 | AO49: 3663 | AP49: 0 | AQ49: 0 | AR49: 0 | AS49: 0 | AT49: 0 | AU49: 0 | AV49: 0 | AW49: 0 | AX49: 0 | AY49: 0 | AZ49: 0 | BA49: 0 | BB49: 0 | BC49: 0 | BD49: 0 | BE49: 0 | BF49: 0 | BG49: 0 | BH49: 0 | BI49: 0 | BJ49: 0 | BK49: 0 | BL49: 0 | BM49: 0 | BN49: 0 | BO49: 0 | BP49: 0 | BQ49: 0 | BR49: 0 | BS49: 0 | BT49: 0 | BU49: 0 | BV49: 0 | BW49: 0 | BX49: 0 | BY49: 0 | BZ49: 0 | CA49: 263231069.3 | CB49: 0 | CC49: 0 | CD49: 0 | CE49: 0 | CF49: 0 | CG49: 0 | CH49: 0 | CI49: 322722316.5 | CJ49: 0 | CK49: 0 | CL49: 0 | CM49: 730201960.5 | CN49: =+BX49+BY49+BZ49+CA49+CB49+CC49+CD49+CE49+CF49+CG49+CH49+CI49+CJ49+CK49+CL49+DD49 -> 1316155346 | CO49: 0 | CP49: 0 | CQ49: 0 | CR49: 263231069.3 | CS49: 0 | CT49: 0 | CU49: 0 | CV49: 0 | CW49: 0 | CX49: 0 | CY49: 0 | CZ49: 322722316.5 | DA49: 0 | DB49: 0 | DC49: 0 | DD49: 730201960.5 | DE49: =+CO49+CP49+CQ49+CR49+CS49+CT49+CU49+CV49+CW49+CX49+CY49+CZ49+DA49+DB49+DC49+DD49 -> 1316155346 | DF49: 2632310693
A50: 46 | B50: Transformación y Desarrollo Social con Equidad | C50: Cobertura de Acueducto | D50: 55.05 | E50: Porcentaje | F50: 70 | J50: Vivienda, ciudad y territorio | K50: =IFERROR(IF($J50="","",VLOOKUP($J50,Catálogo!$B$5:$C$21,2,FALSE)),"Introduzca un sector de inversión válido") -> 40 | L50: Juntos avanzamos por el acceso, continuidad y calidad en la prestación de servcios públicos | M50: Acceso de la población a los servicios de agua potable y saneamiento básico (4003) | N50: =IFERROR(IF($M50="","",VLOOKUP($M50,Catálogo!$E$25:$F$93,2,FALSE)),"Introduzca un programa presupuestal válido") -> 4003 | O50: =IFERROR(IF($N50="","",VLOOKUP($N50,Catálogo!$F$25:$G$94,2,FALSE)),"Introduzca un programa presupuestal válido") -> A.3 - Agua potable y saneamiento básico (sin incluir proyectos de vis) | P50: CONTINÚE: El programa presupuestal y sector de inversión coinciden | Q50: Acueductos optimizados | R50: Secretaría de Planeación | S50: Acueductos optimizados (4003017) | T50: =IFERROR(IF($S50="","",VLOOKUP($S50,Catálogo!$G$97:$H$2750,2,FALSE)),"Introduzca un producto válido") -> 4003017 | U50: CONTINÚE: El producto y programa presupuestal coinciden | V50: Red de distribución optimizada (400301703) | W50: =IFERROR(IF($V50="","",VLOOKUP($V50,Catálogo!$B$3019:$C$9130,2,FALSE)),"Introduzca un indicador de producto válido") -> 400301703 | X50: CONTINÚE: El indicador de producto y el producto coinciden | Z50: Metro Lineal | AA50: 2100 | AB50: Incremento | AC50: ODS 6. Agua limpia y saneamiento | AD50: 1.5. Desarrollo social: Vivienda y Agua Potable | AE50: Asistencia / Vivienda (Solo víctimas desplazamiento) | AK50: =+IFERROR(VLOOKUP(AJ50,Iniciativas!E:F,2,FALSE),"Seleccione el código de la iniciativa") -> Seleccione el código de la iniciativa | AL50: 306 | AM50: 300 | AN50: 744 | AO50: 750 | AP50: 0 | AQ50: 0 | AR50: 0 | AS50: 94500000 | AT50: 0 | AU50: 0 | AV50: 0 | AW50: 0 | AX50: 0 | AY50: 0 | AZ50: 0 | BA50: 0 | BB50: 220500000 | BC50: 0 | BD50: 0 | BE50: 0 | BF50: 315000000 | BG50: 0 | BH50: 0 | BI50: 0 | BJ50: 94500000 | BK50: 0 | BL50: 0 | BM50: 0 | BN50: 0 | BO50: 0 | BP50: 0 | BQ50: 0 | BR50: 0 | BS50: 220500000 | BT50: 0 | BU50: 0 | BV50: 0 | BW50: 315000000 | BX50: 0 | BY50: 0 | BZ50: 0 | CA50: 94500000 | CB50: 0 | CC50: 0 | CD50: 0 | CE50: 0 | CF50: 0 | CG50: 0 | CH50: 0 | CI50: 0 | CJ50: 220500000 | CK50: 0 | CL50: 0 | CM50: 0 | CN50: 315000000 | CO50: 0 | CP50: 0 | CQ50: 0 | CR50: 94500000 | CS50: 0 | CT50: 0 | CU50: 0 | CV50: 0 | CW50: 0 | CX50: 0 | CY50: 0 | CZ50: 0 | DA50: 220500000 | DB50: 0 | DC50: 0 | DD50: 0 | DE50: 315000000 | DF50: 1260000000
A51: 47 | B51: Transformación y Desarrollo Social con Equidad | C51: Cobertura de Acueducto | D51: 55.05 | E51: Porcentaje | F51: 70 | J51: Vivienda, ciudad y territorio | K51: =IFERROR(IF($J51="","",VLOOKUP($J51,Catálogo!$B$5:$C$21,2,FALSE)),"Introduzca un sector de inversión válido") -> 40 | L51: Juntos avanzamos por el acceso, continuidad y calidad en la prestación de servcios públicos | M51: Acceso de la población a los servicios de agua potable y saneamiento básico (4003) | N51: =IFERROR(IF($M51="","",VLOOKUP($M51,Catálogo!$E$25:$F$93,2,FALSE)),"Introduzca un programa presupuestal válido") -> 4003 | O51: =IFERROR(IF($N51="","",VLOOKUP($N51,Catálogo!$F$25:$G$94,2,FALSE)),"Introduzca un programa presupuestal válido") -> A.3 - Agua potable y saneamiento básico (sin incluir proyectos de vis) | P51: CONTINÚE: El programa presupuestal y sector de inversión coinciden | Q51: Servicio de apoyo financiero para subsidios al consumo en los servicios públicos domiciliarios | R51: Secretaría de Planeación | S51: Servicio de apoyo financiero para subsidios al consumo en los servicios públicos domiciliarios (4003047) | T51: =IFERROR(IF($S51="","",VLOOKUP($S51,Catálogo!$G$97:$H$2750,2,FALSE)),"Introduzca un producto válido") -> 4003047 | U51: CONTINÚE: El producto y programa presupuestal coinciden | V51: Usuarios beneficiados con subsidios al consumo (400304700) | W51: =IFERROR(IF($V51="","",VLOOKUP($V51,Catálogo!$B$3019:$C$9130,2,FALSE)),"Introduzca un indicador de producto válido") -> 400304700 | X51: CONTINÚE: El indicador de producto y el producto coinciden | Z51: Número | AA51: 4592 | AB51: Mantenimiento | AC51: ODS 6. Agua limpia y saneamiento | AD51: 1.5. Desarrollo social: Vivienda y Agua Potable | AE51: Asistencia / Vivienda (Solo víctimas desplazamiento) | AK51: =+IFERROR(VLOOKUP(AJ51,Iniciativas!E:F,2,FALSE),"Seleccione el código de la iniciativa") -> Seleccione el código de la iniciativa | AL51: 4592 | AM51: 4592 | AN51: 4592 | AO51: 4592 | AP51: 0 | AQ51: 0 | AR51: 0 | AS51: 498232000 | AT51: 0 | AU51: 0 | AV51: 0 | AW51: 0 | AX51: 0 | AY51: 0 | AZ51: 0 | BA51: 0 | BB51: 0 | BC51: 0 | BD51: 0 | BE51: 0 | BF51: 498232000 | BG51: 0 | BH51: 0 | BI51: 0 | BJ51: 498232000 | BK51: 0 | BL51: 0 | BM51: 0 | BN51: 0 | BO51: 0 | BP51: 0 | BQ51: 0 | BR51: 0 | BS51: 0 | BT51: 0 | BU51: 0 | BV51: 0 | BW51: 498232000 | BX51: 0 | BY51: 0 | BZ51: 0 | CA51: 498232000 | CB51: 0 | CC51: 0 | CD51: 0 | CE51: 0 | CF51: 0 | CG51: 0 | CH51: 0 | CI51: 0 | CJ51: 0 | CK51: 0 | CL51: 0 | CM51: 0 | CN51: 498232000 | CO51: 0 | CP51: 0 | CQ51: 0 | CR51: 498232000 | CS51: 0 | CT51: 0 | CU51: 0 | CV51: 0 | CW51: 0 | CX51: 0 | CY51: 0 | CZ51: 0 | DA51: 0 | DB51: 0 | DC51: 0 | DD51: 0 | DE51: 498232000 | DF51: 1992928000
A52: 48 | B52: Transformación y Desarrollo Social con Equidad | C52: Cobertura de Acueducto | D52: 55.05 | E52: Porcentaje | F52: 70 | J52: Vivienda, ciudad y territorio | K52: =IFERROR(IF($J52="","",VLOOKUP($J52,Catálogo!$B$5:$C$21,2,FALSE)),"Introduzca un sector de inversión válido") -> 40 | L52: Juntos avanzamos por el acceso, continuidad y calidad en la prestación de servcios públicos | M52: Acceso de la población a los servicios de agua potable y saneamiento básico (4003) | N52: =IFERROR(IF($M52="","",VLOOKUP($M52,Catálogo!$E$25:$F$93,2,FALSE)),"Introduzca un programa presupuestal válido") -> 4003 | O52: =IFERROR(IF($N52="","",VLOOKUP($N52,Catálogo!$F$25:$G$94,2,FALSE)),"Introduzca un programa presupuestal válido") -> A.3 - Agua potable y saneamiento básico (sin incluir proyectos de vis) | P52: CONTINÚE: El programa presupuestal y sector de inversión coinciden | Q52: Estudios de pre inversión e inversión | R52: Secretaría de Planeación | S52: Estudios de pre inversión e inversión (4003042) | T52: =IFERROR(IF($S52="","",VLOOKUP($S52,Catálogo!$G$97:$H$2750,2,FALSE)),"Introduzca un producto válido") -> 4003042 | U52: CONTINÚE: El producto y programa presupuestal coinciden | V52: Estudios o diseños realizados (400304200) | W52: =IFERROR(IF($V52="","",VLOOKUP($V52,Catálogo!$B$3019:$C$9130,2,FALSE)),"Introduzca un indicador de producto válido") -> 400304200 | X52: CONTINÚE: El indicador de producto y el producto coinciden | Z52: Número | AA52: 2 | AB52: Incremento | AC52: ODS 6. Agua limpia y saneamiento | AD52: 1.5. Desarrollo social: Vivienda y Agua Potable | AE52: Asistencia / Vivienda (Solo víctimas desplazamiento) | AK52: =+IFERROR(VLOOKUP(AJ52,Iniciativas!E:F,2,FALSE),"Seleccione el código de la iniciativa") -> Seleccione el código de la iniciativa | AL52: 1 | AM52: 1 | AN52: 0 | AO52: 0 | AP52: 0 | AQ52: 0 | AR52: 0 | AS52: 80000000 | AT52: 0 | AU52: 0 | AV52: 0 | AW52: 0 | AX52: 0 | AY52: 0 | AZ52: 0 | BA52: 0 | BB52: 0 | BC52: 0 | BD52: 0 | BE52: 0 | BF52: =+AS52+AQ52+AR52+AT52+AU52+AV52+AW52+AX52+AY52+AZ52+BA52+BB52+BC52+BD52+BE52 -> 80000000 | BG52: 0 | BH52: 0 | BI52: 0 | BJ52: 80000000 | BK52: 0 | BL52: 0 | BM52: 0 | BN52: 0 | BO52: 0 | BP52: 0 | BQ52: 0 | BR52: 0 | BS52: 0 | BT52: 0 | BU52: 0 | BV52: 0 | BW52: 80000000 | BX52: 0 | BY52: 0 | BZ52: 0 | CA52: 0 | CB52: 0 | CC52: 0 | CD52: 0 | CE52: 0 | CF52: 0 | CG52: 0 | CH52: 0 | CI52: 0 | CJ52: 0 | CK52: 0 | CL52: 0 | CM52: 0 | CN52: 0 | CO52: 0 | CP52: 0 | CQ52: 0 | CR52: 0 | CS52: 0 | CT52: 0 | CU52: 0 | CV52: 0 | CW52: 0 | CX52: 0 | CY52: 0 | CZ52: 0 | DA52: 0 | DB52: 0 | DC52: 0 | DD52: 0 | DE52: 0 | DF52: 160000000
A53: 49 | B53: Transformación y Desarrollo Social con Equidad | C53: Cobertura de Alcantarillado | D53: 48.5 | E53: Porcentaje | F53: 60 | J53: Vivienda, ciudad y territorio | K53: =IFERROR(IF($J53="","",VLOOKUP($J53,Catálogo!$B$5:$C$21,2,FALSE)),"Introduzca un sector de inversión válido") -> 40 | L53: Juntos avanzamos por el acceso, continuidad y calidad en la prestación de servcios públicos | M53: Acceso de la población a los servicios de agua potable y saneamiento básico (4003) | N53: =IFERROR(IF($M53="","",VLOOKUP($M53,Catálogo!$E$25:$F$93,2,FALSE)),"Introduzca un programa presupuestal válido") -> 4003 | O53: =IFERROR(IF($N53="","",VLOOKUP($N53,Catálogo!$F$25:$G$94,2,FALSE)),"Introduzca un programa presupuestal válido") -> A.3 - Agua potable y saneamiento básico (sin incluir proyectos de vis) | P53: CONTINÚE: El programa presupuestal y sector de inversión coinciden | Q53: Alcantarillados construidos | R53: Secretaría de Planeación | S53: Alcantarillados construidos (4003018) | T53: =IFERROR(IF($S53="","",VLOOKUP($S53,Catálogo!$G$97:$H$2750,2,FALSE)),"Introduzca un producto válido") -> 4003018 | U53: CONTINÚE: El producto y programa presupuestal coinciden | V53: Plantas de tratamiento de aguas residuales construidas (400301802) | W53: =IFERROR(IF($V53="","",VLOOKUP($V53,Catálogo!$B$3019:$C$9130,2,FALSE)),"Introduzca un indicador de producto válido") -> 400301802 | X53: CONTINÚE: El indicador de producto y el producto coinciden | Z53: Número | AA53: 1 | AB53: Incremento | AC53: ODS 6. Agua limpia y saneamiento | AD53: 1.5. Desarrollo social: Vivienda y Agua Potable | AE53: Asistencia / Vivienda (Solo víctimas desplazamiento) | AK53: =+IFERROR(VLOOKUP(AJ53,Iniciativas!E:F,2,FALSE),"Seleccione el código de la iniciativa") -> Seleccione el código de la iniciativa | AL53: 1 | AM53: 0 | AN53: 0 | AO53: 0 | AP53: 0 | AQ53: 0 | AR53: 0 | AS53: 100000000 | AT53: 0 | AU53: 0 | AV53: 0 | AW53: 0 | AX53: 0 | AY53: 0 | AZ53: 0 | BA53: 0 | BB53: 0 | BC53: 0 | BD53: 0 | BE53: 0 | BF53: 100000000 | BG53: 0 | BH53: 0 | BI53: 0 | BJ53: 0 | BK53: 0 | BL53: 0 | BM53: 0 | BN53: 0 | BO53: 0 | BP53: 0 | BQ53: 0 | BR53: 0 | BS53: 0 | BT53: 0 | BU53: 0 | BV53: 0 | BW53: 0 | BX53: 0 | BY53: 0 | BZ53: 0 | CA53: 0 | CB53: 0 | CC53: 0 | CD53: 0 | CE53: 0 | CF53: 0 | CG53: 0 | CH53: 0 | CI53: 0 | CJ53: 0 | CK53: 0 | CL53: 0 | CM53: 0 | CN53: 0 | CO53: 0 | CP53: 0 | CQ53: 0 | CR53: 0 | CS53: 0 | CT53: 0 | CU53: 0 | CV53: 0 | CW53: 0 | CX53: 0 | CY53: 0 | CZ53: 0 | DA53: 0 | DB53: 0 | DC53: 0 | DD53: 0 | DE53: 0 | DF53: 100000000
A54: 50 | B54: Transformación y Desarrollo Social con Equidad | C54: Cobertura de Alcantarillado | D54: 48.5 | E54: Porcentaje | F54: 60 | J54: Vivienda, ciudad y territorio | K54: =IFERROR(IF($J54="","",VLOOKUP($J54,Catálogo!$B$5:$C$21,2,FALSE)),"Introduzca un sector de inversión válido") -> 40 | L54: Juntos avanzamos por el acceso, continuidad y calidad en la prestación de servcios públicos | M54: Acceso de la población a los servicios de agua potable y saneamiento básico (4003) | N54: =IFERROR(IF($M54="","",VLOOKUP($M54,Catálogo!$E$25:$F$93,2,FALSE)),"Introduzca un programa presupuestal válido") -> 4003 | O54: =IFERROR(IF($N54="","",VLOOKUP($N54,Catálogo!$F$25:$G$94,2,FALSE)),"Introduzca un programa presupuestal válido") -> A.3 - Agua potable y saneamiento básico (sin incluir proyectos de vis) | P54: CONTINÚE: El programa presupuestal y sector de inversión coinciden | Q54: Alcantarillados construidos | R54: Secretaría de Planeación | S54: Alcantarillados construidos (4003018) | T54: =IFERROR(IF($S54="","",VLOOKUP($S54,Catálogo!$G$97:$H$2750,2,FALSE)),"Introduzca un producto válido") -> 4003018 | U54: CONTINÚE: El producto y programa presupuestal coinciden | V54: Red de alcantarillado construida (400301803) | W54: =IFERROR(IF($V54="","",VLOOKUP($V54,Catálogo!$B$3019:$C$9130,2,FALSE)),"Introduzca un indicador de producto válido") -> 400301803 | X54: CONTINÚE: El indicador de producto y el producto coinciden | Z54: Metro Lineal | AA54: =1751+2754 -> 4505 | AB54: Incremento | AC54: ODS 6. Agua limpia y saneamiento | AD54: 1.5. Desarrollo social: Vivienda y Agua Potable | AE54: Asistencia / Vivienda (Solo víctimas desplazamiento) | AK54: =+IFERROR(VLOOKUP(AJ54,Iniciativas!E:F,2,FALSE),"Seleccione el código de la iniciativa") -> Seleccione el código de la iniciativa | AL54: 2754 | AM54: 300 | AN54: 730 | AO54: 721 | AP54: 0 | AQ54: 0 | AR54: 0 | AS54: 201067594.5 | AT54: 0 | AU54: 0 | AV54: 0 | AW54: 0 | AX54: 0 | AY54: 0 | AZ54: 0 | BA54: 0 | BB54: 0 | BC54: 0 | BD54: 0 | BE54: 0 | BF54: 201067594.5 | BG54: 0 | BH54: 0 | BI54: 0 | BJ54: 201067594.5 | BK54: 0 | BL54: 0 | BM54: 0 | BN54: 0 | BO54: 0 | BP54: 0 | BQ54: 0 | BR54: 0 | BS54: 0 | BT54: 0 | BU54: 0 | BV54: 0 | BW54: 201067594.5 | BX54: 0 | BY54: 0 | BZ54: 0 | CA54: 201067594.5 | CB54: 0 | CC54: 0 | CD54: 0 | CE54: 0 | CF54: 0 | CG54: 0 | CH54: 0 | CI54: 0 | CJ54: 0 | CK54: 0 | CL54: 0 | CM54: 0 | CN54: 201067594.5 | CO54: 0 | CP54: 0 | CQ54: 0 | CR54: 201067594.5 | CS54: 0 | CT54: 0 | CU54: 0 | CV54: 0 | CW54: 0 | CX54: 0 | CY54: 0 | CZ54: 0 | DA54: 0 | DB54: 0 | DC54: 0 | DD54: 0 | DE54: 201067594.5 | DF54: 804270378
A55: 51 | B55: Transformación y Desarrollo Social con Equidad | C55: Cobertura de Alcantarillado | D55: 48.5 | E55: Porcentaje | F55: 60 | J55: Vivienda, ciudad y territorio | K55: =IFERROR(IF($J55="","",VLOOKUP($J55,Catálogo!$B$5:$C$21,2,FALSE)),"Introduzca un sector de inversión válido") -> 40 | L55: Juntos avanzamos por el acceso, continuidad y calidad en la prestación de servcios públicos | M55: Acceso de la población a los servicios de agua potable y saneamiento básico (4003) | N55: =IFERROR(IF($M55="","",VLOOKUP($M55,Catálogo!$E$25:$F$93,2,FALSE)),"Introduzca un programa presupuestal válido") -> 4003 | O55: =IFERROR(IF($N55="","",VLOOKUP($N55,Catálogo!$F$25:$G$94,2,FALSE)),"Introduzca un programa presupuestal válido") -> A.3 - Agua potable y saneamiento básico (sin incluir proyectos de vis) | P55: CONTINÚE: El programa presupuestal y sector de inversión coinciden | Q55: Alcantarillados ampliados | R55: Secretaría de Planeación | S55: Alcantarillados ampliados (4003019) | T55: =IFERROR(IF($S55="","",VLOOKUP($S55,Catálogo!$G$97:$H$2750,2,FALSE)),"Introduzca un producto válido") -> 4003019 | U55: CONTINÚE: El producto y programa presupuestal coinciden | V55: Red de alcantarillado ampliada (400301903) | W55: =IFERROR(IF($V55="","",VLOOKUP($V55,Catálogo!$B$3019:$C$9130,2,FALSE)),"Introduzca un indicador de producto válido") -> 400301903 | X55: CONTINÚE: El indicador de producto y el producto coinciden | Z55: Metro Lineal | AA55: 300 | AB55: Incremento | AC55: ODS 6. Agua limpia y saneamiento | AD55: 1.5. Desarrollo social: Vivienda y Agua Potable | AE55: Asistencia / Vivienda (Solo víctimas desplazamiento) | AK55: =+IFERROR(VLOOKUP(AJ55,Iniciativas!E:F,2,FALSE),"Seleccione el código de la iniciativa") -> Seleccione el código de la iniciativa | AL55: 0 | AM55: 0 | AN55: 150 | AO55: 150 | AP55: 0 | AQ55: 0 | AR55: 0 | AS55: 0 | AT55: 0 | AU55: 0 | AV55: 0 | AW55: 0 | AX55: 0 | AY55: 0 | AZ55: 0 | BA55: 0 | BB55: 0 | BC55: 0 | BD55: 0 | BE55: 0 | BF55: 0 | BG55: 0 | BH55: 0 | BI55: 0 | BJ55: 0 | BK55: 0 | BL55: 0 | BM55: 0 | BN55: 0 | BO55: 0 | BP55: 0 | BQ55: 0 | BR55: 0 | BS55: 0 | BT55: 0 | BU55: 0 | BV55: 0 | BW55: 0 | BX55: 0 | BY55: 0 | BZ55: 0 | CA55: 90000000 | CB55: 0 | CC55: 0 | CD55: 0 | CE55: 0 | CF55: 0 | CG55: 0 | CH55: 0 | CI55: 0 | CJ55: 0 | CK55: 0 | CL55: 0 | CM55: 0 | CN55: 90000000 | CO55: 0 | CP55: 0 | CQ55: 0 | CR55: 90000000 | CS55: 0 | CT55: 0 | CU55: 0 | CV55: 0 | CW55: 0 | CX55: 0 | CY55: 0 | CZ55: 0 | DA55: 0 | DB55: 0 | DC55: 0 | DD55: 0 | DE55: 90000000 | DF55: 180000000
A56: 52 | B56: Transformación y Desarrollo Social con Equidad | C56: Cobertura de Alcantarillado | D56: 48.5 | E56: Porcentaje | F56: 60 | J56: Vivienda, ciudad y territorio | K56: =IFERROR(IF($J56="","",VLOOKUP($J56,Catálogo!$B$5:$C$21,2,FALSE)),"Introduzca un sector de inversión válido") -> 40 | L56: Juntos avanzamos por el acceso, continuidad y calidad en la prestación de servcios públicos | M56: Acceso de la población a los servicios de agua potable y saneamiento básico (4003) | N56: =IFERROR(IF($M56="","",VLOOKUP($M56,Catálogo!$E$25:$F$93,2,FALSE)),"Introduzca un programa presupuestal válido") -> 4003 | O56: =IFERROR(IF($N56="","",VLOOKUP($N56,Catálogo!$F$25:$G$94,2,FALSE)),"Introduzca un programa presupuestal válido") -> A.3 - Agua potable y saneamiento básico (sin incluir proyectos de vis) | P56: CONTINÚE: El programa presupuestal y sector de inversión coinciden | Q56: Alcantarillados optimizados | R56: Secretaría de Planeación | S56: Alcantarillados optimizados (4003020) | T56: =IFERROR(IF($S56="","",VLOOKUP($S56,Catálogo!$G$97:$H$2750,2,FALSE)),"Introduzca un producto válido") -> 4003020 | U56: CONTINÚE: El producto y programa presupuestal coinciden | V56: Red de alcantarillado optimizada (400302003) | W56: =IFERROR(IF($V56="","",VLOOKUP($V56,Catálogo!$B$3019:$C$9130,2,FALSE)),"Introduzca un indicador de producto válido") -> 400302003 | X56: CONTINÚE: El indicador de producto y el producto coinciden | Z56: Metro Lineal | AA56: 5000 | AB56: Incremento | AC56: ODS 6. Agua limpia y saneamiento | AD56: 1.5. Desarrollo social: Vivienda y Agua Potable | AE56: Asistencia / Vivienda (Solo víctimas desplazamiento) | AK56: =+IFERROR(VLOOKUP(AJ56,Iniciativas!E:F,2,FALSE),"Seleccione el código de la iniciativa") -> Seleccione el código de la iniciativa | AL56: 325 | AM56: 500 | AN56: 2100 | AO56: 2075 | AP56: 203020050 | AQ56: 0 | AR56: 0 | AS56: 186683604.5 | AT56: 0 | AU56: 0 | AV56: 0 | AW56: 0 | AX56: 0 | AY56: 0 | AZ56: 0 | BA56: 0 | BB56: 235296345.5 | BC56: 0 | BD56: 0 | BE56: 0 | BF56: 625000000 | BG56: 203020050 | BH56: 0 | BI56: 0 | BJ56: 186683604.5 | BK56: 0 | BL56: 0 | BM56: 0 | BN56: 0 | BO56: 0 | BP56: 0 | BQ56: 0 | BR56: 0 | BS56: 235296345.5 | BT56: 0 | BU56: 0 | BV56: 0 | BW56: 625000000 | BX56: 203020050 | BY56: 0 | BZ56: 0 | CA56: 186683604.5 | CB56: 0 | CC56: 0 | CD56: 0 | CE56: 0 | CF56: 0 | CG56: 0 | CH56: 0 | CI56: 0 | CJ56: 235296345.5 | CK56: 0 | CL56: 0 | CM56: 0 | CN56: 625000000 | CO56: 203020050 | CP56: 0 | CQ56: 0 | CR56: 186683604.5 | CS56: 0 | CT56: 0 | CU56: 0 | CV56: 0 | CW56: 0 | CX56: 0 | CY56: 0 | CZ56: 0 | DA56: 235296345.5 | DB56: 0 | DC56: 0 | DD56: 0 | DE56: 625000000 | DF56: 2500000000
A57: 53 | B57: Transformación y Desarrollo Social con Equidad | C57: Cobertura de Alcantarillado | D57: 48.5 | E57: Porcentaje | F57: 60 | J57: Vivienda, ciudad y territorio | K57: =IFERROR(IF($J57="","",VLOOKUP($J57,Catálogo!$B$5:$C$21,2,FALSE)),"Introduzca un sector de inversión válido") -> 40 | L57: Juntos avanzamos por el acceso, continuidad y calidad en la prestación de servcios públicos | M57: Acceso de la población a los servicios de agua potable y saneamiento básico (4003) | N57: =IFERROR(IF($M57="","",VLOOKUP($M57,Catálogo!$E$25:$F$93,2,FALSE)),"Introduzca un programa presupuestal válido") -> 4003 | O57: =IFERROR(IF($N57="","",VLOOKUP($N57,Catálogo!$F$25:$G$94,2,FALSE)),"Introduzca un programa presupuestal válido") -> A.3 - Agua potable y saneamiento básico (sin incluir proyectos de vis) | P57: CONTINÚE: El programa presupuestal y sector de inversión coinciden | Q57: Servicios de apoyo financiero para proyectos de conexiones intradomiciliarias y/o agua y saneamiento en casa | R57: Secretaría de Planeación | S57: Servicios de apoyo financiero para proyectos de conexiones intradomiciliarias y/o agua y saneamiento en casa (4003027) | T57: =IFERROR(IF($S57="","",VLOOKUP($S57,Catálogo!$G$97:$H$2750,2,FALSE)),"Introduzca un producto válido") -> 4003027 | U57: CONTINÚE: El producto y programa presupuestal coinciden | V57: Conexiones Intradomiciliarias apoyadas financieramente (400302700) | W57: =IFERROR(IF($V57="","",VLOOKUP($V57,Catálogo!$B$3019:$C$9130,2,FALSE)),"Introduzca un indicador de producto válido") -> 400302700 | X57: CONTINÚE: El indicador de producto y el producto coinciden | Z57: Número | AA57: 200 | AB57: Incremento | AC57: ODS 6. Agua limpia y saneamiento | AD57: 1.5. Desarrollo social: Vivienda y Agua Potable | AE57: Asistencia / Vivienda (Solo víctimas desplazamiento) | AK57: =+IFERROR(VLOOKUP(AJ57,Iniciativas!E:F,2,FALSE),"Seleccione el código de la iniciativa") -> Seleccione el código de la iniciativa | AL57: 200 | AM57: 0 | AN57: 0 | AO57: 0 | AP57: 0 | AQ57: 0 | AR57: 0 | AS57: 150000000 | AT57: 0 | AU57: 0 | AV57: 0 | AW57: 0 | AX57: 0 | AY57: 0 | AZ57: 0 | BA57: 0 | BB57: 0 | BC57: 0 | BD57: 0 | BE57: 350000000 | BF57: 500000000 | BG57: 0 | BH57: 0 | BI57: 0 | BJ57: 0 | BK57: 0 | BL57: 0 | BM57: 0 | BN57: 0 | BO57: 0 | BP57: 0 | BQ57: 0 | BR57: 0 | BS57: 0 | BT57: 0 | BU57: 0 | BV57: 0 | BW57: 0 | BX57: 0 | BY57: 0 | BZ57: 0 | CA57: 0 | CB57: 0 | CC57: 0 | CD57: 0 | CE57: 0 | CF57: 0 | CG57: 0 | CH57: 0 | CI57: 0 | CJ57: 0 | CK57: 0 | CL57: 0 | CM57: 0 | CN57: 0 | CO57: 0 | CP57: 0 | CQ57: 0 | CR57: 0 | CS57: 0 | CT57: 0 | CU57: 0 | CV57: 0 | CW57: 0 | CX57: 0 | CY57: 0 | CZ57: 0 | DA57: 0 | DB57: 0 | DC57: 0 | DD57: 0 | DE57: 0 | DF57: 500000000
A58: 54 | B58: Transformación y Desarrollo Social con Equidad | C58: Cobertura de Alcantarillado | D58: 48.5 | E58: Porcentaje | F58: 60 | J58: Vivienda, ciudad y territorio | K58: =IFERROR(IF($J58="","",VLOOKUP($J58,Catálogo!$B$5:$C$21,2,FALSE)),"Introduzca un sector de inversión válido") -> 40 | L58: Juntos avanzamos por el acceso, continuidad y calidad en la prestación de servcios públicos | M58: Acceso de la población a los servicios de agua potable y saneamiento básico (4003) | N58: =IFERROR(IF($M58="","",VLOOKUP($M58,Catálogo!$E$25:$F$93,2,FALSE)),"Introduzca un programa presupuestal válido") -> 4003 | O58: =IFERROR(IF($N58="","",VLOOKUP($N58,Catálogo!$F$25:$G$94,2,FALSE)),"Introduzca un programa presupuestal válido") -> A.3 - Agua potable y saneamiento básico (sin incluir proyectos de vis) | P58: CONTINÚE: El programa presupuestal y sector de inversión coinciden | Q58: Servicios de educación informal en agua potable y saneamiento básico | R58: Secretaría de Planeación | S58: Servicios de educación informal en agua potable y saneamiento básico (4003028) | T58: =IFERROR(IF($S58="","",VLOOKUP($S58,Catálogo!$G$97:$H$2750,2,FALSE)),"Introduzca un producto válido") -> 4003028 | U58: CONTINÚE: El producto y programa presupuestal coinciden | V58: Personas capacitadas (400302800) | W58: =IFERROR(IF($V58="","",VLOOKUP($V58,Catálogo!$B$3019:$C$9130,2,FALSE)),"Introduzca un indicador de producto válido") -> 400302800 | X58: CONTINÚE: El indicador de producto y el producto coinciden | Z58: Número | AA58: 81 | AB58: Incremento | AC58: ODS 6. Agua limpia y saneamiento | AD58: 1.5. Desarrollo social: Vivienda y Agua Potable | AE58: Asistencia / Vivienda (Solo víctimas desplazamiento) | AK58: =+IFERROR(VLOOKUP(AJ58,Iniciativas!E:F,2,FALSE),"Seleccione el código de la iniciativa") -> Seleccione el código de la iniciativa | AL58: 0 | AM58: 40 | AN58: 20 | AO58: 21 | AP58: 0 | AQ58: 0 | AR58: 0 | AS58: 0 | AT58: 0 | AU58: 0 | AV58: 0 | AW58: 0 | AX58: 0 | AY58: 0 | AZ58: 0 | BA58: 0 | BB58: 0 | BC58: 0 | BD58: 0 | BE58: 0 | BF58: 0 | BG58: 0 | BH58: 0 | BI58: 0 | BJ58: 5400000 | BK58: 0 | BL58: 0 | BM58: 0 | BN58: 0 | BO58: 0 | BP58: 0 | BQ58: 0 | BR58: 0 | BS58: 0 | BT58: 0 | BU58: 0 | BV58: 0 | BW58: 5400000 | BX58: 0 | BY58: 0 | BZ58: 0 | CA58: 5400000 | CB58: 0 | CC58: 0 | CD58: 0 | CE58: 0 | CF58: 0 | CG58: 0 | CH58: 0 | CI58: 0 | CJ58: 0 | CK58: 0 | CL58: 0 | CM58: 0 | CN58: 5400000 | CO58: 0 | CP58: 0 | CQ58: 0 | CR58: 5400000 | CS58: 0 | CT58: 0 | CU58: 0 | CV58: 0 | CW58: 0 | CX58: 0 | CY58: 0 | CZ58: 0 | DA58: 0 | DB58: 0 | DC58: 0 | DD58: 0 | DE58: 5400000 | DF58: 16200000
A59: 55 | B59: Transformación y Desarrollo Social con Equidad | C59: Cobertura de Aseo | D59: 52.94 | E59: Porcentaje | F59: 65 | J59: Vivienda, ciudad y territorio | K59: =IFERROR(IF($J59="","",VLOOKUP($J59,Catálogo!$B$5:$C$21,2,FALSE)),"Introduzca un sector de inversión válido") -> 40 | L59: Juntos avanzamos por el acceso, continuidad y calidad en la prestación de servcios públicos | M59: Acceso de la población a los servicios de agua potable y saneamiento básico (4003) | N59: =IFERROR(IF($M59="","",VLOOKUP($M59,Catálogo!$E$25:$F$93,2,FALSE)),"Introduzca un programa presupuestal válido") -> 4003 | O59: =IFERROR(IF($N59="","",VLOOKUP($N59,Catálogo!$F$25:$G$94,2,FALSE)),"Introduzca un programa presupuestal válido") -> A.3 - Agua potable y saneamiento básico (sin incluir proyectos de vis) | P59: CONTINÚE: El programa presupuestal y sector de inversión coinciden | Q59: Servicios de implementación del Plan de Gestión Integral de Residuos Solidos PGIRS | R59: Secretaría de Planeación | S59: Servicios de implementación del Plan de Gestión Integral de Residuos Solidos PGIRS (4003022) | T59: =IFERROR(IF($S59="","",VLOOKUP($S59,Catálogo!$G$97:$H$2750,2,FALSE)),"Introduzca un producto válido") -> 4003022 | U59: CONTINÚE: El producto y programa presupuestal coinciden | V59: Plan de Gestión Integral de Residuos Solidos implementado (400302200) | W59: =IFERROR(IF($V59="","",VLOOKUP($V59,Catálogo!$B$3019:$C$9130,2,FALSE)),"Introduzca un indicador de producto válido") -> 400302200 | X59: CONTINÚE: El indicador de producto y el producto coinciden | Z59: Número | AA59: 1 | AB59: Mantenimiento | AC59: ODS 6. Agua limpia y saneamiento | AD59: 1.5. Desarrollo social: Vivienda y Agua Potable | AE59: Asistencia / Vivienda (Solo víctimas desplazamiento) | AK59: =+IFERROR(VLOOKUP(AJ59,Iniciativas!E:F,2,FALSE),"Seleccione el código de la iniciativa") -> Seleccione el código de la iniciativa | AL59: 1 | AM59: 1 | AN59: 1 | AO59: 1 | AP59: 0 | AQ59: 0 | AR59: 0 | AS59: 5625000 | AT59: 0 | AU59: 0 | AV59: 0 | AW59: 0 | AX59: 0 | AY59: 0 | AZ59: 0 | BA59: 0 | BB59: 0 | BC59: 0 | BD59: 0 | BE59: 13125000 | BF59: 18750000 | BG59: 0 | BH59: 0 | BI59: 0 | BJ59: 5625000 | BK59: 0 | BL59: 0 | BM59: 0 | BN59: 0 | BO59: 0 | BP59: 0 | BQ59: 0 | BR59: 0 | BS59: 0 | BT59: 0 | BU59: 0 | BV59: 13125000 | BW59: 18750000 | BX59: 0 | BY59: 0 | BZ59: 0 | CA59: 5625000 | CB59: 0 | CC59: 0 | CD59: 0 | CE59: 0 | CF59: 0 | CG59: 0 | CH59: 0 | CI59: 0 | CJ59: 0 | CK59: 0 | CL59: 0 | CM59: 13125000 | CN59: 18750000 | CO59: 0 | CP59: 0 | CQ59: 0 | CR59: 5625000 | CS59: 0 | CT59: 0 | CU59: 0 | CV59: 0 | CW59: 0 | CX59: 0 | CY59: 0 | CZ59: 0 | DA59: 0 | DB59: 0 | DC59: 0 | DD59: 13125000 | DE59: 18750000 | DF59: 75000000
A60: 56 | B60: Transformación y Desarrollo Social con Equidad | C60: Cobertura de Aseo | D60: 52.94 | E60: Porcentaje | F60: 65 | J60: Vivienda, ciudad y territorio | K60: =IFERROR(IF($J60="","",VLOOKUP($J60,Catálogo!$B$5:$C$21,2,FALSE)),"Introduzca un sector de inversión válido") -> 40 | L60: Juntos avanzamos por el acceso, continuidad y calidad en la prestación de servcios públicos | M60: Acceso de la población a los servicios de agua potable y saneamiento básico (4003) | N60: =IFERROR(IF($M60="","",VLOOKUP($M60,Catálogo!$E$25:$F$93,2,FALSE)),"Introduzca un programa presupuestal válido") -> 4003 | O60: =IFERROR(IF($N60="","",VLOOKUP($N60,Catálogo!$F$25:$G$94,2,FALSE)),"Introduzca un programa presupuestal válido") -> A.3 - Agua potable y saneamiento básico (sin incluir proyectos de vis) | P60: CONTINÚE: El programa presupuestal y sector de inversión coinciden | Q60: Servicio de Aseo | R60: Secretaría de Planeación | S60: Servicio de Aseo (4003010) | T60: =IFERROR(IF($S60="","",VLOOKUP($S60,Catálogo!$G$97:$H$2750,2,FALSE)),"Introduzca un producto válido") -> 4003010 | U60: CONTINÚE: El producto y programa presupuestal coinciden | V60: Municipios con vehículos de recolección de residuos solidos (400301001) | W60: =IFERROR(IF($V60="","",VLOOKUP($V60,Catálogo!$B$3019:$C$9130,2,FALSE)),"Introduzca un indicador de producto válido") -> 400301001 | X60: CONTINÚE: El indicador de producto y el producto coinciden | Z60: Número | AA60: 1 | AB60: Incremento | AC60: ODS 6. Agua limpia y saneamiento | AD60: 1.5. Desarrollo social: Vivienda y Agua Potable | AE60: Asistencia / Vivienda (Solo víctimas desplazamiento) | AK60: =+IFERROR(VLOOKUP(AJ60,Iniciativas!E:F,2,FALSE),"Seleccione el código de la iniciativa") -> Seleccione el código de la iniciativa | AL60: 0 | AM60: 1 | AN60: 0 | AO60: 0 | AP60: 0 | AQ60: 0 | AR60: 0 | AS60: 0 | AT60: 0 | AU60: 0 | AV60: 0 | AW60: 0 | AX60: 0 | AY60: 0 | AZ60: 0 | BA60: 0 | BB60: 0 | BC60: 0 | BD60: 0 | BE60: 0 | BF60: 0 | BG60: 0 | BH60: 0 | BI60: 0 | BJ60: 165000000 | BK60: 0 | BL60: 0 | BM60: 0 | BN60: 0 | BO60: 0 | BP60: 0 | BQ60: 0 | BR60: 0 | BS60: 385000000 | BT60: 0 | BU60: 0 | BV60: 0 | BW60: 550000000 | BX60: 0 | BY60: 0 | BZ60: 0 | CA60: 0 | CB60: 0 | CC60: 0 | CD60: 0 | CE60: 0 | CF60: 0 | CG60: 0 | CH60: 0 | CI60: 0 | CJ60: 0 | CK60: 0 | CL60: 0 | CM60: 0 | CN60: 0 | CO60: 0 | CP60: 0 | CQ60: 0 | CR60: 0 | CS60: 0 | CT60: 0 | CU60: 0 | CV60: 0 | CW60: 0 | CX60: 0 | CY60: 0 | CZ60: 0 | DA60: 0 | DB60: 0 | DC60: 0 | DD60: 0 | DE60: 0 | DF60: 550000000
A61: 57 | B61: Transformación y Desarrollo Social con Equidad | C61: Cobertura de Aseo | D61: 52.94 | E61: Porcentaje | F61: 65 | J61: Vivienda, ciudad y territorio | K61: =IFERROR(IF($J61="","",VLOOKUP($J61,Catálogo!$B$5:$C$21,2,FALSE)),"Introduzca un sector de inversión válido") -> 40 | L61: Juntos avanzamos por el acceso, continuidad y calidad en la prestación de servcios públicos | M61: Acceso de la población a los servicios de agua potable y saneamiento básico (4003) | N61: =IFERROR(IF($M61="","",VLOOKUP($M61,Catálogo!$E$25:$F$93,2,FALSE)),"Introduzca un programa presupuestal válido") -> 4003 | O61: =IFERROR(IF($N61="","",VLOOKUP($N61,Catálogo!$F$25:$G$94,2,FALSE)),"Introduzca un programa presupuestal válido") -> A.3 - Agua potable y saneamiento básico (sin incluir proyectos de vis) | P61: CONTINÚE: El programa presupuestal y sector de inversión coinciden | Q61: Estación de clasificación y aprovechamiento de residuos sólidos construida | R61: Secretaría de Planeación | S61: Estación de clasificación y aprovechamiento de residuos sólidos construida (4003031) | T61: =IFERROR(IF($S61="","",VLOOKUP($S61,Catálogo!$G$97:$H$2750,2,FALSE)),"Introduzca un producto válido") -> 4003031 | U61: CONTINÚE: El producto y programa presupuestal coinciden | V61: Estaciones de clasificación y aprovechamiento de residuos sólidos construidas (400303100) | W61: =IFERROR(IF($V61="","",VLOOKUP($V61,Catálogo!$B$3019:$C$9130,2,FALSE)),"Introduzca un indicador de producto válido") -> 400303100 | X61: CONTINÚE: El indicador de producto y el producto coinciden | Z61: Número | AA61: 1 | AB61: Incremento | AC61: ODS 6. Agua limpia y saneamiento | AD61: 1.5. Desarrollo social: Vivienda y Agua Potable | AE61: Asistencia / Vivienda (Solo víctimas desplazamiento) | AK61: =+IFERROR(VLOOKUP(AJ61,Iniciativas!E:F,2,FALSE),"Seleccione el código de la iniciativa") -> Seleccione el código de la iniciativa | AL61: 0 | AM61: 0 | AN61: 1 | AO61: 0 | AP61: 0 | AQ61: 0 | AR61: 0 | AS61: 0 | AT61: 0 | AU61: 0 | AV61: 0 | AW61: 0 | AX61: 0 | AY61: 0 | AZ61: 0 | BA61: 0 | BB61: 0 | BC61: 0 | BD61: 0 | BE61: 0 | BF61: 0 | BG61: 0 | BH61: 0 | BI61: 0 | BJ61: 0 | BK61: 0 | BL61: 0 | BM61: 0 | BN61: 0 | BO61: 0 | BP61: 0 | BQ61: 0 | BR61: 0 | BS61: 0 | BT61: 0 | BU61: 0 | BV61: 0 | BW61: 0 | BX61: 0 | BY61: 0 | BZ61: 0 | CA61: 24000000 | CB61: 0 | CC61: 0 | CD61: 0 | CE61: 0 | CF61: 0 | CG61: 0 | CH61: 0 | CI61: 0 | CJ61: 0 | CK61: 0 | CL61: 0 | CM61: 56000000 | CN61: 80000000 | CO61: 0 | CP61: 0 | CQ61: 0 | CR61: 0 | CS61: 0 | CT61: 0 | CU61: 0 | CV61: 0 | CW61: 0 | CX61: 0 | CY61: 0 | CZ61: 0 | DA61: 0 | DB61: 0 | DC61: 0 | DD61: 0 | DE61: 0 | DF61: 80000000
A62: 58 | B62: Transformación y Desarrollo Social con Equidad | C62: N° de niñas, niños y adolescentes que acceden a servicios recreativos-deportivos, de actividad física y aprovechamiento del tiempo libre | D62: 5800 | E62: Número | F62: 7800 | J62: Deporte y recreación | K62: =IFERROR(IF($J62="","",VLOOKUP($J62,Catálogo!$B$5:$C$21,2,FALSE)),"Introduzca un sector de inversión válido") -> 43 | L62: Deporte, recreación y bienestar | M62: Fomento a la recreación, la actividad física y el deporte para desarrollar entornos de convivencia y paz (4301) | N62: =IFERROR(IF($M62="","",VLOOKUP($M62,Catálogo!$E$25:$F$93,2,FALSE)),"Introduzca un programa presupuestal válido") -> 4301 | O62: =IFERROR(IF($N62="","",VLOOKUP($N62,Catálogo!$F$25:$G$94,2,FALSE)),"Introduzca un programa presupuestal válido") -> A.4 - Deporte y recreación | P62: CONTINÚE: El programa presupuestal y sector de inversión coinciden | Q62: Servicio de apoyo a la actividad física, la recreación y el deporte | R62: Dirección Deporte y Recreación | S62: Servicio de apoyo a la actividad física, la recreación y el deporte (4301001) | T62: =IFERROR(IF($S62="","",VLOOKUP($S62,Catálogo!$G$97:$H$2750,2,FALSE)),"Introduzca un producto válido") -> 4301001 | U62: CONTINÚE: El producto y programa presupuestal coinciden | V62: Artículos deportivos entregados (430100102) | W62: =IFERROR(IF($V62="","",VLOOKUP($V62,Catálogo!$B$3019:$C$9130,2,FALSE)),"Introduzca un indicador de producto válido") -> 430100102 | X62: CONTINÚE: El indicador de producto y el producto coinciden | Z62: Número | AA62: 4400 | AB62: Incremento | AC62: ODS 3. Salud y bienestar | AD62: 5.4. Reparación integral para la construcción de Paz | AE62: Reparación / Retorno y reubicación (Solo víctimas desplazamiento) | AK62: =+IFERROR(VLOOKUP(AJ62,Iniciativas!E:F,2,FALSE),"Seleccione el código de la iniciativa") -> Seleccione el código de la iniciativa | AL62: 500 | AM62: 1200 | AN62: 1350 | AO62: 1350 | AP62: 55000000 | AQ62: 0 | AR62: 0 | AS62: 0 | AT62: 0 | AU62: 0 | AV62: 0 | AW62: 0 | AX62: 0 | AY62: 0 | AZ62: 0 | BA62: 0 | BB62: 0 | BC62: 0 | BD62: 0 | BE62: 0 | BF62: 55000000 | BG62: 55000000 | BH62: 0 | BI62: 0 | BJ62: 0 | BK62: 0 | BL62: 0 | BM62: 0 | BN62: 0 | BO62: 0 | BP62: 0 | BQ62: 0 | BR62: 0 | BS62: 0 | BT62: 0 | BU62: 0 | BV62: 0 | BW62: 55000000 | BX62: 55000000 | BY62: 0 | BZ62: 0 | CA62: 0 | CB62: 0 | CC62: 0 | CD62: 0 | CE62: 0 | CF62: 0 | CG62: 0 | CH62: 0 | CI62: 0 | CJ62: 0 | CK62: 0 | CL62: 0 | CM62: 0 | CN62: 55000000 | CO62: 55000000 | CP62: 0 | CQ62: 0 | CR62: 0 | CS62: 0 | CT62: 0 | CU62: 0 | CV62: 0 | CW62: 0 | CX62: 0 | CY62: 0 | CZ62: 0 | DA62: 0 | DB62: 0 | DC62: 0 | DD62: 0 | DE62: 55000000 | DF62: 220000000
A63: 59 | B63: Transformación y Desarrollo Social con Equidad | C63: N° de niñas, niños y adolescentes que acceden a servicios recreativos-deportivos, de actividad física y aprovechamiento del tiempo libre | D63: 5800 | E63: Número | F63: 7800 | J63: Deporte y recreación | K63: =IFERROR(IF($J63="","",VLOOKUP($J63,Catálogo!$B$5:$C$21,2,FALSE)),"Introduzca un sector de inversión válido") -> 43 | L63: Deporte, recreación y bienestar | M63: Fomento a la recreación, la actividad física y el deporte para desarrollar entornos de convivencia y paz (4301) | N63: =IFERROR(IF($M63="","",VLOOKUP($M63,Catálogo!$E$25:$F$93,2,FALSE)),"Introduzca un programa presupuestal válido") -> 4301 | O63: =IFERROR(IF($N63="","",VLOOKUP($N63,Catálogo!$F$25:$G$94,2,FALSE)),"Introduzca un programa presupuestal válido") -> A.4 - Deporte y recreación | P63: CONTINÚE: El programa presupuestal y sector de inversión coinciden | Q63: Servicio de organización de eventos deportivos comunitarios | R63: Dirección Deporte y Recreación | S63: Servicio de organización de eventos deportivos comunitarios (4301032) | T63: =IFERROR(IF($S63="","",VLOOKUP($S63,Catálogo!$G$97:$H$2750,2,FALSE)),"Introduzca un producto válido") -> 4301032 | U63: CONTINÚE: El producto y programa presupuestal coinciden | V63: Personas beneficiadas (430103201) | W63: =IFERROR(IF($V63="","",VLOOKUP($V63,Catálogo!$B$3019:$C$9130,2,FALSE)),"Introduzca un indicador de producto válido") -> 430103201 | X63: CONTINÚE: El indicador de producto y el producto coinciden | Z63: Número | AA63: 6000 | AB63: Incremento | AC63: ODS 3. Salud y bienestar | AD63: 5.4. Reparación integral para la construcción de Paz | AE63: Reparación / Retorno y reubicación (Solo víctimas desplazamiento) | AK63: =+IFERROR(VLOOKUP(AJ63,Iniciativas!E:F,2,FALSE),"Seleccione el código de la iniciativa") -> Seleccione el código de la iniciativa | AL63: 1500 | AM63: 2000 | AN63: 1250 | AO63: 1250 | AP63: 150000000 | AQ63: 0 | AR63: 0 | AS63: 0 | AT63: 0 | AU63: 0 | AV63: 0 | AW63: 0 | AX63: 0 | AY63: 0 | AZ63: 0 | BA63: 0 | BB63: 0 | BC63: 0 | BD63: 0 | BE63: 0 | BF63: 150000000 | BG63: 150000000 | BH63: 0 | BI63: 0 | BJ63: 0 | BK63: 0 | BL63: 0 | BM63: 0 | BN63: 0 | BO63: 0 | BP63: 0 | BQ63: 0 | BR63: 0 | BS63: 0 | BT63: 0 | BU63: 0 | BV63: 0 | BW63: 150000000 | BX63: 150000000 | BY63: 0 | BZ63: 0 | CA63: 0 | CB63: 0 | CC63: 0 | CD63: 0 | CE63: 0 | CF63: 0 | CG63: 0 | CH63: 0 | CI63: 0 | CJ63: 0 | CK63: 0 | CL63: 0 | CM63: 0 | CN63: 150000000 | CO63: 150000000 | CP63: 0 | CQ63: 0 | CR63: 0 | CS63: 0 | CT63: 0 | CU63: 0 | CV63: 0 | CW63: 0 | CX63: 0 | CY63: 0 | CZ63: 0 | DA63: 0 | DB63: 0 | DC63: 0 | DD63: 0 | DE63: =+CO63+CP63+CQ63+CR63+CS63+CT63+CU63+CV63+CW63+CX63+CY63+CZ63+DA63+DB63+DC63+DD63 -> 150000000 | DF63: 600000000
A64: 60 | B64: Transformación y Desarrollo Social con Equidad | C64: N° de niñas, niños y adolescentes que acceden a servicios recreativos-deportivos, de actividad física y aprovechamiento del tiempo libre | D64: 5800 | E64: Número | F64: 7800 | J64: Deporte y recreación | K64: =IFERROR(IF($J64="","",VLOOKUP($J64,Catálogo!$B$5:$C$21,2,FALSE)),"Introduzca un sector de inversión válido") -> 43 | L64: Deporte, recreación y bienestar | M64: Fomento a la recreación, la actividad física y el deporte para desarrollar entornos de convivencia y paz (4301) | N64: =IFERROR(IF($M64="","",VLOOKUP($M64,Catálogo!$E$25:$F$93,2,FALSE)),"Introduzca un programa presupuestal válido") -> 4301 | O64: =IFERROR(IF($N64="","",VLOOKUP($N64,Catálogo!$F$25:$G$94,2,FALSE)),"Introduzca un programa presupuestal válido") -> A.4 - Deporte y recreación | P64: CONTINÚE: El programa presupuestal y sector de inversión coinciden | Q64: Servicio de promoción de la actividad física, la recreación y el deporte | R64: Dirección Deporte y Recreación | S64: Servicio de promoción de la actividad física, la recreación y el deporte (4301037) | T64: =IFERROR(IF($S64="","",VLOOKUP($S64,Catálogo!$G$97:$H$2750,2,FALSE)),"Introduzca un producto válido") -> 4301037 | U64: CONTINÚE: El producto y programa presupuestal coinciden | V64: Personas atendidas por los programas de recreación, deporte social comunitario, actividad física y aprovechamiento del tiempo libre (430103703) | W64: =IFERROR(IF($V64="","",VLOOKUP($V64,Catálogo!$B$3019:$C$9130,2,FALSE)),"Introduzca un indicador de producto válido") -> 430103703 | X64: CONTINÚE: El indicador de producto y el producto coinciden | Z64: Número | AA64: 25000 | AB64: Incremento | AC64: ODS 3. Salud y bienestar | AD64: 5.4. Reparación integral para la construcción de Paz | AE64: Reparación / Retorno y reubicación (Solo víctimas desplazamiento) | AK64: =+IFERROR(VLOOKUP(AJ64,Iniciativas!E:F,2,FALSE),"Seleccione el código de la iniciativa") -> Seleccione el código de la iniciativa | AL64: 2000 | AM64: 6000 | AN64: 8500 | AO64: 8500 | AP64: 126052587.9 | AQ64: 0 | AR64: 0 | AS64: 0 | AT64: 0 | AU64: 125222600.1 | AV64: 0 | AW64: 0 | AX64: 0 | AY64: 0 | AZ64: 0 | BA64: 0 | BB64: 48724812 | BC64: 0 | BD64: 0 | BE64: 0 | BF64: 300000000 | BG64: 126052587.9 | BH64: 0 | BI64: 0 | BJ64: 0 | BK64: 0 | BL64: 125222600.1 | BM64: 0 | BN64: 0 | BO64: 0 | BP64: 0 | BQ64: 0 | BR64: 0 | BS64: 48724812 | BT64: 0 | BU64: 0 | BV64: 0 | BW64: 300000000 | BX64: 126052587.9 | BY64: 0 | BZ64: 0 | CA64: 0 | CB64: 0 | CC64: 125222600.1 | CD64: 0 | CE64: 0 | CF64: 0 | CG64: 0 | CH64: 0 | CI64: 0 | CJ64: 48724812 | CK64: 0 | CL64: 0 | CM64: 0 | CN64: 300000000 | CO64: 126052587.9 | CP64: 0 | CQ64: 0 | CR64: 0 | CS64: 0 | CT64: 125222600.1 | CU64: 0 | CV64: 0 | CW64: 0 | CX64: 0 | CY64: 0 | CZ64: 0 | DA64: 48724812 | DB64: 0 | DC64: 0 | DD64: 0 | DE64: =+CO64+CP64+CQ64+CR64+CS64+CT64+CU64+CV64+CW64+CX64+CY64+CZ64+DA64+DB64+DC64+DD64 -> 300000000 | DF64: 1200000000
A65: 61 | B65: Transformación y Desarrollo Social con Equidad | C65: N° de niñas, niños y adolescentes que acceden a servicios recreativos-deportivos, de actividad física y aprovechamiento del tiempo libre | D65: 5800 | E65: Número | F65: 7800 | J65: Deporte y recreación | K65: =IFERROR(IF($J65="","",VLOOKUP($J65,Catálogo!$B$5:$C$21,2,FALSE)),"Introduzca un sector de inversión válido") -> 43 | L65: Deporte, recreación y bienestar | M65: Fomento a la recreación, la actividad física y el deporte para desarrollar entornos de convivencia y paz (4301) | N65: =IFERROR(IF($M65="","",VLOOKUP($M65,Catálogo!$E$25:$F$93,2,FALSE)),"Introduzca un programa presupuestal válido") -> 4301 | O65: =IFERROR(IF($N65="","",VLOOKUP($N65,Catálogo!$F$25:$G$94,2,FALSE)),"Introduzca un programa presupuestal válido") -> A.4 - Deporte y recreación | P65: CONTINÚE: El programa presupuestal y sector de inversión coinciden | Q65: Servicio de organización de eventos recreativos comunitarios | R65: Dirección Deporte y Recreación | S65: Servicio de organización de eventos recreativos comunitarios (4301038) | T65: =IFERROR(IF($S65="","",VLOOKUP($S65,Catálogo!$G$97:$H$2750,2,FALSE)),"Introduzca un producto válido") -> 4301038 | U65: CONTINÚE: El producto y programa presupuestal coinciden | V65: Personas beneficiadas (430103800) | W65: =IFERROR(IF($V65="","",VLOOKUP($V65,Catálogo!$B$3019:$C$9130,2,FALSE)),"Introduzca un indicador de producto válido") -> 430103800 | X65: CONTINÚE: El indicador de producto y el producto coinciden | Z65: Número | AA65: 2000 | AB65: Incremento | AC65: ODS 3. Salud y bienestar | AD65: 5.4. Reparación integral para la construcción de Paz | AE65: Reparación / Retorno y reubicación (Solo víctimas desplazamiento) | AK65: =+IFERROR(VLOOKUP(AJ65,Iniciativas!E:F,2,FALSE),"Seleccione el código de la iniciativa") -> Seleccione el código de la iniciativa | AL65: 250 | AM65: 1300 | AN65: 225 | AO65: 225 | AP65: 50000000 | AQ65: 0 | AR65: 0 | AS65: 0 | AT65: 0 | AU65: 0 | AV65: 0 | AW65: 0 | AX65: 0 | AY65: 0 | AZ65: 0 | BA65: 0 | BB65: 0 | BC65: 0 | BD65: 0 | BE65: 0 | BF65: 50000000 | BG65: 50000000 | BH65: 0 | BI65: 0 | BJ65: 0 | BK65: 0 | BL65: 0 | BM65: 0 | BN65: 0 | BO65: 0 | BP65: 0 | BQ65: 0 | BR65: 0 | BS65: 0 | BT65: 0 | BU65: 0 | BV65: 0 | BW65: 50000000 | BX65: 50000000 | BY65: 0 | BZ65: 0 | CA65: 0 | CB65: 0 | CC65: 0 | CD65: 0 | CE65: 0 | CF65: 0 | CG65: 0 | CH65: 0 | CI65: 0 | CJ65: 0 | CK65: 0 | CL65: 0 | CM65: 0 | CN65: 50000000 | CO65: 50000000 | CP65: 0 | CQ65: 0 | CR65: 0 | CS65: 0 | CT65: 0 | CU65: 0 | CV65: 0 | CW65: 0 | CX65: 0 | CY65: 0 | CZ65: 0 | DA65: 0 | DB65: 0 | DC65: 0 | DD65: 0 | DE65: 50000000 | DF65: 200000000
A66: 62 | B66: Transformación y Desarrollo Social con Equidad | C66: N° de Escenarios deportivos y recreativos en condiciones de calidad para el desarrollo de programas | D66: 8 | E66: Número | F66: 16 | J66: Deporte y recreación | K66: =IFERROR(IF($J66="","",VLOOKUP($J66,Catálogo!$B$5:$C$21,2,FALSE)),"Introduzca un sector de inversión válido") -> 43 | L66: Deporte, recreación y bienestar | M66: Fomento a la recreación, la actividad física y el deporte para desarrollar entornos de convivencia y paz (4301) | N66: =IFERROR(IF($M66="","",VLOOKUP($M66,Catálogo!$E$25:$F$93,2,FALSE)),"Introduzca un programa presupuestal válido") -> 4301 | O66: =IFERROR(IF($N66="","",VLOOKUP($N66,Catálogo!$F$25:$G$94,2,FALSE)),"Introduzca un programa presupuestal válido") -> A.4 - Deporte y recreación | P66: CONTINÚE: El programa presupuestal y sector de inversión coinciden | Q66: Servicio de mantenimiento a la infraestructura deportiva | R66: Dirección Deporte y Recreación | S66: Servicio de mantenimiento a la infraestructura deportiva (4301004) | T66: =IFERROR(IF($S66="","",VLOOKUP($S66,Catálogo!$G$97:$H$2750,2,FALSE)),"Introduzca un producto válido") -> 4301004 | U66: CONTINÚE: El producto y programa presupuestal coinciden | V66: Infraestructura deportiva mantenida (430100400) | W66: =IFERROR(IF($V66="","",VLOOKUP($V66,Catálogo!$B$3019:$C$9130,2,FALSE)),"Introduzca un indicador de producto válido") -> 430100400 | X66: CONTINÚE: El indicador de producto y el producto coinciden | Z66: Número | AA66: 8 | AB66: Mantenimiento | AC66: ODS 3. Salud y bienestar | AD66: 5.4. Reparación integral para la construcción de Paz | AE66: Reparación / Retorno y reubicación (Solo víctimas desplazamiento) | AK66: =+IFERROR(VLOOKUP(AJ66,Iniciativas!E:F,2,FALSE),"Seleccione el código de la iniciativa") -> Seleccione el código de la iniciativa | AL66: 8 | AM66: 8 | AN66: 8 | AO66: 8 | AP66: 40000000 | AQ66: 0 | AR66: 0 | AS66: 0 | AT66: 0 | AU66: 0 | AV66: 0 | AW66: 0 | AX66: 0 | AY66: 0 | AZ66: 0 | BA66: 0 | BB66: 0 | BC66: 0 | BD66: 0 | BE66: 0 | BF66: 40000000 | BG66: 40000000 | BH66: 0 | BI66: 0 | BJ66: 0 | BK66: 0 | BL66: 0 | BM66: 0 | BN66: 0 | BO66: 0 | BP66: 0 | BQ66: 0 | BR66: 0 | BS66: 0 | BT66: 0 | BU66: 0 | BV66: 0 | BW66: 40000000 | BX66: 40000000 | BY66: 0 | BZ66: 0 | CA66: 0 | CB66: 0 | CC66: 0 | CD66: 0 | CE66: 0 | CF66: 0 | CG66: 0 | CH66: 0 | CI66: 0 | CJ66: 0 | CK66: 0 | CL66: 0 | CM66: 0 | CN66: 40000000 | CO66: 40000000 | CP66: 0 | CQ66: 0 | CR66: 0 | CS66: 0 | CT66: 0 | CU66: 0 | CV66: 0 | CW66: 0 | CX66: 0 | CY66: 0 | CZ66: 0 | DA66: 0 | DB66: 0 | DC66: 0 | DD66: 0 | DE66: 40000000 | DF66: 160000000
A67: 63 | B67: Transformación y Desarrollo Social con Equidad | C67: N° de Escenarios deportivos y recreativos en condiciones de calidad para el desarrollo de programas | D67: 8 | E67: Número | F67: 16 | J67: Deporte y recreación | K67: =IFERROR(IF($J67="","",VLOOKUP($J67,Catálogo!$B$5:$C$21,2,FALSE)),"Introduzca un sector de inversión válido") -> 43 | L67: Deporte, recreación y bienestar | M67: Fomento a la recreación, la actividad física y el deporte para desarrollar entornos de convivencia y paz (4301) | N67: =IFERROR(IF($M67="","",VLOOKUP($M67,Catálogo!$E$25:$F$93,2,FALSE)),"Introduzca un programa presupuestal válido") -> 4301 | O67: =IFERROR(IF($N67="","",VLOOKUP($N67,Catálogo!$F$25:$G$94,2,FALSE)),"Introduzca un programa presupuestal válido") -> A.4 - Deporte y recreación | P67: CONTINÚE: El programa presupuestal y sector de inversión coinciden | Q67: Servicio de mantenimiento a la infraestructura deportiva | R67: Dirección Deporte y Recreación | S67: Servicio de mantenimiento a la infraestructura deportiva (4301004) | T67: =IFERROR(IF($S67="","",VLOOKUP($S67,Catálogo!$G$97:$H$2750,2,FALSE)),"Introduzca un producto válido") -> 4301004 | U67: CONTINÚE: El producto y programa presupuestal coinciden | V67: Intervenciones realizadas a infraestructura deportiva (430100401) | W67: =IFERROR(IF($V67="","",VLOOKUP($V67,Catálogo!$B$3019:$C$9130,2,FALSE)),"Introduzca un indicador de producto válido") -> 430100401 | X67: CONTINÚE: El indicador de producto y el producto coinciden | Z67: Número | AA67: 4 | AB67: Incremento | AC67: ODS 3. Salud y bienestar | AD67: 5.4. Reparación integral para la construcción de Paz | AE67: Reparación / Retorno y reubicación (Solo víctimas desplazamiento) | AK67: =+IFERROR(VLOOKUP(AJ67,Iniciativas!E:F,2,FALSE),"Seleccione el código de la iniciativa") -> Seleccione el código de la iniciativa | AL67: 1 | AM67: 1 | AN67: 1 | AO67: 1 | AP67: 40000000 | AQ67: 0 | AR67: 0 | AS67: 0 | AT67: 0 | AU67: 0 | AV67: 0 | AW67: 0 | AX67: 0 | AY67: 0 | AZ67: 0 | BA67: 0 | BB67: 0 | BC67: 0 | BD67: 0 | BE67: 0 | BF67: 40000000 | BG67: 40000000 | BH67: 0 | BI67: 0 | BJ67: 0 | BK67: 0 | BL67: 0 | BM67: 0 | BN67: 0 | BO67: 0 | BP67: 0 | BQ67: 0 | BR67: 0 | BS67: 0 | BT67: 0 | BU67: 0 | BV67: 0 | BW67: 40000000 | BX67: 40000000 | BY67: 0 | BZ67: 0 | CA67: 0 | CB67: 0 | CC67: 0 | CD67: 0 | CE67: 0 | CF67: 0 | CG67: 0 | CH67: 0 | CI67: 0 | CJ67: 0 | CK67: 0 | CL67: 0 | CM67: 0 | CN67: 40000000 | CO67: 40000000 | CP67: 0 | CQ67: 0 | CR67: 0 | CS67: 0 | CT67: 0 | CU67: 0 | CV67: 0 | CW67: 0 | CX67: 0 | CY67: 0 | CZ67: 0 | DA67: 0 | DB67: 0 | DC67: 0 | DD67: 0 | DE67: 40000000 | DF67: 160000000
A68: 64 | B68: Transformación y Desarrollo Social con Equidad | C68: N° de Escenarios deportivos y recreativos en condiciones de calidad para el desarrollo de programas | D68: 8 | E68: Número | F68: 16 | J68: Deporte y recreación | K68: =IFERROR(IF($J68="","",VLOOKUP($J68,Catálogo!$B$5:$C$21,2,FALSE)),"Introduzca un sector de inversión válido") -> 43 | L68: Deporte, recreación y bienestar | M68: Fomento a la recreación, la actividad física y el deporte para desarrollar entornos de convivencia y paz (4301) | N68: =IFERROR(IF($M68="","",VLOOKUP($M68,Catálogo!$E$25:$F$93,2,FALSE)),"Introduzca un programa presupuestal válido") -> 4301 | O68: =IFERROR(IF($N68="","",VLOOKUP($N68,Catálogo!$F$25:$G$94,2,FALSE)),"Introduzca un programa presupuestal válido") -> A.4 - Deporte y recreación | P68: CONTINÚE: El programa presupuestal y sector de inversión coinciden | Q68: Parques recreativos mantenidos | R68: Dirección Deporte y Recreación | S68: Parques recreativos mantenidos (4301012) | T68: =IFERROR(IF($S68="","",VLOOKUP($S68,Catálogo!$G$97:$H$2750,2,FALSE)),"Introduzca un producto válido") -> 4301012 | U68: CONTINÚE: El producto y programa presupuestal coinciden | V68: Parques recreativos mantenidos (430101200) | W68: =IFERROR(IF($V68="","",VLOOKUP($V68,Catálogo!$B$3019:$C$9130,2,FALSE)),"Introduzca un indicador de producto válido") -> 430101200 | X68: CONTINÚE: El indicador de producto y el producto coinciden | Z68: Número | AA68: 5 | AB68: Incremento | AC68: ODS 3. Salud y bienestar | AD68: 5.4. Reparación integral para la construcción de Paz | AE68: Reparación / Retorno y reubicación (Solo víctimas desplazamiento) | AK68: =+IFERROR(VLOOKUP(AJ68,Iniciativas!E:F,2,FALSE),"Seleccione el código de la iniciativa") -> Seleccione el código de la iniciativa | AL68: 4 | AM68: 1 | AN68: 0 | AO68: 0 | AP68: 50000000 | AQ68: 0 | AR68: 0 | AS68: 0 | AT68: 0 | AU68: 0 | AV68: 0 | AW68: 0 | AX68: 0 | AY68: 0 | AZ68: 0 | BA68: 0 | BB68: 0 | BC68: 0 | BD68: 0 | BE68: 0 | BF68: 50000000 | BG68: 50000000 | BH68: 0 | BI68: 0 | BJ68: 0 | BK68: 0 | BL68: 0 | BM68: 0 | BN68: 0 | BO68: 0 | BP68: 0 | BQ68: 0 | BR68: 0 | BS68: 0 | BT68: 0 | BU68: 0 | BV68: 0 | BW68: 50000000 | BX68: 0 | BY68: 0 | BZ68: 0 | CA68: 0 | CB68: 0 | CC68: 0 | CD68: 0 | CE68: 0 | CF68: 0 | CG68: 0 | CH68: 0 | CI68: 0 | CJ68: 0 | CK68: 0 | CL68: 0 | CM68: 0 | CN68: 0 | CO68: 0 | CP68: 0 | CQ68: 0 | CR68: 0 | CS68: 0 | CT68: 0 | CU68: 0 | CV68: 0 | CW68: 0 | CX68: 0 | CY68: 0 | CZ68: 0 | DA68: 0 | DB68: 0 | DC68: 0 | DD68: 0 | DE68: 0 | DF68: 100000000
A69: 65 | B69: Transformación y Desarrollo Social con Equidad | C69: N° de Escenarios deportivos y recreativos en condiciones de calidad para el desarrollo de programas | D69: 8 | E69: Número | F69: 16 | J69: Deporte y recreación | K69: =IFERROR(IF($J69="","",VLOOKUP($J69,Catálogo!$B$5:$C$21,2,FALSE)),"Introduzca un sector de inversión válido") -> 43 | L69: Deporte, recreación y bienestar | M69: Fomento a la recreación, la actividad física y el deporte para desarrollar entornos de convivencia y paz (4301) | N69: =IFERROR(IF($M69="","",VLOOKUP($M69,Catálogo!$E$25:$F$93,2,FALSE)),"Introduzca un programa presupuestal válido") -> 4301 | O69: =IFERROR(IF($N69="","",VLOOKUP($N69,Catálogo!$F$25:$G$94,2,FALSE)),"Introduzca un programa presupuestal válido") -> A.4 - Deporte y recreación | P69: CONTINÚE: El programa presupuestal y sector de inversión coinciden | Q69: Canchas multifuncionales mejoradas | R69: Dirección Deporte y Recreación | S69: Canchas multifuncionales mejoradas (4301018) | T69: =IFERROR(IF($S69="","",VLOOKUP($S69,Catálogo!$G$97:$H$2750,2,FALSE)),"Introduzca un producto válido") -> 4301018 | U69: =IF(OR($N69="",$T69=""),"Sin información diligenciada",IF(LEFT($T69,4)=$N69,"CONTINÚE: El producto y programa presupuestal coinciden","DETÉNGASE: Verifique que seleccionó un programa presupuestal y un producto válidos, y que además, coinciden")) -> CONTINÚE: El producto y programa presupuestal coinciden | V69: Canchas de eventos recreativos mejorados (430101800) | W69: =IFERROR(IF($V69="","",VLOOKUP($V69,Catálogo!$B$3019:$C$9130,2,FALSE)),"Introduzca un indicador de producto válido") -> 430101800 | X69: CONTINÚE: El indicador de producto y el producto coinciden | Z69: Número | AA69: 1 | AB69: Incremento | AC69: ODS 3. Salud y bienestar | AD69: 5.4. Reparación integral para la construcción de Paz | AE69: Reparación / Retorno y reubicación (Solo víctimas desplazamiento) | AK69: =+IFERROR(VLOOKUP(AJ69,Iniciativas!E:F,2,FALSE),"Seleccione el código de la iniciativa") -> Seleccione el código de la iniciativa | AL69: 1 | AM69: 0 | AN69: 0 | AO69: 0 | AP69: 200000000 | AQ69: 0 | AR69: 0 | AS69: 0 | AT69: 0 | AU69: 0 | AV69: 0 | AW69: 0 | AX69: 0 | AY69: 0 | AZ69: 0 | BA69: 0 | BB69: 0 | BC69: 0 | BD69: 0 | BE69: 0 | BF69: 200000000 | BG69: 0 | BH69: 0 | BI69: 0 | BJ69: 0 | BK69: 0 | BL69: 0 | BM69: 0 | BN69: 0 | BO69: 0 | BP69: 0 | BQ69: 0 | BR69: 0 | BS69: 0 | BT69: 0 | BU69: 0 | BV69: 0 | BW69: 0 | BX69: 0 | BY69: 0 | BZ69: 0 | CA69: 0 | CB69: 0 | CC69: 0 | CD69: 0 | CE69: 0 | CF69: 0 | CG69: 0 | CH69: 0 | CI69: 0 | CJ69: 0 | CK69: 0 | CL69: 0 | CM69: 0 | CN69: 0 | CO69: 0 | CP69: 0 | CQ69: 0 | CR69: 0 | CS69: 0 | CT69: 0 | CU69: 0 | CV69: 0 | CW69: 0 | CX69: 0 | CY69: 0 | CZ69: 0 | DA69: 0 | DB69: 0 | DC69: 0 | DD69: 0 | DE69: 0 | DF69: 200000000
A70: 66 | B70: Transformación y Desarrollo Social con Equidad | C70: N° de Escenarios deportivos y recreativos en condiciones de calidad para el desarrollo de programas | D70: 8 | E70: Número | F70: 16 | J70: Deporte y recreación | K70: =IFERROR(IF($J70="","",VLOOKUP($J70,Catálogo!$B$5:$C$21,2,FALSE)),"Introduzca un sector de inversión válido") -> 43 | L70: Deporte, recreación y bienestar | M70: Fomento a la recreación, la actividad física y el deporte para desarrollar entornos de convivencia y paz (4301) | N70: =IFERROR(IF($M70="","",VLOOKUP($M70,Catálogo!$E$25:$F$93,2,FALSE)),"Introduzca un programa presupuestal válido") -> 4301 | O70: =IFERROR(IF($N70="","",VLOOKUP($N70,Catálogo!$F$25:$G$94,2,FALSE)),"Introduzca un programa presupuestal válido") -> A.4 - Deporte y recreación | P70: =IF(OR($K70="",$N70=""),"Sin información diligenciada",IF(LEFT($N70,2)=$K70,"CONTINÚE: El programa presupuestal y sector de inversión coinciden","DETÉNGASE: Verifique que seleccionó sector y un programa presupuestal válidos, y que además, coinciden")) -> CONTINÚE: El programa presupuestal y sector de inversión coinciden | Q70: Placa deportiva mantenida | R70: Dirección Deporte y Recreación | S70: Placa deportiva mantenida (4301022) | T70: =IFERROR(IF($S70="","",VLOOKUP($S70,Catálogo!$G$97:$H$2750,2,FALSE)),"Introduzca un producto válido") -> 4301022 | U70: CONTINÚE: El producto y programa presupuestal coinciden | V70: Placa deportiva mantenida (430102200) | W70: =IFERROR(IF($V70="","",VLOOKUP($V70,Catálogo!$B$3019:$C$9130,2,FALSE)),"Introduzca un indicador de producto válido") -> 430102200 | X70: =IF(OR($T70="",$W70=""),"Sin información diligenciada",IF(LEFT($W70,7)=$T70,"CONTINÚE: El indicador de producto y el producto coinciden","DETÉNGASE: Verifique que seleccionó un producto y un indicador de producto válidos, y que además, coinciden")) -> CONTINÚE: El indicador de producto y el producto coinciden | Z70: Número | AA70: 8 | AB70: Incremento | AC70: ODS 3. Salud y bienestar | AD70: 5.4. Reparación integral para la construcción de Paz | AE70: Reparación / Retorno y reubicación (Solo víctimas desplazamiento) | AK70: =+IFERROR(VLOOKUP(AJ70,Iniciativas!E:F,2,FALSE),"Seleccione el código de la iniciativa") -> Seleccione el código de la iniciativa | AL70: 2 | AM70: 2 | AN70: 2 | AO70: 2 | AP70: 20000000 | AQ70: 0 | AR70: 0 | AS70: 0 | AT70: 0 | AU70: 0 | AV70: 0 | AW70: 0 | AX70: 0 | AY70: 0 | AZ70: 0 | BA70: 0 | BB70: 24000000 | BC70: 0 | BD70: 0 | BE70: 0 | BF70: =+AP70+AQ70+AR70+AS70+AT70+AU70+AV70+AW70+AX70+AY70+AZ70+BA70+BB70+BC70+BD70+BE70 -> 44000000 | BG70: 20000000 | BH70: 0 | BI70: 0 | BJ70: 0 | BK70: 0 | BL70: 0 | BM70: 0 | BN70: 0 | BO70: 0 | BP70: 0 | BQ70: 0 | BR70: 0 | BS70: 24000000 | BT70: 0 | BU70: 0 | BV70: 0 | BW70: =+BG70+BH70+BI70+BJ70+BK70+BL70+BM70+BN70+BO70+BP70+BQ70+BR70+BS70+BT70+BU70+BV70 -> 44000000 | BX70: 20000000 | BY70: 0 | BZ70: 0 | CA70: 0 | CB70: 0 | CC70: 0 | CD70: 0 | CE70: 0 | CF70: 0 | CG70: 0 | CH70: 0 | CI70: 0 | CJ70: 24000000 | CK70: 0 | CL70: 0 | CM70: 0 | CN70: =+BX70+BY70+BZ70+CA70+CB70+CC70+CD70+CE70+CF70+CG70+CH70+CI70+CJ70+CK70+CL70+CM70 -> 44000000 | CO70: 20000000 | CP70: 0 | CQ70: 0 | CR70: 0 | CS70: 0 | CT70: 0 | CU70: 0 | CV70: 0 | CW70: 0 | CX70: 0 | CY70: 0 | CZ70: 0 | DA70: 24000000 | DB70: 0 | DC70: 0 | DD70: 0 | DE70: =+CO70+CP70+CQ70+CR70+CS70+CT70+CU70+CV70+CW70+CX70+CY70+CZ70+DA70+DB70+DC70+DD70 -> 44000000 | DF70: =+BF70+BW70+CN70+DE70 -> 176000000
A71: 67 | B71: Transformación y Desarrollo Social con Equidad | C71: N° de Escenarios deportivos y recreativos en condiciones de calidad para el desarrollo de programas | D71: 8 | E71: Número | F71: 16 | J71: Deporte y recreación | K71: =IFERROR(IF($J71="","",VLOOKUP($J71,Catálogo!$B$5:$C$21,2,FALSE)),"Introduzca un sector de inversión válido") -> 43 | L71: Deporte, recreación y bienestar | M71: Fomento a la recreación, la actividad física y el deporte para desarrollar entornos de convivencia y paz (4301) | N71: =IFERROR(IF($M71="","",VLOOKUP($M71,Catálogo!$E$25:$F$93,2,FALSE)),"Introduzca un programa presupuestal válido") -> 4301 | O71: =IFERROR(IF($N71="","",VLOOKUP($N71,Catálogo!$F$25:$G$94,2,FALSE)),"Introduzca un programa presupuestal válido") -> A.4 - Deporte y recreación | P71: CONTINÚE: El programa presupuestal y sector de inversión coinciden | Q71: Gimnasios al aire libre estáticos | R71: Dirección Deporte y Recreación | S71: Gimnasios al aire libre estáticos (4301024) | T71: =IFERROR(IF($S71="","",VLOOKUP($S71,Catálogo!$G$97:$H$2750,2,FALSE)),"Introduzca un producto válido") -> 4301024 | U71: CONTINÚE: El producto y programa presupuestal coinciden | V71: Gimnasios al aire libre construidos (430102400) | W71: =IFERROR(IF($V71="","",VLOOKUP($V71,Catálogo!$B$3019:$C$9130,2,FALSE)),"Introduzca un indicador de producto válido") -> 430102400 | X71: CONTINÚE: El indicador de producto y el producto coinciden | Z71: Número | AA71: 2 | AB71: Incremento | AC71: ODS 3. Salud y bienestar | AD71: 5.4. Reparación integral para la construcción de Paz | AE71: Reparación / Retorno y reubicación (Solo víctimas desplazamiento) | AK71: =+IFERROR(VLOOKUP(AJ71,Iniciativas!E:F,2,FALSE),"Seleccione el código de la iniciativa") -> Seleccione el código de la iniciativa | AL71: 1 | AM71: 1 | AN71: 0 | AO71: 0 | AP71: 30000000 | AQ71: 0 | AR71: 0 | AS71: 0 | AT71: 0 | AU71: 0 | AV71: 0 | AW71: 0 | AX71: 0 | AY71: 0 | AZ71: 0 | BA71: 0 | BB71: 0 | BC71: 0 | BD71: 0 | BE71: 0 | BF71: 30000000 | BG71: 30000000 | BH71: 0 | BI71: 0 | BJ71: 0 | BK71: 0 | BL71: 0 | BM71: 0 | BN71: 0 | BO71: 0 | BP71: 0 | BQ71: 0 | BR71: 0 | BS71: 0 | BT71: 0 | BU71: 0 | BV71: 0 | BW71: 30000000 | BX71: 0 | BY71: 0 | BZ71: 0 | CA71: 0 | CB71: 0 | CC71: 0 | CD71: 0 | CE71: 0 | CF71: 0 | CG71: 0 | CH71: 0 | CI71: 0 | CJ71: 0 | CK71: 0 | CL71: 0 | CM71: 0 | CN71: 0 | CO71: 0 | CP71: 0 | CQ71: 0 | CR71: 0 | CS71: 0 | CT71: 0 | CU71: 0 | CV71: 0 | CW71: 0 | CX71: 0 | CY71: 0 | CZ71: 0 | DA71: 0 | DB71: 0 | DC71: 0 | DD71: 0 | DE71: 0 | DF71: 60000000
A72: 68 | B72: Transformación y Desarrollo Social con Equidad | C72: N° de Escenarios deportivos y recreativos en condiciones de calidad para el desarrollo de programas | D72: 8 | E72: Número | F72: 16 | J72: Deporte y recreación | K72: =IFERROR(IF($J72="","",VLOOKUP($J72,Catálogo!$B$5:$C$21,2,FALSE)),"Introduzca un sector de inversión válido") -> 43 | L72: Deporte, recreación y bienestar | M72: Fomento a la recreación, la actividad física y el deporte para desarrollar entornos de convivencia y paz (4301) | N72: =IFERROR(IF($M72="","",VLOOKUP($M72,Catálogo!$E$25:$F$93,2,FALSE)),"Introduzca un programa presupuestal válido") -> 4301 | O72: =IFERROR(IF($N72="","",VLOOKUP($N72,Catálogo!$F$25:$G$94,2,FALSE)),"Introduzca un programa presupuestal válido") -> A.4 - Deporte y recreación | P72: CONTINÚE: El programa presupuestal y sector de inversión coinciden | Q72: Parque recreo-deportivo construido y dotado | R72: Dirección Deporte y Recreación | S72: Parque recreo-deportivo construido y dotado (4301030) | T72: =IFERROR(IF($S72="","",VLOOKUP($S72,Catálogo!$G$97:$H$2750,2,FALSE)),"Introduzca un producto válido") -> 4301030 | U72: CONTINÚE: El producto y programa presupuestal coinciden | V72: Parque recreo-deportivo construido y dotado (430103000) | W72: =IFERROR(IF($V72="","",VLOOKUP($V72,Catálogo!$B$3019:$C$9130,2,FALSE)),"Introduzca un indicador de producto válido") -> 430103000 | X72: CONTINÚE: El indicador de producto y el producto coinciden | Z72: Número | AA72: 1 | AB72: Incremento | AC72: ODS 3. Salud y bienestar | AD72: 5.4. Reparación integral para la construcción de Paz | AE72: Reparación / Retorno y reubicación (Solo víctimas desplazamiento) | AK72: =+IFERROR(VLOOKUP(AJ72,Iniciativas!E:F,2,FALSE),"Seleccione el código de la iniciativa") -> Seleccione el código de la iniciativa | AL72: 0.1 | AM72: 0.2 | AN72: 0.3 | AO72: 0.4 | AP72: 20000000 | AQ72: 0 | AR72: 0 | AS72: 0 | AT72: 0 | AU72: 0 | AV72: 0 | AW72: 0 | AX72: 0 | AY72: 0 | AZ72: 0 | BA72: 0 | BB72: 0 | BC72: 0 | BD72: 0 | BE72: 0 | BF72: 20000000 | BG72: 20000000 | BH72: 0 | BI72: 0 | BJ72: 0 | BK72: 0 | BL72: 0 | BM72: 0 | BN72: 0 | BO72: 0 | BP72: 0 | BQ72: 0 | BR72: 0 | BS72: 0 | BT72: 0 | BU72: 0 | BV72: 0 | BW72: 20000000 | BX72: 20000000 | BY72: 0 | BZ72: 0 | CA72: 0 | CB72: 0 | CC72: 0 | CD72: 0 | CE72: 0 | CF72: 0 | CG72: 0 | CH72: 0 | CI72: 0 | CJ72: 0 | CK72: 0 | CL72: 0 | CM72: 0 | CN72: 20000000 | CO72: 20000000 | CP72: 0 | CQ72: 0 | CR72: 0 | CS72: 0 | CT72: 0 | CU72: 0 | CV72: 0 | CW72: 0 | CX72: 0 | CY72: 0 | CZ72: 0 | DA72: 0 | DB72: 0 | DC72: 0 | DD72: 0 | DE72: 20000000 | DF72: 80000000
A73: 69 | B73: Transformación y Desarrollo Social con Equidad | C73: N° de Escenarios deportivos y recreativos en condiciones de calidad para el desarrollo de programas | D73: 8 | E73: Número | F73: 16 | J73: Deporte y recreación | K73: =IFERROR(IF($J73="","",VLOOKUP($J73,Catálogo!$B$5:$C$21,2,FALSE)),"Introduzca un sector de inversión válido") -> 43 | L73: Deporte, recreación y bienestar | M73: Formación y preparación de deportistas (4302) | N73: =IFERROR(IF($M73="","",VLOOKUP($M73,Catálogo!$E$25:$F$93,2,FALSE)),"Introduzca un programa presupuestal válido") -> 4302 | O73: =IFERROR(IF($N73="","",VLOOKUP($N73,Catálogo!$F$25:$G$94,2,FALSE)),"Introduzca un programa presupuestal válido") -> A.4 - Deporte y recreación | P73: CONTINÚE: El programa presupuestal y sector de inversión coinciden | Q73: Estadios mejorados | R73: Dirección Deporte y Recreación | S73: Estadios mejorados (4302013) | T73: =IFERROR(IF($S73="","",VLOOKUP($S73,Catálogo!$G$97:$H$2750,2,FALSE)),"Introduzca un producto válido") -> 4302013 | U73: CONTINÚE: El producto y programa presupuestal coinciden | V73: Estadios mejorados (430201300) | W73: =IFERROR(IF($V73="","",VLOOKUP($V73,Catálogo!$B$3019:$C$9130,2,FALSE)),"Introduzca un indicador de producto válido") -> 430201300 | X73: CONTINÚE: El indicador de producto y el producto coinciden | Z73: Número | AA73: 1 | AB73: Mantenimiento | AC73: ODS 3. Salud y bienestar | AD73: 5.4. Reparación integral para la construcción de Paz | AE73: Reparación / Retorno y reubicación (Solo víctimas desplazamiento) | AK73: =+IFERROR(VLOOKUP(AJ73,Iniciativas!E:F,2,FALSE),"Seleccione el código de la iniciativa") -> Seleccione el código de la iniciativa | AL73: 1 | AM73: 1 | AN73: 1 | AO73: 1 | AP73: 36644802.66 | AQ73: 0 | AR73: 0 | AS73: 0 | AT73: 0 | AU73: 0 | AV73: 0 | AW73: 0 | AX73: 0 | AY73: 0 | AZ73: 0 | BA73: 0 | BB73: 463355197.3 | BC73: 0 | BD73: 0 | BE73: 0 | BF73: 500000000 | BG73: 36644802.66 | BH73: 0 | BI73: 0 | BJ73: 0 | BK73: 0 | BL73: 0 | BM73: 0 | BN73: 0 | BO73: 0 | BP73: 0 | BQ73: 0 | BR73: 0 | BS73: 463355197.3 | BT73: 0 | BU73: 0 | BV73: 0 | BW73: 500000000 | BX73: 36644802.66 | BY73: 0 | BZ73: 0 | CA73: 0 | CB73: 0 | CC73: 0 | CD73: 0 | CE73: 0 | CF73: 0 | CG73: 0 | CH73: 0 | CI73: 0 | CJ73: 463355197.3 | CK73: 0 | CL73: 0 | CM73: 0 | CN73: 500000000 | CO73: 36644802.66 | CP73: 0 | CQ73: 0 | CR73: 0 | CS73: 0 | CT73: 0 | CU73: 0 | CV73: 0 | CW73: 0 | CX73: 0 | CY73: 0 | CZ73: 0 | DA73: 463355197.3 | DB73: 0 | DC73: 0 | DD73: 0 | DE73: 500000000 | DF73: 2000000000
A74: 70 | B74: Transformación y Desarrollo Social con Equidad | C74: Procesos de formación artística ofertados por la entidad territorial | D74: 3 | E74: Número | F74: 8 | J74: Cultura | K74: =IFERROR(IF($J74="","",VLOOKUP($J74,Catálogo!$B$5:$C$21,2,FALSE)),"Introduzca un sector de inversión válido") -> 33 | L74: Arte, cultura y tradición | M74: Promoción y acceso efectivo a procesos culturales y artísticos (3301) | N74: =IFERROR(IF($M74="","",VLOOKUP($M74,Catálogo!$E$25:$F$93,2,FALSE)),"Introduzca un programa presupuestal válido") -> 3301 | O74: =IFERROR(IF($N74="","",VLOOKUP($N74,Catálogo!$F$25:$G$94,2,FALSE)),"Introduzca un programa presupuestal válido") -> A.5 - Cultura | P74: CONTINÚE: El programa presupuestal y sector de inversión coinciden | Q74: Servicio de promoción de actividades culturales | R74: Dirección Cultura y Patrimonio | S74: Servicio de promoción de actividades culturales (3301053) | T74: =IFERROR(IF($S74="","",VLOOKUP($S74,Catálogo!$G$97:$H$2750,2,FALSE)),"Introduzca un producto válido") -> 3301053 | U74: CONTINÚE: El producto y programa presupuestal coinciden | V74: Actividades culturales para la promoción de la cultura realizadas (330105301) | W74: =IFERROR(IF($V74="","",VLOOKUP($V74,Catálogo!$B$3019:$C$9130,2,FALSE)),"Introduzca un indicador de producto válido") -> 330105301 | X74: CONTINÚE: El indicador de producto y el producto coinciden | Z74: Número | AA74: 60 | AB74: Incremento | AC74: ODS 1. Fin de la pobreza | AD74: 5.4. Reparación integral para la construcción de Paz | AE74: Reparación / Retorno y reubicación (Solo víctimas desplazamiento) | AK74: =+IFERROR(VLOOKUP(AJ74,Iniciativas!E:F,2,FALSE),"Seleccione el código de la iniciativa") -> Seleccione el código de la iniciativa | AL74: 15 | AM74: 15 | AN74: 15 | AO74: 15 | AP74: 57739563.67 | AQ74: 0 | AR74: 0 | AS74: 0 | AT74: 0 | AU74: 0 | AV74: 0 | AW74: 0 | AX74: 0 | AY74: 0 | AZ74: 0 | BA74: 0 | BB74: 0 | BC74: 0 | BD74: 0 | BE74: 0 | BF74: 57739563.67 | BG74: 57739563.67 | BH74: 0 | BI74: 0 | BJ74: 0 | BK74: 0 | BL74: 0 | BM74: 0 | BN74: 0 | BO74: 0 | BP74: 0 | BQ74: 0 | BR74: 0 | BS74: 0 | BT74: 0 | BU74: 0 | BV74: 0 | BW74: 57739563.67 | BX74: 57739563.67 | BY74: 0 | BZ74: 0 | CA74: 0 | CB74: 0 | CC74: 0 | CD74: 0 | CE74: 0 | CF74: 0 | CG74: 0 | CH74: 0 | CI74: 0 | CJ74: 0 | CK74: 0 | CL74: 0 | CM74: 0 | CN74: 57739563.67 | CO74: 57739563.67 | CP74: 0 | CQ74: 0 | CR74: 0 | CS74: 0 | CT74: 0 | CU74: 0 | CV74: 0 | CW74: 0 | CX74: 0 | CY74: 0 | CZ74: 0 | DA74: 0 | DB74: 0 | DC74: 0 | DD74: 0 | DE74: 57739563.67 | DF74: 230958254.7
A75: 71 | B75: Transformación y Desarrollo Social con Equidad | C75: Procesos de formación artística ofertados por la entidad territorial | D75: 3 | E75: Número | F75: 8 | J75: Cultura | K75: =IFERROR(IF($J75="","",VLOOKUP($J75,Catálogo!$B$5:$C$21,2,FALSE)),"Introduzca un sector de inversión válido") -> 33 | L75: Arte, cultura y tradición | M75: Promoción y acceso efectivo a procesos culturales y artísticos (3301) | N75: =IFERROR(IF($M75="","",VLOOKUP($M75,Catálogo!$E$25:$F$93,2,FALSE)),"Introduzca un programa presupuestal válido") -> 3301 | O75: =IFERROR(IF($N75="","",VLOOKUP($N75,Catálogo!$F$25:$G$94,2,FALSE)),"Introduzca un programa presupuestal válido") -> A.5 - Cultura | P75: CONTINÚE: El programa presupuestal y sector de inversión coinciden | Q75: Servicio de asistencia técnica en el fortalecimiento de los consejeros de cultura | R75: Dirección Cultura y Patrimonio | S75: Servicio de asistencia técnica en el fortalecimiento de los consejeros de cultura (3301061) | T75: =IFERROR(IF($S75="","",VLOOKUP($S75,Catálogo!$G$97:$H$2750,2,FALSE)),"Introduzca un producto válido") -> 3301061 | U75: CONTINÚE: El producto y programa presupuestal coinciden | V75: Personas asistidas técnicamente (330106100) | W75: =IFERROR(IF($V75="","",VLOOKUP($V75,Catálogo!$B$3019:$C$9130,2,FALSE)),"Introduzca un indicador de producto válido") -> 330106100 | X75: CONTINÚE: El indicador de producto y el producto coinciden | Z75: Número | AA75: 48 | AB75: Incremento | AC75: ODS 1. Fin de la pobreza | AD75: 5.4. Reparación integral para la construcción de Paz | AE75: Reparación / Retorno y reubicación (Solo víctimas desplazamiento) | AK75: =+IFERROR(VLOOKUP(AJ75,Iniciativas!E:F,2,FALSE),"Seleccione el código de la iniciativa") -> Seleccione el código de la iniciativa | AL75: 12 | AM75: 12 | AN75: 12 | AO75: 12 | AP75: 17136000 | AQ75: 0 | AR75: 0 | AS75: 0 | AT75: 0 | AU75: 0 | AV75: 0 | AW75: 0 | AX75: 0 | AY75: 0 | AZ75: 0 | BA75: 0 | BB75: 0 | BC75: 0 | BD75: 0 | BE75: 0 | BF75: 17136000 | BG75: 17136000 | BH75: 0 | BI75: 0 | BJ75: 0 | BK75: 0 | BL75: 0 | BM75: 0 | BN75: 0 | BO75: 0 | BP75: 0 | BQ75: 0 | BR75: 0 | BS75: 0 | BT75: 0 | BU75: 0 | BV75: 0 | BW75: 17136000 | BX75: 17136000 | BY75: 0 | BZ75: 0 | CA75: 0 | CB75: 0 | CC75: 0 | CD75: 0 | CE75: 0 | CF75: 0 | CG75: 0 | CH75: 0 | CI75: 0 | CJ75: 0 | CK75: 0 | CL75: 0 | CM75: 0 | CN75: 17136000 | CO75: 17136000 | CP75: 0 | CQ75: 0 | CR75: 0 | CS75: 0 | CT75: 0 | CU75: 0 | CV75: 0 | CW75: 0 | CX75: 0 | CY75: 0 | CZ75: 0 | DA75: 0 | DB75: 0 | DC75: 0 | DD75: 0 | DE75: 17136000 | DF75: 68544000
A76: 72 | B76: Transformación y Desarrollo Social con Equidad | C76: Procesos de formación artística ofertados por la entidad territorial | D76: 3 | E76: Número | F76: 8 | J76: Cultura | K76: =IFERROR(IF($J76="","",VLOOKUP($J76,Catálogo!$B$5:$C$21,2,FALSE)),"Introduzca un sector de inversión válido") -> 33 | L76: Arte, cultura y tradición | M76: Promoción y acceso efectivo a procesos culturales y artísticos (3301) | N76: =IFERROR(IF($M76="","",VLOOKUP($M76,Catálogo!$E$25:$F$93,2,FALSE)),"Introduzca un programa presupuestal válido") -> 3301 | O76: =IFERROR(IF($N76="","",VLOOKUP($N76,Catálogo!$F$25:$G$94,2,FALSE)),"Introduzca un programa presupuestal válido") -> A.5 - Cultura | P76: CONTINÚE: El programa presupuestal y sector de inversión coinciden | Q76: Servicio de mantenimiento de infraestructura cultural | R76: Dirección Cultura y Patrimonio | S76: Servicio de mantenimiento de infraestructura cultural (3301068) | T76: =IFERROR(IF($S76="","",VLOOKUP($S76,Catálogo!$G$97:$H$2750,2,FALSE)),"Introduzca un producto válido") -> 3301068 | U76: CONTINÚE: El producto y programa presupuestal coinciden | V76: Infraestructura cultural intervenida (330106800) | W76: =IFERROR(IF($V76="","",VLOOKUP($V76,Catálogo!$B$3019:$C$9130,2,FALSE)),"Introduzca un indicador de producto válido") -> 330106800 | X76: CONTINÚE: El indicador de producto y el producto coinciden | Z76: Número | AA76: 4 | AB76: Incremento | AC76: ODS 1. Fin de la pobreza | AD76: 5.4. Reparación integral para la construcción de Paz | AE76: Reparación / Retorno y reubicación (Solo víctimas desplazamiento) | AK76: =+IFERROR(VLOOKUP(AJ76,Iniciativas!E:F,2,FALSE),"Seleccione el código de la iniciativa") -> Seleccione el código de la iniciativa | AL76: 2 | AM76: 1 | AN76: 1 | AO76: 0 | AP76: 80000000 | AQ76: 0 | AR76: 0 | AS76: 0 | AT76: 0 | AU76: 0 | AV76: 0 | AW76: 0 | AX76: 0 | AY76: 0 | AZ76: 0 | BA76: 0 | BB76: 0 | BC76: 0 | BD76: 0 | BE76: 0 | BF76: 80000000 | BG76: 40000000 | BH76: 0 | BI76: 0 | BJ76: 0 | BK76: 0 | BL76: 0 | BM76: 0 | BN76: 0 | BO76: 0 | BP76: 0 | BQ76: 0 | BR76: 0 | BS76: 0 | BT76: 0 | BU76: 0 | BV76: 0 | BW76: 40000000 | BX76: 40000000 | BY76: 0 | BZ76: 0 | CA76: 0 | CB76: 0 | CC76: 0 | CD76: 0 | CE76: 0 | CF76: 0 | CG76: 0 | CH76: 0 | CI76: 0 | CJ76: 0 | CK76: 0 | CL76: 0 | CM76: 0 | CN76: 40000000 | CO76: 0 | CP76: 0 | CQ76: 0 | CR76: 0 | CS76: 0 | CT76: 0 | CU76: 0 | CV76: 0 | CW76: 0 | CX76: 0 | CY76: 0 | CZ76: 0 | DA76: 0 | DB76: 0 | DC76: 0 | DD76: 0 | DE76: 0 | DF76: 160000000
A77: 73 | B77: Transformación y Desarrollo Social con Equidad | C77: Procesos de formación artística ofertados por la entidad territorial | D77: 3 | E77: Número | F77: 8 | J77: Cultura | K77: =IFERROR(IF($J77="","",VLOOKUP($J77,Catálogo!$B$5:$C$21,2,FALSE)),"Introduzca un sector de inversión válido") -> 33 | L77: Arte, cultura y tradición | M77: Promoción y acceso efectivo a procesos culturales y artísticos (3301) | N77: =IFERROR(IF($M77="","",VLOOKUP($M77,Catálogo!$E$25:$F$93,2,FALSE)),"Introduzca un programa presupuestal válido") -> 3301 | O77: =IFERROR(IF($N77="","",VLOOKUP($N77,Catálogo!$F$25:$G$94,2,FALSE)),"Introduzca un programa presupuestal válido") -> A.5 - Cultura | P77: CONTINÚE: El programa presupuestal y sector de inversión coinciden | Q77: Servicios bibliotecarios | R77: Dirección Cultura y Patrimonio | S77: Servicios bibliotecarios (3301085) | T77: =IFERROR(IF($S77="","",VLOOKUP($S77,Catálogo!$G$97:$H$2750,2,FALSE)),"Introduzca un producto válido") -> 3301085 | U77: CONTINÚE: El producto y programa presupuestal coinciden | V77: Usuarios atendidos (330108500) | W77: =IFERROR(IF($V77="","",VLOOKUP($V77,Catálogo!$B$3019:$C$9130,2,FALSE)),"Introduzca un indicador de producto válido") -> 330108500 | X77: CONTINÚE: El indicador de producto y el producto coinciden | Z77: Número | AA77: 1500 | AB77: Incremento | AC77: ODS 1. Fin de la pobreza | AD77: 5.4. Reparación integral para la construcción de Paz | AE77: Reparación / Retorno y reubicación (Solo víctimas desplazamiento) | AK77: =+IFERROR(VLOOKUP(AJ77,Iniciativas!E:F,2,FALSE),"Seleccione el código de la iniciativa") -> Seleccione el código de la iniciativa | AL77: 375 | AM77: 375 | AN77: 375 | AO77: 375 | AP77: 67092557.58 | AQ77: 0 | AR77: 0 | AS77: 0 | AT77: 31124292.43 | AU77: 0 | AV77: 0 | AW77: 0 | AX77: 0 | AY77: 0 | AZ77: 0 | BA77: 0 | BB77: 0 | BC77: 0 | BD77: 0 | BE77: 0 | BF77: 98216850 | BG77: 67092557.58 | BH77: 0 | BI77: 0 | BJ77: 0 | BK77: 31124292.43 | BL77: 0 | BM77: 0 | BN77: 0 | BO77: 0 | BP77: 0 | BQ77: 0 | BR77: 0 | BS77: 0 | BT77: 0 | BU77: 0 | BV77: 0 | BW77: 98216850 | BX77: 67092557.58 | BY77: 0 | BZ77: 0 | CA77: 0 | CB77: 31124292.43 | CC77: 0 | CD77: 0 | CE77: 0 | CF77: 0 | CG77: 0 | CH77: 0 | CI77: 0 | CJ77: 0 | CK77: 0 | CL77: 0 | CM77: 0 | CN77: 98216850 | CO77: 67092557.58 | CP77: 0 | CQ77: 0 | CR77: 0 | CS77: 31124292.43 | CT77: 0 | CU77: 0 | CV77: 0 | CW77: 0 | CX77: 0 | CY77: 0 | CZ77: 0 | DA77: 0 | DB77: 0 | DC77: 0 | DD77: 0 | DE77: 98216850 | DF77: 392867400
A78: 74 | B78: Transformación y Desarrollo Social con Equidad | C78: Procesos de formación artística ofertados por la entidad territorial | D78: 3 | E78: Número | F78: 8 | J78: Cultura | K78: =IFERROR(IF($J78="","",VLOOKUP($J78,Catálogo!$B$5:$C$21,2,FALSE)),"Introduzca un sector de inversión válido") -> 33 | L78: Arte, cultura y tradición | M78: Promoción y acceso efectivo a procesos culturales y artísticos (3301) | N78: =IFERROR(IF($M78="","",VLOOKUP($M78,Catálogo!$E$25:$F$93,2,FALSE)),"Introduzca un programa presupuestal válido") -> 3301 | O78: =IFERROR(IF($N78="","",VLOOKUP($N78,Catálogo!$F$25:$G$94,2,FALSE)),"Introduzca un programa presupuestal válido") -> A.5 - Cultura | P78: CONTINÚE: El programa presupuestal y sector de inversión coinciden | Q78: Servicio de educación informal en áreas artísticas y culturales | R78: Dirección Cultura y Patrimonio | S78: Servicio de educación informal en áreas artísticas y culturales (3301087) | T78: =IFERROR(IF($S78="","",VLOOKUP($S78,Catálogo!$G$97:$H$2750,2,FALSE)),"Introduzca un producto válido") -> 3301087 | U78: CONTINÚE: El producto y programa presupuestal coinciden | V78: Personas capacitadas (330108701) | W78: =IFERROR(IF($V78="","",VLOOKUP($V78,Catálogo!$B$3019:$C$9130,2,FALSE)),"Introduzca un indicador de producto válido") -> 330108701 | X78: CONTINÚE: El indicador de producto y el producto coinciden | Z78: Número | AA78: 3600 | AB78: Incremento | AC78: ODS 1. Fin de la pobreza | AD78: 5.4. Reparación integral para la construcción de Paz | AE78: Reparación / Retorno y reubicación (Solo víctimas desplazamiento) | AK78: =+IFERROR(VLOOKUP(AJ78,Iniciativas!E:F,2,FALSE),"Seleccione el código de la iniciativa") -> Seleccione el código de la iniciativa | AL78: 900 | AM78: 900 | AN78: 900 | AO78: 900 | AP78: 772214828 | AQ78: 0 | AR78: 0 | AS78: 0 | AT78: 66786172 | AU78: 0 | AV78: 0 | AW78: 0 | AX78: 0 | AY78: 0 | AZ78: 0 | BA78: 0 | BB78: 0 | BC78: 0 | BD78: 0 | BE78: 0 | BF78: 839001000 | BG78: 772214828 | BH78: 0 | BI78: 0 | BJ78: 0 | BK78: 66786172 | BL78: 0 | BM78: 0 | BN78: 0 | BO78: 0 | BP78: 0 | BQ78: 0 | BR78: 0 | BS78: 0 | BT78: 0 | BU78: 0 | BV78: 0 | BW78: 839001000 | BX78: 772214828 | BY78: 0 | BZ78: 0 | CA78: 0 | CB78: 66786172 | CC78: 0 | CD78: 0 | CE78: 0 | CF78: 0 | CG78: 0 | CH78: 0 | CI78: 0 | CJ78: 0 | CK78: 0 | CL78: 0 | CM78: 0 | CN78: 839001000 | CO78: 772214828 | CP78: 0 | CQ78: 0 | CR78: 0 | CS78: 66786172 | CT78: 0 | CU78: 0 | CV78: 0 | CW78: 0 | CX78: 0 | CY78: 0 | CZ78: 0 | DA78: 0 | DB78: 0 | DC78: 0 | DD78: 0 | DE78: 839001000 | DF78: 3356004000
A79: 75 | B79: Transformación y Desarrollo Social con Equidad | C79: Procesos de formación artística ofertados por la entidad territorial | D79: 3 | E79: Número | F79: 8 | J79: Cultura | K79: =IFERROR(IF($J79="","",VLOOKUP($J79,Catálogo!$B$5:$C$21,2,FALSE)),"Introduzca un sector de inversión válido") -> 33 | L79: Arte, cultura y tradición | M79: Promoción y acceso efectivo a procesos culturales y artísticos (3301) | N79: =IFERROR(IF($M79="","",VLOOKUP($M79,Catálogo!$E$25:$F$93,2,FALSE)),"Introduzca un programa presupuestal válido") -> 3301 | O79: =IFERROR(IF($N79="","",VLOOKUP($N79,Catálogo!$F$25:$G$94,2,FALSE)),"Introduzca un programa presupuestal válido") -> A.5 - Cultura | P79: CONTINÚE: El programa presupuestal y sector de inversión coinciden | Q79: Escuelas de música adecuadas y dotadas | R79: Dirección Cultura y Patrimonio | S79: Escuelas de música adecuadas y dotadas (3301096) | T79: =IFERROR(IF($S79="","",VLOOKUP($S79,Catálogo!$G$97:$H$2750,2,FALSE)),"Introduzca un producto válido") -> 3301096 | U79: CONTINÚE: El producto y programa presupuestal coinciden | V79: Escuelas de música adecuadas y dotadas (330109600) | W79: =IFERROR(IF($V79="","",VLOOKUP($V79,Catálogo!$B$3019:$C$9130,2,FALSE)),"Introduzca un indicador de producto válido") -> 330109600 | X79: CONTINÚE: El indicador de producto y el producto coinciden | Z79: Número | AA79: 1 | AB79: Incremento | AC79: ODS 1. Fin de la pobreza | AD79: 5.4. Reparación integral para la construcción de Paz | AE79: Reparación / Retorno y reubicación (Solo víctimas desplazamiento) | AK79: =+IFERROR(VLOOKUP(AJ79,Iniciativas!E:F,2,FALSE),"Seleccione el código de la iniciativa") -> Seleccione el código de la iniciativa | AL79: 0 | AM79: 1 | AN79: 0 | AO79: 0 | AP79: 0 | AQ79: 0 | AR79: 0 | AS79: 0 | AT79: 0 | AU79: 0 | AV79: 0 | AW79: 0 | AX79: 0 | AY79: 0 | AZ79: 0 | BA79: 0 | BB79: 0 | BC79: 0 | BD79: 0 | BE79: 0 | BF79: 0 | BG79: 5000000 | BH79: 0 | BI79: 0 | BJ79: 0 | BK79: 0 | BL79: 0 | BM79: 0 | BN79: 0 | BO79: 0 | BP79: 0 | BQ79: 0 | BR79: 0 | BS79: 0 | BT79: 0 | BU79: 0 | BV79: 0 | BW79: 5000000 | BX79: 0 | BY79: 0 | BZ79: 0 | CA79: 0 | CB79: 0 | CC79: 0 | CD79: 0 | CE79: 0 | CF79: 0 | CG79: 0 | CH79: 0 | CI79: 0 | CJ79: 0 | CK79: 0 | CL79: 0 | CM79: 0 | CN79: 0 | CO79: 0 | CP79: 0 | CQ79: 0 | CR79: 0 | CS79: 0 | CT79: 0 | CU79: 0 | CV79: 0 | CW79: 0 | CX79: 0 | CY79: 0 | CZ79: 0 | DA79: 0 | DB79: 0 | DC79: 0 | DD79: 0 | DE79: 0 | DF79: 5000000
A80: 76 | B80: Transformación y Desarrollo Social con Equidad | C80: Procesos de formación artística ofertados por la entidad territorial | D80: 3 | E80: Número | F80: 8 | J80: Cultura | K80: =IFERROR(IF($J80="","",VLOOKUP($J80,Catálogo!$B$5:$C$21,2,FALSE)),"Introduzca un sector de inversión válido") -> 33 | L80: Arte, cultura y tradición | M80: Promoción y acceso efectivo a procesos culturales y artísticos (3301) | N80: =IFERROR(IF($M80="","",VLOOKUP($M80,Catálogo!$E$25:$F$93,2,FALSE)),"Introduzca un programa presupuestal válido") -> 3301 | O80: =IFERROR(IF($N80="","",VLOOKUP($N80,Catálogo!$F$25:$G$94,2,FALSE)),"Introduzca un programa presupuestal válido") -> A.5 - Cultura | P80: CONTINÚE: El programa presupuestal y sector de inversión coinciden | Q80: Salas de danza adecuadas y dotadas | R80: Dirección Cultura y Patrimonio | S80: Salas de danza adecuadasy dotadas (3301097) | T80: =IFERROR(IF($S80="","",VLOOKUP($S80,Catálogo!$G$97:$H$2750,2,FALSE)),"Introduzca un producto válido") -> 3301097 | U80: CONTINÚE: El producto y programa presupuestal coinciden | V80: Salas de danza adecuadas y dotadas (330109700) | W80: =IFERROR(IF($V80="","",VLOOKUP($V80,Catálogo!$B$3019:$C$9130,2,FALSE)),"Introduzca un indicador de producto válido") -> 330109700 | X80: CONTINÚE: El indicador de producto y el producto coinciden | Z80: Número | AA80: 1 | AB80: Incremento | AC80: ODS 1. Fin de la pobreza | AD80: 5.4. Reparación integral para la construcción de Paz | AE80: Reparación / Retorno y reubicación (Solo víctimas desplazamiento) | AK80: =+IFERROR(VLOOKUP(AJ80,Iniciativas!E:F,2,FALSE),"Seleccione el código de la iniciativa") -> Seleccione el código de la iniciativa | AL80: 0.1 | AM80: 0.9 | AN80: 0 | AO80: 0 | AP80: 1000000 | AQ80: 0 | AR80: 0 | AS80: 0 | AT80: 0 | AU80: 0 | AV80: 0 | AW80: 0 | AX80: 0 | AY80: 0 | AZ80: 0 | BA80: 0 | BB80: 0 | BC80: 0 | BD80: 0 | BE80: 0 | BF80: 1000000 | BG80: 4000000 | BH80: 0 | BI80: 0 | BJ80: 0 | BK80: 0 | BL80: 0 | BM80: 0 | BN80: 0 | BO80: 0 | BP80: 0 | BQ80: 0 | BR80: 0 | BS80: 0 | BT80: 0 | BU80: 0 | BV80: 0 | BW80: 4000000 | BX80: 0 | BY80: 0 | BZ80: 0 | CA80: 0 | CB80: 0 | CC80: 0 | CD80: 0 | CE80: 0 | CF80: 0 | CG80: 0 | CH80: 0 | CI80: 0 | CJ80: 0 | CK80: 0 | CL80: 0 | CM80: 0 | CN80: 0 | CO80: 0 | CP80: 0 | CQ80: 0 | CR80: 0 | CS80: 0 | CT80: 0 | CU80: 0 | CV80: 0 | CW80: 0 | CX80: 0 | CY80: 0 | CZ80: 0 | DA80: 0 | DB80: 0 | DC80: 0 | DD80: 0 | DE80: 0 | DF80: 5000000
A81: 77 | B81: Transformación y Desarrollo Social con Equidad | C81: Número de Bienes de Interés Cultural del ámbito nacional | D81: 1 | E81: Número | F81: 2 | J81: Cultura | K81: =IFERROR(IF($J81="","",VLOOKUP($J81,Catálogo!$B$5:$C$21,2,FALSE)),"Introduzca un sector de inversión válido") -> 33 | L81: Gestión, protección y salvaguardia del patrimonio cultural colombiano | M81: Gestión, protección y salvaguardia del patrimonio cultural colombiano (3302) | N81: =IFERROR(IF($M81="","",VLOOKUP($M81,Catálogo!$E$25:$F$93,2,FALSE)),"Introduzca un programa presupuestal válido") -> 3302 | O81: =IFERROR(IF($N81="","",VLOOKUP($N81,Catálogo!$F$25:$G$94,2,FALSE)),"Introduzca un programa presupuestal válido") -> A.5 - Cultura | P81: CONTINÚE: El programa presupuestal y sector de inversión coinciden | Q81: Documentos Investigación | R81: Dirección Cultura y Patrimonio | S81: Documentos Investigación (3302001) | T81: =IFERROR(IF($S81="","",VLOOKUP($S81,Catálogo!$G$97:$H$2750,2,FALSE)),"Introduzca un producto válido") -> 3302001 | U81: CONTINÚE: El producto y programa presupuestal coinciden | V81: Documentos de investigación realizados (330200100) | W81: =IFERROR(IF($V81="","",VLOOKUP($V81,Catálogo!$B$3019:$C$9130,2,FALSE)),"Introduzca un indicador de producto válido") -> 330200100 | X81: CONTINÚE: El indicador de producto y el producto coinciden | Z81: Número | AA81: 1 | AB81: Incremento | AC81: ODS 1. Fin de la pobreza | AD81: 5.4. Reparación integral para la construcción de Paz | AE81: Reparación / Retorno y reubicación (Solo víctimas desplazamiento) | AK81: =+IFERROR(VLOOKUP(AJ81,Iniciativas!E:F,2,FALSE),"Seleccione el código de la iniciativa") -> Seleccione el código de la iniciativa | AL81: 0 | AM81: 0 | AN81: 1 | AO81: 0 | AP81: 0 | AQ81: 0 | AR81: 0 | AS81: 0 | AT81: 0 | AU81: 0 | AV81: 0 | AW81: 0 | AX81: 0 | AY81: 0 | AZ81: 0 | BA81: 0 | BB81: 0 | BC81: 0 | BD81: 0 | BE81: 0 | BF81: 0 | BG81: 0 | BH81: 0 | BI81: 0 | BJ81: 0 | BK81: 0 | BL81: 0 | BM81: 0 | BN81: 0 | BO81: 0 | BP81: 0 | BQ81: 0 | BR81: 0 | BS81: 0 | BT81: 0 | BU81: 0 | BV81: 0 | BW81: 0 | BX81: 0 | BY81: 0 | BZ81: 0 | CA81: 0 | CB81: 0 | CC81: 0 | CD81: 0 | CE81: 0 | CF81: 0 | CG81: 0 | CH81: 0 | CI81: 0 | CJ81: 100000000 | CK81: 0 | CL81: 0 | CM81: 0 | CN81: 100000000 | CO81: 0 | CP81: 0 | CQ81: 0 | CR81: 0 | CS81: 0 | CT81: 0 | CU81: 0 | CV81: 0 | CW81: 0 | CX81: 0 | CY81: 0 | CZ81: 0 | DA81: 0 | DB81: 0 | DC81: 0 | DD81: 0 | DE81: 0 | DF81: 100000000
A82: 78 | B82: Transformación y Desarrollo Social con Equidad | C82: Número de Bienes de Interés Cultural del ámbito nacional | D82: 1 | E82: Número | F82: 2 | J82: Cultura | K82: =IFERROR(IF($J82="","",VLOOKUP($J82,Catálogo!$B$5:$C$21,2,FALSE)),"Introduzca un sector de inversión válido") -> 33 | L82: Gestión, protección y salvaguardia del patrimonio cultural colombiano | M82: Gestión, protección y salvaguardia del patrimonio cultural colombiano (3302) | N82: =IFERROR(IF($M82="","",VLOOKUP($M82,Catálogo!$E$25:$F$93,2,FALSE)),"Introduzca un programa presupuestal válido") -> 3302 | O82: =IFERROR(IF($N82="","",VLOOKUP($N82,Catálogo!$F$25:$G$94,2,FALSE)),"Introduzca un programa presupuestal válido") -> A.5 - Cultura | P82: CONTINÚE: El programa presupuestal y sector de inversión coinciden | Q82: Servicio de educación informal a Vigías del Patrimonio | R82: Dirección Cultura y Patrimonio | S82: Servicio de educación informal a Vigías del Patrimonio (3302019) | T82: =IFERROR(IF($S82="","",VLOOKUP($S82,Catálogo!$G$97:$H$2750,2,FALSE)),"Introduzca un producto válido") -> 3302019 | U82: CONTINÚE: El producto y programa presupuestal coinciden | V82: Personas capacitadas (330201901) | W82: =IFERROR(IF($V82="","",VLOOKUP($V82,Catálogo!$B$3019:$C$9130,2,FALSE)),"Introduzca un indicador de producto válido") -> 330201901 | X82: CONTINÚE: El indicador de producto y el producto coinciden | Z82: Número | AA82: 1000 | AB82: Incremento | AC82: ODS 1. Fin de la pobreza | AD82: 5.4. Reparación integral para la construcción de Paz | AE82: Reparación / Retorno y reubicación (Solo víctimas desplazamiento) | AK82: =+IFERROR(VLOOKUP(AJ82,Iniciativas!E:F,2,FALSE),"Seleccione el código de la iniciativa") -> Seleccione el código de la iniciativa | AL82: 250 | AM82: 280 | AN82: 240 | AO82: 230 | AP82: 87716850 | AQ82: 0 | AR82: 0 | AS82: 0 | AT82: 0 | AU82: 0 | AV82: 0 | AW82: 0 | AX82: 0 | AY82: 0 | AZ82: 0 | BA82: 0 | BB82: 0 | BC82: 0 | BD82: 0 | BE82: 0 | BF82: 87716850 | BG82: 87716850 | BH82: 0 | BI82: 0 | BJ82: 0 | BK82: 0 | BL82: 0 | BM82: 0 | BN82: 0 | BO82: 0 | BP82: 0 | BQ82: 0 | BR82: 0 | BS82: 0 | BT82: 0 | BU82: 0 | BV82: 0 | BW82: 87716850 | BX82: 87716850 | BY82: 0 | BZ82: 0 | CA82: 0 | CB82: 0 | CC82: 0 | CD82: 0 | CE82: 0 | CF82: 0 | CG82: 0 | CH82: 0 | CI82: 0 | CJ82: 0 | CK82: 0 | CL82: 0 | CM82: 0 | CN82: 87716850 | CO82: 87716850 | CP82: 0 | CQ82: 0 | CR82: 0 | CS82: 0 | CT82: 0 | CU82: 0 | CV82: 0 | CW82: 0 | CX82: 0 | CY82: 0 | CZ82: 0 | DA82: 0 | DB82: 0 | DC82: 0 | DD82: 0 | DE82: 87716850 | DF82: 350867400
A83: 79 | B83: Transformación y Desarrollo Social con Equidad | C83: Número de Bienes de Interés Cultural del ámbito nacional | D83: 1 | E83: Número | F83: 2 | J83: Cultura | K83: =IFERROR(IF($J83="","",VLOOKUP($J83,Catálogo!$B$5:$C$21,2,FALSE)),"Introduzca un sector de inversión válido") -> 33 | L83: Gestión, protección y salvaguardia del patrimonio cultural colombiano | M83: Gestión, protección y salvaguardia del patrimonio cultural colombiano (3302) | N83: =IFERROR(IF($M83="","",VLOOKUP($M83,Catálogo!$E$25:$F$93,2,FALSE)),"Introduzca un programa presupuestal válido") -> 3302 | O83: =IFERROR(IF($N83="","",VLOOKUP($N83,Catálogo!$F$25:$G$94,2,FALSE)),"Introduzca un programa presupuestal válido") -> A.5 - Cultura | P83: CONTINÚE: El programa presupuestal y sector de inversión coinciden | Q83: Servicio de acceso y difusión del patrimonio bibliográfico y documental | R83: Dirección Cultura y Patrimonio | S83: Servicio de acceso y difusión del patrimonio bibliográfico y documental (3302056) | T83: =IFERROR(IF($S83="","",VLOOKUP($S83,Catálogo!$G$97:$H$2750,2,FALSE)),"Introduzca un producto válido") -> 3302056 | U83: CONTINÚE: El producto y programa presupuestal coinciden | V83: Crecimiento de usuarios (330205600) | W83: =IFERROR(IF($V83="","",VLOOKUP($V83,Catálogo!$B$3019:$C$9130,2,FALSE)),"Introduzca un indicador de producto válido") -> 330205600 | X83: CONTINÚE: El indicador de producto y el producto coinciden | Z83: Número | AA83: 700 | AB83: Incremento | AC83: ODS 1. Fin de la pobreza | AD83: 5.4. Reparación integral para la construcción de Paz | AE83: Reparación / Retorno y reubicación (Solo víctimas desplazamiento) | AK83: =+IFERROR(VLOOKUP(AJ83,Iniciativas!E:F,2,FALSE),"Seleccione el código de la iniciativa") -> Seleccione el código de la iniciativa | AL83: 0 | AM83: 0 | AN83: 350 | AO83: 350 | AP83: 0 | AQ83: 0 | AR83: 0 | AS83: 0 | AT83: 0 | AU83: 0 | AV83: 0 | AW83: 0 | AX83: 0 | AY83: 0 | AZ83: 0 | BA83: 0 | BB83: 0 | BC83: 0 | BD83: 0 | BE83: 0 | BF83: 0 | BG83: 0 | BH83: 0 | BI83: 0 | BJ83: 0 | BK83: 0 | BL83: 0 | BM83: 0 | BN83: 0 | BO83: 0 | BP83: 0 | BQ83: 0 | BR83: 0 | BS83: 0 | BT83: 0 | BU83: 0 | BV83: 0 | BW83: 0 | BX83: 21000000 | BY83: 0 | BZ83: 0 | CA83: 0 | CB83: 0 | CC83: 0 | CD83: 0 | CE83: 0 | CF83: 0 | CG83: 0 | CH83: 0 | CI83: 0 | CJ83: 0 | CK83: 0 | CL83: 0 | CM83: 0 | CN83: 21000000 | CO83: 21000000 | CP83: 0 | CQ83: 0 | CR83: 0 | CS83: 0 | CT83: 0 | CU83: 0 | CV83: 0 | CW83: 0 | CX83: 0 | CY83: 0 | CZ83: 0 | DA83: 0 | DB83: 0 | DC83: 0 | DD83: 0 | DE83: 21000000 | DF83: 42000000
A84: 80 | B84: Transformación y Desarrollo Social con Equidad | C84: Porcentaje de Mantenimiento Preventivo del alumbrado público | D84: 75.06 | E84: Porcentaje | F84: 95 | J84: Minas y energía | K84: =IFERROR(IF($J84="","",VLOOKUP($J84,Catálogo!$B$5:$C$21,2,FALSE)),"Introduzca un sector de inversión válido") -> 21 | L84: Alumbrado sostenible | M84: Consolidación productiva del sector de energía eléctrica (2102) | N84: =IFERROR(IF($M84="","",VLOOKUP($M84,Catálogo!$E$25:$F$93,2,FALSE)),"Introduzca un programa presupuestal válido") -> 2102 | O84: =IFERROR(IF($N84="","",VLOOKUP($N84,Catálogo!$F$25:$G$94,2,FALSE)),"Introduzca un programa presupuestal válido") -> A.6 - Servicios públicos diferentes a acueducto alcantarillado y aseo (sin incluir proyectos de vivienda de interés social) | P84: CONTINÚE: El programa presupuestal y sector de inversión coinciden | Q84: Redes de alumbrado público ampliadas | R84: Secretaría de Infraestructura | S84: Redes de alumbrado público ampliadas (2102010) | T84: =IFERROR(IF($S84="","",VLOOKUP($S84,Catálogo!$G$97:$H$2750,2,FALSE)),"Introduzca un producto válido") -> 2102010 | U84: CONTINÚE: El producto y programa presupuestal coinciden | V84: Redes de alumbrado público ampliadas (210201000) | W84: =IFERROR(IF($V84="","",VLOOKUP($V84,Catálogo!$B$3019:$C$9130,2,FALSE)),"Introduzca un indicador de producto válido") -> 210201000 | X84: CONTINÚE: El indicador de producto y el producto coinciden | Z84: Número | AA84: 782 | AB84: Incremento | AC84: ODS 7. Energía asequible y no contaminante | AD84: 5.4. Reparación integral para la construcción de Paz | AE84: Reparación / Retorno y reubicación (Solo víctimas desplazamiento) | AK84: =+IFERROR(VLOOKUP(AJ84,Iniciativas!E:F,2,FALSE),"Seleccione el código de la iniciativa") -> Seleccione el código de la iniciativa | AL84: 25 | AM84: 244 | AN84: 256 | AO84: 257 | AP84: 392955000 | AQ84: 0 | AR84: 0 | AS84: 0 | AT84: 0 | AU84: 0 | AV84: 0 | AW84: 0 | AX84: 0 | AY84: 0 | AZ84: 0 | BA84: 0 | BB84: 0 | BC84: 0 | BD84: 0 | BE84: 0 | BF84: 392955000 | BG84: 392955000 | BH84: 0 | BI84: 0 | BJ84: 0 | BK84: 0 | BL84: 0 | BM84: 0 | BN84: 0 | BO84: 0 | BP84: 0 | BQ84: 0 | BR84: 0 | BS84: 0 | BT84: 0 | BU84: 0 | BV84: 0 | BW84: 392955000 | BX84: 392955000 | BY84: 0 | BZ84: 0 | CA84: 0 | CB84: 0 | CC84: 0 | CD84: 0 | CE84: 0 | CF84: 0 | CG84: 0 | CH84: 0 | CI84: 0 | CJ84: 0 | CK84: 0 | CL84: 0 | CM84: 0 | CN84: 392955000 | CO84: 392955000 | CP84: 0 | CQ84: 0 | CR84: 0 | CS84: 0 | CT84: 0 | CU84: 0 | CV84: 0 | CW84: 0 | CX84: 0 | CY84: 0 | CZ84: 0 | DA84: 0 | DB84: 0 | DC84: 0 | DD84: 0 | DE84: 392955000 | DF84: 1571820000
A85: 81 | B85: Transformación y Desarrollo Social con Equidad | C85: Porcentaje de Mantenimiento Preventivo del alumbrado público | D85: 75.06 | E85: Porcentaje | F85: 95 | J85: Minas y energía | K85: =IFERROR(IF($J85="","",VLOOKUP($J85,Catálogo!$B$5:$C$21,2,FALSE)),"Introduzca un sector de inversión válido") -> 21 | L85: Alumbrado sostenible | M85: Consolidación productiva del sector de energía eléctrica (2102) | N85: =IFERROR(IF($M85="","",VLOOKUP($M85,Catálogo!$E$25:$F$93,2,FALSE)),"Introduzca un programa presupuestal válido") -> 2102 | O85: =IFERROR(IF($N85="","",VLOOKUP($N85,Catálogo!$F$25:$G$94,2,FALSE)),"Introduzca un programa presupuestal válido") -> A.6 - Servicios públicos diferentes a acueducto alcantarillado y aseo (sin incluir proyectos de vivienda de interés social) | P85: CONTINÚE: El programa presupuestal y sector de inversión coinciden | Q85: Redes de alumbrado público mejoradas | R85: Secretaría de Infraestructura | S85: Redes de alumbrado público mejoradas (2102013) | T85: =IFERROR(IF($S85="","",VLOOKUP($S85,Catálogo!$G$97:$H$2750,2,FALSE)),"Introduzca un producto válido") -> 2102013 | U85: CONTINÚE: El producto y programa presupuestal coinciden | V85: Redes de alumbrado público mejoradas (210201300) | W85: =IFERROR(IF($V85="","",VLOOKUP($V85,Catálogo!$B$3019:$C$9130,2,FALSE)),"Introduzca un indicador de producto válido") -> 210201300 | X85: CONTINÚE: El indicador de producto y el producto coinciden | Z85: Número | AA85: =1772*4 -> 7088 | AB85: Incremento | AC85: ODS 7. Energía asequible y no contaminante | AD85: 5.4. Reparación integral para la construcción de Paz | AE85: Reparación / Retorno y reubicación (Solo víctimas desplazamiento) | AK85: =+IFERROR(VLOOKUP(AJ85,Iniciativas!E:F,2,FALSE),"Seleccione el código de la iniciativa") -> Seleccione el código de la iniciativa | AL85: 1100 | AM85: 2003 | AN85: 1990 | AO85: 1995 | AP85: 195803145 | AQ85: 0 | AR85: 0 | AS85: 0 | AT85: 0 | AU85: 0 | AV85: 0 | AW85: 0 | AX85: 0 | AY85: 0 | AZ85: 0 | BA85: 0 | BB85: 0 | BC85: 0 | BD85: 0 | BE85: 0 | BF85: 195803145 | BG85: 195803145 | BH85: 0 | BI85: 0 | BJ85: 0 | BK85: 0 | BL85: 0 | BM85: 0 | BN85: 0 | BO85: 0 | BP85: 0 | BQ85: 0 | BR85: 0 | BS85: 0 | BT85: 0 | BU85: 0 | BV85: 0 | BW85: 195803145 | BX85: 195803145 | BY85: 0 | BZ85: 0 | CA85: 0 | CB85: 0 | CC85: 0 | CD85: 0 | CE85: 0 | CF85: 0 | CG85: 0 | CH85: 0 | CI85: 0 | CJ85: 0 | CK85: 0 | CL85: 0 | CM85: 0 | CN85: 195803145 | CO85: 195803145 | CP85: 0 | CQ85: 0 | CR85: 0 | CS85: 0 | CT85: 0 | CU85: 0 | CV85: 0 | CW85: 0 | CX85: 0 | CY85: 0 | CZ85: 0 | DA85: 0 | DB85: 0 | DC85: 0 | DD85: 0 | DE85: 195803145 | DF85: 783212580
A86: 82 | B86: Transformación y Desarrollo Social con Equidad | C86: Deficit de vivienda rural | D86: 38 | E86: Porcentaje | F86: 36.54 | J86: Vivienda, ciudad y territorio | K86: =IFERROR(IF($J86="","",VLOOKUP($J86,Catálogo!$B$5:$C$21,2,FALSE)),"Introduzca un sector de inversión válido") -> 40 | L86: Vivienda Digna | M86: Acceso a soluciones de vivienda (4001) | N86: =IFERROR(IF($M86="","",VLOOKUP($M86,Catálogo!$E$25:$F$93,2,FALSE)),"Introduzca un programa presupuestal válido") -> 4001 | O86: =IFERROR(IF($N86="","",VLOOKUP($N86,Catálogo!$F$25:$G$94,2,FALSE)),"Introduzca un programa presupuestal válido") -> A.7 - Vivienda | P86: CONTINÚE: El programa presupuestal y sector de inversión coinciden | Q86: Servicio de asistencia técnica y jurídica en saneamiento y titulación de predios | R86: Dirección de Vivienda | S86: Servicio de asistencia técnica y jurídica en saneamiento y titulación de predios (4001001) | T86: =IFERROR(IF($S86="","",VLOOKUP($S86,Catálogo!$G$97:$H$2750,2,FALSE)),"Introduzca un producto válido") -> 4001001 | U86: CONTINÚE: El producto y programa presupuestal coinciden | V86: Asistencias técnicas y jurídicas realizadas (400100101) | W86: =IFERROR(IF($V86="","",VLOOKUP($V86,Catálogo!$B$3019:$C$9130,2,FALSE)),"Introduzca un indicador de producto válido") -> 400100101 | X86: CONTINÚE: El indicador de producto y el producto coinciden | Z86: Número | AA86: 4 | AB86: Incremento | AC86: ODS 1. Fin de la pobreza | AD86: 1.5. Desarrollo social: Vivienda y Agua Potable | AE86: Asistencia / Vivienda (Solo víctimas desplazamiento) | AK86: =+IFERROR(VLOOKUP(AJ86,Iniciativas!E:F,2,FALSE),"Seleccione el código de la iniciativa") -> Seleccione el código de la iniciativa | AL86: 1 | AM86: 1 | AN86: 1 | AO86: 1 | AP86: 60000000 | AQ86: 0 | AR86: 0 | AS86: 0 | AT86: 0 | AU86: 0 | AV86: 0 | AW86: 0 | AX86: 0 | AY86: 0 | AZ86: 0 | BA86: 0 | BB86: 0 | BC86: 0 | BD86: 0 | BE86: 0 | BF86: 60000000 | BG86: 60000000 | BH86: 0 | BI86: 0 | BJ86: 0 | BK86: 0 | BL86: 0 | BM86: 0 | BN86: 0 | BO86: 0 | BP86: 0 | BQ86: 0 | BR86: 0 | BS86: 0 | BT86: 0 | BU86: 0 | BV86: 0 | BW86: 60000000 | BX86: 60000000 | BY86: 0 | BZ86: 0 | CA86: 0 | CB86: 0 | CC86: 0 | CD86: 0 | CE86: 0 | CF86: 0 | CG86: 0 | CH86: 0 | CI86: 0 | CJ86: 0 | CK86: 0 | CL86: 0 | CM86: 0 | CN86: 60000000 | CO86: 60000000 | CP86: 0 | CQ86: 0 | CR86: 0 | CS86: 0 | CT86: 0 | CU86: 0 | CV86: 0 | CW86: 0 | CX86: 0 | CY86: 0 | CZ86: 0 | DA86: 0 | DB86: 0 | DC86: 0 | DD86: 0 | DE86: 60000000 | DF86: 240000000
A87: 83 | B87: Transformación y Desarrollo Social con Equidad | C87: Deficit de vivienda rural | D87: 38 | E87: Porcentaje | F87: 36.54 | J87: Vivienda, ciudad y territorio | K87: =IFERROR(IF($J87="","",VLOOKUP($J87,Catálogo!$B$5:$C$21,2,FALSE)),"Introduzca un sector de inversión válido") -> 40 | L87: Vivienda Digna | M87: Acceso a soluciones de vivienda (4001) | N87: =IFERROR(IF($M87="","",VLOOKUP($M87,Catálogo!$E$25:$F$93,2,FALSE)),"Introduzca un programa presupuestal válido") -> 4001 | O87: =IFERROR(IF($N87="","",VLOOKUP($N87,Catálogo!$F$25:$G$94,2,FALSE)),"Introduzca un programa presupuestal válido") -> A.7 - Vivienda | P87: CONTINÚE: El programa presupuestal y sector de inversión coinciden | Q87: Servicio de apoyo financiero para adquisición de vivienda | R87: Dirección de Vivienda | S87: Servicio de apoyo financiero para adquisición de vivienda (4001031) | T87: =IFERROR(IF($S87="","",VLOOKUP($S87,Catálogo!$G$97:$H$2750,2,FALSE)),"Introduzca un producto válido") -> 4001031 | U87: CONTINÚE: El producto y programa presupuestal coinciden | V87: Hogares beneficiados con adquisición de vivienda (400103100) | W87: =IFERROR(IF($V87="","",VLOOKUP($V87,Catálogo!$B$3019:$C$9130,2,FALSE)),"Introduzca un indicador de producto válido") -> 400103100 | X87: CONTINÚE: El indicador de producto y el producto coinciden | Z87: Número | AA87: 400 | AB87: Incremento | AC87: ODS 1. Fin de la pobreza | AD87: 1.5. Desarrollo social: Vivienda y Agua Potable | AE87: Asistencia / Vivienda (Solo víctimas desplazamiento) | AK87: =+IFERROR(VLOOKUP(AJ87,Iniciativas!E:F,2,FALSE),"Seleccione el código de la iniciativa") -> Seleccione el código de la iniciativa | AL87: 12 | AM87: 20 | AN87: 184 | AO87: 184 | AP87: 0 | AQ87: 0 | AR87: 0 | AS87: 0 | AT87: 0 | AU87: 0 | AV87: 210368442 | AW87: 0 | AX87: 0 | AY87: 0 | AZ87: 0 | BA87: 0 | BB87: 0 | BC87: 0 | BD87: 0 | BE87: 0 | BF87: 210368442 | BG87: 0 | BH87: 0 | BI87: 0 | BJ87: 0 | BK87: 0 | BL87: 0 | BM87: 210368442 | BN87: 0 | BO87: 0 | BP87: 0 | BQ87: 0 | BR87: 0 | BS87: 0 | BT87: 0 | BU87: 1000000000 | BV87: 0 | BW87: 1210368442 | BX87: 0 | BY87: 0 | BZ87: 0 | CA87: 0 | CB87: 0 | CC87: 0 | CD87: 210368442 | CE87: 0 | CF87: 0 | CG87: 0 | CH87: 0 | CI87: 925000000 | CJ87: 0 | CK87: 4154263116 | CL87: 0 | CM87: 0 | CN87: 5289631558 | CO87: 0 | CP87: 0 | CQ87: 0 | CR87: 0 | CS87: 0 | CT87: 0 | CU87: 210368442 | CV87: 0 | CW87: 0 | CX87: 0 | CY87: 0 | CZ87: 925000000 | DA87: 0 | DB87: 4154263116 | DC87: 0 | DD87: 0 | DE87: 5289631558 | DF87: 12000000000
A88: 84 | B88: Transformación y Desarrollo Social con Equidad | C88: Déficit de vivienda Urbano | D88: 58 | E88: Porcentaje | F88: 57 | J88: Vivienda, ciudad y territorio | K88: =IFERROR(IF($J88="","",VLOOKUP($J88,Catálogo!$B$5:$C$21,2,FALSE)),"Introduzca un sector de inversión válido") -> 40 | L88: Vivienda Digna | M88: Acceso a soluciones de vivienda (4001) | N88: =IFERROR(IF($M88="","",VLOOKUP($M88,Catálogo!$E$25:$F$93,2,FALSE)),"Introduzca un programa presupuestal válido") -> 4001 | O88: =IFERROR(IF($N88="","",VLOOKUP($N88,Catálogo!$F$25:$G$94,2,FALSE)),"Introduzca un programa presupuestal válido") -> A.7 - Vivienda | P88: CONTINÚE: El programa presupuestal y sector de inversión coinciden | Q88: Servicio de apoyo financiero para mejoramiento de vivienda | R88: Dirección de Vivienda | S88: Servicio de apoyo financiero para mejoramiento de vivienda (4001032) | T88: =IFERROR(IF($S88="","",VLOOKUP($S88,Catálogo!$G$97:$H$2750,2,FALSE)),"Introduzca un producto válido") -> 4001032 | U88: CONTINÚE: El producto y programa presupuestal coinciden | V88: Hogares beneficiados con mejoramiento de una vivienda (400103200) | W88: =IFERROR(IF($V88="","",VLOOKUP($V88,Catálogo!$B$3019:$C$9130,2,FALSE)),"Introduzca un indicador de producto válido") -> 400103200 | X88: CONTINÚE: El indicador de producto y el producto coinciden | Z88: Número | AA88: 400 | AB88: Incremento | AC88: ODS 1. Fin de la pobreza | AD88: 1.5. Desarrollo social: Vivienda y Agua Potable | AE88: Asistencia / Vivienda (Solo víctimas desplazamiento) | AK88: =+IFERROR(VLOOKUP(AJ88,Iniciativas!E:F,2,FALSE),"Seleccione el código de la iniciativa") -> Seleccione el código de la iniciativa | AL88: 230 | AM88: 100 | AN88: 35 | AO88: 35 | AP88: 475117766.2 | AQ88: 0 | AR88: 0 | AS88: 0 | AT88: 0 | AU88: 0 | AV88: 124882233.8 | AW88: 0 | AX88: 0 | AY88: 0 | AZ88: 0 | BA88: 0 | BB88: 0 | BC88: 0 | BD88: 0 | BE88: 0 | BF88: =+AP88+AQ88+AR88+AS88+AT88+AU88+AV88+AW88+AX88+AY88+AZ88+BA88+BB88+BC88+BD88+BE88 -> 600000000 | BG88: 475117766.2 | BH88: 0 | BI88: 0 | BJ88: 0 | BK88: 0 | BL88: 0 | BM88: 124882233.8 | BN88: 0 | BO88: 0 | BP88: 0 | BQ88: 0 | BR88: 0 | BS88: 0 | BT88: 0 | BU88: 0 | BV88: 0 | BW88: 600000000 | BX88: 475117766.2 | BY88: 0 | BZ88: 0 | CA88: 0 | CB88: 0 | CC88: 0 | CD88: 124882233.8 | CE88: 0 | CF88: 0 | CG88: 0 | CH88: 0 | CI88: 0 | CJ88: 0 | CK88: 0 | CL88: 0 | CM88: 0 | CN88: 600000000 | CO88: 475117766.2 | CP88: 0 | CQ88: 0 | CR88: 0 | CS88: 0 | CT88: 0 | CU88: 124882233.8 | CV88: 0 | CW88: 0 | CX88: 0 | CY88: 0 | CZ88: 0 | DA88: 0 | DB88: 0 | DC88: 0 | DD88: 0 | DE88: 600000000 | DF88: 2400000000
A89: 85 | B89: Transformación y Desarrollo Social con Equidad | C89: Víctimas que han superado la condición de vulnerabilidad | D89: 3419 | E89: Número | F89: 5400 | J89: Inclusión social y reconciliación | K89: =IFERROR(IF($J89="","",VLOOKUP($J89,Catálogo!$B$5:$C$21,2,FALSE)),"Introduzca un sector de inversión válido") -> 41 | L89: Equidad por y para vos/ Atención, asistencia y reparación integral a las víctimas | M89: Atención, asistencia y reparación integral a las víctimas (4101) | N89: =IFERROR(IF($M89="","",VLOOKUP($M89,Catálogo!$E$25:$F$93,2,FALSE)),"Introduzca un programa presupuestal válido") -> 4101 | O89: =IFERROR(IF($N89="","",VLOOKUP($N89,Catálogo!$F$25:$G$94,2,FALSE)),"Introduzca un programa presupuestal válido") -> A.14 - Atención a grupos vulnerables promoción social | P89: CONTINÚE: El programa presupuestal y sector de inversión coinciden | Q89: Museos de Memoria Histórica adecuados | R89: Secretaría de Gobierno y Participación Ciudadana | S89: Museos de Memoria Histórica adecuados (4101003) | T89: =IFERROR(IF($S89="","",VLOOKUP($S89,Catálogo!$G$97:$H$2750,2,FALSE)),"Introduzca un producto válido") -> 4101003 | U89: CONTINÚE: El producto y programa presupuestal coinciden | V89: Museos de Memoria Histórica adecuados (410100300) | W89: =IFERROR(IF($V89="","",VLOOKUP($V89,Catálogo!$B$3019:$C$9130,2,FALSE)),"Introduzca un indicador de producto válido") -> 410100300 | X89: CONTINÚE: El indicador de producto y el producto coinciden | Z89: Número | AA89: 1 | AB89: Incremento | AC89: ODS 16. Paz, justicia e instituciones sólidas | AD89: 5.1. Justicia y Verdad | AE89: Reparación / Satisfacción | AK89: =+IFERROR(VLOOKUP(AJ89,Iniciativas!E:F,2,FALSE),"Seleccione el código de la iniciativa") -> Seleccione el código de la iniciativa | AL89: 0 | AM89: 0 | AN89: 1 | AO89: 0 | AP89: 0 | AQ89: 0 | AR89: 0 | AS89: 0 | AT89: 0 | AU89: 0 | AV89: 0 | AW89: 0 | AX89: 0 | AY89: 0 | AZ89: 0 | BA89: 0 | BB89: 0 | BC89: 0 | BD89: 0 | BE89: 0 | BF89: =+AP89+AQ89+AR89+AS89+AT89+AU89+AV89+AW89+AX89+AY89+AZ89+BA89+BB89+BC89+BD89+BE89 -> 0 | BG89: 0 | BH89: 0 | BI89: 0 | BJ89: 0 | BK89: 0 | BL89: 0 | BM89: 0 | BN89: 0 | BO89: 0 | BP89: 0 | BQ89: 0 | BR89: 0 | BS89: 0 | BT89: 0 | BU89: 0 | BV89: 0 | BW89: 0 | BX89: 16162917 | BY89: 0 | BZ89: 0 | CA89: 0 | CB89: 0 | CC89: 0 | CD89: 0 | CE89: 0 | CF89: 0 | CG89: 0 | CH89: 0 | CI89: 0 | CJ89: 0 | CK89: 0 | CL89: 0 | CM89: 0 | CN89: 16162917 | CO89: 0 | CP89: 0 | CQ89: 0 | CR89: 0 | CS89: 0 | CT89: 0 | CU89: 0 | CV89: 0 | CW89: 0 | CX89: 0 | CY89: 0 | CZ89: 0 | DA89: 0 | DB89: 0 | DC89: 0 | DD89: 0 | DE89: 0 | DF89: 16162917
A90: 86 | B90: Transformación y Desarrollo Social con Equidad | C90: Víctimas que han superado la condición de vulnerabilidad | D90: 3419 | E90: Número | F90: 5400 | J90: Inclusión social y reconciliación | K90: =IFERROR(IF($J90="","",VLOOKUP($J90,Catálogo!$B$5:$C$21,2,FALSE)),"Introduzca un sector de inversión válido") -> 41 | L90: Equidad por y para vos/ Atención, asistencia y reparación integral a las víctimas | M90: Atención, asistencia y reparación integral a las víctimas (4101) | N90: =IFERROR(IF($M90="","",VLOOKUP($M90,Catálogo!$E$25:$F$93,2,FALSE)),"Introduzca un programa presupuestal válido") -> 4101 | O90: =IFERROR(IF($N90="","",VLOOKUP($N90,Catálogo!$F$25:$G$94,2,FALSE)),"Introduzca un programa presupuestal válido") -> A.14 - Atención a grupos vulnerables promoción social | P90: CONTINÚE: El programa presupuestal y sector de inversión coinciden | Q90: Servicio de orientación y comunicación a las víctimas | R90: Secretaría de Gobierno y Participación Ciudadana | S90: Servicio de orientación y comunicación a las víctimas (4101023) | T90: =IFERROR(IF($S90="","",VLOOKUP($S90,Catálogo!$G$97:$H$2750,2,FALSE)),"Introduzca un producto válido") -> 4101023 | U90: CONTINÚE: El producto y programa presupuestal coinciden | V90: Solicitudes tramitadas (410102300) | W90: =IFERROR(IF($V90="","",VLOOKUP($V90,Catálogo!$B$3019:$C$9130,2,FALSE)),"Introduzca un indicador de producto válido") -> 410102300 | X90: CONTINÚE: El indicador de producto y el producto coinciden | Z90: Número | AA90: 8000 | AB90: Incremento | AC90: ODS 16. Paz, justicia e instituciones sólidas | AD90: 5.4. Reparación integral para la construcción de Paz | AE90: Atención / Transversal/Orientación y Comunicación | AK90: =+IFERROR(VLOOKUP(AJ90,Iniciativas!E:F,2,FALSE),"Seleccione el código de la iniciativa") -> Seleccione el código de la iniciativa | AL90: 2000 | AM90: 1400 | AN90: 2300 | AO90: 2300 | AP90: 13000000 | AQ90: 0 | AR90: 0 | AS90: 0 | AT90: 0 | AU90: 0 | AV90: 0 | AW90: 0 | AX90: 0 | AY90: 0 | AZ90: 0 | BA90: 0 | BB90: 0 | BC90: 0 | BD90: 0 | BE90: 0 | BF90: 13000000 | BG90: 13000000 | BH90: 0 | BI90: 0 | BJ90: 0 | BK90: 0 | BL90: 0 | BM90: 0 | BN90: 0 | BO90: 0 | BP90: 0 | BQ90: 0 | BR90: 0 | BS90: 0 | BT90: 0 | BU90: 0 | BV90: 0 | BW90: 13000000 | BX90: 13000000 | BY90: 0 | BZ90: 0 | CA90: 0 | CB90: 0 | CC90: 0 | CD90: 0 | CE90: 0 | CF90: 0 | CG90: 0 | CH90: 0 | CI90: 0 | CJ90: 0 | CK90: 0 | CL90: 0 | CM90: 0 | CN90: 13000000 | CO90: 13000000 | CP90: 0 | CQ90: 0 | CR90: 0 | CS90: 0 | CT90: 0 | CU90: 0 | CV90: 0 | CW90: 0 | CX90: 0 | CY90: 0 | CZ90: 0 | DA90: 0 | DB90: 0 | DC90: 0 | DD90: 0 | DE90: 13000000 | DF90: 52000000
A91: 87 | B91: Transformación y Desarrollo Social con Equidad | C91: Víctimas que han superado la condición de vulnerabilidad | D91: 3419 | E91: Número | F91: 5400 | J91: Inclusión social y reconciliación | K91: =IFERROR(IF($J91="","",VLOOKUP($J91,Catálogo!$B$5:$C$21,2,FALSE)),"Introduzca un sector de inversión válido") -> 41 | L91: Equidad por y para vos/ Atención, asistencia y reparación integral a las víctimas | M91: Atención, asistencia y reparación integral a las víctimas (4101) | N91: =IFERROR(IF($M91="","",VLOOKUP($M91,Catálogo!$E$25:$F$93,2,FALSE)),"Introduzca un programa presupuestal válido") -> 4101 | O91: =IFERROR(IF($N91="","",VLOOKUP($N91,Catálogo!$F$25:$G$94,2,FALSE)),"Introduzca un programa presupuestal válido") -> A.14 - Atención a grupos vulnerables promoción social | P91: CONTINÚE: El programa presupuestal y sector de inversión coinciden | Q91: Servicio de asistencia funeraria | R91: Secretaría de Gobierno y Participación Ciudadana | S91: Servicio de asistencia funeraria (4101027) | T91: =IFERROR(IF($S91="","",VLOOKUP($S91,Catálogo!$G$97:$H$2750,2,FALSE)),"Introduzca un producto válido") -> 4101027 | U91: CONTINÚE: El producto y programa presupuestal coinciden | V91: Hogares subsidiados en asistencia funeraria (410102701) | W91: =IFERROR(IF($V91="","",VLOOKUP($V91,Catálogo!$B$3019:$C$9130,2,FALSE)),"Introduzca un indicador de producto válido") -> 410102701 | X91: CONTINÚE: El indicador de producto y el producto coinciden | Z91: Número | AA91: 34 | AB91: Incremento | AC91: ODS 16. Paz, justicia e instituciones sólidas | AD91: 5.4. Reparación integral para la construcción de Paz | AE91: Asistencia / Subsistencia mínima | AK91: =+IFERROR(VLOOKUP(AJ91,Iniciativas!E:F,2,FALSE),"Seleccione el código de la iniciativa") -> Seleccione el código de la iniciativa | AL91: 8 | AM91: 10 | AN91: 8 | AO91: 8 | AP91: 11900000 | AQ91: 0 | AR91: 0 | AS91: 0 | AT91: 0 | AU91: 0 | AV91: 0 | AW91: 0 | AX91: 0 | AY91: 0 | AZ91: 0 | BA91: 0 | BB91: 0 | BC91: 0 | BD91: 0 | BE91: 0 | BF91: 11900000 | BG91: 11900000 | BH91: 0 | BI91: 0 | BJ91: 0 | BK91: 0 | BL91: 0 | BM91: 0 | BN91: 0 | BO91: 0 | BP91: 0 | BQ91: 0 | BR91: 0 | BS91: 0 | BT91: 0 | BU91: 0 | BV91: 0 | BW91: 11900000 | BX91: 11900000 | BY91: 0 | BZ91: 0 | CA91: 0 | CB91: 0 | CC91: 0 | CD91: 0 | CE91: 0 | CF91: 0 | CG91: 0 | CH91: 0 | CI91: 0 | CJ91: 0 | CK91: 0 | CL91: 0 | CM91: 0 | CN91: 11900000 | CO91: 11900000 | CP91: 0 | CQ91: 0 | CR91: 0 | CS91: 0 | CT91: 0 | CU91: 0 | CV91: 0 | CW91: 0 | CX91: 0 | CY91: 0 | CZ91: 0 | DA91: 0 | DB91: 0 | DC91: 0 | DD91: 0 | DE91: 11900000 | DF91: 47600000
A92: 88 | B92: Transformación y Desarrollo Social con Equidad | C92: Víctimas que han superado la condición de vulnerabilidad | D92: 3419 | E92: Número | F92: 5400 | J92: Inclusión social y reconciliación | K92: =IFERROR(IF($J92="","",VLOOKUP($J92,Catálogo!$B$5:$C$21,2,FALSE)),"Introduzca un sector de inversión válido") -> 41 | L92: Equidad por y para vos/ Atención, asistencia y reparación integral a las víctimas | M92: Atención, asistencia y reparación integral a las víctimas (4101) | N92: =IFERROR(IF($M92="","",VLOOKUP($M92,Catálogo!$E$25:$F$93,2,FALSE)),"Introduzca un programa presupuestal válido") -> 4101 | O92: =IFERROR(IF($N92="","",VLOOKUP($N92,Catálogo!$F$25:$G$94,2,FALSE)),"Introduzca un programa presupuestal válido") -> A.14 - Atención a grupos vulnerables promoción social | P92: CONTINÚE: El programa presupuestal y sector de inversión coinciden | Q92: Servicios de implementaciónde medidas de satisfacción y acompañamiento a las víctimas del conflicto armado | R92: Secretaría de Gobierno y Participación Ciudadana | S92: Servicios de implementaciónde medidas de satisfacción y acompañamiento a las víctimas del conflicto armado (4101031) | T92: =IFERROR(IF($S92="","",VLOOKUP($S92,Catálogo!$G$97:$H$2750,2,FALSE)),"Introduzca un producto válido") -> 4101031 | U92: CONTINÚE: El producto y programa presupuestal coinciden | V92: Víctimas reconocidas, recordadas y dignificadas por el Estado. (410103100) | W92: =IFERROR(IF($V92="","",VLOOKUP($V92,Catálogo!$B$3019:$C$9130,2,FALSE)),"Introduzca un indicador de producto válido") -> 410103100 | X92: CONTINÚE: El indicador de producto y el producto coinciden | Z92: Número | AA92: 200 | AB92: Incremento | AC92: ODS 16. Paz, justicia e instituciones sólidas | AD92: 5.1. Justicia y Verdad | AE92: Reparación / Satisfacción | AK92: =+IFERROR(VLOOKUP(AJ92,Iniciativas!E:F,2,FALSE),"Seleccione el código de la iniciativa") -> Seleccione el código de la iniciativa | AL92: 120 | AM92: 30 | AN92: 25 | AO92: 25 | AP92: 2500000 | AQ92: 0 | AR92: 0 | AS92: 0 | AT92: 0 | AU92: 0 | AV92: 0 | AW92: 0 | AX92: 0 | AY92: 0 | AZ92: 0 | BA92: 0 | BB92: 0 | BC92: 0 | BD92: 0 | BE92: 0 | BF92: 2500000 | BG92: 2500000 | BH92: 0 | BI92: 0 | BJ92: 0 | BK92: 0 | BL92: 0 | BM92: 0 | BN92: 0 | BO92: 0 | BP92: 0 | BQ92: 0 | BR92: 0 | BS92: 0 | BT92: 0 | BU92: 0 | BV92: 0 | BW92: 2500000 | BX92: 2500000 | BY92: 0 | BZ92: 0 | CA92: 0 | CB92: 0 | CC92: 0 | CD92: 0 | CE92: 0 | CF92: 0 | CG92: 0 | CH92: 0 | CI92: 0 | CJ92: 0 | CK92: 0 | CL92: 0 | CM92: 0 | CN92: 2500000 | CO92: 2500000 | CP92: 0 | CQ92: 0 | CR92: 0 | CS92: 0 | CT92: 0 | CU92: 0 | CV92: 0 | CW92: 0 | CX92: 0 | CY92: 0 | CZ92: 0 | DA92: 0 | DB92: 0 | DC92: 0 | DD92: 0 | DE92: 2500000 | DF92: 10000000
A93: 89 | B93: Transformación y Desarrollo Social con Equidad | C93: Víctimas que han superado la condición de vulnerabilidad | D93: 3419 | E93: Número | F93: 5400 | J93: Inclusión social y reconciliación | K93: =IFERROR(IF($J93="","",VLOOKUP($J93,Catálogo!$B$5:$C$21,2,FALSE)),"Introduzca un sector de inversión válido") -> 41 | L93: Equidad por y para vos/ Atención, asistencia y reparación integral a las víctimas | M93: Atención, asistencia y reparación integral a las víctimas (4101) | N93: =IFERROR(IF($M93="","",VLOOKUP($M93,Catálogo!$E$25:$F$93,2,FALSE)),"Introduzca un programa presupuestal válido") -> 4101 | O93: =IFERROR(IF($N93="","",VLOOKUP($N93,Catálogo!$F$25:$G$94,2,FALSE)),"Introduzca un programa presupuestal válido") -> A.14 - Atención a grupos vulnerables promoción social | P93: CONTINÚE: El programa presupuestal y sector de inversión coinciden | Q93: Servicio de asistencia técnica para la participación de las víctimas | R93: Secretaría de Gobierno y Participación Ciudadana | S93: Servicio de asistencia técnica para la participación de las víctimas (4101038) | T93: =IFERROR(IF($S93="","",VLOOKUP($S93,Catálogo!$G$97:$H$2750,2,FALSE)),"Introduzca un producto válido") -> 4101038 | U93: CONTINÚE: El producto y programa presupuestal coinciden | V93: Eventos de participación realizados (410103800) | W93: =IFERROR(IF($V93="","",VLOOKUP($V93,Catálogo!$B$3019:$C$9130,2,FALSE)),"Introduzca un indicador de producto válido") -> 410103800 | X93: CONTINÚE: El indicador de producto y el producto coinciden | Z93: Número | AA93: 16 | AB93: Incremento | AC93: ODS 16. Paz, justicia e instituciones sólidas | AD93: 2.2. Mecanismos democráticos de participación ciudadana | AE93: Ejes transversales / Participación | AK93: =+IFERROR(VLOOKUP(AJ93,Iniciativas!E:F,2,FALSE),"Seleccione el código de la iniciativa") -> Seleccione el código de la iniciativa | AL93: 4 | AM93: 4 | AN93: 4 | AO93: 4 | AP93: 8000000 | AQ93: 0 | AR93: 0 | AS93: 0 | AT93: 0 | AU93: 0 | AV93: 0 | AW93: 0 | AX93: 0 | AY93: 0 | AZ93: 0 | BA93: 0 | BB93: 0 | BC93: 0 | BD93: 0 | BE93: 0 | BF93: 8000000 | BG93: 8000000 | BH93: 0 | BI93: 0 | BJ93: 0 | BK93: 0 | BL93: 0 | BM93: 0 | BN93: 0 | BO93: 0 | BP93: 0 | BQ93: 0 | BR93: 0 | BS93: 0 | BT93: 0 | BU93: 0 | BV93: 0 | BW93: 8000000 | BX93: 8000000 | BY93: 0 | BZ93: 0 | CA93: 0 | CB93: 0 | CC93: 0 | CD93: 0 | CE93: 0 | CF93: 0 | CG93: 0 | CH93: 0 | CI93: 0 | CJ93: 0 | CK93: 0 | CL93: 0 | CM93: 0 | CN93: 8000000 | CO93: 8000000 | CP93: 0 | CQ93: 0 | CR93: 0 | CS93: 0 | CT93: 0 | CU93: 0 | CV93: 0 | CW93: 0 | CX93: 0 | CY93: 0 | CZ93: 0 | DA93: 0 | DB93: 0 | DC93: 0 | DD93: 0 | DE93: 8000000 | DF93: 32000000
A94: 90 | B94: Transformación y Desarrollo Social con Equidad | C94: Víctimas que han superado la condición de vulnerabilidad | D94: 3419 | E94: Número | F94: 5400 | J94: Inclusión social y reconciliación | K94: =IFERROR(IF($J94="","",VLOOKUP($J94,Catálogo!$B$5:$C$21,2,FALSE)),"Introduzca un sector de inversión válido") -> 41 | L94: Equidad por y para vos/ Atención, asistencia y reparación integral a las víctimas | M94: Atención, asistencia y reparación integral a las víctimas (4101) | N94: =IFERROR(IF($M94="","",VLOOKUP($M94,Catálogo!$E$25:$F$93,2,FALSE)),"Introduzca un programa presupuestal válido") -> 4101 | O94: =IFERROR(IF($N94="","",VLOOKUP($N94,Catálogo!$F$25:$G$94,2,FALSE)),"Introduzca un programa presupuestal válido") -> A.14 - Atención a grupos vulnerables promoción social | P94: CONTINÚE: El programa presupuestal y sector de inversión coinciden | Q94: Documentos de diagnóstico y/o caracterización del daño colectivo | R94: Secretaría de Gobierno y Participación Ciudadana | S94: Documentos de diagnóstico y/o caracterización del daño colectivo (4101046) | T94: =IFERROR(IF($S94="","",VLOOKUP($S94,Catálogo!$G$97:$H$2750,2,FALSE)),"Introduzca un producto válido") -> 4101046 | U94: CONTINÚE: El producto y programa presupuestal coinciden | V94: Documento elaborado (410104600) | W94: =IFERROR(IF($V94="","",VLOOKUP($V94,Catálogo!$B$3019:$C$9130,2,FALSE)),"Introduzca un indicador de producto válido") -> 410104600 | X94: CONTINÚE: El indicador de producto y el producto coinciden | Z94: Número | AA94: 1 | AB94: Incremento | AC94: ODS 16. Paz, justicia e instituciones sólidas | AD94: 5.4. Reparación integral para la construcción de Paz | AE94: Reparación / Reparación Colectiva | AK94: =+IFERROR(VLOOKUP(AJ94,Iniciativas!E:F,2,FALSE),"Seleccione el código de la iniciativa") -> Seleccione el código de la iniciativa | AL94: 0 | AM94: 1 | AN94: 0 | AO94: 0 | AP94: 0 | AQ94: 0 | AR94: 0 | AS94: 0 | AT94: 0 | AU94: 0 | AV94: 0 | AW94: 0 | AX94: 0 | AY94: 0 | AZ94: 0 | BA94: 0 | BB94: 0 | BC94: 0 | BD94: 0 | BE94: 0 | BF94: 0 | BG94: 5000000 | BH94: 0 | BI94: 0 | BJ94: 0 | BK94: 0 | BL94: 0 | BM94: 0 | BN94: 0 | BO94: 0 | BP94: 0 | BQ94: 0 | BR94: 0 | BS94: 0 | BT94: 0 | BU94: 0 | BV94: 0 | BW94: 5000000 | BX94: 0 | BY94: 0 | BZ94: 0 | CA94: 0 | CB94: 0 | CC94: 0 | CD94: 0 | CE94: 0 | CF94: 0 | CG94: 0 | CH94: 0 | CI94: 0 | CJ94: 0 | CK94: 0 | CL94: 0 | CM94: 0 | CN94: 0 | CO94: 0 | CP94: 0 | CQ94: 0 | CR94: 0 | CS94: 0 | CT94: 0 | CU94: 0 | CV94: 0 | CW94: 0 | CX94: 0 | CY94: 0 | CZ94: 0 | DA94: 0 | DB94: 0 | DC94: 0 | DD94: 0 | DE94: 0 | DF94: 5000000
A95: 91 | B95: Transformación y Desarrollo Social con Equidad | C95: Víctimas que han superado la condición de vulnerabilidad | D95: 3419 | E95: Número | F95: 5400 | J95: Inclusión social y reconciliación | K95: =IFERROR(IF($J95="","",VLOOKUP($J95,Catálogo!$B$5:$C$21,2,FALSE)),"Introduzca un sector de inversión válido") -> 41 | L95: Equidad por y para vos/ Atención, asistencia y reparación integral a las víctimas | M95: Atención, asistencia y reparación integral a las víctimas (4101) | N95: =IFERROR(IF($M95="","",VLOOKUP($M95,Catálogo!$E$25:$F$93,2,FALSE)),"Introduzca un programa presupuestal válido") -> 4101 | O95: =IFERROR(IF($N95="","",VLOOKUP($N95,Catálogo!$F$25:$G$94,2,FALSE)),"Introduzca un programa presupuestal válido") -> A.14 - Atención a grupos vulnerables promoción social | P95: CONTINÚE: El programa presupuestal y sector de inversión coinciden | Q95: Servicios de divulgación de tematicas de memoria histórica | R95: Secretaría de Gobierno y Participación Ciudadana | S95: Servicios de divulgación de tematicas de memoria histórica (4101068) | T95: =IFERROR(IF($S95="","",VLOOKUP($S95,Catálogo!$G$97:$H$2750,2,FALSE)),"Introduzca un producto válido") -> 4101068 | U95: CONTINÚE: El producto y programa presupuestal coinciden | V95: Eventos realizados (410106802) | W95: =IFERROR(IF($V95="","",VLOOKUP($V95,Catálogo!$B$3019:$C$9130,2,FALSE)),"Introduzca un indicador de producto válido") -> 410106802 | X95: CONTINÚE: El indicador de producto y el producto coinciden | Z95: Número | AA95: 4 | AB95: Incremento | AC95: ODS 16. Paz, justicia e instituciones sólidas | AD95: 5.1. Justicia y Verdad | AE95: Reparación / Satisfacción | AK95: =+IFERROR(VLOOKUP(AJ95,Iniciativas!E:F,2,FALSE),"Seleccione el código de la iniciativa") -> Seleccione el código de la iniciativa | AL95: 0 | AM95: 2 | AN95: 1 | AO95: 1 | AP95: 0 | AQ95: 0 | AR95: 0 | AS95: 0 | AT95: 0 | AU95: 0 | AV95: 0 | AW95: 0 | AX95: 0 | AY95: 0 | AZ95: 0 | BA95: 0 | BB95: 0 | BC95: 0 | BD95: 0 | BE95: 0 | BF95: 0 | BG95: 4000000 | BH95: 0 | BI95: 0 | BJ95: 0 | BK95: 0 | BL95: 0 | BM95: 0 | BN95: 0 | BO95: 0 | BP95: 0 | BQ95: 0 | BR95: 0 | BS95: 0 | BT95: 0 | BU95: 0 | BV95: 0 | BW95: 4000000 | BX95: 4000000 | BY95: 0 | BZ95: 0 | CA95: 0 | CB95: 0 | CC95: 0 | CD95: 0 | CE95: 0 | CF95: 0 | CG95: 0 | CH95: 0 | CI95: 0 | CJ95: 0 | CK95: 0 | CL95: 0 | CM95: 0 | CN95: 4000000 | CO95: 4000000 | CP95: 0 | CQ95: 0 | CR95: 0 | CS95: 0 | CT95: 0 | CU95: 0 | CV95: 0 | CW95: 0 | CX95: 0 | CY95: 0 | CZ95: 0 | DA95: 0 | DB95: 0 | DC95: 0 | DD95: 0 | DE95: 4000000 | DF95: 12000000
A96: 92 | B96: Transformación y Desarrollo Social con Equidad | C96: Víctimas que han superado la condición de vulnerabilidad | D96: 3419 | E96: Número | F96: 5400 | J96: Inclusión social y reconciliación | K96: =IFERROR(IF($J96="","",VLOOKUP($J96,Catálogo!$B$5:$C$21,2,FALSE)),"Introduzca un sector de inversión válido") -> 41 | L96: Equidad por y para vos/ Atención, asistencia y reparación integral a las víctimas | M96: Atención, asistencia y reparación integral a las víctimas (4101) | N96: =IFERROR(IF($M96="","",VLOOKUP($M96,Catálogo!$E$25:$F$93,2,FALSE)),"Introduzca un programa presupuestal válido") -> 4101 | O96: =IFERROR(IF($N96="","",VLOOKUP($N96,Catálogo!$F$25:$G$94,2,FALSE)),"Introduzca un programa presupuestal válido") -> A.14 - Atención a grupos vulnerables promoción social | P96: CONTINÚE: El programa presupuestal y sector de inversión coinciden | Q96: Servicio de acompañamiento comunitario a los hogares en riesgo de desplazamiento, retornados o reubicados | R96: Secretaría de Gobierno y Participación Ciudadana | S96: Servicio de acompañamiento comunitario a los hogares en riesgo de desplazamiento, retornados o reubicados (4101074) | T96: =IFERROR(IF($S96="","",VLOOKUP($S96,Catálogo!$G$97:$H$2750,2,FALSE)),"Introduzca un producto válido") -> 4101074 | U96: CONTINÚE: El producto y programa presupuestal coinciden | V96: Hogares apoyados con procesos de acompañamiento comunitario (410107400) | W96: =IFERROR(IF($V96="","",VLOOKUP($V96,Catálogo!$B$3019:$C$9130,2,FALSE)),"Introduzca un indicador de producto válido") -> 410107400 | X96: CONTINÚE: El indicador de producto y el producto coinciden | Z96: Número | AA96: 4 | AB96: Incremento | AC96: ODS 16. Paz, justicia e instituciones sólidas | AD96: 5.4. Reparación integral para la construcción de Paz | AE96: Reparación / Retorno y reubicación (Solo víctimas desplazamiento) | AK96: =+IFERROR(VLOOKUP(AJ96,Iniciativas!E:F,2,FALSE),"Seleccione el código de la iniciativa") -> Seleccione el código de la iniciativa | AL96: 0 | AM96: 1 | AN96: 1 | AO96: 2 | AP96: 0 | AQ96: 0 | AR96: 0 | AS96: 0 | AT96: 0 | AU96: 0 | AV96: 0 | AW96: 0 | AX96: 0 | AY96: 0 | AZ96: 0 | BA96: 0 | BB96: 0 | BC96: 0 | BD96: 0 | BE96: 0 | BF96: 0 | BG96: 20000000 | BH96: 0 | BI96: 0 | BJ96: 0 | BK96: 0 | BL96: 0 | BM96: 0 | BN96: 0 | BO96: 0 | BP96: 0 | BQ96: 0 | BR96: 0 | BS96: 0 | BT96: 0 | BU96: 0 | BV96: 0 | BW96: 20000000 | BX96: 20000000 | BY96: 0 | BZ96: 0 | CA96: 0 | CB96: 0 | CC96: 0 | CD96: 0 | CE96: 0 | CF96: 0 | CG96: 0 | CH96: 0 | CI96: 0 | CJ96: 0 | CK96: 0 | CL96: 0 | CM96: 0 | CN96: 20000000 | CO96: 40000000 | CP96: 0 | CQ96: 0 | CR96: 0 | CS96: 0 | CT96: 0 | CU96: 0 | CV96: 0 | CW96: 0 | CX96: 0 | CY96: 0 | CZ96: 0 | DA96: 0 | DB96: 0 | DC96: 0 | DD96: 0 | DE96: 40000000 | DF96: 80000000
A97: 93 | B97: Transformación y Desarrollo Social con Equidad | C97: Índice de pobreza multidimensional IPM - en centros poblados y rural disperso | D97: 51.1 | E97: Porcentaje | F97: 37.9 | J97: Inclusión social y reconciliación | K97: =IFERROR(IF($J97="","",VLOOKUP($J97,Catálogo!$B$5:$C$21,2,FALSE)),"Introduzca un sector de inversión válido") -> 41 | L97: Equidad por y para vos/ Juntos por la protección y felicidad de las niñas, niños y adolescentes. | M97: Desarrollo integral de niñas, niños, adolescentes y sus familias (4102) | N97: =IFERROR(IF($M97="","",VLOOKUP($M97,Catálogo!$E$25:$F$93,2,FALSE)),"Introduzca un programa presupuestal válido") -> 4102 | O97: =IFERROR(IF($N97="","",VLOOKUP($N97,Catálogo!$F$25:$G$94,2,FALSE)),"Introduzca un programa presupuestal válido") -> A.14 - Atención a grupos vulnerables promoción social | P97: CONTINÚE: El programa presupuestal y sector de inversión coinciden | Q97: Servicio de atención integral a la primera infancia | R97: Secretaría de Inclusión Social | S97: Servicio de atención integral a la primera infancia (4102001) | T97: =IFERROR(IF($S97="","",VLOOKUP($S97,Catálogo!$G$97:$H$2750,2,FALSE)),"Introduzca un producto válido") -> 4102001 | U97: CONTINÚE: El producto y programa presupuestal coinciden | V97: Niños y niñas atendidos en Servicio integrales (410200100) | W97: =IFERROR(IF($V97="","",VLOOKUP($V97,Catálogo!$B$3019:$C$9130,2,FALSE)),"Introduzca un indicador de producto válido") -> 410200100 | X97: CONTINÚE: El indicador de producto y el producto coinciden | Z97: Número | AA97: 1070 | AB97: Mantenimiento | AC97: ODS 1. Fin de la pobreza | AD97: 5.4. Reparación integral para la construcción de Paz | AE97: Reparación / Retorno y reubicación (Solo víctimas desplazamiento) | AK97: =+IFERROR(VLOOKUP(AJ97,Iniciativas!E:F,2,FALSE),"Seleccione el código de la iniciativa") -> Seleccione el código de la iniciativa | AL97: 1070 | AM97: 1070 | AN97: 1070 | AO97: 1070 | AP97: 34775000 | AQ97: 0 | AR97: 0 | AS97: 0 | AT97: 0 | AU97: 0 | AV97: 0 | AW97: 0 | AX97: 0 | AY97: 0 | AZ97: 0 | BA97: 0 | BB97: 0 | BC97: 0 | BD97: 0 | BE97: 0 | BF97: 34775000 | BG97: 34775000 | BH97: 0 | BI97: 0 | BJ97: 0 | BK97: 0 | BL97: 0 | BM97: 0 | BN97: 0 | BO97: 0 | BP97: 0 | BQ97: 0 | BR97: 0 | BS97: 0 | BT97: 0 | BU97: 0 | BV97: 0 | BW97: 34775000 | BX97: 34775000 | BY97: 0 | BZ97: 0 | CA97: 0 | CB97: 0 | CC97: 0 | CD97: 0 | CE97: 0 | CF97: 0 | CG97: 0 | CH97: 0 | CI97: 0 | CJ97: 0 | CK97: 0 | CL97: 0 | CM97: 0 | CN97: 34775000 | CO97: 34775000 | CP97: 0 | CQ97: 0 | CR97: 0 | CS97: 0 | CT97: 0 | CU97: 0 | CV97: 0 | CW97: 0 | CX97: 0 | CY97: 0 | CZ97: 0 | DA97: 0 | DB97: 0 | DC97: 0 | DD97: 0 | DE97: 34775000 | DF97: 139100000
A98: 94 | B98: Transformación y Desarrollo Social con Equidad | C98: Índice de pobreza multidimensional IPM - en centros poblados y rural disperso | D98: 51.1 | E98: Porcentaje | F98: 37.9 | J98: Inclusión social y reconciliación | K98: =IFERROR(IF($J98="","",VLOOKUP($J98,Catálogo!$B$5:$C$21,2,FALSE)),"Introduzca un sector de inversión válido") -> 41 | L98: Equidad por y para vos/ Juntos por la protección y felicidad de las niñas, niños y adolescentes. | M98: Desarrollo integral de niñas, niños, adolescentes y sus familias (4102) | N98: =IFERROR(IF($M98="","",VLOOKUP($M98,Catálogo!$E$25:$F$93,2,FALSE)),"Introduzca un programa presupuestal válido") -> 4102 | O98: =IFERROR(IF($N98="","",VLOOKUP($N98,Catálogo!$F$25:$G$94,2,FALSE)),"Introduzca un programa presupuestal válido") -> A.14 - Atención a grupos vulnerables promoción social | P98: CONTINÚE: El programa presupuestal y sector de inversión coinciden | Q98: Edificaciones de atención a la primera infancia adecuadas | R98: Secretaría de Inclusión Social | S98: Edificaciones de atención a la primera infancia adecuadas (4102005) | T98: =IFERROR(IF($S98="","",VLOOKUP($S98,Catálogo!$G$97:$H$2750,2,FALSE)),"Introduzca un producto válido") -> 4102005 | U98: CONTINÚE: El producto y programa presupuestal coinciden | V98: Edificaciones de atención a la primera infancia adecuadas (410200500) | W98: =IFERROR(IF($V98="","",VLOOKUP($V98,Catálogo!$B$3019:$C$9130,2,FALSE)),"Introduzca un indicador de producto válido") -> 410200500 | X98: CONTINÚE: El indicador de producto y el producto coinciden | Z98: Número | AA98: 2 | AB98: Incremento | AC98: ODS 1. Fin de la pobreza | AD98: 5.4. Reparación integral para la construcción de Paz | AE98: Reparación / Retorno y reubicación (Solo víctimas desplazamiento) | AK98: =+IFERROR(VLOOKUP(AJ98,Iniciativas!E:F,2,FALSE),"Seleccione el código de la iniciativa") -> Seleccione el código de la iniciativa | AL98: 0 | AM98: 0 | AN98: 1 | AO98: 1 | AP98: 0 | AQ98: 0 | AR98: 0 | AS98: 0 | AT98: 0 | AU98: 0 | AV98: 0 | AW98: 0 | AX98: 0 | AY98: 0 | AZ98: 0 | BA98: 0 | BB98: 0 | BC98: 0 | BD98: 0 | BE98: 0 | BF98: 0 | BG98: 0 | BH98: 0 | BI98: 0 | BJ98: 0 | BK98: 0 | BL98: 0 | BM98: 0 | BN98: 0 | BO98: 0 | BP98: 0 | BQ98: 0 | BR98: 0 | BS98: 0 | BT98: 0 | BU98: 0 | BV98: 0 | BW98: 0 | BX98: 15000000 | BY98: 0 | BZ98: 0 | CA98: 0 | CB98: 0 | CC98: 0 | CD98: 0 | CE98: 0 | CF98: 0 | CG98: 0 | CH98: 0 | CI98: 0 | CJ98: 0 | CK98: 0 | CL98: 0 | CM98: 0 | CN98: 15000000 | CO98: 15000000 | CP98: 0 | CQ98: 0 | CR98: 0 | CS98: 0 | CT98: 0 | CU98: 0 | CV98: 0 | CW98: 0 | CX98: 0 | CY98: 0 | CZ98: 0 | DA98: 0 | DB98: 0 | DC98: 0 | DD98: 0 | DE98: 15000000 | DF98: 30000000
A99: 95 | B99: Transformación y Desarrollo Social con Equidad | C99: Índice de pobreza multidimensional IPM - en centros poblados y rural disperso | D99: 51.1 | E99: Porcentaje | F99: 37.9 | J99: Inclusión social y reconciliación | K99: =IFERROR(IF($J99="","",VLOOKUP($J99,Catálogo!$B$5:$C$21,2,FALSE)),"Introduzca un sector de inversión válido") -> 41 | L99: Equidad por y para vos/ Juntos por la protección y felicidad de las niñas, niños y adolescentes. | M99: Desarrollo integral de niñas, niños, adolescentes y sus familias (4102) | N99: =IFERROR(IF($M99="","",VLOOKUP($M99,Catálogo!$E$25:$F$93,2,FALSE)),"Introduzca un programa presupuestal válido") -> 4102 | O99: =IFERROR(IF($N99="","",VLOOKUP($N99,Catálogo!$F$25:$G$94,2,FALSE)),"Introduzca un programa presupuestal válido") -> A.14 - Atención a grupos vulnerables promoción social | P99: CONTINÚE: El programa presupuestal y sector de inversión coinciden | Q99: Servicio de divulgación para la promoción y prevención de los derechos de los niños, niñas y adolescentes | R99: Secretaría de Inclusión Social | S99: Servicios de promoción de los derechos de los niños, niñas, adolescentes y jóvenes (4102046) | T99: =IFERROR(IF($S99="","",VLOOKUP($S99,Catálogo!$G$97:$H$2750,2,FALSE)),"Introduzca un producto válido") -> 4102046 | U99: CONTINÚE: El producto y programa presupuestal coinciden | V99: Campañas de promoción realizadas (410204600) | W99: =IFERROR(IF($V99="","",VLOOKUP($V99,Catálogo!$B$3019:$C$9130,2,FALSE)),"Introduzca un indicador de producto válido") -> 410204600 | X99: CONTINÚE: El indicador de producto y el producto coinciden | Z99: Número | AA99: 24 | AB99: Incremento | AC99: ODS 1. Fin de la pobreza | AD99: 5.4. Reparación integral para la construcción de Paz | AE99: Reparación / Retorno y reubicación (Solo víctimas desplazamiento) | AK99: =+IFERROR(VLOOKUP(AJ99,Iniciativas!E:F,2,FALSE),"Seleccione el código de la iniciativa") -> Seleccione el código de la iniciativa | AL99: 6 | AM99: 6 | AN99: 6 | AO99: 6 | AP99: 9748747.5 | AQ99: 0 | AR99: 0 | AS99: 0 | AT99: 0 | AU99: 0 | AV99: 0 | AW99: 0 | AX99: 0 | AY99: 0 | AZ99: 0 | BA99: 0 | BB99: 0 | BC99: 0 | BD99: 0 | BE99: 20251252.5 | BF99: 30000000 | BG99: 9748747.5 | BH99: 0 | BI99: 0 | BJ99: 0 | BK99: 0 | BL99: 0 | BM99: 0 | BN99: 0 | BO99: 0 | BP99: 0 | BQ99: 0 | BR99: 0 | BS99: 0 | BT99: 0 | BU99: 0 | BV99: 20251252.5 | BW99: 30000000 | BX99: 9748747.5 | BY99: 0 | BZ99: 0 | CA99: 0 | CB99: 0 | CC99: 0 | CD99: 0 | CE99: 0 | CF99: 0 | CG99: 0 | CH99: 0 | CI99: 0 | CJ99: 0 | CK99: 0 | CL99: 0 | CM99: 20251252.5 | CN99: 30000000 | CO99: 9748747.5 | CP99: 0 | CQ99: 0 | CR99: 0 | CS99: 0 | CT99: 0 | CU99: 0 | CV99: 0 | CW99: 0 | CX99: 0 | CY99: 0 | CZ99: 0 | DA99: 0 | DB99: 0 | DC99: 0 | DD99: 20251252.5 | DE99: 30000000 | DF99: 120000000
A100: 96 | B100: Transformación y Desarrollo Social con Equidad | C100: Índice de pobreza multidimensional IPM - en centros poblados y rural disperso | D100: 51.1 | E100: Porcentaje | F100: 37.9 | J100: Inclusión social y reconciliación | K100: =IFERROR(IF($J100="","",VLOOKUP($J100,Catálogo!$B$5:$C$21,2,FALSE)),"Introduzca un sector de inversión válido") -> 41 | L100: Equidad por y para vos/ Juntos por la protección y felicidad de las niñas, niños y adolescentes. | M100: Desarrollo integral de niñas, niños, adolescentes y sus familias (4102) | N100: =IFERROR(IF($M100="","",VLOOKUP($M100,Catálogo!$E$25:$F$93,2,FALSE)),"Introduzca un programa presupuestal válido") -> 4102 | O100: =IFERROR(IF($N100="","",VLOOKUP($N100,Catálogo!$F$25:$G$94,2,FALSE)),"Introduzca un programa presupuestal válido") -> A.14 - Atención a grupos vulnerables promoción social | P100: CONTINÚE: El programa presupuestal y sector de inversión coinciden | Q100: Centros de Atención Especializada - CAE para el restablecimiento de derechos dotados | R100: Secretaría de Inclusión Social | S100: Centros de Atención Especializada - CAE para el restablecimiento de derechos dotados (4102028) | T100: =IFERROR(IF($S100="","",VLOOKUP($S100,Catálogo!$G$97:$H$2750,2,FALSE)),"Introduzca un producto válido") -> 4102028 | U100: CONTINÚE: El producto y programa presupuestal coinciden | V100: Centros de Atención Especializada - CAE para el restablecimiento de derechos dotados (410202800) | W100: =IFERROR(IF($V100="","",VLOOKUP($V100,Catálogo!$B$3019:$C$9130,2,FALSE)),"Introduzca un indicador de producto válido") -> 410202800 | X100: CONTINÚE: El indicador de producto y el producto coinciden | Z100: Número | AA100: 1 | AB100: Incremento | AC100: ODS 1. Fin de la pobreza | AD100: 5.4. Reparación integral para la construcción de Paz | AE100: Reparación / Retorno y reubicación (Solo víctimas desplazamiento) | AK100: =+IFERROR(VLOOKUP(AJ100,Iniciativas!E:F,2,FALSE),"Seleccione el código de la iniciativa") -> Seleccione el código de la iniciativa | AL100: 0 | AM100: 0 | AN100: 1 | AO100: 0 | AP100: 0 | AQ100: 0 | AR100: 0 | AS100: 0 | AT100: 0 | AU100: 0 | AV100: 0 | AW100: 0 | AX100: 0 | AY100: 0 | AZ100: 0 | BA100: 0 | BB100: 0 | BC100: 0 | BD100: 0 | BE100: 0 | BF100: 0 | BG100: 0 | BH100: 0 | BI100: 0 | BJ100: 0 | BK100: 0 | BL100: 0 | BM100: 0 | BN100: 0 | BO100: 0 | BP100: 0 | BQ100: 0 | BR100: 0 | BS100: 0 | BT100: 0 | BU100: 0 | BV100: 0 | BW100: 0 | BX100: 30000000 | BY100: 0 | BZ100: 0 | CA100: 0 | CB100: 0 | CC100: 0 | CD100: 0 | CE100: 0 | CF100: 0 | CG100: 0 | CH100: 0 | CI100: 0 | CJ100: 0 | CK100: 0 | CL100: 0 | CM100: 0 | CN100: 30000000 | CO100: 0 | CP100: 0 | CQ100: 0 | CR100: 0 | CS100: 0 | CT100: 0 | CU100: 0 | CV100: 0 | CW100: 0 | CX100: 0 | CY100: 0 | CZ100: 0 | DA100: 0 | DB100: 0 | DC100: 0 | DD100: 0 | DE100: 0 | DF100: 30000000
A101: 97 | B101: Transformación y Desarrollo Social con Equidad | C101: Índice de pobreza multidimensional IPM - en centros poblados y rural disperso | D101: 51.1 | E101: Porcentaje | F101: 37.9 | J101: Inclusión social y reconciliación | K101: =IFERROR(IF($J101="","",VLOOKUP($J101,Catálogo!$B$5:$C$21,2,FALSE)),"Introduzca un sector de inversión válido") -> 41 | L101: Equidad por y para vos/ Juntos por la protección y felicidad de las niñas, niños y adolescentes. | M101: Desarrollo integral de niñas, niños, adolescentes y sus familias (4102) | N101: =IFERROR(IF($M101="","",VLOOKUP($M101,Catálogo!$E$25:$F$93,2,FALSE)),"Introduzca un programa presupuestal válido") -> 4102 | O101: =IFERROR(IF($N101="","",VLOOKUP($N101,Catálogo!$F$25:$G$94,2,FALSE)),"Introduzca un programa presupuestal válido") -> A.14 - Atención a grupos vulnerables promoción social | P101: CONTINÚE: El programa presupuestal y sector de inversión coinciden | Q101: Servicio de protección para el restablecimiento de derechos de niños, niñas, adolescentes y jóvenes | R101: Secretaría de Inclusión Social | S101: Servicio de protección para el restablecimiento de derechos de niños, niñas, adolescentes y jóvenes (4102037) | T101: =IFERROR(IF($S101="","",VLOOKUP($S101,Catálogo!$G$97:$H$2750,2,FALSE)),"Introduzca un producto válido") -> 4102037 | U101: CONTINÚE: El producto y programa presupuestal coinciden | V101: Niños, niñas, adolescentes y jóvenes atendidos con servicio de protección para el restablecimiento de derechos (410203700) | W101: =IFERROR(IF($V101="","",VLOOKUP($V101,Catálogo!$B$3019:$C$9130,2,FALSE)),"Introduzca un indicador de producto válido") -> 410203700 | X101: CONTINÚE: El indicador de producto y el producto coinciden | Z101: Número | AA101: 408 | AB101: Incremento | AC101: ODS 1. Fin de la pobreza | AD101: 5.4. Reparación integral para la construcción de Paz | AE101: Reparación / Retorno y reubicación (Solo víctimas desplazamiento) | AK101: =+IFERROR(VLOOKUP(AJ101,Iniciativas!E:F,2,FALSE),"Seleccione el código de la iniciativa") -> Seleccione el código de la iniciativa | AL101: 102 | AM101: 102 | AN101: 102 | AO101: 102 | AP101: 25241728.7 | AQ101: 0 | AR101: 0 | AS101: 0 | AT101: 0 | AU101: 0 | AV101: 0 | AW101: 0 | AX101: 0 | AY101: 0 | AZ101: 0 | BA101: 0 | BB101: 0 | BC101: 0 | BD101: 0 | BE101: 0 | BF101: 25241728.7 | BG101: 25241728.7 | BH101: 0 | BI101: 0 | BJ101: 0 | BK101: 0 | BL101: 0 | BM101: 0 | BN101: 0 | BO101: 0 | BP101: 0 | BQ101: 0 | BR101: 0 | BS101: 0 | BT101: 0 | BU101: 0 | BV101: 0 | BW101: 25241728.7 | BX101: 25241728.7 | BY101: 0 | BZ101: 0 | CA101: 0 | CB101: 0 | CC101: 0 | CD101: 0 | CE101: 0 | CF101: 0 | CG101: 0 | CH101: 0 | CI101: 0 | CJ101: 0 | CK101: 0 | CL101: 0 | CM101: 0 | CN101: 25241728.7 | CO101: 25241728.7 | CP101: 0 | CQ101: 0 | CR101: 0 | CS101: 0 | CT101: 0 | CU101: 0 | CV101: 0 | CW101: 0 | CX101: 0 | CY101: 0 | CZ101: 0 | DA101: 0 | DB101: 0 | DC101: 0 | DD101: 0 | DE101: 25241728.7 | DF101: 100966914.8
A102: 98 | B102: Transformación y Desarrollo Social con Equidad | C102: Índice de pobreza multidimensional IPM - en centros poblados y rural disperso | D102: 51.1 | E102: Porcentaje | F102: 37.9 | J102: Inclusión social y reconciliación | K102: =IFERROR(IF($J102="","",VLOOKUP($J102,Catálogo!$B$5:$C$21,2,FALSE)),"Introduzca un sector de inversión válido") -> 41 | L102: Equidad por y para vos/ Juntos por la protección y felicidad de las niñas, niños y adolescentes. | M102: Desarrollo integral de niñas, niños, adolescentes y sus familias (4102) | N102: =IFERROR(IF($M102="","",VLOOKUP($M102,Catálogo!$E$25:$F$93,2,FALSE)),"Introduzca un programa presupuestal válido") -> 4102 | O102: =IFERROR(IF($N102="","",VLOOKUP($N102,Catálogo!$F$25:$G$94,2,FALSE)),"Introduzca un programa presupuestal válido") -> A.14 - Atención a grupos vulnerables promoción social | P102: CONTINÚE: El programa presupuestal y sector de inversión coinciden | Q102: Servicio dirigidos a la atención de niños, niñas, adolescentes y jóvenes, con enfoque pedagógico y restaurativo encaminados a la inclusión social | R102: Secretaría de Inclusión Social | S102: Servicio dirigidos a la atención de niños, niñas, adolescentes y jóvenes, con enfoque pedagógico y restaurativo encaminados a la inclusión social (4102038) | T102: =IFERROR(IF($S102="","",VLOOKUP($S102,Catálogo!$G$97:$H$2750,2,FALSE)),"Introduzca un producto válido") -> 4102038 | U102: CONTINÚE: El producto y programa presupuestal coinciden | V102: Niños, niñas, adolescentes y jóvenes atendidios en los servicios de restablecimiento en la administración de justicia (410203800) | W102: =IFERROR(IF($V102="","",VLOOKUP($V102,Catálogo!$B$3019:$C$9130,2,FALSE)),"Introduzca un indicador de producto válido") -> 410203800 | X102: CONTINÚE: El indicador de producto y el producto coinciden | Z102: Número | AA102: 200 | AB102: Incremento | AC102: ODS 1. Fin de la pobreza | AD102: 5.4. Reparación integral para la construcción de Paz | AE102: Reparación / Retorno y reubicación (Solo víctimas desplazamiento) | AK102: =+IFERROR(VLOOKUP(AJ102,Iniciativas!E:F,2,FALSE),"Seleccione el código de la iniciativa") -> Seleccione el código de la iniciativa | AL102: 25 | AM102: 25 | AN102: 75 | AO102: 75 | AP102: 13750000 | AQ102: 0 | AR102: 0 | AS102: 0 | AT102: 0 | AU102: 0 | AV102: 0 | AW102: 0 | AX102: 0 | AY102: 0 | AZ102: 0 | BA102: 0 | BB102: 0 | BC102: 0 | BD102: 0 | BE102: 0 | BF102: 13750000 | BG102: 13750000 | BH102: 0 | BI102: 0 | BJ102: 0 | BK102: 0 | BL102: 0 | BM102: 0 | BN102: 0 | BO102: 0 | BP102: 0 | BQ102: 0 | BR102: 0 | BS102: 0 | BT102: 0 | BU102: 0 | BV102: 0 | BW102: 13750000 | BX102: 13750000 | BY102: 0 | BZ102: 0 | CA102: 0 | CB102: 0 | CC102: 0 | CD102: 0 | CE102: 0 | CF102: 0 | CG102: 0 | CH102: 0 | CI102: 0 | CJ102: 0 | CK102: 0 | CL102: 0 | CM102: 0 | CN102: 13750000 | CO102: 13750000 | CP102: 0 | CQ102: 0 | CR102: 0 | CS102: 0 | CT102: 0 | CU102: 0 | CV102: 0 | CW102: 0 | CX102: 0 | CY102: 0 | CZ102: 0 | DA102: 0 | DB102: 0 | DC102: 0 | DD102: 0 | DE102: 13750000 | DF102: 55000000
A103: 99 | B103: Transformación y Desarrollo Social con Equidad | C103: Índice de pobreza multidimensional IPM - en centros poblados y rural disperso | D103: 51.1 | E103: Porcentaje | F103: 37.9 | J103: Inclusión social y reconciliación | K103: =IFERROR(IF($J103="","",VLOOKUP($J103,Catálogo!$B$5:$C$21,2,FALSE)),"Introduzca un sector de inversión válido") -> 41 | L103: Equidad por y para vos/ Promoción social para poblaciones vulnerables [Afrodescendientes, Juventud, Migrantes, Género y diversidad sexual (Mujer-Mujer rural-LGBTIQ)] | M103: Inclusión social y productiva para la población en situación de vulnerabilidad (4103) | N103: =IFERROR(IF($M103="","",VLOOKUP($M103,Catálogo!$E$25:$F$93,2,FALSE)),"Introduzca un programa presupuestal válido") -> 4103 | O103: =IFERROR(IF($N103="","",VLOOKUP($N103,Catálogo!$F$25:$G$94,2,FALSE)),"Introduzca un programa presupuestal válido") -> A.14 - Atención a grupos vulnerables promoción social | P103: CONTINÚE: El programa presupuestal y sector de inversión coinciden | Q103: Servicio de Promoción social para poblaciones vulnerables [Afrodescendientes, Juventud, Migrantes, Género y diversidad sexual (Mujer-Mujer rural-LGBTIQ)] | R103: Secretaría de Inclusión Social | S103: Servicio de monitoreo y seguimiento a las intervenciones implementadas para la inclusión social y productiva de la población en situación de vulnerabilidad (4103054) | T103: =IFERROR(IF($S103="","",VLOOKUP($S103,Catálogo!$G$97:$H$2750,2,FALSE)),"Introduzca un producto válido") -> 4103054 | U103: CONTINÚE: El producto y programa presupuestal coinciden | V103: Informes de monitoreo y seguimiento elaborados (410305400) | W103: =IFERROR(IF($V103="","",VLOOKUP($V103,Catálogo!$B$3019:$C$9130,2,FALSE)),"Introduzca un indicador de producto válido") -> 410305400 | X103: CONTINÚE: El indicador de producto y el producto coinciden | Z103: Número | AA103: 7 | AB103: Mantenimiento | AC103: ODS 1. Fin de la pobreza | AD103: 5.4. Reparación integral para la construcción de Paz | AE103: Asistencia / Generación de Ingresos (Solo víctimas desplazamiento) | AK103: =+IFERROR(VLOOKUP(AJ103,Iniciativas!E:F,2,FALSE),"Seleccione el código de la iniciativa") -> Seleccione el código de la iniciativa | AL103: 7 | AM103: 7 | AN103: 7 | AO103: 7 | AP103: 196425872.7 | AQ103: 0 | AR103: 0 | AS103: 0 | AT103: 0 | AU103: 0 | AV103: 0 | AW103: 0 | AX103: 0 | AY103: 0 | AZ103: 0 | BA103: 0 | BB103: 0 | BC103: 0 | BD103: 0 | BE103: 20251252.5 | BF103: 216677125.2 | BG103: 196425872.7 | BH103: 0 | BI103: 0 | BJ103: 0 | BK103: 0 | BL103: 0 | BM103: 0 | BN103: 0 | BO103: 0 | BP103: 0 | BQ103: 0 | BR103: 622966556.1 | BS103: 216164073.4 | BT103: 0 | BU103: 0 | BV103: 20251252.5 | BW103: 1055807755 | BX103: 196425872.7 | BY103: 0 | BZ103: 0 | CA103: 0 | CB103: 0 | CC103: 0 | CD103: 0 | CE103: 0 | CF103: 0 | CG103: 0 | CH103: 0 | CI103: 0 | CJ103: 0 | CK103: 0 | CL103: 0 | CM103: 20251252.5 | CN103: 216677125.2 | CO103: 196425872.7 | CP103: 0 | CQ103: 0 | CR103: 0 | CS103: 0 | CT103: 0 | CU103: 0 | CV103: 0 | CW103: 0 | CX103: 0 | CY103: 0 | CZ103: 0 | DA103: 0 | DB103: 0 | DC103: 0 | DD103: 20251252.5 | DE103: 216677125.2 | DF103: 1705839130
A104: 100 | B104: Transformación y Desarrollo Social con Equidad | C104: Índice de pobreza multidimensional IPM - en centros poblados y rural disperso | D104: 51.1 | E104: Porcentaje | F104: 37.9 | J104: Inclusión social y reconciliación | K104: =IFERROR(IF($J104="","",VLOOKUP($J104,Catálogo!$B$5:$C$21,2,FALSE)),"Introduzca un sector de inversión válido") -> 41 | L104: EQUIDAD POR Y PARA VOS/Familias superando sus barreras | M104: Inclusión social y productiva para la población en situación de vulnerabilidad (4103) | N104: =IFERROR(IF($M104="","",VLOOKUP($M104,Catálogo!$E$25:$F$93,2,FALSE)),"Introduzca un programa presupuestal válido") -> 4103 | O104: =IFERROR(IF($N104="","",VLOOKUP($N104,Catálogo!$F$25:$G$94,2,FALSE)),"Introduzca un programa presupuestal válido") -> A.14 - Atención a grupos vulnerables promoción social | P104: CONTINÚE: El programa presupuestal y sector de inversión coinciden | Q104: Servicio de entrega de raciones de alimentos | R104: Secretaría de Inclusión Social | S104: Servicio de entrega de raciones de alimentos (4103017) | T104: =IFERROR(IF($S104="","",VLOOKUP($S104,Catálogo!$G$97:$H$2750,2,FALSE)),"Introduzca un producto válido") -> 4103017 | U104: CONTINÚE: El producto y programa presupuestal coinciden | V104: Personas beneficiadas con raciones de alimentos (410301700) | W104: =IFERROR(IF($V104="","",VLOOKUP($V104,Catálogo!$B$3019:$C$9130,2,FALSE)),"Introduzca un indicador de producto válido") -> 410301700 | X104: CONTINÚE: El indicador de producto y el producto coinciden | Z104: Número | AA104: 4200 | AB104: Incremento | AC104: ODS 1. Fin de la pobreza | AD104: 1.7. Garantía progresiva del derecho a la alimentación | AE104: Asistencia / Alimentación (Solo víctimas desplazamiento) | AK104: =+IFERROR(VLOOKUP(AJ104,Iniciativas!E:F,2,FALSE),"Seleccione el código de la iniciativa") -> Seleccione el código de la iniciativa | AL104: 1400 | AM104: 1000 | AN104: 900 | AO104: 900 | AP104: 44629564.5 | AQ104: 0 | AR104: 0 | AS104: 0 | AT104: 0 | AU104: 0 | AV104: 0 | AW104: 0 | AX104: 0 | AY104: 0 | AZ104: 0 | BA104: 0 | BB104: 0 | BC104: 0 | BD104: 0 | BE104: 0 | BF104: 44629564.5 | BG104: 44629564.5 | BH104: 0 | BI104: 0 | BJ104: 0 | BK104: 0 | BL104: 0 | BM104: 0 | BN104: 0 | BO104: 0 | BP104: 0 | BQ104: 0 | BR104: 0 | BS104: 0 | BT104: 0 | BU104: 0 | BV104: 0 | BW104: 44629564.5 | BX104: 44629564.5 | BY104: 0 | BZ104: 0 | CA104: 0 | CB104: 0 | CC104: 0 | CD104: 0 | CE104: 0 | CF104: 0 | CG104: 0 | CH104: 0 | CI104: 0 | CJ104: 0 | CK104: 0 | CL104: 0 | CM104: 0 | CN104: 44629564.5 | CO104: 44629564.5 | CP104: 0 | CQ104: 0 | CR104: 0 | CS104: 0 | CT104: 0 | CU104: 0 | CV104: 0 | CW104: 0 | CX104: 0 | CY104: 0 | CZ104: 0 | DA104: 0 | DB104: 0 | DC104: 0 | DD104: 0 | DE104: 44629564.5 | DF104: 178518258
A105: 101 | B105: Transformación y Desarrollo Social con Equidad | C105: Índice de pobreza multidimensional IPM - en centros poblados y rural disperso | D105: 51.1 | E105: Porcentaje | F105: 37.9 | J105: Inclusión social y reconciliación | K105: =IFERROR(IF($J105="","",VLOOKUP($J105,Catálogo!$B$5:$C$21,2,FALSE)),"Introduzca un sector de inversión válido") -> 41 | L105: EQUIDAD POR Y PARA VOS/Familias superando sus barreras | M105: Inclusión social y productiva para la población en situación de vulnerabilidad (4103) | N105: =IFERROR(IF($M105="","",VLOOKUP($M105,Catálogo!$E$25:$F$93,2,FALSE)),"Introduzca un programa presupuestal válido") -> 4103 | O105: =IFERROR(IF($N105="","",VLOOKUP($N105,Catálogo!$F$25:$G$94,2,FALSE)),"Introduzca un programa presupuestal válido") -> A.14 - Atención a grupos vulnerables promoción social | P105: CONTINÚE: El programa presupuestal y sector de inversión coinciden | Q105: Servicio de acompañamiento familiar y comunitario para la superación de la pobreza | R105: Secretaría de Inclusión Social | S105: Servicio de acompañamiento familiar y comunitario para la superación de la pobreza (4103050) | T105: =IFERROR(IF($S105="","",VLOOKUP($S105,Catálogo!$G$97:$H$2750,2,FALSE)),"Introduzca un producto válido") -> 4103050 | U105: CONTINÚE: El producto y programa presupuestal coinciden | V105: Hogares con acompañamiento familiar (410305000) | W105: =IFERROR(IF($V105="","",VLOOKUP($V105,Catálogo!$B$3019:$C$9130,2,FALSE)),"Introduzca un indicador de producto válido") -> 410305000 | X105: CONTINÚE: El indicador de producto y el producto coinciden | Z105: Número | AA105: 1200 | AB105: Incremento | AC105: ODS 1. Fin de la pobreza | AD105: 5.4. Reparación integral para la construcción de Paz | AE105: Reparación / Retorno y reubicación (Solo víctimas desplazamiento) | AK105: =+IFERROR(VLOOKUP(AJ105,Iniciativas!E:F,2,FALSE),"Seleccione el código de la iniciativa") -> Seleccione el código de la iniciativa | AL105: 200 | AM105: 350 | AN105: 325 | AO105: 325 | AP105: 30000000 | AQ105: 0 | AR105: 0 | AS105: 0 | AT105: 0 | AU105: 0 | AV105: 0 | AW105: 0 | AX105: 0 | AY105: 0 | AZ105: 0 | BA105: 0 | BB105: 0 | BC105: 0 | BD105: 0 | BE105: 0 | BF105: 30000000 | BG105: 30000000 | BH105: 0 | BI105: 0 | BJ105: 0 | BK105: 0 | BL105: 0 | BM105: 0 | BN105: 0 | BO105: 0 | BP105: 0 | BQ105: 0 | BR105: 0 | BS105: 0 | BT105: 0 | BU105: 0 | BV105: 0 | BW105: 30000000 | BX105: 30000000 | BY105: 0 | BZ105: 0 | CA105: 0 | CB105: 0 | CC105: 0 | CD105: 0 | CE105: 0 | CF105: 0 | CG105: 0 | CH105: 0 | CI105: 0 | CJ105: 0 | CK105: 0 | CL105: 0 | CM105: 0 | CN105: 30000000 | CO105: 30000000 | CP105: 0 | CQ105: 0 | CR105: 0 | CS105: 0 | CT105: 0 | CU105: 0 | CV105: 0 | CW105: 0 | CX105: 0 | CY105: 0 | CZ105: 0 | DA105: 0 | DB105: 0 | DC105: 0 | DD105: 0 | DE105: 30000000 | DF105: 120000000
A106: 102 | B106: Transformación y Desarrollo Social con Equidad | C106: Índice de pobreza multidimensional IPM - en centros poblados y rural disperso | D106: 51.1 | E106: Porcentaje | F106: 37.9 | J106: Inclusión social y reconciliación | K106: =IFERROR(IF($J106="","",VLOOKUP($J106,Catálogo!$B$5:$C$21,2,FALSE)),"Introduzca un sector de inversión válido") -> 41 | L106: EQUIDAD POR Y PARA VOS/Familias superando sus barreras | M106: Inclusión social y productiva para la población en situación de vulnerabilidad (4103) | N106: =IFERROR(IF($M106="","",VLOOKUP($M106,Catálogo!$E$25:$F$93,2,FALSE)),"Introduzca un programa presupuestal válido") -> 4103 | O106: =IFERROR(IF($N106="","",VLOOKUP($N106,Catálogo!$F$25:$G$94,2,FALSE)),"Introduzca un programa presupuestal válido") -> A.14 - Atención a grupos vulnerables promoción social | P106: CONTINÚE: El programa presupuestal y sector de inversión coinciden | Q106: Servicio de gestión de oferta social para la población vulnerable | R106: Secretaría de Inclusión Social | S106: Servicio de gestión de oferta social para la población vulnerable (4103052) | T106: =IFERROR(IF($S106="","",VLOOKUP($S106,Catálogo!$G$97:$H$2750,2,FALSE)),"Introduzca un producto válido") -> 4103052 | U106: CONTINÚE: El producto y programa presupuestal coinciden | V106: Beneficiarios de la oferta social atendidos (410305201) | W106: =IFERROR(IF($V106="","",VLOOKUP($V106,Catálogo!$B$3019:$C$9130,2,FALSE)),"Introduzca un indicador de producto válido") -> 410305201 | X106: CONTINÚE: El indicador de producto y el producto coinciden | Z106: Número | AA106: 3200 | AB106: Mantenimiento | AC106: ODS 1. Fin de la pobreza | AD106: 5.4. Reparación integral para la construcción de Paz | AE106: Reparación / Retorno y reubicación (Solo víctimas desplazamiento) | AK106: =+IFERROR(VLOOKUP(AJ106,Iniciativas!E:F,2,FALSE),"Seleccione el código de la iniciativa") -> Seleccione el código de la iniciativa | AL106: 3200 | AM106: 3200 | AN106: 3200 | AO106: 3200 | AP106: 33750000 | AQ106: 0 | AR106: 0 | AS106: 0 | AT106: 0 | AU106: 0 | AV106: 0 | AW106: 0 | AX106: 0 | AY106: 0 | AZ106: 0 | BA106: 0 | BB106: 0 | BC106: 0 | BD106: 0 | BE106: 0 | BF106: 33750000 | BG106: 33750000 | BH106: 0 | BI106: 0 | BJ106: 0 | BK106: 0 | BL106: 0 | BM106: 0 | BN106: 0 | BO106: 0 | BP106: 0 | BQ106: 0 | BR106: 0 | BS106: 0 | BT106: 0 | BU106: 0 | BV106: 0 | BW106: 33750000 | BX106: 33750000 | BY106: 0 | BZ106: 0 | CA106: 0 | CB106: 0 | CC106: 0 | CD106: 0 | CE106: 0 | CF106: 0 | CG106: 0 | CH106: 0 | CI106: 0 | CJ106: 0 | CK106: 0 | CL106: 0 | CM106: 0 | CN106: 33750000 | CO106: 33750000 | CP106: 0 | CQ106: 0 | CR106: 0 | CS106: 0 | CT106: 0 | CU106: 0 | CV106: 0 | CW106: 0 | CX106: 0 | CY106: 0 | CZ106: 0 | DA106: 0 | DB106: 0 | DC106: 0 | DD106: 0 | DE106: 33750000 | DF106: 135000000
A107: 103 | B107: Transformación y Desarrollo Social con Equidad | C107: Índice de pobreza multidimensional IPM - en centros poblados y rural disperso | D107: 51.1 | E107: Porcentaje | F107: 37.9 | J107: Inclusión social y reconciliación | K107: =IFERROR(IF($J107="","",VLOOKUP($J107,Catálogo!$B$5:$C$21,2,FALSE)),"Introduzca un sector de inversión válido") -> 41 | L107: EQUIDAD POR Y PARA VOS/Familias superando sus barreras | M107: Inclusión social y productiva para la población en situación de vulnerabilidad (4103) | N107: =IFERROR(IF($M107="","",VLOOKUP($M107,Catálogo!$E$25:$F$93,2,FALSE)),"Introduzca un programa presupuestal válido") -> 4103 | O107: =IFERROR(IF($N107="","",VLOOKUP($N107,Catálogo!$F$25:$G$94,2,FALSE)),"Introduzca un programa presupuestal válido") -> A.14 - Atención a grupos vulnerables promoción social | P107: CONTINÚE: El programa presupuestal y sector de inversión coinciden | Q107: Servicio de apoyo para las unidades productivas para el autoconsumo de los hogares en situación de vulnerabilidad social | R107: Secretaría de Inclusión Social | S107: Servicio de apoyo para las unidades productivas para el autoconsumo de los hogares en situación de vulnerabilidad social (4103055) | T107: =IFERROR(IF($S107="","",VLOOKUP($S107,Catálogo!$G$97:$H$2750,2,FALSE)),"Introduzca un producto válido") -> 4103055 | U107: CONTINÚE: El producto y programa presupuestal coinciden | V107: Unidades productivas para el autoconsumo instaladas (410305500) | W107: =IFERROR(IF($V107="","",VLOOKUP($V107,Catálogo!$B$3019:$C$9130,2,FALSE)),"Introduzca un indicador de producto válido") -> 410305500 | X107: CONTINÚE: El indicador de producto y el producto coinciden | Z107: Número | AA107: 200 | AB107: Incremento | AC107: ODS 1. Fin de la pobreza | AD107: 1.6. Producción agropecuaria y Economía solidaria y cooperativa | AE107: Asistencia / Generación de Ingresos (Solo víctimas desplazamiento) | AK107: =+IFERROR(VLOOKUP(AJ107,Iniciativas!E:F,2,FALSE),"Seleccione el código de la iniciativa") -> Seleccione el código de la iniciativa | AL107: 0 | AM107: 0 | AN107: 100 | AO107: 100 | AP107: 0 | AQ107: 0 | AR107: 0 | AS107: 0 | AT107: 0 | AU107: 0 | AV107: 0 | AW107: 0 | AX107: 0 | AY107: 0 | AZ107: 0 | BA107: 0 | BB107: 0 | BC107: 0 | BD107: 0 | BE107: 0 | BF107: 0 | BG107: 0 | BH107: 0 | BI107: 0 | BJ107: 0 | BK107: 0 | BL107: 0 | BM107: 0 | BN107: 0 | BO107: 0 | BP107: 0 | BQ107: 0 | BR107: 0 | BS107: 0 | BT107: 0 | BU107: 0 | BV107: 0 | BW107: 0 | BX107: 22500000 | BY107: 0 | BZ107: 0 | CA107: 0 | CB107: 0 | CC107: 0 | CD107: 0 | CE107: 0 | CF107: 0 | CG107: 0 | CH107: 0 | CI107: 0 | CJ107: 0 | CK107: 0 | CL107: 0 | CM107: 0 | CN107: 22500000 | CO107: 22500000 | CP107: 0 | CQ107: 0 | CR107: 0 | CS107: 0 | CT107: 0 | CU107: 0 | CV107: 0 | CW107: 0 | CX107: 0 | CY107: 0 | CZ107: 0 | DA107: 0 | DB107: 0 | DC107: 0 | DD107: 0 | DE107: 22500000 | DF107: 45000000
A108: 104 | B108: Transformación y Desarrollo Social con Equidad | C108: Índice de pobreza multidimensional IPM - en centros poblados y rural disperso | D108: 51.1 | E108: Porcentaje | F108: 37.9 | J108: Inclusión social y reconciliación | K108: =IFERROR(IF($J108="","",VLOOKUP($J108,Catálogo!$B$5:$C$21,2,FALSE)),"Introduzca un sector de inversión válido") -> 41 | L108: EQUIDAD POR Y PARA VOS/ Envejecimiento digno, activo y feliz | M108: Atención integral de población en situación permanente de desprotección social y/o familiar (4104) | N108: =IFERROR(IF($M108="","",VLOOKUP($M108,Catálogo!$E$25:$F$93,2,FALSE)),"Introduzca un programa presupuestal válido") -> 4104 | O108: =IFERROR(IF($N108="","",VLOOKUP($N108,Catálogo!$F$25:$G$94,2,FALSE)),"Introduzca un programa presupuestal válido") -> A.14 - Atención a grupos vulnerables promoción social | P108: CONTINÚE: El programa presupuestal y sector de inversión coinciden | Q108: Centros de protección social de día para el adulto mayor construidos y dotados | R108: Secretaría de Inclusión Social | S108: Centros de protección social de día para el adulto mayor construidos y dotados (4104015) | T108: =IFERROR(IF($S108="","",VLOOKUP($S108,Catálogo!$G$97:$H$2750,2,FALSE)),"Introduzca un producto válido") -> 4104015 | U108: CONTINÚE: El producto y programa presupuestal coinciden | V108: Centros de día para el adulto mayor construidos y dotados (410401500) | W108: =IFERROR(IF($V108="","",VLOOKUP($V108,Catálogo!$B$3019:$C$9130,2,FALSE)),"Introduzca un indicador de producto válido") -> 410401500 | X108: CONTINÚE: El indicador de producto y el producto coinciden | Z108: Número | AA108: 1 | AB108: Incremento | AC108: ODS 1. Fin de la pobreza | AD108: 5.4. Reparación integral para la construcción de Paz | AE108: Reparación / Retorno y reubicación (Solo víctimas desplazamiento) | AK108: =+IFERROR(VLOOKUP(AJ108,Iniciativas!E:F,2,FALSE),"Seleccione el código de la iniciativa") -> Seleccione el código de la iniciativa | AL108: 0 | AM108: 0 | AN108: 1 | AO108: 0 | AP108: 0 | AQ108: 0 | AR108: 0 | AS108: 0 | AT108: 0 | AU108: 0 | AV108: 0 | AW108: 0 | AX108: 0 | AY108: 0 | AZ108: 0 | BA108: 0 | BB108: 0 | BC108: 0 | BD108: 0 | BE108: 0 | BF108: 0 | BG108: 0 | BH108: 0 | BI108: 0 | BJ108: 0 | BK108: 0 | BL108: 0 | BM108: 0 | BN108: 0 | BO108: 0 | BP108: 0 | BQ108: 0 | BR108: 0 | BS108: 0 | BT108: 0 | BU108: 0 | BV108: 0 | BW108: 0 | BX108: 250000000 | BY108: 0 | BZ108: 0 | CA108: 0 | CB108: 0 | CC108: 0 | CD108: 0 | CE108: 0 | CF108: 0 | CG108: 0 | CH108: 0 | CI108: 0 | CJ108: 0 | CK108: 0 | CL108: 0 | CM108: 0 | CN108: 250000000 | CO108: 0 | CP108: 0 | CQ108: 0 | CR108: 0 | CS108: 0 | CT108: 0 | CU108: 0 | CV108: 0 | CW108: 0 | CX108: 0 | CY108: 0 | CZ108: 0 | DA108: 0 | DB108: 0 | DC108: 0 | DD108: 0 | DE108: 0 | DF108: 250000000
A109: 105 | B109: Transformación y Desarrollo Social con Equidad | C109: Índice de pobreza multidimensional IPM - en centros poblados y rural disperso | D109: 51.1 | E109: Porcentaje | F109: 37.9 | J109: Inclusión social y reconciliación | K109: =IFERROR(IF($J109="","",VLOOKUP($J109,Catálogo!$B$5:$C$21,2,FALSE)),"Introduzca un sector de inversión válido") -> 41 | L109: EQUIDAD POR Y PARA VOS/ Envejecimiento digno, activo y feliz | M109: Atención integral de población en situación permanente de desprotección social y/o familiar (4104) | N109: =IFERROR(IF($M109="","",VLOOKUP($M109,Catálogo!$E$25:$F$93,2,FALSE)),"Introduzca un programa presupuestal válido") -> 4104 | O109: =IFERROR(IF($N109="","",VLOOKUP($N109,Catálogo!$F$25:$G$94,2,FALSE)),"Introduzca un programa presupuestal válido") -> A.14 - Atención a grupos vulnerables promoción social | P109: CONTINÚE: El programa presupuestal y sector de inversión coinciden | Q109: Centros de protección social de día para el adulto mayor adecuados | R109: Secretaría de Inclusión Social | S109: Centros de protección social de día para el adulto mayor adecuados (4104009) | T109: =IFERROR(IF($S109="","",VLOOKUP($S109,Catálogo!$G$97:$H$2750,2,FALSE)),"Introduzca un producto válido") -> 4104009 | U109: CONTINÚE: El producto y programa presupuestal coinciden | V109: Centros de día para el adulto mayor adecuados (410400900) | W109: =IFERROR(IF($V109="","",VLOOKUP($V109,Catálogo!$B$3019:$C$9130,2,FALSE)),"Introduzca un indicador de producto válido") -> 410400900 | X109: CONTINÚE: El indicador de producto y el producto coinciden | Z109: Número | AA109: 1 | AB109: Incremento | AC109: ODS 1. Fin de la pobreza | AD109: 5.4. Reparación integral para la construcción de Paz | AE109: Reparación / Retorno y reubicación (Solo víctimas desplazamiento) | AK109: =+IFERROR(VLOOKUP(AJ109,Iniciativas!E:F,2,FALSE),"Seleccione el código de la iniciativa") -> Seleccione el código de la iniciativa | AL109: 0 | AM109: 0 | AN109: 0 | AO109: 1 | AP109: 0 | AQ109: 0 | AR109: 0 | AS109: 0 | AT109: 0 | AU109: 0 | AV109: 0 | AW109: 0 | AX109: 0 | AY109: 0 | AZ109: 0 | BA109: 0 | BB109: 0 | BC109: 0 | BD109: 0 | BE109: 0 | BF109: 0 | BG109: 0 | BH109: 0 | BI109: 0 | BJ109: 0 | BK109: 0 | BL109: 0 | BM109: 0 | BN109: 0 | BO109: 0 | BP109: 0 | BQ109: 0 | BR109: 0 | BS109: 0 | BT109: 0 | BU109: 0 | BV109: 0 | BW109: 0 | BX109: 0 | BY109: 0 | BZ109: 0 | CA109: 0 | CB109: 0 | CC109: 0 | CD109: 0 | CE109: 0 | CF109: 0 | CG109: 0 | CH109: 0 | CI109: 0 | CJ109: 0 | CK109: 0 | CL109: 0 | CM109: 0 | CN109: 0 | CO109: 80000000 | CP109: 0 | CQ109: 0 | CR109: 0 | CS109: 0 | CT109: 0 | CU109: 0 | CV109: 0 | CW109: 0 | CX109: 0 | CY109: 0 | CZ109: 0 | DA109: 0 | DB109: 0 | DC109: 0 | DD109: 0 | DE109: 80000000 | DF109: 80000000
A110: 106 | B110: Transformación y Desarrollo Social con Equidad | C110: Índice de pobreza multidimensional IPM - en centros poblados y rural disperso | D110: 51.1 | E110: Porcentaje | F110: 37.9 | J110: Inclusión social y reconciliación | K110: =IFERROR(IF($J110="","",VLOOKUP($J110,Catálogo!$B$5:$C$21,2,FALSE)),"Introduzca un sector de inversión válido") -> 41 | L110: EQUIDAD POR Y PARA VOS/ Envejecimiento digno, activo y feliz | M110: Atención integral de población en situación permanente de desprotección social y/o familiar (4104) | N110: =IFERROR(IF($M110="","",VLOOKUP($M110,Catálogo!$E$25:$F$93,2,FALSE)),"Introduzca un programa presupuestal válido") -> 4104 | O110: =IFERROR(IF($N110="","",VLOOKUP($N110,Catálogo!$F$25:$G$94,2,FALSE)),"Introduzca un programa presupuestal válido") -> A.14 - Atención a grupos vulnerables promoción social | P110: CONTINÚE: El programa presupuestal y sector de inversión coinciden | Q110: Servicios de atención y protección integral al adulto mayor | R110: Secretaría de Inclusión Social | S110: Servicio de atención y protección integral al adulto mayor (4104008) | T110: =IFERROR(IF($S110="","",VLOOKUP($S110,Catálogo!$G$97:$H$2750,2,FALSE)),"Introduzca un producto válido") -> 4104008 | U110: CONTINÚE: El producto y programa presupuestal coinciden | V110: Adultos mayores atendidos con servicios integrales (410400800) | W110: =IFERROR(IF($V110="","",VLOOKUP($V110,Catálogo!$B$3019:$C$9130,2,FALSE)),"Introduzca un indicador de producto válido") -> 410400800 | X110: CONTINÚE: El indicador de producto y el producto coinciden | Z110: Número | AA110: 3200 | AB110: Mantenimiento | AC110: ODS 1. Fin de la pobreza | AD110: 5.4. Reparación integral para la construcción de Paz | AE110: Reparación / Retorno y reubicación (Solo víctimas desplazamiento) | AK110: =+IFERROR(VLOOKUP(AJ110,Iniciativas!E:F,2,FALSE),"Seleccione el código de la iniciativa") -> Seleccione el código de la iniciativa | AL110: 3200 | AM110: 3200 | AN110: 3200 | AO110: 3200 | AP110: 854110275 | AQ110: 0 | AR110: 0 | AS110: 0 | AT110: 0 | AU110: 0 | AV110: 0 | AW110: 0 | AX110: 0 | AY110: 0 | AZ110: 0 | BA110: 0 | BB110: 0 | BC110: 0 | BD110: 0 | BE110: 0 | BF110: 854110275 | BG110: 854110275 | BH110: 0 | BI110: 0 | BJ110: 0 | BK110: 0 | BL110: 0 | BM110: 0 | BN110: 0 | BO110: 0 | BP110: 0 | BQ110: 0 | BR110: 0 | BS110: 0 | BT110: 0 | BU110: 0 | BV110: 0 | BW110: 854110275 | BX110: 854110275 | BY110: 0 | BZ110: 0 | CA110: 0 | CB110: 0 | CC110: 0 | CD110: 0 | CE110: 0 | CF110: 0 | CG110: 0 | CH110: 0 | CI110: 0 | CJ110: 0 | CK110: 0 | CL110: 0 | CM110: 0 | CN110: 854110275 | CO110: 854110275 | CP110: 0 | CQ110: 0 | CR110: 0 | CS110: 0 | CT110: 0 | CU110: 0 | CV110: 0 | CW110: 0 | CX110: 0 | CY110: 0 | CZ110: 0 | DA110: 0 | DB110: 0 | DC110: 0 | DD110: 0 | DE110: 854110275 | DF110: 3416441100
A111: 107 | B111: Transformación y Desarrollo Social con Equidad | C111: Índice de pobreza multidimensional IPM - en centros poblados y rural disperso | D111: 51.1 | E111: Porcentaje | F111: 37.9 | J111: Inclusión social y reconciliación | K111: =IFERROR(IF($J111="","",VLOOKUP($J111,Catálogo!$B$5:$C$21,2,FALSE)),"Introduzca un sector de inversión válido") -> 41 | L111: EQUIDAD POR Y PARA VOS/ Envejecimiento digno, activo y feliz | M111: Atención integral de población en situación permanente de desprotección social y/o familiar (4104) | N111: =IFERROR(IF($M111="","",VLOOKUP($M111,Catálogo!$E$25:$F$93,2,FALSE)),"Introduzca un programa presupuestal válido") -> 4104 | O111: =IFERROR(IF($N111="","",VLOOKUP($N111,Catálogo!$F$25:$G$94,2,FALSE)),"Introduzca un programa presupuestal válido") -> A.14 - Atención a grupos vulnerables promoción social | P111: CONTINÚE: El programa presupuestal y sector de inversión coinciden | Q111: Servicios de educación informal a los cuidadores del adulto mayor | R111: Secretaría de Inclusión Social | S111: Servicio de educación informal a los cuidadores del adulto mayor (4104010) | T111: =IFERROR(IF($S111="","",VLOOKUP($S111,Catálogo!$G$97:$H$2750,2,FALSE)),"Introduzca un producto válido") -> 4104010 | U111: CONTINÚE: El producto y programa presupuestal coinciden | V111: Cuidadores cualificados (410401000) | W111: =IFERROR(IF($V111="","",VLOOKUP($V111,Catálogo!$B$3019:$C$9130,2,FALSE)),"Introduzca un indicador de producto válido") -> 410401000 | X111: CONTINÚE: El indicador de producto y el producto coinciden | Z111: Número | AA111: 880 | AB111: Incremento | AC111: ODS 1. Fin de la pobreza | AD111: 5.4. Reparación integral para la construcción de Paz | AE111: Reparación / Retorno y reubicación (Solo víctimas desplazamiento) | AK111: =+IFERROR(VLOOKUP(AJ111,Iniciativas!E:F,2,FALSE),"Seleccione el código de la iniciativa") -> Seleccione el código de la iniciativa | AL111: 50 | AM111: 300 | AN111: 260 | AO111: 270 | AP111: 160000000 | AQ111: 0 | AR111: 0 | AS111: 0 | AT111: 0 | AU111: 0 | AV111: 0 | AW111: 0 | AX111: 0 | AY111: 0 | AZ111: 0 | BA111: 0 | BB111: 0 | BC111: 0 | BD111: 0 | BE111: 0 | BF111: 160000000 | BG111: 160000000 | BH111: 0 | BI111: 0 | BJ111: 0 | BK111: 0 | BL111: 0 | BM111: 0 | BN111: 0 | BO111: 0 | BP111: 0 | BQ111: 0 | BR111: 0 | BS111: 0 | BT111: 0 | BU111: 0 | BV111: 0 | BW111: 160000000 | BX111: 160000000 | BY111: 0 | BZ111: 0 | CA111: 0 | CB111: 0 | CC111: 0 | CD111: 0 | CE111: 0 | CF111: 0 | CG111: 0 | CH111: 0 | CI111: 0 | CJ111: 0 | CK111: 0 | CL111: 0 | CM111: 0 | CN111: 160000000 | CO111: 160000000 | CP111: 0 | CQ111: 0 | CR111: 0 | CS111: 0 | CT111: 0 | CU111: 0 | CV111: 0 | CW111: 0 | CX111: 0 | CY111: 0 | CZ111: 0 | DA111: 0 | DB111: 0 | DC111: 0 | DD111: 0 | DE111: 160000000 | DF111: 640000000
A112: 108 | B112: Transformación y Desarrollo Social con Equidad | C112: Índice de pobreza multidimensional IPM - en centros poblados y rural disperso | D112: 51.1 | E112: Porcentaje | F112: 37.9 | J112: Inclusión social y reconciliación | K112: =IFERROR(IF($J112="","",VLOOKUP($J112,Catálogo!$B$5:$C$21,2,FALSE)),"Introduzca un sector de inversión válido") -> 41 | L112: EQUIDAD POR Y PARA VOS/ Envejecimiento digno, activo y feliz | M112: Atención integral de población en situación permanente de desprotección social y/o familiar (4104) | N112: =IFERROR(IF($M112="","",VLOOKUP($M112,Catálogo!$E$25:$F$93,2,FALSE)),"Introduzca un programa presupuestal válido") -> 4104 | O112: =IFERROR(IF($N112="","",VLOOKUP($N112,Catálogo!$F$25:$G$94,2,FALSE)),"Introduzca un programa presupuestal válido") -> A.14 - Atención a grupos vulnerables promoción social | P112: CONTINÚE: El programa presupuestal y sector de inversión coinciden | Q112: Servicios de atención integral al habitante de calle | R112: Secretaría de Inclusión Social | S112: Servicio de atención integral al habitante de la calle (4104027) | T112: =IFERROR(IF($S112="","",VLOOKUP($S112,Catálogo!$G$97:$H$2750,2,FALSE)),"Introduzca un producto válido") -> 4104027 | U112: CONTINÚE: El producto y programa presupuestal coinciden | V112: Personas atendidas con servicios integrales (410402700) | W112: =IFERROR(IF($V112="","",VLOOKUP($V112,Catálogo!$B$3019:$C$9130,2,FALSE)),"Introduzca un indicador de producto válido") -> 410402700 | X112: CONTINÚE: El indicador de producto y el producto coinciden | Z112: Número | AA112: 80 | AB112: Incremento | AC112: ODS 1. Fin de la pobreza | AD112: 5.4. Reparación integral para la construcción de Paz | AE112: Reparación / Retorno y reubicación (Solo víctimas desplazamiento) | AK112: =+IFERROR(VLOOKUP(AJ112,Iniciativas!E:F,2,FALSE),"Seleccione el código de la iniciativa") -> Seleccione el código de la iniciativa | AL112: 0 | AM112: 0 | AN112: 40 | AO112: 40 | AP112: 0 | AQ112: 0 | AR112: 0 | AS112: 0 | AT112: 0 | AU112: 0 | AV112: 0 | AW112: 0 | AX112: 0 | AY112: 0 | AZ112: 0 | BA112: 0 | BB112: 0 | BC112: 0 | BD112: 0 | BE112: 0 | BF112: 0 | BG112: 0 | BH112: 0 | BI112: 0 | BJ112: 0 | BK112: 0 | BL112: 0 | BM112: 0 | BN112: 0 | BO112: 0 | BP112: 0 | BQ112: 0 | BR112: 0 | BS112: 0 | BT112: 0 | BU112: 0 | BV112: 0 | BW112: 0 | BX112: 40000000 | BY112: 0 | BZ112: 0 | CA112: 0 | CB112: 0 | CC112: 0 | CD112: 0 | CE112: 0 | CF112: 0 | CG112: 0 | CH112: 0 | CI112: 0 | CJ112: 0 | CK112: 0 | CL112: 0 | CM112: 0 | CN112: 40000000 | CO112: 40000000 | CP112: 0 | CQ112: 0 | CR112: 0 | CS112: 0 | CT112: 0 | CU112: 0 | CV112: 0 | CW112: 0 | CX112: 0 | CY112: 0 | CZ112: 0 | DA112: 0 | DB112: 0 | DC112: 0 | DD112: 0 | DE112: 40000000 | DF112: 80000000
